Workbook

Sheet Copie SAI (hidden)
A1: < | B1: SAISIE | J1: Saisir C5-Date, E5-N° Fiche, F5-Client, I5-Tarif Client, I6-Article, L6-Quantité, P5-Remise, U5-Timbre | K1: P | L1: Payé | P1: =SI(W5>0;Y5;0)
C2: Sheets("Feuil2").Activate 'Range("C12").Select | J2: VALIDER avec REPORT | K2: C | L2: Crédit | P2: =SIERREUR($N6*$O6;"") | T2: REPORT
K3: I | L3: Instance
A4: N° Ordre | B4: Mois | C4: Date | D4: N° Fiche | E4: N° Fiche | F4: Client | G4: Réf. Art. | H4: N° Art. | I4: Code Article | J4: Désignation Article | K4: Unité | L4: Quantité | M4: Prix Unité HT | N4: Montant HT Brut | O4: Remise % | P4: Remise Montant | Q4: Montant HT Net | R4: Taux TVA | S4: Montant TVA | T4: Montant TTC | U4: Timbre | V4: Montant TTC+Timbre | W4: Total Net recherché | X4: Montant HT | Y4: Remise | Z4: Indice
A5: P | B5: =IF(SAI_19[[#This Row],[Date]]<>"",MONTH(SAI_19[[#This Row],[Date]]),B4) -> 4 | C5: 2019-04-23 | E5: =IF(C5="","",TEXT(B5,"00")&"-"&TEXT(COUNTIFS(B$5:B5,B5,C$5:C5,">0"),"000")) -> 04-001 | F5: COMPTOIR Prestations | G5: E | I5: =IFERROR(INDEX(#REF!,MATCH(F:F,#REF!,0)),"") ->  | J5: =IF(I5=1,"Tarif COMPTOIR",IF(OR(I5=2),"Tarif CONVENTION",IF(OR(I5=3),"Tarif SPECIAL",""))) ->  | K5: =IF(ISNA(INDEX(#REF!,MATCH(I5,#REF!,0))),"",INDEX(#REF!,MATCH(I5,#REF!,0))) ->  | N5: =SUMIF($D6:$D$55,$E5,N6:N$55) -> 0 | O5: =IFERROR(P5/N5,0) -> 0 | P5: =IF(W5>0,Y5,0) -> 0 | Q5: =N5-P5 -> 0 | R5: =R6 ->  | S5: =IFERROR(Q5*R5,"") ->  | T5: =IFERROR(Q5+S5,"") ->  | U5: =IF(G5="E",ROUNDDOWN(T5*0.01,0),"0.00") ->  | V5: =IFERROR(T5+U5,"") ->  | X5: =SAI_19[[#This Row],[Montant HT Net]] -> 0 | Y5: =N5-W5/1.19 -> 0 | Z5: =A5 -> P
A6: =IF(ISNA(INDEX(#REF!,MATCH(D629,#REF!,0))),"",INDEX(#REF!,MATCH(D629,#REF!,0))) ->  | B6: =IF(SAI_19[[#This Row],[Date]]<>"",MONTH(SAI_19[[#This Row],[Date]]),B5) -> 4 | D6: =IF(E6<>"","",IF(D5="",E5,D5)) -> 04-001 | G6: =IF(ISNA(INDEX(#REF!,MATCH(I6,#REF!,0))),"",INDEX(#REF!,MATCH(I6,#REF!,0))) ->  | H6: =H5+1 -> 1900-01-01 | I6: tp | J6: =IF(ISNA(INDEX(#REF!,MATCH(I6,#REF!,0))),"",INDEX(#REF!,MATCH(I6,#REF!,0))) ->  | K6: =IF(ISNA(INDEX(#REF!,MATCH(I6,#REF!,0))),"",INDEX(#REF!,MATCH(I6,#REF!,0))) ->  | L6: 24 | M6: =IF(ISERROR(VLOOKUP($I6,#REF!,4+OFFSET($D:$D,MATCH($D6,$D:$D,0)-2,8,1,1),FALSE)),"",(VLOOKUP($I6,#REF!,4+OFFSET($D:$D,MATCH($D6,$D:$D,0)-2,8,1,1),FALSE))) ->  | N6: =IFERROR(L6*M6,"") ->  | O6: =IF(E6<>"","",IF(O5="",O5,O5)) -> 0 | P6: =IFERROR($N6*$O6,"") ->  | Q6: =IF($N6="","",$N6-$P6) ->  | R6: =IF(ISNA(INDEX(#REF!,MATCH(I6,#REF!,0))),"",INDEX(#REF!,MATCH(I6,#REF!,0))) ->  | S6: =IF($Q6="","",$Q6*$R6) ->  | T6: =IF($Q6="","",$Q6+$S6) ->  | Z6: =D6 -> 04-001
B7: =IF(SAI_19[[#This Row],[Date]]<>"",MONTH(SAI_19[[#This Row],[Date]]),B6) -> 4 | D7: =IF(E7<>"","",IF(D6="",E6,D6)) -> 04-001 | G7: =IF(ISNA(INDEX(#REF!,MATCH(I7,#REF!,0))),"",INDEX(#REF!,MATCH(I7,#REF!,0))) ->  | H7: =H6+1 -> 1900-01-02 | I7: i3 | J7: =IF(ISNA(INDEX(#REF!,MATCH(I7,#REF!,0))),"",INDEX(#REF!,MATCH(I7,#REF!,0))) ->  | K7: =IF(ISNA(INDEX(#REF!,MATCH(I7,#REF!,0))),"",INDEX(#REF!,MATCH(I7,#REF!,0))) ->  | L7: 36 | M7: =IF(ISERROR(VLOOKUP($I7,#REF!,4+OFFSET($D:$D,MATCH($D7,$D:$D,0)-2,8,1,1),FALSE)),"",(VLOOKUP($I7,#REF!,4+OFFSET($D:$D,MATCH($D7,$D:$D,0)-2,8,1,1),FALSE))) ->  | N7: =IFERROR(L7*M7,"") ->  | O7: =IF(E7<>"","",IF(O6="",O6,O6)) -> 0 | P7: =IFERROR($N7*$O7,"") ->  | Q7: =IF($N7="","",$N7-$P7) ->  | R7: =IF(ISNA(INDEX(#REF!,MATCH(I7,#REF!,0))),"",INDEX(#REF!,MATCH(I7,#REF!,0))) ->  | S7: =IF($Q7="","",$Q7*$R7) ->  | T7: =IF($Q7="","",$Q7+$S7) ->  | Z7: =D7 -> 04-001
B8: =IF(SAI_19[[#This Row],[Date]]<>"",MONTH(SAI_19[[#This Row],[Date]]),B7) -> 4 | D8: =IF(E8<>"","",IF(D7="",E7,D7)) -> 04-001 | E8: =IF(C8="","",TEXT(B8,"00")&"-"&TEXT(COUNTIFS(B$5:B8,B8,C$5:C8,">0"),"000")) ->  | G8: =IF(ISNA(INDEX(#REF!,MATCH(I8,#REF!,0))),"",INDEX(#REF!,MATCH(I8,#REF!,0))) ->  | H8: =H7+1 -> 1900-01-03 | I8: n4 | J8: =IF(ISNA(INDEX(#REF!,MATCH(I8,#REF!,0))),"",INDEX(#REF!,MATCH(I8,#REF!,0))) ->  | K8: =IF(ISNA(INDEX(#REF!,MATCH(I8,#REF!,0))),"",INDEX(#REF!,MATCH(I8,#REF!,0))) ->  | L8: 48 | M8: =IF(ISERROR(VLOOKUP($I8,#REF!,4+OFFSET($D:$D,MATCH($D8,$D:$D,0)-2,8,1,1),FALSE)),"",(VLOOKUP($I8,#REF!,4+OFFSET($D:$D,MATCH($D8,$D:$D,0)-2,8,1,1),FALSE))) ->  | N8: =IFERROR(L8*M8,"") ->  | O8: =IF(E8<>"","",IF(O7="",O7,O7)) -> 0 | P8: =IFERROR($N8*$O8,"") ->  | Q8: =IF($N8="","",$N8-$P8) ->  | R8: =IF(ISNA(INDEX(#REF!,MATCH(I8,#REF!,0))),"",INDEX(#REF!,MATCH(I8,#REF!,0))) ->  | S8: =IF($Q8="","",$Q8*$R8) ->  | T8: =IF($Q8="","",$Q8+$S8) ->  | Z8: =D8 -> 04-001
B9: =IF(SAI_19[[#This Row],[Date]]<>"",MONTH(SAI_19[[#This Row],[Date]]),B8) -> 4 | D9: =IF(E9<>"","",IF(D8="",E8,D8)) -> 04-001 | E9: =IF(C9="","",TEXT(B9,"00")&"-"&TEXT(COUNTIFS(B$5:B9,B9,C$5:C9,">0"),"000")) ->  | G9: =IF(ISNA(INDEX(#REF!,MATCH(I9,#REF!,0))),"",INDEX(#REF!,MATCH(I9,#REF!,0))) ->  | H9: =H8+1 -> 1900-01-04 | I9: 1-p4xb | J9: =IF(ISNA(INDEX(#REF!,MATCH(I9,#REF!,0))),"",INDEX(#REF!,MATCH(I9,#REF!,0))) ->  | K9: =IF(ISNA(INDEX(#REF!,MATCH(I9,#REF!,0))),"",INDEX(#REF!,MATCH(I9,#REF!,0))) ->  | L9: 2 | M9: =IF(ISERROR(VLOOKUP($I9,#REF!,4+OFFSET($D:$D,MATCH($D9,$D:$D,0)-2,8,1,1),FALSE)),"",(VLOOKUP($I9,#REF!,4+OFFSET($D:$D,MATCH($D9,$D:$D,0)-2,8,1,1),FALSE))) ->  | N9: =IFERROR(L9*M9,"") ->  | O9: =IF(E9<>"","",IF(O8="",O8,O8)) -> 0 | P9: =IFERROR($N9*$O9,"") ->  | Q9: =IF($N9="","",$N9-$P9) ->  | R9: =IF(ISNA(INDEX(#REF!,MATCH(I9,#REF!,0))),"",INDEX(#REF!,MATCH(I9,#REF!,0))) ->  | S9: =IF($Q9="","",$Q9*$R9) ->  | T9: =IF($Q9="","",$Q9+$S9) ->  | U9: =IFERROR(T9*0.01,"") ->  | Z9: =D9 -> 04-001
A10: C | B10: =IF(#REF!<>"",MONTH(#REF!),B9) ->  | C10: 2019-04-24 | E10: =IF(C10="","",TEXT(B10,"00")&"-"&TEXT(COUNTIFS(B$5:B10,B10,C$5:C10,">0"),"000")) ->  | F10: EXCELSA ALGERIA | I10: =IFERROR(INDEX(#REF!,MATCH(F:F,#REF!,0)),"") ->  | N10: =SUMIF($D11:$D$51,$E10,N11:N$51) -> 0 | O10: =IFERROR(P10/N10,0) -> 0 | P10: =IF(W10>0,Y10,0) -> 0 | Q10: =N10-P10 -> 0 | R10: =R11 ->  | S10: =IFERROR(Q10*R10,"") ->  | T10: =IFERROR(Q10+S10,"") ->  | U10: =IF(G10="E",ROUNDDOWN(T10*0.01,0),"0.00") -> 0.00 | X10: =SAI_19[[#This Row],[Montant HT Net]] -> 0 | Y10: =N10-W10/1.19 -> 0 | Z10: C
A11: =SAI_19[[#This Row],[N° Fiche]] ->  | B11: =IF(#REF!<>"",MONTH(#REF!),B10) ->  | D11: =IF(E11<>"","",IF(D10="",E10,D10)) ->  | F11: =SUBSTITUTE(F10,"0"," ") -> EXCELSA ALGERIA | G11: =IF(ISNA(INDEX(#REF!,MATCH(I11,#REF!,0))),"",INDEX(#REF!,MATCH(I11,#REF!,0))) ->  | H11: =H10+1 -> 1900-01-01 | I11: GCD | J11: =IF(ISNA(INDEX(#REF!,MATCH(I11,#REF!,0))),"",INDEX(#REF!,MATCH(I11,#REF!,0))) ->  | K11: =IF(ISNA(INDEX(#REF!,MATCH(I11,#REF!,0))),"",INDEX(#REF!,MATCH(I11,#REF!,0))) ->  | L11: 1 | M11: =IF(ISERROR(VLOOKUP($I11,#REF!,3+OFFSET($A:$A,MATCH($A11,$A:$A,0)-2,8,1,1),FALSE)),"",(VLOOKUP($I11,#REF!,3+OFFSET($A:$A,MATCH($A11,$A:$A,0)-2,8,1,1),FALSE))) ->  | N11: =IFERROR(L11*M11,"") ->  | O11: =IF(E11<>"","",IF(O10="",O10,O10)) -> 0 | P11: =IFERROR($N11*$O11,"") ->  | Q11: =IF($N11="","",$N11-$P11) ->  | R11: =IF(ISNA(INDEX(#REF!,MATCH(I11,#REF!,0))),"",INDEX(#REF!,MATCH(I11,#REF!,0))) ->  | S11: =IF($Q11="","",$Q11*$R11) ->  | T11: =IF($Q11="","",$Q11+$S11) -> 
A12: =A11 ->  | B12: =IF(#REF!<>"",MONTH(#REF!),B11) ->  | F12: =SUBSTITUTE(F11,"0"," ") -> EXCELSA ALGERIA | G12: =IF(ISNA(INDEX(#REF!,MATCH(I12,#REF!,0))),"",INDEX(#REF!,MATCH(I12,#REF!,0))) ->  | H12: 1900-01-02 | I12: NP | J12: =IF(ISNA(INDEX(#REF!,MATCH(I12,#REF!,0))),"",INDEX(#REF!,MATCH(I12,#REF!,0))) ->  | K12: =IF(ISNA(INDEX(#REF!,MATCH(I12,#REF!,0))),"",INDEX(#REF!,MATCH(I12,#REF!,0))) ->  | L12: 15.05 | M12: =IF(ISERROR(VLOOKUP($I12,#REF!,3+OFFSET($A:$A,MATCH($A12,$A:$A,0)-2,8,1,1),FALSE)),"",(VLOOKUP($I12,#REF!,3+OFFSET($A:$A,MATCH($A12,$A:$A,0)-2,8,1,1),FALSE))) ->  | N12: =IFERROR(L12*M12,"") ->  | O12: 0 | P12: =IFERROR($N12*$O12,"") ->  | Q12: =IF($N12="","",$N12-$P12) ->  | R12: =IF(ISNA(INDEX(#REF!,MATCH(I12,#REF!,0))),"",INDEX(#REF!,MATCH(I12,#REF!,0))) ->  | S12: =IF($Q12="","",$Q12*$R12) ->  | T12: =IF($Q12="","",$Q12+$S12) -> 
A13: =A12 ->  | B13: =IF(SAI_19[[#This Row],[Date]]<>"",MONTH(SAI_19[[#This Row],[Date]]),B12) ->  | E13: =IF(C13="","",TEXT(B13,"00")&"-"&TEXT(COUNTIFS(B$5:B13,B13,C$5:C13,">0"),"000")) ->  | G13: =IF(ISNA(INDEX(#REF!,MATCH(I13,#REF!,0))),"",INDEX(#REF!,MATCH(I13,#REF!,0))) ->  | H13: 1900-01-03 | I13: =IFERROR(INDEX(#REF!,MATCH(F13,#REF!,0)),"") ->  | J13: =IF(ISNA(INDEX(#REF!,MATCH(I13,#REF!,0))),"",INDEX(#REF!,MATCH(I13,#REF!,0))) ->  | K13: =IF(ISNA(INDEX(#REF!,MATCH(I13,#REF!,0))),"",INDEX(#REF!,MATCH(I13,#REF!,0))) ->  | M13: =IF(ISERROR(VLOOKUP($I13,#REF!,3+OFFSET($A:$A,MATCH($A13,$A:$A,0)-2,8,1,1),FALSE)),"",(VLOOKUP($I13,#REF!,3+OFFSET($A:$A,MATCH($A13,$A:$A,0)-2,8,1,1),FALSE))) ->  | N13: =IFERROR(L13*M13,"") ->  | O13: 0 | P13: =IFERROR($N13*$O13,"") ->  | Q13: =IF($N13="","",$N13-$P13) ->  | R13: =IF(ISNA(INDEX(#REF!,MATCH(I13,#REF!,0))),"",INDEX(#REF!,MATCH(I13,#REF!,0))) ->  | S13: =IF($Q13="","",$Q13*$R13) ->  | T13: =IF($Q13="","",$Q13+$S13) ->  | U13: =IFERROR(T13*0.01,"") ->  | X13: =SAI_19[[#This Row],[Montant HT Net]] -> 
B14: =IF(SAI_19[[#This Row],[Date]]<>"",MONTH(SAI_19[[#This Row],[Date]]),B13) ->  | E14: =IF(C14="","",TEXT(B14,"00")&"-"&TEXT(COUNTIFS(B$5:B14,B14,C$5:C14,">0"),"000")) ->  | G14: =IF(ISNA(INDEX(#REF!,MATCH(I14,#REF!,0))),"",INDEX(#REF!,MATCH(I14,#REF!,0))) ->  | H14: 1900-01-04 | I14: =IFERROR(INDEX(#REF!,MATCH(F14,#REF!,0)),"") ->  | J14: =IF(ISNA(INDEX(#REF!,MATCH(I14,#REF!,0))),"",INDEX(#REF!,MATCH(I14,#REF!,0))) ->  | K14: =IF(ISNA(INDEX(#REF!,MATCH(I14,#REF!,0))),"",INDEX(#REF!,MATCH(I14,#REF!,0))) ->  | M14: =IF(ISERROR(VLOOKUP($I14,#REF!,3+OFFSET($A:$A,MATCH($A14,$A:$A,0)-2,8,1,1),FALSE)),"",(VLOOKUP($I14,#REF!,3+OFFSET($A:$A,MATCH($A14,$A:$A,0)-2,8,1,1),FALSE))) ->  | O14: 0 | R14: =IF(ISNA(INDEX(#REF!,MATCH(I14,#REF!,0))),"",INDEX(#REF!,MATCH(I14,#REF!,0))) ->  | X14: =SAI_19[[#This Row],[Montant HT Net]] -> 
B15: =IF(SAI_19[[#This Row],[Date]]<>"",MONTH(SAI_19[[#This Row],[Date]]),B14) ->  | E15: =IF(C15="","",TEXT(B15,"00")&"-"&TEXT(COUNTIFS(B$5:B15,B15,C$5:C15,">0"),"000")) ->  | G15: =IF(ISNA(INDEX(#REF!,MATCH(I15,#REF!,0))),"",INDEX(#REF!,MATCH(I15,#REF!,0))) ->  | H15: 1900-01-05 | I15: =IFERROR(INDEX(#REF!,MATCH(F15,#REF!,0)),"") ->  | J15: =IF(ISNA(INDEX(#REF!,MATCH(I15,#REF!,0))),"",INDEX(#REF!,MATCH(I15,#REF!,0))) ->  | K15: =IF(ISNA(INDEX(#REF!,MATCH(I15,#REF!,0))),"",INDEX(#REF!,MATCH(I15,#REF!,0))) ->  | M15: =IF(ISERROR(VLOOKUP($I15,#REF!,3+OFFSET($A:$A,MATCH($A15,$A:$A,0)-2,8,1,1),FALSE)),"",(VLOOKUP($I15,#REF!,3+OFFSET($A:$A,MATCH($A15,$A:$A,0)-2,8,1,1),FALSE))) ->  | O15: 0 | R15: =IF(ISNA(INDEX(#REF!,MATCH(I15,#REF!,0))),"",INDEX(#REF!,MATCH(I15,#REF!,0))) ->  | X15: =SAI_19[[#This Row],[Montant HT Net]] -> 
B16: =IF(SAI_19[[#This Row],[Date]]<>"",MONTH(SAI_19[[#This Row],[Date]]),B15) ->  | E16: =IF(C16="","",TEXT(B16,"00")&"-"&TEXT(COUNTIFS(B$5:B16,B16,C$5:C16,">0"),"000")) ->  | G16: =IF(ISNA(INDEX(#REF!,MATCH(I16,#REF!,0))),"",INDEX(#REF!,MATCH(I16,#REF!,0))) ->  | H16: 1900-01-06 | I16: =IFERROR(INDEX(#REF!,MATCH(F16,#REF!,0)),"") ->  | J16: =IF(ISNA(INDEX(#REF!,MATCH(I16,#REF!,0))),"",INDEX(#REF!,MATCH(I16,#REF!,0))) ->  | K16: =IF(ISNA(INDEX(#REF!,MATCH(I16,#REF!,0))),"",INDEX(#REF!,MATCH(I16,#REF!,0))) ->  | M16: =IF(ISERROR(VLOOKUP($I16,#REF!,3+OFFSET($A:$A,MATCH($A16,$A:$A,0)-2,8,1,1),FALSE)),"",(VLOOKUP($I16,#REF!,3+OFFSET($A:$A,MATCH($A16,$A:$A,0)-2,8,1,1),FALSE))) ->  | O16: 0 | R16: =IF(ISNA(INDEX(#REF!,MATCH(I16,#REF!,0))),"",INDEX(#REF!,MATCH(I16,#REF!,0))) ->  | X16: =SAI_19[[#This Row],[Montant HT Net]] -> 
B17: =IF(SAI_19[[#This Row],[Date]]<>"",MONTH(SAI_19[[#This Row],[Date]]),B16) ->  | E17: =IF(C17="","",TEXT(B17,"00")&"-"&TEXT(COUNTIFS(B$5:B17,B17,C$5:C17,">0"),"000")) ->  | G17: =IF(ISNA(INDEX(#REF!,MATCH(I17,#REF!,0))),"",INDEX(#REF!,MATCH(I17,#REF!,0))) ->  | H17: 1900-01-07 | I17: =IFERROR(INDEX(#REF!,MATCH(F17,#REF!,0)),"") ->  | J17: =IF(ISNA(INDEX(#REF!,MATCH(I17,#REF!,0))),"",INDEX(#REF!,MATCH(I17,#REF!,0))) ->  | K17: =IF(ISNA(INDEX(#REF!,MATCH(I17,#REF!,0))),"",INDEX(#REF!,MATCH(I17,#REF!,0))) ->  | M17: =IF(ISERROR(VLOOKUP($I17,#REF!,3+OFFSET($A:$A,MATCH($A17,$A:$A,0)-2,8,1,1),FALSE)),"",(VLOOKUP($I17,#REF!,3+OFFSET($A:$A,MATCH($A17,$A:$A,0)-2,8,1,1),FALSE))) ->  | O17: 0 | R17: =IF(ISNA(INDEX(#REF!,MATCH(I17,#REF!,0))),"",INDEX(#REF!,MATCH(I17,#REF!,0))) ->  | X17: =SAI_19[[#This Row],[Montant HT Net]] -> 
B18: =IF(SAI_19[[#This Row],[Date]]<>"",MONTH(SAI_19[[#This Row],[Date]]),B17) ->  | E18: =IF(C18="","",TEXT(B18,"00")&"-"&TEXT(COUNTIFS(B$5:B18,B18,C$5:C18,">0"),"000")) ->  | G18: =IF(ISNA(INDEX(#REF!,MATCH(I18,#REF!,0))),"",INDEX(#REF!,MATCH(I18,#REF!,0))) ->  | H18: 1900-01-08 | I18: =IFERROR(INDEX(#REF!,MATCH(F18,#REF!,0)),"") ->  | J18: =IF(ISNA(INDEX(#REF!,MATCH(I18,#REF!,0))),"",INDEX(#REF!,MATCH(I18,#REF!,0))) ->  | K18: =IF(ISNA(INDEX(#REF!,MATCH(I18,#REF!,0))),"",INDEX(#REF!,MATCH(I18,#REF!,0))) ->  | M18: =IF(ISERROR(VLOOKUP($I18,#REF!,3+OFFSET($A:$A,MATCH($A18,$A:$A,0)-2,8,1,1),FALSE)),"",(VLOOKUP($I18,#REF!,3+OFFSET($A:$A,MATCH($A18,$A:$A,0)-2,8,1,1),FALSE))) ->  | O18: 0 | R18: =IF(ISNA(INDEX(#REF!,MATCH(I18,#REF!,0))),"",INDEX(#REF!,MATCH(I18,#REF!,0))) ->  | X18: =SAI_19[[#This Row],[Montant HT Net]] -> 
B19: =IF(SAI_19[[#This Row],[Date]]<>"",MONTH(SAI_19[[#This Row],[Date]]),B18) ->  | E19: =IF(C19="","",TEXT(B19,"00")&"-"&TEXT(COUNTIFS(B$5:B19,B19,C$5:C19,">0"),"000")) ->  | G19: =IF(ISNA(INDEX(#REF!,MATCH(I19,#REF!,0))),"",INDEX(#REF!,MATCH(I19,#REF!,0))) ->  | H19: 1900-01-09 | I19: =IFERROR(INDEX(#REF!,MATCH(F19,#REF!,0)),"") ->  | J19: =IF(ISNA(INDEX(#REF!,MATCH(I19,#REF!,0))),"",INDEX(#REF!,MATCH(I19,#REF!,0))) ->  | K19: =IF(ISNA(INDEX(#REF!,MATCH(I19,#REF!,0))),"",INDEX(#REF!,MATCH(I19,#REF!,0))) ->  | M19: =IF(ISERROR(VLOOKUP($I19,#REF!,3+OFFSET($A:$A,MATCH($A19,$A:$A,0)-2,8,1,1),FALSE)),"",(VLOOKUP($I19,#REF!,3+OFFSET($A:$A,MATCH($A19,$A:$A,0)-2,8,1,1),FALSE))) ->  | O19: 0 | R19: =IF(ISNA(INDEX(#REF!,MATCH(I19,#REF!,0))),"",INDEX(#REF!,MATCH(I19,#REF!,0))) ->  | X19: =SAI_19[[#This Row],[Montant HT Net]] -> 
B20: =IF(SAI_19[[#This Row],[Date]]<>"",MONTH(SAI_19[[#This Row],[Date]]),B19) ->  | E20: =IF(C20="","",TEXT(B20,"00")&"-"&TEXT(COUNTIFS(B$5:B20,B20,C$5:C20,">0"),"000")) ->  | G20: =IF(ISNA(INDEX(#REF!,MATCH(I20,#REF!,0))),"",INDEX(#REF!,MATCH(I20,#REF!,0))) ->  | H20: 1900-01-10 | I20: =IFERROR(INDEX(#REF!,MATCH(F20,#REF!,0)),"") ->  | J20: =IF(ISNA(INDEX(#REF!,MATCH(I20,#REF!,0))),"",INDEX(#REF!,MATCH(I20,#REF!,0))) ->  | K20: =IF(ISNA(INDEX(#REF!,MATCH(I20,#REF!,0))),"",INDEX(#REF!,MATCH(I20,#REF!,0))) ->  | M20: =IF(ISERROR(VLOOKUP($I20,#REF!,3+OFFSET($A:$A,MATCH($A20,$A:$A,0)-2,8,1,1),FALSE)),"",(VLOOKUP($I20,#REF!,3+OFFSET($A:$A,MATCH($A20,$A:$A,0)-2,8,1,1),FALSE))) ->  | O20: 0 | R20: =IF(ISNA(INDEX(#REF!,MATCH(I20,#REF!,0))),"",INDEX(#REF!,MATCH(I20,#REF!,0))) ->  | X20: =SAI_19[[#This Row],[Montant HT Net]] -> 
B21: =IF(SAI_19[[#This Row],[Date]]<>"",MONTH(SAI_19[[#This Row],[Date]]),B20) ->  | E21: =IF(C21="","",TEXT(B21,"00")&"-"&TEXT(COUNTIFS(B$5:B21,B21,C$5:C21,">0"),"000")) ->  | G21: =IF(ISNA(INDEX(#REF!,MATCH(I21,#REF!,0))),"",INDEX(#REF!,MATCH(I21,#REF!,0))) ->  | H21: 1900-01-11 | I21: =IFERROR(INDEX(#REF!,MATCH(F21,#REF!,0)),"") ->  | J21: =IF(ISNA(INDEX(#REF!,MATCH(I21,#REF!,0))),"",INDEX(#REF!,MATCH(I21,#REF!,0))) ->  | K21: =IF(ISNA(INDEX(#REF!,MATCH(I21,#REF!,0))),"",INDEX(#REF!,MATCH(I21,#REF!,0))) ->  | M21: =IF(ISERROR(VLOOKUP($I21,#REF!,3+OFFSET($A:$A,MATCH($A21,$A:$A,0)-2,8,1,1),FALSE)),"",(VLOOKUP($I21,#REF!,3+OFFSET($A:$A,MATCH($A21,$A:$A,0)-2,8,1,1),FALSE))) ->  | O21: 0 | R21: =IF(ISNA(INDEX(#REF!,MATCH(I21,#REF!,0))),"",INDEX(#REF!,MATCH(I21,#REF!,0))) ->  | X21: =SAI_19[[#This Row],[Montant HT Net]] -> 
B22: =IF(SAI_19[[#This Row],[Date]]<>"",MONTH(SAI_19[[#This Row],[Date]]),B21) ->  | E22: =IF(C22="","",TEXT(B22,"00")&"-"&TEXT(COUNTIFS(B$5:B22,B22,C$5:C22,">0"),"000")) ->  | G22: =IF(ISNA(INDEX(#REF!,MATCH(I22,#REF!,0))),"",INDEX(#REF!,MATCH(I22,#REF!,0))) ->  | H22: 1900-01-12 | I22: =IFERROR(INDEX(#REF!,MATCH(F22,#REF!,0)),"") ->  | J22: =IF(ISNA(INDEX(#REF!,MATCH(I22,#REF!,0))),"",INDEX(#REF!,MATCH(I22,#REF!,0))) ->  | K22: =IF(ISNA(INDEX(#REF!,MATCH(I22,#REF!,0))),"",INDEX(#REF!,MATCH(I22,#REF!,0))) ->  | M22: =IF(ISERROR(VLOOKUP($I22,#REF!,3+OFFSET($A:$A,MATCH($A22,$A:$A,0)-2,8,1,1),FALSE)),"",(VLOOKUP($I22,#REF!,3+OFFSET($A:$A,MATCH($A22,$A:$A,0)-2,8,1,1),FALSE))) ->  | O22: 0 | R22: =IF(ISNA(INDEX(#REF!,MATCH(I22,#REF!,0))),"",INDEX(#REF!,MATCH(I22,#REF!,0))) ->  | X22: =SAI_19[[#This Row],[Montant HT Net]] -> 
B23: =IF(SAI_19[[#This Row],[Date]]<>"",MONTH(SAI_19[[#This Row],[Date]]),B22) ->  | E23: =IF(C23="","",TEXT(B23,"00")&"-"&TEXT(COUNTIFS(B$5:B23,B23,C$5:C23,">0"),"000")) ->  | G23: =IF(ISNA(INDEX(#REF!,MATCH(I23,#REF!,0))),"",INDEX(#REF!,MATCH(I23,#REF!,0))) ->  | H23: 1900-01-13 | I23: =IFERROR(INDEX(#REF!,MATCH(F23,#REF!,0)),"") ->  | J23: =IF(ISNA(INDEX(#REF!,MATCH(I23,#REF!,0))),"",INDEX(#REF!,MATCH(I23,#REF!,0))) ->  | K23: =IF(ISNA(INDEX(#REF!,MATCH(I23,#REF!,0))),"",INDEX(#REF!,MATCH(I23,#REF!,0))) ->  | M23: =IF(ISERROR(VLOOKUP($I23,#REF!,3+OFFSET($A:$A,MATCH($A23,$A:$A,0)-2,8,1,1),FALSE)),"",(VLOOKUP($I23,#REF!,3+OFFSET($A:$A,MATCH($A23,$A:$A,0)-2,8,1,1),FALSE))) ->  | O23: 0 | R23: =IF(ISNA(INDEX(#REF!,MATCH(I23,#REF!,0))),"",INDEX(#REF!,MATCH(I23,#REF!,0))) ->  | W23: =ROUNDDOWN(T23,0) ->  | X23: =SAI_19[[#This Row],[Montant HT Net]] -> 
B24: =IF(SAI_19[[#This Row],[Date]]<>"",MONTH(SAI_19[[#This Row],[Date]]),B23) ->  | E24: =IF(C24="","",TEXT(B24,"00")&"-"&TEXT(COUNTIFS(B$5:B24,B24,C$5:C24,">0"),"000")) ->  | G24: =IF(ISNA(INDEX(#REF!,MATCH(I24,#REF!,0))),"",INDEX(#REF!,MATCH(I24,#REF!,0))) ->  | H24: 1900-01-14 | I24: =IFERROR(INDEX(#REF!,MATCH(F24,#REF!,0)),"") ->  | J24: =IF(ISNA(INDEX(#REF!,MATCH(I24,#REF!,0))),"",INDEX(#REF!,MATCH(I24,#REF!,0))) ->  | K24: =IF(ISNA(INDEX(#REF!,MATCH(I24,#REF!,0))),"",INDEX(#REF!,MATCH(I24,#REF!,0))) ->  | M24: =IF(ISERROR(VLOOKUP($I24,#REF!,3+OFFSET($A:$A,MATCH($A24,$A:$A,0)-2,8,1,1),FALSE)),"",(VLOOKUP($I24,#REF!,3+OFFSET($A:$A,MATCH($A24,$A:$A,0)-2,8,1,1),FALSE))) ->  | O24: 0 | R24: =IF(ISNA(INDEX(#REF!,MATCH(I24,#REF!,0))),"",INDEX(#REF!,MATCH(I24,#REF!,0))) ->  | X24: =SAI_19[[#This Row],[Montant HT Net]] -> 
B25: =IF(SAI_19[[#This Row],[Date]]<>"",MONTH(SAI_19[[#This Row],[Date]]),B24) ->  | E25: =IF(C25="","",TEXT(B25,"00")&"-"&TEXT(COUNTIFS(B$5:B25,B25,C$5:C25,">0"),"000")) ->  | G25: =IF(ISNA(INDEX(#REF!,MATCH(I25,#REF!,0))),"",INDEX(#REF!,MATCH(I25,#REF!,0))) ->  | H25: 1900-01-15 | I25: =IFERROR(INDEX(#REF!,MATCH(F25,#REF!,0)),"") ->  | J25: =IF(ISNA(INDEX(#REF!,MATCH(I25,#REF!,0))),"",INDEX(#REF!,MATCH(I25,#REF!,0))) ->  | K25: =IF(ISNA(INDEX(#REF!,MATCH(I25,#REF!,0))),"",INDEX(#REF!,MATCH(I25,#REF!,0))) ->  | M25: =IF(ISERROR(VLOOKUP($I25,#REF!,3+OFFSET($A:$A,MATCH($A25,$A:$A,0)-2,8,1,1),FALSE)),"",(VLOOKUP($I25,#REF!,3+OFFSET($A:$A,MATCH($A25,$A:$A,0)-2,8,1,1),FALSE))) ->  | O25: 0 | R25: =IF(ISNA(INDEX(#REF!,MATCH(I25,#REF!,0))),"",INDEX(#REF!,MATCH(I25,#REF!,0))) ->  | X25: =SAI_19[[#This Row],[Montant HT Net]] -> 
B26: =IF(SAI_19[[#This Row],[Date]]<>"",MONTH(SAI_19[[#This Row],[Date]]),B25) ->  | E26: =IF(C26="","",TEXT(B26,"00")&"-"&TEXT(COUNTIFS(B$5:B26,B26,C$5:C26,">0"),"000")) ->  | G26: =IF(ISNA(INDEX(#REF!,MATCH(I26,#REF!,0))),"",INDEX(#REF!,MATCH(I26,#REF!,0))) ->  | H26: 1900-01-16 | I26: =IFERROR(INDEX(#REF!,MATCH(F26,#REF!,0)),"") ->  | J26: =IF(ISNA(INDEX(#REF!,MATCH(I26,#REF!,0))),"",INDEX(#REF!,MATCH(I26,#REF!,0))) ->  | K26: =IF(ISNA(INDEX(#REF!,MATCH(I26,#REF!,0))),"",INDEX(#REF!,MATCH(I26,#REF!,0))) ->  | M26: =IF(ISERROR(VLOOKUP($I26,#REF!,3+OFFSET($A:$A,MATCH($A26,$A:$A,0)-2,8,1,1),FALSE)),"",(VLOOKUP($I26,#REF!,3+OFFSET($A:$A,MATCH($A26,$A:$A,0)-2,8,1,1),FALSE))) ->  | O26: 0 | R26: =IF(ISNA(INDEX(#REF!,MATCH(I26,#REF!,0))),"",INDEX(#REF!,MATCH(I26,#REF!,0))) ->  | X26: =SAI_19[[#This Row],[Montant HT Net]] -> 
B27: =IF(SAI_19[[#This Row],[Date]]<>"",MONTH(SAI_19[[#This Row],[Date]]),B26) ->  | E27: =IF(C27="","",TEXT(B27,"00")&"-"&TEXT(COUNTIFS(B$5:B27,B27,C$5:C27,">0"),"000")) ->  | G27: =IF(ISNA(INDEX(#REF!,MATCH(I27,#REF!,0))),"",INDEX(#REF!,MATCH(I27,#REF!,0))) ->  | H27: 1900-01-17 | I27: =IFERROR(INDEX(#REF!,MATCH(F27,#REF!,0)),"") ->  | J27: =IF(ISNA(INDEX(#REF!,MATCH(I27,#REF!,0))),"",INDEX(#REF!,MATCH(I27,#REF!,0))) ->  | K27: =IF(ISNA(INDEX(#REF!,MATCH(I27,#REF!,0))),"",INDEX(#REF!,MATCH(I27,#REF!,0))) ->  | M27: =IF(ISERROR(VLOOKUP($I27,#REF!,3+OFFSET($A:$A,MATCH($A27,$A:$A,0)-2,8,1,1),FALSE)),"",(VLOOKUP($I27,#REF!,3+OFFSET($A:$A,MATCH($A27,$A:$A,0)-2,8,1,1),FALSE))) ->  | O27: 0 | R27: =IF(ISNA(INDEX(#REF!,MATCH(I27,#REF!,0))),"",INDEX(#REF!,MATCH(I27,#REF!,0))) ->  | X27: =SAI_19[[#This Row],[Montant HT Net]] -> 
B28: =IF(SAI_19[[#This Row],[Date]]<>"",MONTH(SAI_19[[#This Row],[Date]]),B27) ->  | E28: =IF(C28="","",TEXT(B28,"00")&"-"&TEXT(COUNTIFS(B$5:B28,B28,C$5:C28,">0"),"000")) ->  | G28: =IF(ISNA(INDEX(#REF!,MATCH(I28,#REF!,0))),"",INDEX(#REF!,MATCH(I28,#REF!,0))) ->  | H28: 1900-01-18 | I28: =IFERROR(INDEX(#REF!,MATCH(F28,#REF!,0)),"") ->  | J28: =IF(ISNA(INDEX(#REF!,MATCH(I28,#REF!,0))),"",INDEX(#REF!,MATCH(I28,#REF!,0))) ->  | K28: =IF(ISNA(INDEX(#REF!,MATCH(I28,#REF!,0))),"",INDEX(#REF!,MATCH(I28,#REF!,0))) ->  | M28: =IF(ISERROR(VLOOKUP($I28,#REF!,3+OFFSET($A:$A,MATCH($A28,$A:$A,0)-2,8,1,1),FALSE)),"",(VLOOKUP($I28,#REF!,3+OFFSET($A:$A,MATCH($A28,$A:$A,0)-2,8,1,1),FALSE))) ->  | O28: 0 | R28: =IF(ISNA(INDEX(#REF!,MATCH(I28,#REF!,0))),"",INDEX(#REF!,MATCH(I28,#REF!,0))) ->  | X28: =SAI_19[[#This Row],[Montant HT Net]] -> 
B29: =IF(SAI_19[[#This Row],[Date]]<>"",MONTH(SAI_19[[#This Row],[Date]]),B28) ->  | E29: =IF(C29="","",TEXT(B29,"00")&"-"&TEXT(COUNTIFS(B$5:B29,B29,C$5:C29,">0"),"000")) ->  | G29: =IF(ISNA(INDEX(#REF!,MATCH(I29,#REF!,0))),"",INDEX(#REF!,MATCH(I29,#REF!,0))) ->  | H29: 1900-01-19 | I29: =IFERROR(INDEX(#REF!,MATCH(F29,#REF!,0)),"") ->  | J29: =IF(ISNA(INDEX(#REF!,MATCH(I29,#REF!,0))),"",INDEX(#REF!,MATCH(I29,#REF!,0))) ->  | K29: =IF(ISNA(INDEX(#REF!,MATCH(I29,#REF!,0))),"",INDEX(#REF!,MATCH(I29,#REF!,0))) ->  | M29: =IF(ISERROR(VLOOKUP($I29,#REF!,3+OFFSET($A:$A,MATCH($A29,$A:$A,0)-2,8,1,1),FALSE)),"",(VLOOKUP($I29,#REF!,3+OFFSET($A:$A,MATCH($A29,$A:$A,0)-2,8,1,1),FALSE))) ->  | O29: 0 | R29: =IF(ISNA(INDEX(#REF!,MATCH(I29,#REF!,0))),"",INDEX(#REF!,MATCH(I29,#REF!,0))) ->  | X29: =SAI_19[[#This Row],[Montant HT Net]] -> 
B30: =IF(SAI_19[[#This Row],[Date]]<>"",MONTH(SAI_19[[#This Row],[Date]]),B29) ->  | E30: =IF(C30="","",TEXT(B30,"00")&"-"&TEXT(COUNTIFS(B$5:B30,B30,C$5:C30,">0"),"000")) ->  | G30: =IF(ISNA(INDEX(#REF!,MATCH(I30,#REF!,0))),"",INDEX(#REF!,MATCH(I30,#REF!,0))) ->  | H30: 1900-01-20 | I30: =IFERROR(INDEX(#REF!,MATCH(F30,#REF!,0)),"") ->  | J30: =IF(ISNA(INDEX(#REF!,MATCH(I30,#REF!,0))),"",INDEX(#REF!,MATCH(I30,#REF!,0))) ->  | K30: =IF(ISNA(INDEX(#REF!,MATCH(I30,#REF!,0))),"",INDEX(#REF!,MATCH(I30,#REF!,0))) ->  | M30: =IF(ISERROR(VLOOKUP($I30,#REF!,3+OFFSET($A:$A,MATCH($A30,$A:$A,0)-2,8,1,1),FALSE)),"",(VLOOKUP($I30,#REF!,3+OFFSET($A:$A,MATCH($A30,$A:$A,0)-2,8,1,1),FALSE))) ->  | O30: 0 | R30: =IF(ISNA(INDEX(#REF!,MATCH(I30,#REF!,0))),"",INDEX(#REF!,MATCH(I30,#REF!,0))) ->  | X30: =SAI_19[[#This Row],[Montant HT Net]] -> 
B31: =IF(SAI_19[[#This Row],[Date]]<>"",MONTH(SAI_19[[#This Row],[Date]]),B30) ->  | E31: =IF(C31="","",TEXT(B31,"00")&"-"&TEXT(COUNTIFS(B$5:B31,B31,C$5:C31,">0"),"000")) ->  | G31: =IF(ISNA(INDEX(#REF!,MATCH(I31,#REF!,0))),"",INDEX(#REF!,MATCH(I31,#REF!,0))) ->  | H31: 1900-01-21 | I31: =IFERROR(INDEX(#REF!,MATCH(F31,#REF!,0)),"") ->  | J31: =IF(ISNA(INDEX(#REF!,MATCH(I31,#REF!,0))),"",INDEX(#REF!,MATCH(I31,#REF!,0))) ->  | K31: =IF(ISNA(INDEX(#REF!,MATCH(I31,#REF!,0))),"",INDEX(#REF!,MATCH(I31,#REF!,0))) ->  | M31: =IF(ISERROR(VLOOKUP($I31,#REF!,3+OFFSET($A:$A,MATCH($A31,$A:$A,0)-2,8,1,1),FALSE)),"",(VLOOKUP($I31,#REF!,3+OFFSET($A:$A,MATCH($A31,$A:$A,0)-2,8,1,1),FALSE))) ->  | O31: 0 | R31: =IF(ISNA(INDEX(#REF!,MATCH(I31,#REF!,0))),"",INDEX(#REF!,MATCH(I31,#REF!,0))) ->  | X31: =SAI_19[[#This Row],[Montant HT Net]] -> 
B32: =IF(SAI_19[[#This Row],[Date]]<>"",MONTH(SAI_19[[#This Row],[Date]]),B31) ->  | E32: =IF(C32="","",TEXT(B32,"00")&"-"&TEXT(COUNTIFS(B$5:B32,B32,C$5:C32,">0"),"000")) ->  | G32: =IF(ISNA(INDEX(#REF!,MATCH(I32,#REF!,0))),"",INDEX(#REF!,MATCH(I32,#REF!,0))) ->  | H32: 1900-01-22 | I32: =IFERROR(INDEX(#REF!,MATCH(F32,#REF!,0)),"") ->  | J32: =IF(ISNA(INDEX(#REF!,MATCH(I32,#REF!,0))),"",INDEX(#REF!,MATCH(I32,#REF!,0))) ->  | K32: =IF(ISNA(INDEX(#REF!,MATCH(I32,#REF!,0))),"",INDEX(#REF!,MATCH(I32,#REF!,0))) ->  | M32: =IF(ISERROR(VLOOKUP($I32,#REF!,3+OFFSET($A:$A,MATCH($A32,$A:$A,0)-2,8,1,1),FALSE)),"",(VLOOKUP($I32,#REF!,3+OFFSET($A:$A,MATCH($A32,$A:$A,0)-2,8,1,1),FALSE))) ->  | O32: 0 | R32: =IF(ISNA(INDEX(#REF!,MATCH(I32,#REF!,0))),"",INDEX(#REF!,MATCH(I32,#REF!,0))) ->  | X32: =SAI_19[[#This Row],[Montant HT Net]] -> 
B33: =IF(SAI_19[[#This Row],[Date]]<>"",MONTH(SAI_19[[#This Row],[Date]]),B32) ->  | E33: =IF(C33="","",TEXT(B33,"00")&"-"&TEXT(COUNTIFS(B$5:B33,B33,C$5:C33,">0"),"000")) ->  | G33: =IF(ISNA(INDEX(#REF!,MATCH(I33,#REF!,0))),"",INDEX(#REF!,MATCH(I33,#REF!,0))) ->  | H33: 1900-01-23 | I33: =IFERROR(INDEX(#REF!,MATCH(F33,#REF!,0)),"") ->  | J33: =IF(ISNA(INDEX(#REF!,MATCH(I33,#REF!,0))),"",INDEX(#REF!,MATCH(I33,#REF!,0))) ->  | K33: =IF(ISNA(INDEX(#REF!,MATCH(I33,#REF!,0))),"",INDEX(#REF!,MATCH(I33,#REF!,0))) ->  | M33: =IF(ISERROR(VLOOKUP($I33,#REF!,3+OFFSET($A:$A,MATCH($A33,$A:$A,0)-2,8,1,1),FALSE)),"",(VLOOKUP($I33,#REF!,3+OFFSET($A:$A,MATCH($A33,$A:$A,0)-2,8,1,1),FALSE))) ->  | O33: 0 | R33: =IF(ISNA(INDEX(#REF!,MATCH(I33,#REF!,0))),"",INDEX(#REF!,MATCH(I33,#REF!,0))) ->  | X33: =SAI_19[[#This Row],[Montant HT Net]] -> 
B34: =IF(SAI_19[[#This Row],[Date]]<>"",MONTH(SAI_19[[#This Row],[Date]]),B33) ->  | E34: =IF(C34="","",TEXT(B34,"00")&"-"&TEXT(COUNTIFS(B$5:B34,B34,C$5:C34,">0"),"000")) ->  | G34: =IF(ISNA(INDEX(#REF!,MATCH(I34,#REF!,0))),"",INDEX(#REF!,MATCH(I34,#REF!,0))) ->  | H34: 1900-01-24 | I34: =IFERROR(INDEX(#REF!,MATCH(F34,#REF!,0)),"") ->  | J34: =IF(ISNA(INDEX(#REF!,MATCH(I34,#REF!,0))),"",INDEX(#REF!,MATCH(I34,#REF!,0))) ->  | K34: =IF(ISNA(INDEX(#REF!,MATCH(I34,#REF!,0))),"",INDEX(#REF!,MATCH(I34,#REF!,0))) ->  | M34: =IF(ISERROR(VLOOKUP($I34,#REF!,3+OFFSET($A:$A,MATCH($A34,$A:$A,0)-2,8,1,1),FALSE)),"",(VLOOKUP($I34,#REF!,3+OFFSET($A:$A,MATCH($A34,$A:$A,0)-2,8,1,1),FALSE))) ->  | O34: 0 | R34: =IF(ISNA(INDEX(#REF!,MATCH(I34,#REF!,0))),"",INDEX(#REF!,MATCH(I34,#REF!,0))) ->  | X34: =SAI_19[[#This Row],[Montant HT Net]] -> 
B35: =IF(SAI_19[[#This Row],[Date]]<>"",MONTH(SAI_19[[#This Row],[Date]]),B34) ->  | E35: =IF(C35="","",TEXT(B35,"00")&"-"&TEXT(COUNTIFS(B$5:B35,B35,C$5:C35,">0"),"000")) ->  | G35: =IF(ISNA(INDEX(#REF!,MATCH(I35,#REF!,0))),"",INDEX(#REF!,MATCH(I35,#REF!,0))) ->  | H35: 1900-01-25 | I35: =IFERROR(INDEX(#REF!,MATCH(F35,#REF!,0)),"") ->  | J35: =IF(ISNA(INDEX(#REF!,MATCH(I35,#REF!,0))),"",INDEX(#REF!,MATCH(I35,#REF!,0))) ->  | K35: =IF(ISNA(INDEX(#REF!,MATCH(I35,#REF!,0))),"",INDEX(#REF!,MATCH(I35,#REF!,0))) ->  | M35: =IF(ISERROR(VLOOKUP($I35,#REF!,3+OFFSET($A:$A,MATCH($A35,$A:$A,0)-2,8,1,1),FALSE)),"",(VLOOKUP($I35,#REF!,3+OFFSET($A:$A,MATCH($A35,$A:$A,0)-2,8,1,1),FALSE))) ->  | O35: 0 | R35: =IF(ISNA(INDEX(#REF!,MATCH(I35,#REF!,0))),"",INDEX(#REF!,MATCH(I35,#REF!,0))) ->  | X35: =SAI_19[[#This Row],[Montant HT Net]] -> 

Sheet SAI
B1: SAISIE | H1: Saisir : Date, Client, Code Article, Quantité et Etat; puis VALIDER
AB2: ≥ | AC2: > | AD2: <
T3: RENDU | U3: =IFERROR(U5-U4,"") -> -50
P4: =IFERROR(L4*N4,"") -> 0 | T4: REÇU | U4: 50
T5: A PAYER | U5: =U9 -> 0
A7: Etat | B7: Date | C7: Fiche | D7: N° Fiche | E7: CLIENT | F7: Réf. | G7: N° | H7: Code | I7: Désignation Article | J7: Unité | K7: Quantité | L7: P.U. HT | M7: Mt HT Brut | N7: % Remise | O7: Mt Remise | P7: Mt HT Net | Q7: %TVA | R7: Mt TVA | S7: Mt TTC | T7: Arrondi | U7: Mt Payé | V7: P.U. TTC | W7: Observation | X7: Jour | Y7: Mois | Z7: Ordre
A8: Payé | B8: 2021-03-27 | C8: =D8 -> 03-326 | D8: =LEFT(LOOKUP("9",CTS!E$35:E$100002),2)&TEXT(VALUE(RIGHT(LOOKUP("9",CTS!E$35:E$100002),3))+1,"-000") -> 03-326 | E8: CLIENT | F8: =IF(ISNA(INDEX(#REF!,MATCH(H9,#REF!,0))),"",INDEX(#REF!,MATCH(H9,#REF!,0))) -> 
M9: =IFERROR(K9*L9,"") -> 0 | N9: =O9/M9 ->  | O9: 0 | P9: =IFERROR(M9-O9,"") -> 0 | Q9: 0.19 | R9: =IFERROR(P9*Q9,"") -> 0 | S9: =IFERROR(P9+R9,"") -> 0 | U9: =IFERROR(S9-T9,"") -> 0 | V9: =U9/K9 ->  | X9: =TEXT(B8,"jj") -> 27 | Y9: =TEXT(B8,"mm") -> 03 | Z9: 1
E10: =IFERROR(INDEX(#REF!,MATCH(E8,#REF!,0)),"") -> 
A12: =A8 -> Payé | B12: =B8 -> 2021-03-27 | D12: =D8 -> 03-326 | E12: =CLIENT -> CLIENT | M12: =SUM(M13:M9995) -> 36 | N12: =SUM(N13:N9995) -> 0 | O12: =SUM(O13:O9995) -> 0 | P12: =SUM(P13:P9995) -> 36 | R12: =SUM(R13:R9995) -> 6.84 | S12: =SUM(S13:S9995) -> 42.84 | T12: =SUM(T13:T9995) -> 2.84 | U12: =SUM(U13:U9995) -> 40 | X12: =TEXT(SAI_32[[#This Row],[Colonne2]],"jj") -> 27 | Y12: =TEXT(B8,"mm") -> 03
C13: =D8 -> 03-326 | G13: 1 | H13: 1-P0T | I13: Papier A0 Tirage | J13: U | K13: 3 | L13: 12 | M13: 36 | N13: 0 | O13: 0 | P13: 36 | Q13: 0.19 | R13: 6.84 | S13: 42.84 | T13: 2.84 | U13: 40 | V13: 13.33333333 | X13: 27 | Y13: =Y12 -> 03 | Z13: 1
C14: =C13 -> 03-326 | X14: =X13 -> 27 | Y14: =Y13 -> 03 | Z14: 2
C15: =C14 -> 03-326 | X15: =X14 -> 27 | Y15: 03 | Z15: 3
C16: 03-326 | X16: 27 | Y16: 03 | Z16: 4
C17: 03-326 | X17: 27 | Y17: 03 | Z17: 5
C18: 03-326 | X18: 27 | Y18: 03 | Z18: 6
C19: 03-326 | X19: 27 | Y19: 03 | Z19: 7
C20: 03-326 | X20: 27 | Y20: 03 | Z20: 8
O23: La 1ère facture est ainsi archivée, et je peux retourner à la feuille SAI pour saisir la 2ème facture et ainsi de suite.
A46: Etat | B46: Date | C46: Fiche | D46: N° Fiche | E46: Client | F46: Réf. Art. | G46: N° Art. | H46: Code Article | I46: Désignation Article | J46: Unité | K46: Quant. | L46: Prix Unité HT | M46: Mt HT Brut | N46: Remise % | O46: Remise Montant | P46: Montant HT Net | Q46: Taux TVA | R46: Montant TVA | S46: Montant TTC | T46: Arrondi | U46: Montant Payé | V46: Prix U. TTC | W46: Obs. | X46: Jour | Y46: Mois | Z46: Ordre

Sheet REP
A4: Etat | B4: Date | C4: Fiche | D4: N° Fiche | E4: CLIENT | F4: Réf. | G4: N° | H4: Code | I4: Désignation Article | J4: Unité | K4: Quantité | L4: P.U. HT | M4: Mt HT Brut | N4: % Remise | O4: Mt Remise | P4: Mt HT Net | Q4: %TVA | R4: Mt TVA | S4: Mt TTC | T4: Arrondi | U4: Mt Payé | V4: P.U. TTC | W4: Observation | X4: Jour | Y4: Mois | Z4: Ordre

Sheet CTS (hidden)
A1: ◄ | B1: REPORT | H1: Saisir uniquement le N° de Fiche en F8 pour avoir le détail enregistré | Q1: ▲ | R1: ▼ | S1: ► | AC1: ◄ | AN1: ◄
A2: Exit | B2: ◄ SAISIE | Q2: Haut | R2: Bas | S2: Caisse | AC2: Report | AN2: Report
A3: Etat | B3: Jour | C3: Date | D3: Fiche | E3: N° Fiche | F3: Client | G3: Réf. Art. | H3: N° Art. | I3: Code Article | J3: Désignation Article | K3: Unité | L3: Quant. | M3: Prix Unité HT | N3: Montant HT Brut | O3: Remise % | P3: Remise Montant | Q3: Montant HT Net | R3: Taux TVA | S3: Montant TVA | T3: Montant TTC | U3: Arrondi | V3: Montant Payé | W3: Prix U. TTC | X3: Obs. | Y3: Mois | Z3: Ordre
A5: CTS!A1361:A1410
F6: CLIENT | G6: =IFERROR(VLOOKUP(F10,E:F,2,0),"") -> NADIA | K6: =IFERROR(INDEX(#REF!,MATCH(G6,#REF!,0)),"") ->  | L6: =IF(K6=1,"Tarif COMPTOIR",IF(OR(K6=2),"Tarif CONVENTION",IF(OR(K6=3),"Tarif SPECIAL",""))) ->  | P6: =IFERROR(INDEX($A:$A,MATCH(F10,$E:$E,0)),"") -> P | Q6: =+IF(P6="P","Payé",IF(P6="C","Crédit",IF(P6="I","Instance",IF(P6="F","Facturé","")))) -> Payé | AC6: Prestations | AE6: Quantité | AF6: Montant TTC | AH6: Bureautique | AJ6: Quantité | AK6: Montant TTC | AO6: Mois | AP6: Total | AQ6: Payé | AR6: Caisse | AS6: iCom | AT6: Ecart C-i
E7: =TEXT(F8,"jj") -> 17 | F7: =TEXT(F8,"mmmm") -> mars | G7: =TEXT(F8,"mm") -> 03 | L7: ETAT | AC7: 1 | AD7: Copie NB | AE7: =AD90 -> 27467 | AF7: =AE90 -> 244310.2073 | AH7: 1 | AI7: Papier | AJ7: =AJ107 -> 48 | AK7: =AK107 -> 31079.99007 | AO7: 1 | AP7: =AD68 -> 648259.0676 | AQ7: =AE68 -> 535561.8516 | AR7: 601263 | AS7: 600179.55 | AT7: 1083.45
E8: Date | F8: =IFERROR(INDEX($C37:$C100012,MATCH(F10,$E37:$E100012,0)),"") -> 2021-03-17 | H8: Observations | L8: Payé | N8: RENDU | AC8: 2 | AD8: Copie CL | AE8: =AD116 -> 2991 | AF8: =AE116 -> 168461.5932 | AH8: 2 | AI8: Encre | AJ8: =AJ134 -> 118 | AK8: =AK134 -> 7070.259641 | AO8: 2 | AP8: =AI68 -> 642339.7243 | AQ8: =AJ68 -> 585337.14 | AR8: 763209 | AS8: 762083 | AT8: 1126 | AU8: Montant HT Brut | AW8: Remise % | AX8: Remise Montant | AZ8: Montant HT Net | BA8: Taux TVA | BC8: Montant TVA | BD8: Montant TTC | BF8: Timbre | BG8: Montant Payé | BI8: Prix U. TTC
H9: =IFERROR(INDEX($X:$X,MATCH(F10,$E:$E,0)),"") -> Payé 25-03-21 | L9: Crédit | N9: REÇU | AC9: 3 | AD9: Impr. NB | AE9: =AD127 -> 3471 | AF9: =AE127 -> 65780.26645 | AG9: Fiche | AH9: 3 | AI9: Reliure | AJ9: =AJ169 -> 6 | AK9: =AK169 -> 108.8292683 | AO9: 3 | AP9: =AN68 -> 647483.9023 | AQ9: =AO68 -> 590050.8923 | AR9: 640630 | AS9: 641683.8 | AT9: -1053.8
E10: Fiche | F10: 03-224 | L10: Instance | N10: A PAYER | P10: =IFERROR(P12-P11,"") -> 2540 | AC10: 4 | AD10: Impr. CL | AE10: =AD152 -> 1193 | AF10: =AE152 -> 99541.322 | AH10: 4 | AI10: Couverture | AJ10: =AJ187 -> 34 | AK10: =AK187 -> 4877.081935 | AO10: 4 | AP10: =AS68 -> 0 | AQ10: =AT68 -> 0 | AR10: 0 | AS10: 0 | AT10: 0 | AU10: P.U. TTC | AX10: Montant TTC
H11: Recherche Code | L11: Facturé | N11: REMISE | P11: =IFERROR((VLOOKUP(F10,E:P,12,0)*1),"") -> 0 | AC11: 5 | AD11: Tirage NB | AE11: =AD160 -> 3353.42 | AF11: =AE160 -> 375108.8534 | AH11: 5 | AI11: Classement | AJ11: =AJ253 -> 315 | AK11: =AK253 -> 33275.2705 | AO11: 5 | AP11: =AX68 -> 0 | AQ11: =AY68 -> 0 | AR11: 0 | AS11: 0 | AT11: 0
F12: =IF(ISNA(INDEX(#REF!,MATCH(H12,#REF!,0))),"",INDEX(#REF!,MATCH(H12,#REF!,0))) ->  | H12: Calque A0 / 90 gr (914 mm x 50 m) Print | P12: =SUM(P14:Q33) -> 2540 | AC12: 6 | AD12: Tirage CL | AE12: =AD168 -> 373.45 | AF12: =AE168 -> 225410.0916 | AH12: 6 | AI12: Rangement | AJ12: =AJ284 -> 200 | AK12: =AK284 -> 8245.00912 | AO12: 6 | AP12: =BC68 -> 0 | AQ12: =BD68 -> 0 | AR12: 0 | AS12: 0 | AT12: 0
A13: Mois | F13: Article | H13: Désignation Article | L13: Quantité | N13: P.U. TTC | P13: Montant TTC | AA13: =COUNTIF(D:D,F10) -> 2 | AC13: 7 | AD13: Print NB | AE13: =AD175 -> 777 | AF13: =AE175 -> 172654.4077 | AH13: 7 | AI13: Informatique | AJ13: =AJ296 -> 0 | AK13: =AK296 -> 0 | AO13: 7 | AP13: =BH68 -> 0 | AQ13: =BI68 -> 0 | AR13: 0 | AS13: 0 | AT13: 0
A14: 01 | E14: 1 | F14: =IFERROR(IF($AA14="","",INDEX($I:$I,MATCH($F$10,D:D,0)+$AA14)),"") -> I40 | H14: =IF(ISNA(INDEX(#REF!,MATCH(F14,#REF!,0))),"",INDEX(#REF!,MATCH(F14,#REF!,0))) ->  | L14: =IFERROR(IF($AA14="","",INDEX($L:$L,MATCH($F$10,D:D,0)+$AA14)),"") -> 29 | M14: =IF($J14="","",INDEX(#REF!,MATCH($AK$11,#REF!,0)+$J14)) ->  | N14: =IFERROR(P14/L14,"") -> 60 | P14: =IFERROR(IF($AA14="","",INDEX($T:$T,MATCH($F$10,D:D,0)+$AA14)),"") -> 1740 | AA14: 0 | AC14: 8 | AD14: Print CL | AE14: =AD182 -> 232.2 | AF14: =AE182 -> 218126.8689 | AH14: 8 | AI14: Divers | AJ14: =AJ350 -> 32 | AK14: =AK350 -> 3435.128728 | AO14: 8 | AP14: =BM68 -> 0 | AQ14: =BN68 -> 0 | AR14: 0 | AS14: 0 | AT14: 0
A15: 02 | E15: 2 | F15: C40 | H15: Copie Couleur A4-R / Papier (aucun aplat) | L15: 20 | M15: =IF($J15="","",INDEX(#REF!,MATCH($AK$11,#REF!,0)+$J15)) ->  | N15: =IFERROR(P15/L15,"") -> 40 | P15: 800 | AA15: =IF(AA14="","",IF(AA14+1>=$AA$13,"",AA14+1)) -> 1 | AC15: 9 | AD15: Numér. NB | AE15: =AD186 -> 368.25 | AF15: =AE186 -> 21862.42277 | AH15: 9 | AI15: Documents | AJ15: =AJ365+AJ377 -> 2 | AK15: =AK365+AK377 -> 6000 | AO15: 9 | AP15: =BR68 -> 0 | AQ15: =BS68 -> 0 | AR15: 0 | AS15: 0 | AT15: 0
A16: 03 | E16: 3 | M16: =IF($J16="","",INDEX(#REF!,MATCH($AK$11,#REF!,0)+$J16)) ->  | N16: =IFERROR(P16/L16,"") ->  | AC16: 10 | AD16: Numér. CL | AE16: =AD190 -> 429.2 | AF16: =AE190 -> 56436.95655 | AI16: 2 | AJ16: Mois | AK16: =SUM(AK7:AK15) -> 94091.56927 | AO16: 10 | AP16: =BW68 -> 0 | AQ16: =BX68 -> 0 | AR16: 0 | AS16: 0 | AT16: 0
A17: 04 | E17: 4 | M17: =IF($J17="","",INDEX(#REF!,MATCH($AK$11,#REF!,0)+$J17)) ->  | N17: =IFERROR(P17/L17,"") ->  | AC17: 11 | AD17: Reliure | AE17: =AD209 -> 168 | AF17: =AE209 -> 24598.5729 | AI17: 1 | AJ17: Mois | AK17: =AK16/AI16 -> 47045.78463 | AO17: 11 | AP17: =CB68 -> 0 | AQ17: =CC68 -> 0 | AR17: 0 | AS17: 0 | AT17: 0
A18: 05 | E18: 5 | M18: =IF($J18="","",INDEX(#REF!,MATCH($AK$11,#REF!,0)+$J18)) ->  | AC18: 12 | AD18: Façonnage | AE18: =AD224 -> 6960 | AF18: =AE224 -> 31508.37236 | AO18: 12 | AP18: =CG68 -> 0 | AQ18: =CH68 -> 0 | AR18: 0 | AS18: 0 | AT18: 0
A19: 06 | E19: 6 | M19: =IF($J19="","",INDEX(#REF!,MATCH($AK$11,#REF!,0)+$J19)) ->  | AC19: 13 | AD19: Gravure | AE19: =AD228 -> 13 | AF19: =AE228 -> 2432.064135 | AP19: =SUM(AP7:AP18) -> 1938082.694 | AQ19: =SUM(AQ7:AQ18) -> 1710949.884 | AR19: 2005102 | AS19: 2003946.35 | AT19: 1155.65
A20: 07 | E20: 7 | M20: =IF($J20="","",INDEX(#REF!,MATCH($AK$11,#REF!,0)+$J20)) ->  | AC20: 14 | AD20: Carte visite | AE20: =AD232 -> 750 | AF20: =AE232 -> 21995.2381
A21: 08 | E21: 8 | M21: =IF($J21="","",INDEX(#REF!,MATCH($AK$11,#REF!,0)+$J21)) ->  | AC21: 15 | AD21: Manip. | AE21: =AD237 -> 0 | AF21: =AE237 -> 0 | AH21: TOTAL
A22: 09 | E22: 9 | M22: =IF($J22="","",INDEX(#REF!,MATCH($AK$11,#REF!,0)+$J22)) ->  | AC22: 16 | AD22: Divers | AE22: =AD247 -> 11 | AF22: =AE247 -> 0
A23: 10 | E23: 10 | M23: =IF($J23="","",INDEX(#REF!,MATCH($AK$11,#REF!,0)+$J23)) ->  | AD23: 3 | AE23: Mois | AF23: =SUM(AF7:AF22) -> 1728227.237 | AI23: 3 | AJ23: Mois | AK23: =AF23+AK16 -> 1822318.807
A24: 11 | E24: 11 | M24: =IF($J24="","",INDEX(#REF!,MATCH($AK$11,#REF!,0)+$J24)) ->  | AD24: 1 | AE24: Mois | AF24: =AF23/AD23 -> 576075.7458 | AI24: 1 | AJ24: Mois | AK24: =AK23/AI23 -> 607439.6022
A25: 12 | E25: 12 | M25: =IF($J25="","",INDEX(#REF!,MATCH($AK$11,#REF!,0)+$J25)) -> 
E26: 13 | M26: =IF($J26="","",INDEX(#REF!,MATCH($AK$11,#REF!,0)+$J26)) ->  | AJ26: Payé | AK26: =SUMIF($A:$A,"P",$T:$T) -> 1710949.884
E27: 14 | M27: =IF($J27="","",INDEX(#REF!,MATCH($AK$11,#REF!,0)+$J27)) ->  | AJ27: Crédit | AK27: =SUMIF($A:$A,"C",$T:$T) -> 81790.638
E28: 15 | M28: =IF($J28="","",INDEX(#REF!,MATCH($AK$11,#REF!,0)+$J28)) ->  | AJ28: Instance | AK28: =SUMIF($A:$A,"I",$T:$T) -> 91718.4
E29: 16 | M29: =IF($J29="","",INDEX(#REF!,MATCH($AK$11,#REF!,0)+$J29)) ->  | AJ29: Facturé | AK29: =SUMIF($A:$A,"F",$T:$T) -> 53623.7723
E30: 17 | M30: =IF($J30="","",INDEX(#REF!,MATCH($AK$11,#REF!,0)+$J30)) ->  | AI30: 3 | AJ30: Mois | AK30: =AK26+AK27+AK28+AK29 -> 1938082.694
E31: 18 | M31: =IF($J31="","",INDEX(#REF!,MATCH($AK$11,#REF!,0)+$J31)) ->  | AI31: 1 | AJ31: Mois | AK31: =AK30/AI30 -> 646027.5647 | AR31: =IFERROR(IF($AA34="","",INDEX($L:$L,MATCH($F$10,#REF!,0)+$AA34)),"") ->  | AT31: =IF($AO31="","",INDEX(#REF!,MATCH($AK$11,#REF!,0)+$AO31)) ->  | AU31: =IFERROR(AX31/AR31,"") ->  | AX31: =IFERROR(IF($AA34="","",INDEX($T:$T,MATCH($F$10,#REF!,0)+$AA34)),"") ->  | BC31: OBS. | BD31: =IFERROR(INDEX($Z2168:$Z11365,MATCH(F10,$E1388:$E11365,0)),"") -> 0
E32: 19 | M32: =IF($J32="","",INDEX(#REF!,MATCH($AK$11,#REF!,0)+$J32)) ->  | AI32: =IFERROR(IF($AA35="","",INDEX($I:$I,MATCH($F$10,#REF!,0)+$AA35)),"") ->  | AR32: =IFERROR(IF($AA35="","",INDEX($L:$L,MATCH($F$10,#REF!,0)+$AA35)),"") ->  | AT32: =IF($AO32="","",INDEX(#REF!,MATCH($AK$11,#REF!,0)+$AO32)) ->  | AU32: =IFERROR(AX32/AR32,"") ->  | AX32: =IFERROR(IF($AA35="","",INDEX($T:$T,MATCH($F$10,#REF!,0)+$AA35)),"") ->  | BO32: Facturé
E33: 20 | M33: =IF($J33="","",INDEX(#REF!,MATCH($AK$11,#REF!,0)+$J33)) ->  | AK33: =AK23-AK30 -> -115763.8874 | BO33: =SUM(AD1389:AD1419) -> 0
H34: 00:00:00 | P34: =IFERROR(L34*N34,"") -> 
T35: =SUM(T37:T10006)/2 -> 1893691.75 | U35: =SUM(U37:U10006) -> 16026.03131 | V35: =SUM(V37:V10006) -> 1930832.784 | AC35: <> | AF35: 01 | AK35: 02 | AP35: 03 | AU35: 04 | AZ35: 05 | BE35: 06 | BJ35: 07 | BO35: 08 | BT35: 09 | BY35: 10 | CD35: 11 | CI35: 12 | CN35: 2021
A36: Etat | B36: Jour | C36: Date | D36: Fiche | E36: N° Fiche | F36: Client | G36: Réf. Art. | H36: N° Art. | I36: Code Article | J36: Désignation Article | K36: Unité | L36: Quant. | M36: Prix Unité HT | N36: Montant HT Brut | O36: Remise % | P36: Remise Montant | Q36: Montant HT Net | R36: Taux TVA | S36: Montant TVA | T36: Montant TTC | U36: Arrondi | V36: Montant Payé | W36: Prix U. TTC | X36: Obs. | Y36: Mois | Z36: Ordre | AD36: Total | AE36: Payé | AF36: Caisse | AG36: iCom | AH36: Ecart C-i | AI36: Total | AJ36: Payé | AK36: Caisse | AL36: iCom | AM36: Ecart C-i | AN36: Total | AO36: Payé | AP36: Caisse | AQ36: iCom | AR36: Ecart C-i | AS36: Total | AT36: Payé | AU36: Caisse | AV36: iCom | AW36: Ecart C-i | AX36: Total | AY36: Payé | AZ36: Caisse | BA36: iCom | BB36: Ecart C-i | BC36: Total | BD36: Payé | BE36: Caisse | BF36: iCom | BG36: Ecart C-i | BH36: Total | BI36: Payé | BJ36: Caisse | BK36: iCom | BL36: Ecart C-i | BM36: Total | BN36: Payé | BO36: Caisse | BP36: iCom | BQ36: Ecart C-i | BR36: Total | BS36: Payé | BT36: Caisse | BU36: iCom | BV36: Ecart C-i | BW36: Total | BX36: Payé | BY36: Caisse | BZ36: iCom | CA36: Ecart C-i | CB36: Total | CC36: Payé | CD36: Caisse | CE36: iCom | CF36: Ecart C-i | CG36: Total | CH36: Payé | CI36: Caisse | CJ36: iCom | CK36: Ecart C-i | CL36: Total | CM36: Payé | CN36: Caisse | CO36: iCom | CP36: Ecart C-i
A37: P | B37: 3 | C37: 2021-01-03 | E37: 01-001 | F37: CLIENT | I37: 1 | J37: Tarif COMPTOIR | N37: 1411.764706 | O37: 0 | Q37: 1411.764706 | R37: 0.19 | S37: 268.2352941 | T37: 1680 | U37: =IF(CTS_Source[[#This Row],[Montant Payé]]>0,CTS_Source[[#This Row],[Montant TTC]]-CTS_Source[[#This Row],[Montant Payé]],"") -> 0 | V37: 1680 | X37: 0 | Y37: 01 | Z37: 1 | AC37: 1 | AD37: =SUMIFS($T:$T,$B:$B,$AC37,$Y:$Y,"01") -> 0 | AE37: =SUMIFS($T:$T,$A:$A,"P",$B:$B,$AC37,$Y:$Y,"01") -> 0 | AH37: =AF37-AG37 -> 0 | AI37: =SUMIFS($T:$T,$B:$B,$AC37,$Y:$Y,"02") -> 20870 | AJ37: =SUMIFS($T:$T,$A:$A,"P",$B:$B,$AC37,$Y:$Y,"02") -> 20870 | AK37: 129695 | AL37: 129796 | AM37: =AK37-AL37 -> -101 | AN37: =SUMIFS($T:$T,$B:$B,$AC37,$Y:$Y,"03") -> 37532.2 | AO37: =SUMIFS($T:$T,$A:$A,"P",$B:$B,$AC37,$Y:$Y,"03") -> 37532.2 | AP37: 26510 | AQ37: 26497.2 | AR37: =AP37-AQ37 -> 12.8 | AS37: =SUMIFS($T:$T,$B:$B,$AC37,$Y:$Y,"04") -> 0 | AT37: =SUMIFS($T:$T,$A:$A,"P",$B:$B,$AC37,$Y:$Y,"04") -> 0 | AW37: =AU37-AV37 -> 0 | AX37: =SUMIFS($T:$T,$B:$B,$AC37,$Y:$Y,"04") -> 0 | AY37: =SUMIFS($T:$T,$A:$A,"P",$B:$B,$AC37,$Y:$Y,"04") -> 0 | BB37: =AZ37-BA37 -> 0 | BC37: =SUMIFS($T:$T,$B:$B,$AC37,$Y:$Y,"04") -> 0 | BD37: =SUMIFS($T:$T,$A:$A,"P",$B:$B,$AC37,$Y:$Y,"04") -> 0 | BG37: =BE37-BF37 -> 0 | BH37: =SUMIFS($T:$T,$B:$B,$AC37,$Y:$Y,"04") -> 0 | BI37: =SUMIFS($T:$T,$A:$A,"P",$B:$B,$AC37,$Y:$Y,"04") -> 0 | BL37: =BJ37-BK37 -> 0 | BM37: =SUMIFS($T:$T,$B:$B,$AC37,$Y:$Y,"04") -> 0 | BN37: =SUMIFS($T:$T,$A:$A,"P",$B:$B,$AC37,$Y:$Y,"04") -> 0 | BQ37: =BO37-BP37 -> 0 | BR37: =SUMIFS($T:$T,$B:$B,$AC37,$Y:$Y,"04") -> 0 | BS37: =SUMIFS($T:$T,$A:$A,"P",$B:$B,$AC37,$Y:$Y,"04") -> 0 | BV37: =BT37-BU37 -> 0 | BW37: =SUMIFS($T:$T,$B:$B,$AC37,$Y:$Y,"04") -> 0 | BX37: =SUMIFS($T:$T,$A:$A,"P",$B:$B,$AC37,$Y:$Y,"04") -> 0 | CA37: =BY37-BZ37 -> 0 | CB37: =SUMIFS($T:$T,$B:$B,$AC37,$Y:$Y,"04") -> 0 | CC37: =SUMIFS($T:$T,$A:$A,"P",$B:$B,$AC37,$Y:$Y,"04") -> 0 | CF37: =CD37-CE37 -> 0 | CG37: =SUMIFS($T:$T,$B:$B,$AC37,$Y:$Y,"04") -> 0 | CH37: =SUMIFS($T:$T,$A:$A,"P",$B:$B,$AC37,$Y:$Y,"04") -> 0 | CK37: =CI37-CJ37 -> 0 | CL37: =AD37+AI37+AN37+AS37+AX37+BC37+BH37+BM37+BR37+BW37+CB37+CG37 -> 58402.2 | CM37: =AE37+AJ37+AO37+AT37+AY37+BD37+BI37+BN37+BS37+BX37+CC37+CH37 -> 58402.2 | CN37: =AF37+AK37+AP37+AU37+AZ37+BE37+BJ37+BO37+BT37+BY37+CD37+CI37 -> 156205 | CO37: =AG37+AL37+AQ37+AV37+BA37+BF37+BK37+BP37+BU37+BZ37+CE37+CJ37 -> 156293.2 | CP37: =CN37-CO37 -> -88.2
D38: 01-001 | G38: 1-PRS | H38: 1 | I38: PP0 | J38: Traçage Couleur / Papier (aucun aplat) | K38: ML | L38: 2 | M38: 705.8823529 | N38: 1411.764706 | O38: -1 | P38: 0 | Q38: 1411.764706 | R38: 0.19 | S38: 268.2352941 | T38: 1680 | U38: =IF(CTS_Source[[#This Row],[Montant Payé]]>0,CTS_Source[[#This Row],[Montant TTC]]-CTS_Source[[#This Row],[Montant Payé]],"") ->  | W38: 840 | Z38: 2 | AA38: =AD37-AE37 -> 0 | AC38: 2 | AD38: 0 | AE38: 0 | AH38: 0 | AI38: 19407 | AJ38: 15407 | AK38: 17500 | AL38: 17407 | AM38: =AK38-AL38 -> 93 | AN38: 0 | AO38: 0 | AP38: 20045 | AQ38: 19905 | AR38: =AP38-AQ38 -> 140 | AS38: 0 | AT38: 0 | AW38: =AU38-AV38 -> 0 | AX38: 0 | AY38: 0 | BB38: =AZ38-BA38 -> 0 | BC38: 0 | BD38: 0 | BG38: =BE38-BF38 -> 0 | BH38: 0 | BI38: 0 | BL38: =BJ38-BK38 -> 0 | BM38: 0 | BN38: 0 | BQ38: =BO38-BP38 -> 0 | BR38: 0 | BS38: 0 | BV38: =BT38-BU38 -> 0 | BW38: 0 | BX38: 0 | CA38: =BY38-BZ38 -> 0 | CB38: 0 | CC38: 0 | CF38: =CD38-CE38 -> 0 | CG38: 0 | CH38: 0 | CK38: =CI38-CJ38 -> 0 | CL38: 19407 | CM38: 15407 | CN38: 37545 | CO38: =AG38+AL38+AQ38+AV38+BA38+BF38+BK38+BP38+BU38+BZ38+CE38+CJ38 -> 37312 | CP38: =CN38-CO38 -> 233
A39: P | B39: 3 | C39: 2021-01-03 | E39: 01-002 | F39: CLIENT | I39: 1 | J39: Tarif COMPTOIR | N39: 201.6806723 | O39: 0 | Q39: 201.6806723 | R39: 0.19 | S39: 38.31932773 | T39: 240 | U39: =IF(CTS_Source[[#This Row],[Montant Payé]]>0,CTS_Source[[#This Row],[Montant TTC]]-CTS_Source[[#This Row],[Montant Payé]],"") -> 0 | V39: 240 | X39: 0 | Y39: 01 | Z39: 3 | AA39: 0 | AC39: 3 | AD39: 20864 | AE39: 20864 | AF39: 13972 | AG39: 13844 | AH39: 128 | AI39: 19794 | AJ39: 19794 | AK39: 21794 | AL39: 21794 | AM39: 0 | AN39: 40644.6 | AO39: 25521.6 | AP39: 25570 | AQ39: 25521.6 | AR39: 48.4 | AS39: 0 | AT39: 0 | AW39: 0 | AX39: 0 | AY39: 0 | BB39: 0 | BC39: 0 | BD39: 0 | BG39: 0 | BH39: 0 | BI39: 0 | BL39: 0 | BM39: 0 | BN39: 0 | BQ39: 0 | BR39: 0 | BS39: 0 | BV39: 0 | BW39: 0 | BX39: 0 | CA39: 0 | CB39: 0 | CC39: 0 | CF39: 0 | CG39: 0 | CH39: 0 | CK39: 0 | CL39: 81302.6 | CM39: 66179.6 | CN39: 61336 | CO39: 61159.6 | CP39: 176.4 | CT39: ²
D40: 01-002 | G40: 1-PRS | H40: 1 | I40: C40 | J40: Copie Couleur A4-R / Papier (aucun aplat) | K40: U | L40: 6 | M40: 33.61344538 | N40: 201.6806723 | O40: -1 | P40: 0 | Q40: 201.6806723 | R40: 0.19 | S40: 38.31932773 | T40: 240 | U40: =IF(CTS_Source[[#This Row],[Montant Payé]]>0,CTS_Source[[#This Row],[Montant TTC]]-CTS_Source[[#This Row],[Montant Payé]],"") ->  | W40: 40 | Z40: 4 | AA40: 0 | AC40: 4 | AD40: 23744 | AE40: 23744 | AF40: 30665 | AG40: 30605 | AH40: 60 | AI40: 67754.304 | AJ40: 58518 | AK40: 56530 | AL40: 56518 | AM40: 12 | AN40: 110564.9804 | AO40: 99727.65042 | AP40: 107735 | AQ40: 107539.6 | AR40: 195.4 | AS40: 0 | AT40: 0 | AW40: 0 | AX40: 0 | AY40: 0 | BB40: 0 | BC40: 0 | BD40: 0 | BG40: 0 | BH40: 0 | BI40: 0 | BL40: 0 | BM40: 0 | BN40: 0 | BQ40: 0 | BR40: 0 | BS40: 0 | BV40: 0 | BW40: 0 | BX40: 0 | CA40: 0 | CB40: 0 | CC40: 0 | CF40: 0 | CG40: 0 | CH40: 0 | CK40: 0 | CL40: 202063.2844 | CM40: 181989.6504 | CN40: 194930 | CO40: 194662.6 | CP40: 267.4
A41: P | B41: 3 | C41: 2021-01-03 | E41: 01-003 | F41: CLIENT | I41: 1 | J41: Tarif COMPTOIR | N41: 239.4957983 | O41: 0 | Q41: 239.4957983 | R41: 0.19 | S41: 45.50420168 | T41: 285 | U41: =IF(CTS_Source[[#This Row],[Montant Payé]]>0,CTS_Source[[#This Row],[Montant TTC]]-CTS_Source[[#This Row],[Montant Payé]],"") -> 0 | V41: 285 | X41: 0 | Y41: 01 | Z41: 5 | AA41: 0 | AC41: 5 | AD41: 30602 | AE41: 30602 | AF41: 30507 | AG41: 30507 | AH41: 0 | AI41: 0 | AJ41: 0 | AM41: 0 | AN41: 0 | AO41: 0 | AR41: 0 | AS41: 0 | AT41: 0 | AW41: 0 | AX41: 0 | AY41: 0 | BB41: 0 | BC41: 0 | BD41: 0 | BG41: 0 | BH41: 0 | BI41: 0 | BL41: 0 | BM41: 0 | BN41: 0 | BQ41: 0 | BR41: 0 | BS41: 0 | BV41: 0 | BW41: 0 | BX41: 0 | CA41: 0 | CB41: 0 | CC41: 0 | CF41: 0 | CG41: 0 | CH41: 0 | CK41: 0 | CL41: 30602 | CM41: 30602 | CN41: 30507 | CO41: 30507 | CP41: 0
D42: 01-003 | G42: 2-BUR | H42: 1 | I42: 5-CRPE | J42: Chemise à rabats plastique avec élastiques | K42: U | L42: 1 | M42: 117.6470588 | N42: 117.6470588 | O42: -1 | P42: 0 | Q42: 117.6470588 | R42: 0.19 | S42: 22.35294118 | T42: 140 | U42: =IF(CTS_Source[[#This Row],[Montant Payé]]>0,CTS_Source[[#This Row],[Montant TTC]]-CTS_Source[[#This Row],[Montant Payé]],"") ->  | W42: 140 | Z42: 6 | AA42: 0 | AC42: 6 | AD42: 32635 | AE42: 11728 | AF42: 32600 | AG42: 32603 | AH42: -3 | AI42: 0 | AJ42: 0 | AM42: 0 | AN42: 0 | AO42: 0 | AR42: 0 | AS42: 0 | AT42: 0 | AW42: 0 | AX42: 0 | AY42: 0 | BB42: 0 | BC42: 0 | BD42: 0 | BG42: 0 | BH42: 0 | BI42: 0 | BL42: 0 | BM42: 0 | BN42: 0 | BQ42: 0 | BR42: 0 | BS42: 0 | BV42: 0 | BW42: 0 | BX42: 0 | CA42: 0 | CB42: 0 | CC42: 0 | CF42: 0 | CG42: 0 | CH42: 0 | CK42: 0 | CL42: 32635 | CM42: 11728 | CN42: 32600 | CO42: 32603 | CP42: -3
D43: 01-003 | G43: 2-BUR | H43: 2 | I43: 2-SF | J43: Stylo à bille Fabs | K43: U | L43: 1 | M43: 21.00840336 | N43: 21.00840336 | O43: -1 | P43: 0 | Q43: 21.00840336 | R43: 0.19 | S43: 3.991596639 | T43: 25 | U43: =IF(CTS_Source[[#This Row],[Montant Payé]]>0,CTS_Source[[#This Row],[Montant TTC]]-CTS_Source[[#This Row],[Montant Payé]],"") ->  | W43: 25 | Z43: 7 | AA43: 20907 | AC43: 7 | AD43: 33436 | AE43: 33436 | AF43: 33440 | AG43: 33426 | AH43: 14 | AI43: 12355 | AJ43: 12355 | AK43: 11070 | AL43: 11020 | AM43: 50 | AN43: 34169 | AO43: 34169 | AP43: 37700 | AQ43: 39719 | AR43: -2019 | AS43: 0 | AT43: 0 | AW43: 0 | AX43: 0 | AY43: 0 | BB43: 0 | BC43: 0 | BD43: 0 | BG43: 0 | BH43: 0 | BI43: 0 | BL43: 0 | BM43: 0 | BN43: 0 | BQ43: 0 | BR43: 0 | BS43: 0 | BV43: 0 | BW43: 0 | BX43: 0 | CA43: 0 | CB43: 0 | CC43: 0 | CF43: 0 | CG43: 0 | CH43: 0 | CK43: 0 | CL43: 79960 | CM43: 79960 | CN43: 82210 | CO43: 84165 | CP43: -1955
D44: 01-003 | G44: 1-PRS | H44: 3 | I44: C4 | J44: Copie Noir & Blanc A4-R / Papier | K44: U | L44: 12 | M44: 8.403361345 | N44: 100.8403361 | O44: -1 | P44: 0 | Q44: 100.8403361 | R44: 0.19 | S44: 19.15966387 | T44: 120 | U44: =IF(CTS_Source[[#This Row],[Montant Payé]]>0,CTS_Source[[#This Row],[Montant TTC]]-CTS_Source[[#This Row],[Montant Payé]],"") ->  | W44: 10 | Z44: 8 | AA44: 0 | AC44: 8 | AD44: 0 | AE44: 0 | AG44: 0 | AH44: 0 | AI44: 27685 | AJ44: 27525 | AK44: 37600 | AL44: 37525 | AM44: 75 | AN44: 18300 | AO44: 18300 | AP44: 18320 | AQ44: 18310 | AR44: 10 | AS44: 0 | AT44: 0 | AW44: 0 | AX44: 0 | AY44: 0 | BB44: 0 | BC44: 0 | BD44: 0 | BG44: 0 | BH44: 0 | BI44: 0 | BL44: 0 | BM44: 0 | BN44: 0 | BQ44: 0 | BR44: 0 | BS44: 0 | BV44: 0 | BW44: 0 | BX44: 0 | CA44: 0 | CB44: 0 | CC44: 0 | CF44: 0 | CG44: 0 | CH44: 0 | CK44: 0 | CL44: 45985 | CM44: 45825 | CN44: 55920 | CO44: 55835 | CP44: 85
A45: P | B45: 3 | C45: 2021-01-03 | E45: 01-004 | F45: CLIENT | I45: 1 | J45: Tarif COMPTOIR | N45: 252.1008403 | O45: 0 | Q45: 252.1008403 | R45: 0.19 | S45: 47.89915966 | T45: 300 | U45: =IF(CTS_Source[[#This Row],[Montant Payé]]>0,CTS_Source[[#This Row],[Montant TTC]]-CTS_Source[[#This Row],[Montant Payé]],"") -> 0 | V45: 300 | X45: 0 | Y45: 01 | Z45: 9 | AA45: 0 | AC45: 9 | AD45: 0 | AE45: 0 | AG45: 0 | AH45: 0 | AI45: 25617 | AJ45: 25617 | AK45: 24590 | AL45: 24584 | AM45: 6 | AN45: 15401 | AO45: 15401 | AP45: 15470 | AQ45: 15401 | AR45: 69 | AS45: 0 | AT45: 0 | AW45: 0 | AX45: 0 | AY45: 0 | BB45: 0 | BC45: 0 | BD45: 0 | BG45: 0 | BH45: 0 | BI45: 0 | BL45: 0 | BM45: 0 | BN45: 0 | BQ45: 0 | BR45: 0 | BS45: 0 | BV45: 0 | BW45: 0 | BX45: 0 | CA45: 0 | CB45: 0 | CC45: 0 | CF45: 0 | CG45: 0 | CH45: 0 | CK45: 0 | CL45: 41018 | CM45: 41018 | CN45: 40060 | CO45: 39985 | CP45: 75
D46: 01-004 | G46: 1-PRS | H46: 1 | I46: C3 | J46: Copie Noir & Blanc A3-R / Papier | K46: U | L46: 1 | M46: 16.80672269 | N46: 16.80672269 | O46: -1 | P46: 0 | Q46: 16.80672269 | R46: 0.19 | S46: 3.193277311 | T46: 20 | U46: =IF(CTS_Source[[#This Row],[Montant Payé]]>0,CTS_Source[[#This Row],[Montant TTC]]-CTS_Source[[#This Row],[Montant Payé]],"") ->  | W46: 20 | Z46: 10 | AA46: 0 | AC46: 10 | AD46: 27016 | AE46: 18254 | AF46: 18127 | AG46: 18127 | AH46: 0 | AI46: 33992.476 | AJ46: 31275 | AK46: 28115 | AL46: 27957 | AM46: 158 | AN46: 57438.848 | AO46: 54560 | AP46: 53560 | AQ46: 53482 | AR46: 78 | AS46: 0 | AT46: 0 | AW46: 0 | AX46: 0 | AY46: 0 | BB46: 0 | BC46: 0 | BD46: 0 | BG46: 0 | BH46: 0 | BI46: 0 | BL46: 0 | BM46: 0 | BN46: 0 | BQ46: 0 | BR46: 0 | BS46: 0 | BV46: 0 | BW46: 0 | BX46: 0 | CA46: 0 | CB46: 0 | CC46: 0 | CF46: 0 | CG46: 0 | CH46: 0 | CK46: 0 | CL46: 118447.324 | CM46: 104089 | CN46: 99802 | CO46: 99566 | CP46: 236
D47: 01-004 | G47: 1-PRS | H47: 2 | I47: C30 | J47: Copie Couleur A3-R / Papier (aucun aplat) | K47: U | L47: 2 | M47: 67.22689076 | N47: 134.4537815 | O47: -1 | P47: 0 | Q47: 134.4537815 | R47: 0.19 | S47: 25.54621849 | T47: 160 | U47: =IF(CTS_Source[[#This Row],[Montant Payé]]>0,CTS_Source[[#This Row],[Montant TTC]]-CTS_Source[[#This Row],[Montant Payé]],"") ->  | W47: 80 | Z47: 11 | AA47: 8762 | AC47: 11 | AD47: 30086.94 | AE47: 26564 | AF47: 36615 | AG47: 36568 | AH47: 47 | AI47: 25104.51 | AJ47: 4216 | AK47: 4230 | AL47: 4216 | AM47: 14 | AN47: 27840.4 | AO47: 13161 | AP47: 28840 | AQ47: 28840.4 | AR47: -0.4 | AS47: 0 | AT47: 0 | AW47: 0 | AX47: 0 | AY47: 0 | BB47: 0 | BC47: 0 | BD47: 0 | BG47: 0 | BH47: 0 | BI47: 0 | BL47: 0 | BM47: 0 | BN47: 0 | BQ47: 0 | BR47: 0 | BS47: 0 | BV47: 0 | BW47: 0 | BX47: 0 | CA47: 0 | CB47: 0 | CC47: 0 | CF47: 0 | CG47: 0 | CH47: 0 | CK47: 0 | CL47: 83031.85 | CM47: 43941 | CN47: 69685 | CO47: 69624.4 | CP47: 60.6
D48: 01-004 | G48: 1-PRS | H48: 3 | I48: I30 | J48: Impression Couleur A3-R / Papier (aucun aplat) | K48: U | L48: 1 | M48: 100.8403361 | N48: 100.8403361 | O48: -1 | P48: 0 | Q48: 100.8403361 | R48: 0.19 | S48: 19.15966387 | T48: 120 | U48: =IF(CTS_Source[[#This Row],[Montant Payé]]>0,CTS_Source[[#This Row],[Montant TTC]]-CTS_Source[[#This Row],[Montant Payé]],"") ->  | W48: 120 | Z48: 12 | AA48: 3522.94 | AC48: 12 | AD48: 0 | AE48: 0 | AH48: 0 | AI48: 0 | AJ48: 0 | AM48: 0 | AN48: 0 | AO48: 0 | AR48: 0 | AS48: 0 | AT48: 0 | AW48: 0 | AX48: 0 | AY48: 0 | BB48: 0 | BC48: 0 | BD48: 0 | BG48: 0 | BH48: 0 | BI48: 0 | BL48: 0 | BM48: 0 | BN48: 0 | BQ48: 0 | BR48: 0 | BS48: 0 | BV48: 0 | BW48: 0 | BX48: 0 | CA48: 0 | CB48: 0 | CC48: 0 | CF48: 0 | CG48: 0 | CH48: 0 | CK48: 0 | CL48: 0 | CM48: 0 | CN48: 0 | CO48: 0 | CP48: 0
A49: P | B49: 3 | C49: 2021-01-03 | E49: 01-005 | F49: CLIENT | I49: 1 | J49: Tarif COMPTOIR | N49: 242.0168067 | O49: 0 | Q49: 242.0168067 | R49: 0.19 | S49: 45.98319328 | T49: 288 | U49: =IF(CTS_Source[[#This Row],[Montant Payé]]>0,CTS_Source[[#This Row],[Montant TTC]]-CTS_Source[[#This Row],[Montant Payé]],"") -> 8 | V49: 280 | X49: 0 | Y49: 01 | Z49: 13 | AA49: 0 | AC49: 13 | AD49: 20236.15 | AE49: 19030.15 | AF49: 24800 | AG49: 24697.15 | AH49: 102.85 | AI49: 0 | AJ49: 0 | AM49: 0 | AN49: 0 | AO49: 0 | AR49: 0 | AS49: 0 | AT49: 0 | AW49: 0 | AX49: 0 | AY49: 0 | BB49: 0 | BC49: 0 | BD49: 0 | BG49: 0 | BH49: 0 | BI49: 0 | BL49: 0 | BM49: 0 | BN49: 0 | BQ49: 0 | BR49: 0 | BS49: 0 | BV49: 0 | BW49: 0 | BX49: 0 | CA49: 0 | CB49: 0 | CC49: 0 | CF49: 0 | CG49: 0 | CH49: 0 | CK49: 0 | CL49: 20236.15 | CM49: 19030.15 | CN49: 24800 | CO49: 24697.15 | CP49: 102.85
D50: 01-005 | G50: 0-PRS | H50: 1 | I50: TC | J50: Tirage Noir & Blanc / Calque | K50: ML | L50: 1.6 | M50: 151.2605042 | N50: 242.0168067 | O50: -1 | P50: 0 | Q50: 242.0168067 | R50: 0.19 | S50: 45.98319328 | T50: 288 | U50: =IF(CTS_Source[[#This Row],[Montant Payé]]>0,CTS_Source[[#This Row],[Montant TTC]]-CTS_Source[[#This Row],[Montant Payé]],"") ->  | W50: 180 | Z50: 14 | AA50: 1206 | AC50: 14 | AD50: 14060.7 | AE50: 14060.7 | AF50: 16315 | AG50: 16064 | AH50: 251 | AI50: 36834 | AJ50: 36834 | AK50: 51845 | AL50: 51834 | AM50: 11 | AN50: 89467.432 | AO50: 75553 | AP50: 50110 | AQ50: 50103 | AR50: 7 | AS50: 0 | AT50: 0 | AW50: 0 | AX50: 0 | AY50: 0 | BB50: 0 | BC50: 0 | BD50: 0 | BG50: 0 | BH50: 0 | BI50: 0 | BL50: 0 | BM50: 0 | BN50: 0 | BQ50: 0 | BR50: 0 | BS50: 0 | BV50: 0 | BW50: 0 | BX50: 0 | CA50: 0 | CB50: 0 | CC50: 0 | CF50: 0 | CG50: 0 | CH50: 0 | CK50: 0 | CL50: 140362.132 | CM50: 126447.7 | CN50: 118270 | CO50: 118001 | CP50: 269
A51: P | B51: 3 | C51: 2021-01-03 | E51: 01-006 | F51: CLIENT | I51: 1 | J51: Tarif COMPTOIR | N51: 67.22689076 | O51: 0 | Q51: 67.22689076 | R51: 0.19 | S51: 12.77310924 | T51: 80 | U51: =IF(CTS_Source[[#This Row],[Montant Payé]]>0,CTS_Source[[#This Row],[Montant TTC]]-CTS_Source[[#This Row],[Montant Payé]],"") -> 0 | V51: 80 | X51: 0 | Y51: 01 | Z51: 15 | AA51: 0 | AC51: 15 | AD51: 0 | AE51: 0 | AG51: 0 | AH51: 0 | AI51: 58576 | AJ51: 58576 | AK51: 61955 | AL51: 61151 | AM51: 804 | AN51: 28743.90826 | AO51: 28743.90826 | AP51: 20200 | AQ51: 20200 | AR51: 0 | AS51: 0 | AT51: 0 | AW51: 0 | AX51: 0 | AY51: 0 | BB51: 0 | BC51: 0 | BD51: 0 | BG51: 0 | BH51: 0 | BI51: 0 | BL51: 0 | BM51: 0 | BN51: 0 | BQ51: 0 | BR51: 0 | BS51: 0 | BV51: 0 | BW51: 0 | BX51: 0 | CA51: 0 | CB51: 0 | CC51: 0 | CF51: 0 | CG51: 0 | CH51: 0 | CK51: 0 | CL51: 87319.90826 | CM51: 87319.90826 | CN51: 82155 | CO51: 81351 | CP51: 804
D52: 01-006 | G52: 0-PRS | H52: 1 | I52: C42 | J52: Copie Couleur A4-R / Papier (tout aplat) | K52: U | L52: 1 | M52: 67.22689076 | N52: 67.22689076 | O52: -1 | P52: 0 | Q52: 67.22689076 | R52: 0.19 | S52: 12.77310924 | T52: 80 | U52: =IF(CTS_Source[[#This Row],[Montant Payé]]>0,CTS_Source[[#This Row],[Montant TTC]]-CTS_Source[[#This Row],[Montant Payé]],"") ->  | W52: 80 | Z52: 16 | AA52: 0 | AC52: 16 | AD52: 0 | AE52: 0 | AG52: 0 | AH52: 0 | AI52: 81369.24 | AJ52: 81136 | AK52: 59140 | AL52: 59136 | AM52: 4 | AN52: 7561 | AO52: 7561 | AP52: 17665 | AQ52: 17509 | AR52: 156 | AS52: 0 | AT52: 0 | AW52: 0 | AX52: 0 | AY52: 0 | BB52: 0 | BC52: 0 | BD52: 0 | BG52: 0 | BH52: 0 | BI52: 0 | BL52: 0 | BM52: 0 | BN52: 0 | BQ52: 0 | BR52: 0 | BS52: 0 | BV52: 0 | BW52: 0 | BX52: 0 | CA52: 0 | CB52: 0 | CC52: 0 | CF52: 0 | CG52: 0 | CH52: 0 | CK52: 0 | CL52: 88930.24 | CM52: 88697 | CN52: 76805 | CO52: 76645 | CP52: 160
A53: P | B53: 3 | C53: 2021-01-03 | E53: 01-007 | F53: CLIENT | I53: 1 | J53: Tarif COMPTOIR | N53: 2988.235294 | O53: 0 | Q53: 2988.235294 | R53: 0.19 | S53: 567.7647059 | T53: 3556 | U53: =IF(CTS_Source[[#This Row],[Montant Payé]]>0,CTS_Source[[#This Row],[Montant TTC]]-CTS_Source[[#This Row],[Montant Payé]],"") -> 6 | V53: 3550 | X53: 0 | Y53: 01 | Z53: 17 | AA53: 0 | AC53: 17 | AD53: 28118 | AE53: 28118 | AF53: 27820 | AG53: 27822 | AH53: -2 | AI53: 23460 | AJ53: 23460 | AK53: 23510 | AL53: 23510 | AM53: 0 | AN53: 18463 | AO53: 18463 | AP53: 29000 | AQ53: 28883 | AR53: 117 | AS53: 0 | AT53: 0 | AW53: 0 | AX53: 0 | AY53: 0 | BB53: 0 | BC53: 0 | BD53: 0 | BG53: 0 | BH53: 0 | BI53: 0 | BL53: 0 | BM53: 0 | BN53: 0 | BQ53: 0 | BR53: 0 | BS53: 0 | BV53: 0 | BW53: 0 | BX53: 0 | CA53: 0 | CB53: 0 | CC53: 0 | CF53: 0 | CG53: 0 | CH53: 0 | CK53: 0 | CL53: 70041 | CM53: 70041 | CN53: 80330 | CO53: 80215 | CP53: 115
D54: 01-007 | G54: 2-BUR | H54: 1 | I54: 1-P4NR | J54: Papier A4 / 080 gr / 500 f. extra blanc Noram | K54: U | L54: 1 | M54: 487.394958 | N54: 487.394958 | O54: -1 | P54: 0 | Q54: 487.394958 | R54: 0.19 | S54: 92.60504202 | T54: 580 | U54: =IF(CTS_Source[[#This Row],[Montant Payé]]>0,CTS_Source[[#This Row],[Montant TTC]]-CTS_Source[[#This Row],[Montant Payé]],"") ->  | W54: 580 | Z54: 18 | AA54: 0 | AC54: 18 | AD54: 33289.28 | AE54: 28158 | AF54: 36268 | AG54: 36256 | AH54: 12 | AI54: 10737.6 | AJ54: 10737.6 | AK54: 10720 | AL54: 10720 | AM54: 0 | AN54: 43417 | AO54: 43417 | AP54: 43315 | AQ54: 43427 | AR54: -112 | AS54: 0 | AT54: 0 | AW54: 0 | AX54: 0 | AY54: 0 | BB54: 0 | BC54: 0 | BD54: 0 | BG54: 0 | BH54: 0 | BI54: 0 | BL54: 0 | BM54: 0 | BN54: 0 | BQ54: 0 | BR54: 0 | BS54: 0 | BV54: 0 | BW54: 0 | BX54: 0 | CA54: 0 | CB54: 0 | CC54: 0 | CF54: 0 | CG54: 0 | CH54: 0 | CK54: 0 | CL54: 87443.88 | CM54: 82312.6 | CN54: 90303 | CO54: 90403 | CP54: -100
D55: 01-007 | G55: 1-PRS | H55: 2 | I55: PP | J55: Traçage Noir & Blanc / Papier | K55: ML | L55: 6.2 | M55: 201.6806723 | N55: 1250.420168 | O55: -1 | P55: 0 | Q55: 1250.420168 | R55: 0.19 | S55: 237.5798319 | T55: 1488 | U55: =IF(CTS_Source[[#This Row],[Montant Payé]]>0,CTS_Source[[#This Row],[Montant TTC]]-CTS_Source[[#This Row],[Montant Payé]],"") ->  | W55: 240 | Z55: 19 | AA55: 5131.28 | AC55: 19 | AD55: 32978.0056 | AE55: 21378.0016 | AF55: 21635 | AG55: 21261 | AH55: 374 | AI55: 0 | AJ55: 0 | AM55: 0 | AN55: 0 | AO55: 0 | AR55: 0 | AS55: 0 | AT55: 0 | AW55: 0 | AX55: 0 | AY55: 0 | BB55: 0 | BC55: 0 | BD55: 0 | BG55: 0 | BH55: 0 | BI55: 0 | BL55: 0 | BM55: 0 | BN55: 0 | BQ55: 0 | BR55: 0 | BS55: 0 | BV55: 0 | BW55: 0 | BX55: 0 | CA55: 0 | CB55: 0 | CC55: 0 | CF55: 0 | CG55: 0 | CH55: 0 | CK55: 0 | CL55: 32978.0056 | CM55: 21378.0016 | CN55: 21635 | CO55: 21261 | CP55: 374
D56: 01-007 | G56: 1-PRS | H56: 3 | I56: TP | J56: Tirage Noir & Blanc / Papier | K56: ML | L56: 12.4 | M56: 100.8403361 | N56: 1250.420168 | O56: -1 | P56: 0 | Q56: 1250.420168 | R56: 0.19 | S56: 237.5798319 | T56: 1488 | U56: =IF(CTS_Source[[#This Row],[Montant Payé]]>0,CTS_Source[[#This Row],[Montant TTC]]-CTS_Source[[#This Row],[Montant Payé]],"") ->  | W56: 120 | Z56: 20 | AA56: 11600.004 | AC56: 20 | AD56: 30612 | AE56: 30612 | AF56: 46515 | AG56: 46720 | AH56: -205 | AI56: 0 | AJ56: 0 | AM56: 0 | AN56: 0 | AO56: 0 | AR56: 0 | AS56: 0 | AT56: 0 | AW56: 0 | AX56: 0 | AY56: 0 | BB56: 0 | BC56: 0 | BD56: 0 | BG56: 0 | BH56: 0 | BI56: 0 | BL56: 0 | BM56: 0 | BN56: 0 | BQ56: 0 | BR56: 0 | BS56: 0 | BV56: 0 | BW56: 0 | BX56: 0 | CA56: 0 | CB56: 0 | CC56: 0 | CF56: 0 | CG56: 0 | CH56: 0 | CK56: 0 | CL56: 30612 | CM56: 30612 | CN56: 46515 | CO56: 46720 | CP56: -205
A57: P | B57: 3 | C57: 2021-01-03 | E57: 01-008 | F57: CLIENT | I57: 1 | J57: Tarif COMPTOIR | N57: 2909.243697 | O57: 0 | Q57: 2909.243697 | R57: 0.19 | S57: 552.7563025 | T57: 3462 | U57: =IF(CTS_Source[[#This Row],[Montant Payé]]>0,CTS_Source[[#This Row],[Montant TTC]]-CTS_Source[[#This Row],[Montant Payé]],"") -> 2 | V57: 3460 | X57: 0 | Y57: 01 | Z57: 21 | AA57: 0 | AC57: 21 | AD57: 22975 | AE57: 22975 | AF57: 22980 | AG57: 22968 | AH57: 12 | AI57: 11970 | AJ57: 11970 | AK57: 21195 | AL57: 21195 | AM57: 0 | AN57: 11980 | AO57: 11980 | AP57: 12045 | AQ57: 11976 | AR57: 69 | AS57: 0 | AT57: 0 | AW57: 0 | AX57: 0 | AY57: 0 | BB57: 0 | BC57: 0 | BD57: 0 | BG57: 0 | BH57: 0 | BI57: 0 | BL57: 0 | BM57: 0 | BN57: 0 | BQ57: 0 | BR57: 0 | BS57: 0 | BV57: 0 | BW57: 0 | BX57: 0 | CA57: 0 | CB57: 0 | CC57: 0 | CF57: 0 | CG57: 0 | CH57: 0 | CK57: 0 | CL57: 46925 | CM57: 46925 | CN57: 56220 | CO57: 56139 | CP57: 81
D58: 01-008 | G58: 1-PRS | H58: 1 | I58: TP | J58: Tirage Noir & Blanc / Papier | K58: ML | L58: 28.85 | M58: 100.8403361 | N58: 2909.243697 | O58: -1 | P58: 0 | Q58: 2909.243697 | R58: 0.19 | S58: 552.7563025 | T58: 3462 | U58: =IF(CTS_Source[[#This Row],[Montant Payé]]>0,CTS_Source[[#This Row],[Montant TTC]]-CTS_Source[[#This Row],[Montant Payé]],"") ->  | W58: 120 | Z58: 22 | AA58: 0 | AC58: 22 | AD58: 0 | AE58: 0 | AG58: 0 | AH58: 0 | AI58: 30024.9 | AJ58: 30024.9 | AK58: 27485 | AL58: 27485 | AM58: 0 | AN58: 33096.5 | AO58: 33096.5 | AP58: 58730 | AQ58: =65546-7000 -> 58546 | AR58: 184 | AS58: 0 | AT58: 0 | AW58: 0 | AX58: 0 | AY58: 0 | BB58: 0 | BC58: 0 | BD58: 0 | BG58: 0 | BH58: 0 | BI58: 0 | BL58: 0 | BM58: 0 | BN58: 0 | BQ58: 0 | BR58: 0 | BS58: 0 | BV58: 0 | BW58: 0 | BX58: 0 | CA58: 0 | CB58: 0 | CC58: 0 | CF58: 0 | CG58: 0 | CH58: 0 | CK58: 0 | CL58: 63121.4 | CM58: 63121.4 | CN58: 86215 | CO58: 86031 | CP58: 184
A59: P | B59: 3 | C59: 2021-01-03 | E59: 01-009 | F59: CLIENT | I59: 1 | J59: Tarif COMPTOIR | N59: 216.8067227 | O59: 0 | Q59: 216.8067227 | R59: 0.19 | S59: 41.19327731 | T59: 258 | U59: =IF(CTS_Source[[#This Row],[Montant Payé]]>0,CTS_Source[[#This Row],[Montant TTC]]-CTS_Source[[#This Row],[Montant Payé]],"") -> 0 | V59: 258 | X59: 0 | Y59: 01 | Z59: 23 | AA59: 0 | AC59: 23 | AD59: 0 | AE59: 0 | AG59: 0 | AH59: 0 | AI59: 25002.8 | AJ59: 25002.8 | AK59: 27590 | AL59: 27590 | AM59: 0 | AN59: 19120 | AO59: 19120 | AP59: 37175 | AQ59: 37168 | AR59: 7 | AS59: 0 | AT59: 0 | AW59: 0 | AX59: 0 | AY59: 0 | BB59: 0 | BC59: 0 | BD59: 0 | BG59: 0 | BH59: 0 | BI59: 0 | BL59: 0 | BM59: 0 | BN59: 0 | BQ59: 0 | BR59: 0 | BS59: 0 | BV59: 0 | BW59: 0 | BX59: 0 | CA59: 0 | CB59: 0 | CC59: 0 | CF59: 0 | CG59: 0 | CH59: 0 | CK59: 0 | CL59: 44122.8 | CM59: 44122.8 | CN59: 64765 | CO59: 64758 | CP59: 7
D60: 01-009 | G60: 1-PRS | H60: 1 | I60: TP | J60: Tirage Noir & Blanc / Papier | K60: ML | L60: 2.15 | M60: 100.8403361 | N60: 216.8067227 | O60: -1 | P60: 0 | Q60: 216.8067227 | R60: 0.19 | S60: 41.19327731 | T60: 258 | U60: =IF(CTS_Source[[#This Row],[Montant Payé]]>0,CTS_Source[[#This Row],[Montant TTC]]-CTS_Source[[#This Row],[Montant Payé]],"") ->  | W60: 120 | Z60: 24 | AA60: 0 | AC60: 24 | AD60: 78498 | AE60: 38658 | AF60: 43700 | AG60: 43645.4 | AH60: 54.6 | AI60: 51014.9983 | AJ60: 34678 | AK60: 77020 | AL60: 77020 | AM60: 0 | AN60: 39604.01681 | AO60: 39604.01681 | AP60: 21280 | AQ60: 21326 | AR60: -46 | AS60: 0 | AT60: 0 | AW60: 0 | AX60: 0 | AY60: 0 | BB60: 0 | BC60: 0 | BD60: 0 | BG60: 0 | BH60: 0 | BI60: 0 | BL60: 0 | BM60: 0 | BN60: 0 | BQ60: 0 | BR60: 0 | BS60: 0 | BV60: 0 | BW60: 0 | BX60: 0 | CA60: 0 | CB60: 0 | CC60: 0 | CF60: 0 | CG60: 0 | CH60: 0 | CK60: 0 | CL60: 169117.0151 | CM60: 112940.0168 | CN60: 142000 | CO60: 141991.4 | CP60: 8.6
A61: P | B61: 3 | C61: 2021-01-03 | E61: 01-010 | F61: CLIENT | I61: 1 | J61: Tarif COMPTOIR | N61: 466.3865546 | O61: 0 | Q61: 466.3865546 | R61: 0.19 | S61: 88.61344538 | T61: 555 | U61: =IF(CTS_Source[[#This Row],[Montant Payé]]>0,CTS_Source[[#This Row],[Montant TTC]]-CTS_Source[[#This Row],[Montant Payé]],"") -> 0 | V61: 555 | X61: 0 | Y61: 01 | Z61: 25 | AA61: 39840 | AC61: 25 | AD61: 35345 | AE61: 35345 | AF61: 65260 | AG61: 65197 | AH61: 63 | AI61: 35556.44 | AJ61: 35556.44 | AK61: 52205 | AL61: 52205 | AM61: 0 | AN61: 14140.01681 | AO61: 14140.01681 | AP61: 17360 | AQ61: 17330 | AR61: 30 | AS61: 0 | AT61: 0 | AW61: 0 | AX61: 0 | AY61: 0 | BB61: 0 | BC61: 0 | BD61: 0 | BG61: 0 | BH61: 0 | BI61: 0 | BL61: 0 | BM61: 0 | BN61: 0 | BQ61: 0 | BR61: 0 | BS61: 0 | BV61: 0 | BW61: 0 | BX61: 0 | CA61: 0 | CB61: 0 | CC61: 0 | CF61: 0 | CG61: 0 | CH61: 0 | CK61: 0 | CL61: 85041.45681 | CM61: 85041.45681 | CN61: 134825 | CO61: 134732 | CP61: 93
D62: 01-010 | G62: 0-PRS | H62: 1 | I62: AGP | J62: Agrafage document (agrafes PM) - de 20 f | K62: U | L62: 2 | M62: 8.403361345 | N62: 16.80672269 | O62: -1 | P62: 0 | Q62: 16.80672269 | R62: 0.19 | S62: 3.193277311 | T62: 20 | U62: =IF(CTS_Source[[#This Row],[Montant Payé]]>0,CTS_Source[[#This Row],[Montant TTC]]-CTS_Source[[#This Row],[Montant Payé]],"") ->  | W62: 10 | Z62: 26 | AA62: 0 | AC62: 26 | AD62: 84648.424 | AE62: 83209 | AF62: 46705 | AG62: 46139 | AH62: 566 | AI62: 0 | AJ62: 0 | AM62: 0 | AN62: 0 | AO62: 0 | AR62: 0 | AS62: 0 | AT62: 0 | AW62: 0 | AX62: 0 | AY62: 0 | BB62: 0 | BC62: 0 | BD62: 0 | BG62: 0 | BH62: 0 | BI62: 0 | BL62: 0 | BM62: 0 | BN62: 0 | BQ62: 0 | BR62: 0 | BS62: 0 | BV62: 0 | BW62: 0 | BX62: 0 | CA62: 0 | CB62: 0 | CC62: 0 | CF62: 0 | CG62: 0 | CH62: 0 | CK62: 0 | CL62: 84648.424 | CM62: 83209 | CN62: 46705 | CO62: 46139 | CP62: 566
D63: 01-010 | G63: 1-PRS | H63: 2 | I63: C4 | J63: Copie Noir & Blanc A4-R / Papier | K63: U | L63: 51 | M63: 8.403361345 | N63: 428.5714286 | O63: -1 | P63: 0 | Q63: 428.5714286 | R63: 0.19 | S63: 81.42857143 | T63: 510 | U63: =IF(CTS_Source[[#This Row],[Montant Payé]]>0,CTS_Source[[#This Row],[Montant TTC]]-CTS_Source[[#This Row],[Montant Payé]],"") ->  | W63: 10 | Z63: 27 | AA63: 1439.424 | AC63: 27 | AD63: 18623 | AE63: 18623 | AF63: 18205 | AG63: 18605 | AH63: -400 | AI63: 0 | AJ63: 0 | AM63: 0 | AN63: 0 | AO63: 0 | AR63: 0 | AS63: 0 | AT63: 0 | AW63: 0 | AX63: 0 | AY63: 0 | BB63: 0 | BC63: 0 | BD63: 0 | BG63: 0 | BH63: 0 | BI63: 0 | BL63: 0 | BM63: 0 | BN63: 0 | BQ63: 0 | BR63: 0 | BS63: 0 | BV63: 0 | BW63: 0 | BX63: 0 | CA63: 0 | CB63: 0 | CC63: 0 | CF63: 0 | CG63: 0 | CH63: 0 | CK63: 0 | CL63: 18623 | CM63: 18623 | CN63: 18205 | CO63: 18605 | CP63: -400
D64: 01-010 | G64: 2-BUR | H64: 3 | I64: 2-SF | J64: Stylo à bille Fabs | K64: U | L64: 1 | M64: 21.00840336 | N64: 21.00840336 | O64: -1 | P64: 0 | Q64: 21.00840336 | R64: 0.19 | S64: 3.991596639 | T64: 25 | U64: =IF(CTS_Source[[#This Row],[Montant Payé]]>0,CTS_Source[[#This Row],[Montant TTC]]-CTS_Source[[#This Row],[Montant Payé]],"") ->  | W64: 25 | Z64: 28 | AA64: 0 | AC64: 28 | AD64: 30041 | AE64: 13331 | AF64: 18329 | AG64: 18329 | AH64: 0 | AI64: 25214.456 | AJ64: 21784.4 | AK64: 19420 | AL64: 19420 | AM64: 0 | AN64: 0 | AO64: 0 | AR64: 0 | AS64: 0 | AT64: 0 | AW64: 0 | AX64: 0 | AY64: 0 | BB64: 0 | BC64: 0 | BD64: 0 | BG64: 0 | BH64: 0 | BI64: 0 | BL64: 0 | BM64: 0 | BN64: 0 | BQ64: 0 | BR64: 0 | BS64: 0 | BV64: 0 | BW64: 0 | BX64: 0 | CA64: 0 | CB64: 0 | CC64: 0 | CF64: 0 | CG64: 0 | CH64: 0 | CK64: 0 | CL64: 55255.456 | CM64: 35115.4 | CN64: 37749 | CO64: 37749 | CP64: 0
A65: P | B65: 3 | C65: 2021-01-03 | E65: 01-011 | F65: CLIENT | I65: 1 | J65: Tarif COMPTOIR | N65: 554.6218487 | O65: 0 | Q65: 554.6218487 | R65: 0.19 | S65: 105.3781513 | T65: 660 | U65: =IF(CTS_Source[[#This Row],[Montant Payé]]>0,CTS_Source[[#This Row],[Montant TTC]]-CTS_Source[[#This Row],[Montant Payé]],"") -> 0 | V65: 660 | X65: 0 | Y65: 01 | Z65: 29 | AA65: 16710 | AC65: 29 | AD65: 0 | AE65: 0 | AH65: 0 | AI65: 0 | AJ65: 0 | AM65: 0 | AN65: 0 | AO65: 0 | AR65: 0 | AS65: 0 | AT65: 0 | AW65: 0 | AX65: 0 | AY65: 0 | BB65: 0 | BC65: 0 | BD65: 0 | BG65: 0 | BH65: 0 | BI65: 0 | BL65: 0 | BM65: 0 | BN65: 0 | BQ65: 0 | BR65: 0 | BS65: 0 | BV65: 0 | BW65: 0 | BX65: 0 | CA65: 0 | CB65: 0 | CC65: 0 | CF65: 0 | CG65: 0 | CH65: 0 | CK65: 0 | CL65: 0 | CM65: 0 | CN65: 0 | CO65: 0 | CP65: 0
D66: 01-011 | G66: 1-PRS | H66: 1 | I66: C4 | J66: Copie Noir & Blanc A4-R / Papier | K66: U | L66: 48 | M66: 8.403361345 | N66: 403.3613445 | O66: -1 | P66: 0 | Q66: 403.3613445 | R66: 0.19 | S66: 76.63865546 | T66: 480 | U66: =IF(CTS_Source[[#This Row],[Montant Payé]]>0,CTS_Source[[#This Row],[Montant TTC]]-CTS_Source[[#This Row],[Montant Payé]],"") ->  | W66: 10 | Z66: 30 | AA66: 0 | AC66: 30 | AD66: 0 | AE66: 0 | AH66: 0 | AI66: 0 | AJ66: 0 | AM66: 0 | AN66: 0 | AO66: 0 | AR66: 0 | AS66: 0 | AT66: 0 | AW66: 0 | AX66: 0 | AY66: 0 | BB66: 0 | BC66: 0 | BD66: 0 | BG66: 0 | BH66: 0 | BI66: 0 | BL66: 0 | BM66: 0 | BN66: 0 | BQ66: 0 | BR66: 0 | BS66: 0 | BV66: 0 | BW66: 0 | BX66: 0 | CA66: 0 | CB66: 0 | CC66: 0 | CF66: 0 | CG66: 0 | CH66: 0 | CK66: 0 | CL66: 0 | CM66: 0 | CN66: 0 | CO66: =AG66+AL66+AQ66+AV66+BA66+BF66+BK66+BP66+BU66+BZ66+CE66+CJ66 -> 0 | CP66: =CN66-CO66 -> 0
D67: 01-011 | G67: 1-PRS | H67: 2 | I67: TP | J67: Tirage Noir & Blanc / Papier | K67: ML | L67: 1.5 | M67: 100.8403361 | N67: 151.2605042 | O67: -1 | P67: 0 | Q67: 151.2605042 | R67: 0.19 | S67: 28.7394958 | T67: 180 | U67: =IF(CTS_Source[[#This Row],[Montant Payé]]>0,CTS_Source[[#This Row],[Montant TTC]]-CTS_Source[[#This Row],[Montant Payé]],"") ->  | W67: 120 | Z67: 31 | AA67: 0 | AC67: 31 | AD67: 20450.568 | AE67: 16872 | AF67: 16805 | AG67: 16796 | AH67: 9 | AI67: 0 | AJ67: 0 | AM67: 0 | AN67: 0 | AO67: 0 | AR67: 0 | AS67: 0 | AT67: 0 | AW67: 0 | AX67: 0 | AY67: 0 | BB67: 0 | BC67: 0 | BD67: 0 | BG67: 0 | BH67: 0 | BI67: 0 | BL67: 0 | BM67: 0 | BN67: 0 | BQ67: 0 | BR67: 0 | BS67: 0 | BV67: 0 | BW67: 0 | BX67: 0 | CA67: 0 | CB67: 0 | CC67: 0 | CF67: 0 | CG67: 0 | CH67: 0 | CK67: 0 | CL67: 20450.568 | CM67: 16872 | CN67: 16805 | CO67: 16796 | CP67: 9
A68: P | B68: 3 | C68: 2021-01-03 | E68: 01-012 | F68: CLIENT | I68: 1 | J68: Tarif COMPTOIR | N68: 1895.798319 | O68: 0 | Q68: 1895.798319 | R68: 0.19 | S68: 360.2016807 | T68: 2256 | U68: =IF(CTS_Source[[#This Row],[Montant Payé]]>0,CTS_Source[[#This Row],[Montant TTC]]-CTS_Source[[#This Row],[Montant Payé]],"") -> 6 | V68: 2250 | X68: 0 | Y68: 01 | Z68: 32 | AA68: 3578.568 | AD68: =SUM(AD37:AD67) -> 648259.0676 | AE68: 535561.8516 | AF68: =SUM(AF37:AF67) -> 601263 | AG68: =SUM(AG37:AG67) -> 600179.55 | AH68: 1083.45 | AI68: =SUM(AI37:AI67) -> 642339.7243 | AJ68: =SUM(AJ37:AJ67) -> 585337.14 | AK68: =SUM(AK37:AK67) -> 763209 | AL68: =SUM(AL37:AL67) -> 762083 | AM68: 1126 | AN68: =SUM(AN37:AN67) -> 647483.9023 | AO68: 590050.8923 | AP68: 640630 | AQ68: 641683.8 | AR68: -1053.8 | AS68: 0 | AT68: 0 | AU68: =SUM(AU37:AU67) -> 0 | AV68: 0 | AW68: 0 | AX68: =SUM(AX37:AX67) -> 0 | AY68: 0 | AZ68: 0 | BA68: 0 | BB68: 0 | BC68: 0 | BD68: 0 | BE68: 0 | BF68: 0 | BG68: 0 | BH68: 0 | BI68: 0 | BJ68: 0 | BK68: 0 | BL68: 0 | BM68: 0 | BN68: 0 | BO68: 0 | BP68: 0 | BQ68: 0 | BR68: 0 | BS68: 0 | BT68: 0 | BU68: 0 | BV68: 0 | BW68: 0 | BX68: 0 | BY68: 0 | BZ68: 0 | CA68: 0 | CB68: 0 | CC68: 0 | CD68: 0 | CE68: 0 | CF68: 0 | CG68: 0 | CH68: 0 | CI68: 0 | CJ68: 0 | CK68: 0 | CL68: 1938082.694 | CM68: 1710949.884 | CN68: =SUM(CN37:CN67) -> 2005102 | CO68: 2003946.35 | CP68: 1155.65
D69: 01-012 | G69: 1-PRS | H69: 1 | I69: TP | J69: Tirage Noir & Blanc / Papier | K69: ML | L69: 18.8 | M69: 100.8403361 | N69: 1895.798319 | O69: -1 | P69: 0 | Q69: 1895.798319 | R69: 0.19 | S69: 360.2016807 | T69: 2256 | U69: =IF(CTS_Source[[#This Row],[Montant Payé]]>0,CTS_Source[[#This Row],[Montant TTC]]-CTS_Source[[#This Row],[Montant Payé]],"") ->  | W69: 120 | Z69: 33 | AK69: =AF68+AK68 -> 1364472 | AL69: =AG68+AL68 -> 1362262.55 | AM69: =AH68+AM68 -> 2209.45 | AP69: =AF68+AK68+AP68 -> 2005102 | AQ69: =AG68+AL68+AQ68 -> 2003946.35 | AR69: 1155.65 | AU69: =AF68+AK68+AP68 -> 2005102 | AV69: =AG68+AL68+AQ68 -> 2003946.35 | AW69: 1155.65 | AZ69: =AF68+AK68+AP68+AU68 -> 2005102 | BA69: =AG68+AL68+AQ68+AV68 -> 2003946.35 | BB69: 1155.65 | BE69: =AF68+AK68+AP68+AU68+AZ68 -> 2005102 | BF69: =AG68+AL68+AQ68+AV68+BA68 -> 2003946.35 | BG69: 1155.65 | BJ69: =AF68+AK68+AP68+AU68+AZ68+BE68 -> 2005102 | BK69: =AG68+AL68+AQ68+AV68+BA68+BF68 -> 2003946.35 | BL69: 1155.65 | BO69: =AF68+AK68+AP68+AU68+AZ68+BE68+BJ68 -> 2005102 | BP69: =AG68+AL68+AQ68+AV68+BA68+BF68+BK68 -> 2003946.35 | BQ69: 1155.65 | BT69: =AF68+AK68+AP68+AU68+AZ68+BE68+BJ68+BO68 -> 2005102 | BU69: =AG68+AL68+AQ68+AV68+BA68+BF68+BK68+BP68 -> 2003946.35 | BV69: 1155.65 | BY69: =AF68+AK68+AP68+AU68+AZ68+BE68+BJ68+BO68+BT68 -> 2005102 | BZ69: =AG68+AL68+AQ68+AV68+BA68+BF68+BK68+BP68+BU68 -> 2003946.35 | CA69: 1155.65 | CD69: =AF68+AK68+AP68+AU68+AZ68+BE68+BJ68+BO68+BT68+BY68 -> 2005102 | CE69: =AG68+AL68+AQ68+AV68+BA68+BF68+BK68+BP68+BU68+BZ68 -> 2003946.35 | CF69: 1155.65 | CI69: =AF68+AK68+AP68+AU68+AZ68+BE68+BJ68+BO68+BT68+BY68+CD68 -> 2005102 | CJ69: =AG68+AL68+AQ68+AV68+BA68+BF68+BK68+BP68+BU68+BZ68+CE68 -> 2003946.35 | CK69: 1155.65 | CN69: =AF68+AK68+AP68+AU68+AZ68+BE68+BJ68+BO68+BT68+BY68+CD68+CI68 -> 2005102 | CO69: =AG68+AL68+AQ68+AV68+BA68+BF68+BK68+BP68+BU68+BZ68+CE68+CJ68 -> 2003946.35 | CP69: 1155.65
A70: P | B70: 3 | C70: 2021-01-03 | E70: 01-013 | F70: CLIENT | I70: 1 | J70: Tarif COMPTOIR | N70: 33.61344538 | O70: 0 | Q70: 33.61344538 | R70: 0.19 | S70: 6.386554622 | T70: 40 | U70: =IF(CTS_Source[[#This Row],[Montant Payé]]>0,CTS_Source[[#This Row],[Montant TTC]]-CTS_Source[[#This Row],[Montant Payé]],"") -> 0 | V70: 40 | X70: 0 | Y70: 01 | Z70: 34
D71: 01-013 | G71: 0-PRS | H71: 1 | I71: N40 | J71: Numérisation Couleur A4 à plat | K71: U | L71: 1 | M71: 33.61344538 | N71: 33.61344538 | O71: -1 | P71: 0 | Q71: 33.61344538 | R71: 0.19 | S71: 6.386554622 | T71: 40 | U71: =IF(CTS_Source[[#This Row],[Montant Payé]]>0,CTS_Source[[#This Row],[Montant TTC]]-CTS_Source[[#This Row],[Montant Payé]],"") ->  | W71: 40 | Z71: 35
A72: P | B72: 3 | C72: 2021-01-03 | E72: 01-014 | F72: CLIENT | I72: 1 | J72: Tarif COMPTOIR | N72: 181.512605 | O72: 0 | Q72: 181.512605 | R72: 0.19 | S72: 34.48739496 | T72: 216 | U72: =IF(CTS_Source[[#This Row],[Montant Payé]]>0,CTS_Source[[#This Row],[Montant TTC]]-CTS_Source[[#This Row],[Montant Payé]],"") -> 16 | V72: 200 | X72: 0 | Y72: 01 | Z72: 36
D73: 01-014 | G73: 1-PRS | H73: 1 | I73: TP | J73: Tirage Noir & Blanc / Papier | K73: ML | L73: 1.8 | M73: 100.8403361 | N73: 181.512605 | O73: -1 | P73: 0 | Q73: 181.512605 | R73: 0.19 | S73: 34.48739496 | T73: 216 | U73: =IF(CTS_Source[[#This Row],[Montant Payé]]>0,CTS_Source[[#This Row],[Montant TTC]]-CTS_Source[[#This Row],[Montant Payé]],"") ->  | W73: 120 | Z73: 37 | AC73: PRESTATIONS | AD73: Quantité | AE73: Montant TTC | AH73: BUREAUTIQUE | AJ73: Quantité | AK73: Montant TTC
A74: p | B74: 3 | C74: 2021-01-03 | E74: 01-015 | F74: CLIENT | I74: 1 | J74: Tarif COMPTOIR | N74: 1739.495798 | O74: 0 | Q74: 1739.495798 | R74: 0.19 | S74: 330.5042017 | T74: 2070 | U74: =IF(CTS_Source[[#This Row],[Montant Payé]]>0,CTS_Source[[#This Row],[Montant TTC]]-CTS_Source[[#This Row],[Montant Payé]],"") -> 0 | V74: 2070 | X74: 0 | Y74: 01 | Z74: 38
D75: 01-015 | G75: 0-PRS | H75: 1 | I75: R4S1 | J75: Reliure A4 Spirale n° 06 à 18 + Transp. + Bristol | K75: U | L75: 1 | M75: 126.0504202 | N75: 126.0504202 | O75: -1 | P75: 0 | Q75: 126.0504202 | R75: 0.19 | S75: 23.94957983 | T75: 150 | U75: =IF(CTS_Source[[#This Row],[Montant Payé]]>0,CTS_Source[[#This Row],[Montant TTC]]-CTS_Source[[#This Row],[Montant Payé]],"") ->  | W75: 150 | Z75: 39 | AC75: C3 | AD75: =SUMIF($I37:$I$100006,AC75,$L37:$L$100006) -> 514 | AE75: =SUMIF($I37:$I$100006,AC75,$T37:$T$100006) -> 9882.670642 | AH75: 1-C0M | AJ75: =SUMIF($I37:$I$100006,AH75,$L37:$L$100006) -> 0 | AK75: =SUMIF($I37:$I$100006,AH75,$T37:$T$100006) -> 0
D76: 01-015 | G76: 1-PRS | H76: 2 | I76: I40 | J76: Impression Couleur A4-R / Papier (aucun aplat) | K76: U | L76: 32 | M76: 50.42016807 | N76: 1613.445378 | O76: -1 | P76: 0 | Q76: 1613.445378 | R76: 0.19 | S76: 306.5546218 | T76: 1920 | U76: =IF(CTS_Source[[#This Row],[Montant Payé]]>0,CTS_Source[[#This Row],[Montant TTC]]-CTS_Source[[#This Row],[Montant Payé]],"") ->  | W76: 60 | Z76: 40 | AC76: C3B | AD76: =SUMIF($I38:$I$100006,AC76,$L38:$L$100006) -> 17 | AE76: =SUMIF($I38:$I$100006,AC76,$T38:$T$100006) -> 680 | AH76: 1-C0P50 | AJ76: =SUMIF($I38:$I$100006,AH76,$L38:$L$100006) -> 0 | AK76: =SUMIF($I38:$I$100006,AH76,$T38:$T$100006) -> 0
A77: P | B77: 3 | C77: 2021-01-03 | E77: 01-016 | F77: CLIENT | I77: 1 | J77: Tarif COMPTOIR | N77: 504.2016807 | O77: 0 | Q77: 504.2016807 | R77: 0.19 | S77: 95.79831933 | T77: 600 | U77: =IF(CTS_Source[[#This Row],[Montant Payé]]>0,CTS_Source[[#This Row],[Montant TTC]]-CTS_Source[[#This Row],[Montant Payé]],"") -> 0 | V77: 600 | X77: 0 | Y77: 01 | Z77: 41 | AC77: C3C | AD77: =SUMIF($I39:$I$100006,AC77,$L39:$L$100006) -> 0 | AE77: =SUMIF($I39:$I$100006,AC77,$T39:$T$100006) -> 0 | AH77: 1-C0T100 | AJ77: =SUMIF($I39:$I$100006,AH77,$L39:$L$100006) -> 0 | AK77: =SUMIF($I39:$I$100006,AH77,$T39:$T$100006) -> 0
D78: 01-016 | G78: 1-PRS | H78: 1 | I78: I30 | J78: Impression Couleur A3-R / Papier (aucun aplat) | K78: U | L78: 3 | M78: 100.8403361 | N78: 302.5210084 | O78: -1 | P78: 0 | Q78: 302.5210084 | R78: 0.19 | S78: 57.4789916 | T78: 360 | U78: =IF(CTS_Source[[#This Row],[Montant Payé]]>0,CTS_Source[[#This Row],[Montant TTC]]-CTS_Source[[#This Row],[Montant Payé]],"") ->  | W78: 120 | Z78: 42 | AC78: C3S | AD78: =SUMIF($I40:$I$100006,AC78,$L40:$L$100006) -> 2 | AE78: =SUMIF($I40:$I$100006,AC78,$T40:$T$100006) -> 80 | AH78: 1-P0F25 | AJ78: =SUMIF($I40:$I$100006,AH78,$L40:$L$100006) -> 0 | AK78: =SUMIF($I40:$I$100006,AH78,$T40:$T$100006) -> 0
D79: 01-016 | G79: 1-PRS | H79: 2 | I79: C30 | J79: Copie Couleur A3-R / Papier (aucun aplat) | K79: U | L79: 3 | M79: 67.22689076 | N79: 201.6806723 | O79: -1 | P79: 0 | Q79: 201.6806723 | R79: 0.19 | S79: 38.31932773 | T79: 240 | U79: =IF(CTS_Source[[#This Row],[Montant Payé]]>0,CTS_Source[[#This Row],[Montant TTC]]-CTS_Source[[#This Row],[Montant Payé]],"") ->  | W79: 80 | Z79: 43 | AC79: C4 | AD79: =SUMIF($I41:$I$100006,AC79,$L41:$L$100006) -> 25143 | AE79: =SUMIF($I41:$I$100006,AC79,$T41:$T$100006) -> 194751.7735 | AH79: 1-P0F30 | AJ79: =SUMIF($I41:$I$100006,AH79,$L41:$L$100006) -> 0 | AK79: =SUMIF($I41:$I$100006,AH79,$T41:$T$100006) -> 0
A80: P | B80: 3 | C80: 2021-01-03 | E80: 01-017 | F80: CLIENT | I80: 1 | J80: Tarif COMPTOIR | N80: 100.8403361 | O80: 0 | Q80: 100.8403361 | R80: 0.19 | S80: 19.15966387 | T80: 120 | U80: =IF(CTS_Source[[#This Row],[Montant Payé]]>0,CTS_Source[[#This Row],[Montant TTC]]-CTS_Source[[#This Row],[Montant Payé]],"") -> 0 | V80: 120 | X80: 0 | Y80: 01 | Z80: 44 | AC80: C4B | AD80: =SUMIF($I42:$I$100006,AC80,$L42:$L$100006) -> 8 | AE80: =SUMIF($I42:$I$100006,AC80,$T42:$T$100006) -> 157.0912548 | AH80: 1-P0M | AJ80: =SUMIF($I42:$I$100006,AH80,$L42:$L$100006) -> 0 | AK80: =SUMIF($I42:$I$100006,AH80,$T42:$T$100006) -> 0
D81: 01-017 | G81: 0-PRS | H81: 1 | I81: I41 | J81: Impression Couleur A4-R / Papier (avec aplats) | K81: U | L81: 1 | M81: 67.22689076 | N81: 67.22689076 | O81: -1 | P81: 0 | Q81: 67.22689076 | R81: 0.19 | S81: 12.77310924 | T81: 80 | U81: =IF(CTS_Source[[#This Row],[Montant Payé]]>0,CTS_Source[[#This Row],[Montant TTC]]-CTS_Source[[#This Row],[Montant Payé]],"") ->  | W81: 80 | Z81: 45 | AC81: C4C | AD81: =SUMIF($I43:$I$100006,AC81,$L43:$L$100006) -> 0 | AE81: =SUMIF($I43:$I$100006,AC81,$T43:$T$100006) -> 0 | AH81: 1-P0P120 | AJ81: =SUMIF($I43:$I$100006,AH81,$L43:$L$100006) -> 1 | AK81: =SUMIF($I43:$I$100006,AH81,$T43:$T$100006) -> 3190
D82: 01-017 | G82: 1-PRS | H82: 2 | I82: I4 | J82: Impression Noir & Blanc A4-R / Papier | K82: U | L82: 2 | M82: 16.80672269 | N82: 33.61344538 | O82: -1 | P82: 0 | Q82: 33.61344538 | R82: 0.19 | S82: 6.386554622 | T82: 40 | U82: =IF(CTS_Source[[#This Row],[Montant Payé]]>0,CTS_Source[[#This Row],[Montant TTC]]-CTS_Source[[#This Row],[Montant Payé]],"") ->  | W82: 20 | Z82: 46 | AC82: C4S | AD82: =SUMIF($I44:$I$100006,AC82,$L44:$L$100006) -> 646 | AE82: =SUMIF($I44:$I$100006,AC82,$T44:$T$100006) -> 11958.86363 | AH82: 1-P0P50 | AJ82: =SUMIF($I44:$I$100006,AH82,$L44:$L$100006) -> 0 | AK82: =SUMIF($I44:$I$100006,AH82,$T44:$T$100006) -> 0
A83: P | B83: 3 | C83: 2021-01-03 | E83: 01-018 | F83: CLIENT | I83: 1 | J83: Tarif COMPTOIR | N83: 2470.588235 | O83: 0 | Q83: 2470.588235 | R83: 0.19 | S83: 469.4117647 | T83: 2940 | U83: =IF(CTS_Source[[#This Row],[Montant Payé]]>0,CTS_Source[[#This Row],[Montant TTC]]-CTS_Source[[#This Row],[Montant Payé]],"") -> 0 | V83: 2940 | X83: 0 | Y83: 01 | Z83: 47 | AC83: C4TC | AD83: =SUMIF($I45:$I$100006,AC83,$L45:$L$100006) -> 0 | AE83: =SUMIF($I45:$I$100006,AC83,$T45:$T$100006) -> 0 | AH83: 1-P0P90 | AJ83: =SUMIF($I45:$I$100006,AH83,$L45:$L$100006) -> 0 | AK83: =SUMIF($I45:$I$100006,AH83,$T45:$T$100006) -> 0
D84: 01-018 | G84: 0-PRS | H84: 1 | I84: C4S | J84: Copie Noir & Blanc A4-R / Papier / Spéciale | K84: U | L84: 132 | M84: 16.80672269 | N84: 2218.487395 | O84: -1 | P84: 0 | Q84: 2218.487395 | R84: 0.19 | S84: 421.512605 | T84: 2640 | U84: =IF(CTS_Source[[#This Row],[Montant Payé]]>0,CTS_Source[[#This Row],[Montant TTC]]-CTS_Source[[#This Row],[Montant Payé]],"") ->  | W84: 20 | Z84: 48 | AC84: C6 | AD84: =SUMIF($I46:$I$100006,AC84,$L46:$L$100006) -> 213 | AE84: =SUMIF($I46:$I$100006,AC84,$T46:$T$100006) -> 7823.86603 | AH84: 1-P0T150 | AJ84: =SUMIF($I46:$I$100006,AH84,$L46:$L$100006) -> 0 | AK84: =SUMIF($I46:$I$100006,AH84,$T46:$T$100006) -> 0
D85: 01-018 | G85: 1-PRS | H85: 2 | I85: C8 | J85: Copie Noir & Blanc A4-RV / Papier | K85: U | L85: 1 | M85: 16.80672269 | N85: 16.80672269 | O85: -1 | P85: 0 | Q85: 16.80672269 | R85: 0.19 | S85: 3.193277311 | T85: 20 | U85: =IF(CTS_Source[[#This Row],[Montant Payé]]>0,CTS_Source[[#This Row],[Montant TTC]]-CTS_Source[[#This Row],[Montant Payé]],"") ->  | W85: 20 | Z85: 49 | AC85: C6B | AD85: =SUMIF($I47:$I$100006,AC85,$L47:$L$100006) -> 6 | AE85: =SUMIF($I47:$I$100006,AC85,$T47:$T$100006) -> 360 | AH85: 1-P0T175 | AJ85: =SUMIF($I47:$I$100006,AH85,$L47:$L$100006) -> 0 | AK85: =SUMIF($I47:$I$100006,AH85,$T47:$T$100006) -> 0
D86: 01-018 | G86: 0-PRS | H86: 3 | I86: C8S | J86: Copie Noir & Blanc A4-RV / Papier / Spéciale | K86: U | L86: 1 | M86: 50.42016807 | N86: 50.42016807 | O86: -1 | P86: 0 | Q86: 50.42016807 | R86: 0.19 | S86: 9.579831933 | T86: 60 | U86: =IF(CTS_Source[[#This Row],[Montant Payé]]>0,CTS_Source[[#This Row],[Montant TTC]]-CTS_Source[[#This Row],[Montant Payé]],"") ->  | W86: 60 | Z86: 50 | AC86: C6S | AD86: =SUMIF($I48:$I$100006,AC86,$L48:$L$100006) -> 5 | AE86: =SUMIF($I48:$I$100006,AC86,$T48:$T$100006) -> 400 | AH86: 1-P1T150 | AJ86: =SUMIF($I48:$I$100006,AH86,$L48:$L$100006) -> 1 | AK86: =SUMIF($I48:$I$100006,AH86,$T48:$T$100006) -> 2765.838509
D87: 01-018 | G87: 1-PRS | H87: 4 | I87: C4 | J87: Copie Noir & Blanc A4-R / Papier | K87: U | L87: 22 | M87: 8.403361345 | N87: 184.8739496 | O87: -1 | P87: 0 | Q87: 184.8739496 | R87: 0.19 | S87: 35.12605042 | T87: 220 | U87: =IF(CTS_Source[[#This Row],[Montant Payé]]>0,CTS_Source[[#This Row],[Montant TTC]]-CTS_Source[[#This Row],[Montant Payé]],"") ->  | W87: 10 | Z87: 51 | AC87: C8 | AD87: =SUMIF($I49:$I$100006,AC87,$L49:$L$100006) -> 895 | AE87: =SUMIF($I49:$I$100006,AC87,$T49:$T$100006) -> 17464.58738 | AH87: 1-P1T175 | AJ87: =SUMIF($I49:$I$100006,AH87,$L49:$L$100006) -> 0 | AK87: =SUMIF($I49:$I$100006,AH87,$T49:$T$100006) -> 0
A88: P | B88: 3 | C88: 2021-01-03 | E88: 01-019 | F88: CLIENT | I88: 1 | J88: Tarif COMPTOIR | N88: 166.3865546 | O88: 0 | Q88: 166.3865546 | R88: 0.19 | S88: 31.61344538 | T88: 198 | U88: =IF(CTS_Source[[#This Row],[Montant Payé]]>0,CTS_Source[[#This Row],[Montant TTC]]-CTS_Source[[#This Row],[Montant Payé]],"") -> 3 | V88: 195 | X88: 0 | Y88: 01 | Z88: 52 | AC88: C8B | AD88: =SUMIF($I50:$I$100006,AC88,$L50:$L$100006) -> 0 | AE88: =SUMIF($I50:$I$100006,AC88,$T50:$T$100006) -> 0 | AH88: 1-P2T150 | AJ88: =SUMIF($I50:$I$100006,AH88,$L50:$L$100006) -> 0 | AK88: =SUMIF($I50:$I$100006,AH88,$T50:$T$100006) -> 0
D89: 01-019 | G89: 1-PRS | H89: 1 | I89: TP | J89: Tirage Noir & Blanc / Papier | K89: ML | L89: 1.65 | M89: 100.8403361 | N89: 166.3865546 | O89: -1 | P89: 0 | Q89: 166.3865546 | R89: 0.19 | S89: 31.61344538 | T89: 198 | U89: =IF(CTS_Source[[#This Row],[Montant Payé]]>0,CTS_Source[[#This Row],[Montant TTC]]-CTS_Source[[#This Row],[Montant Payé]],"") ->  | W89: 120 | Z89: 53 | AC89: C8S | AD89: =SUMIF($I51:$I$100006,AC89,$L51:$L$100006) -> 18 | AE89: =SUMIF($I51:$I$100006,AC89,$T51:$T$100006) -> 751.3548387 | AH89: 1-P2T175 | AJ89: =SUMIF($I51:$I$100006,AH89,$L51:$L$100006) -> 0 | AK89: =SUMIF($I51:$I$100006,AH89,$T51:$T$100006) -> 0
A90: P | B90: 3 | C90: 2021-01-03 | E90: 01-020 | F90: CLIENT | I90: 1 | J90: Tarif COMPTOIR | N90: 579.8319328 | O90: 0 | Q90: 579.8319328 | R90: 0.19 | S90: 110.1680672 | T90: 690 | U90: =IF(CTS_Source[[#This Row],[Montant Payé]]>0,CTS_Source[[#This Row],[Montant TTC]]-CTS_Source[[#This Row],[Montant Payé]],"") -> 0 | V90: 690 | X90: 0 | Y90: 01 | Z90: 54 | AC90: - | AD90: =SUM(AD75:AD89) -> 27467 | AE90: =SUM(AE75:AE89) -> 244310.2073 | AH90: 1-P3FB | AJ90: =SUMIF($I52:$I$100006,AH90,$L52:$L$100006) -> 1 | AK90: =SUMIF($I52:$I$100006,AH90,$T52:$T$100006) -> 1300
D91: 01-020 | G91: 1-PRS | H91: 1 | I91: TP | J91: Tirage Noir & Blanc / Papier | K91: ML | L91: 5.75 | M91: 100.8403361 | N91: 579.8319328 | O91: -1 | P91: 0 | Q91: 579.8319328 | R91: 0.19 | S91: 110.1680672 | T91: 690 | U91: =IF(CTS_Source[[#This Row],[Montant Payé]]>0,CTS_Source[[#This Row],[Montant TTC]]-CTS_Source[[#This Row],[Montant Payé]],"") ->  | W91: 120 | Z91: 55 | AC91: C30 | AD91: =SUMIF($I53:$I$100006,AC91,$L53:$L$100006) -> 337 | AE91: =SUMIF($I53:$I$100006,AC91,$T53:$T$100006) -> 26529.96648 | AH91: 1-P3RG | AJ91: =SUMIF($I53:$I$100006,AH91,$L53:$L$100006) -> 0 | AK91: =SUMIF($I53:$I$100006,AH91,$T53:$T$100006) -> 0
A92: P | B92: 4 | C92: 2021-01-04 | E92: 01-021 | F92: CLIENT | I92: 1 | J92: Tarif COMPTOIR | N92: 1230.252101 | O92: 0 | Q92: 1230.252101 | R92: 0.19 | S92: 233.7478992 | T92: 1464 | U92: =IF(CTS_Source[[#This Row],[Montant Payé]]>0,CTS_Source[[#This Row],[Montant TTC]]-CTS_Source[[#This Row],[Montant Payé]],"") -> 4 | V92: 1460 | X92: 0 | Y92: 01 | Z92: 56 | AC92: C30B | AD92: =SUMIF($I54:$I$100006,AC92,$L54:$L$100006) -> 5 | AE92: =SUMIF($I54:$I$100006,AC92,$T54:$T$100006) -> 500 | AH92: 1-P3XP | AJ92: =SUMIF($I54:$I$100006,AH92,$L54:$L$100006) -> 0 | AK92: =SUMIF($I54:$I$100006,AH92,$T54:$T$100006) -> 0
D93: 01-021 | G93: 1-PRS | H93: 1 | I93: PP | J93: Traçage Noir & Blanc / Papier | K93: ML | L93: 3.05 | M93: 201.6806723 | N93: 615.1260504 | O93: -1 | P93: 0 | Q93: 615.1260504 | R93: 0.19 | S93: 116.8739496 | T93: 732 | U93: =IF(CTS_Source[[#This Row],[Montant Payé]]>0,CTS_Source[[#This Row],[Montant TTC]]-CTS_Source[[#This Row],[Montant Payé]],"") ->  | W93: 240 | Z93: 57 | AC93: C31 | AD93: =SUMIF($I55:$I$100006,AC93,$L55:$L$100006) -> 39 | AE93: =SUMIF($I55:$I$100006,AC93,$T55:$T$100006) -> 4447.823708 | AH93: 1-P4A250 | AJ93: =SUMIF($I55:$I$100006,AH93,$L55:$L$100006) -> 0 | AK93: =SUMIF($I55:$I$100006,AH93,$T55:$T$100006) -> 0
D94: 01-021 | G94: 1-PRS | H94: 2 | I94: TP | J94: Tirage Noir & Blanc / Papier | K94: ML | L94: 6.1 | M94: 100.8403361 | N94: 615.1260504 | O94: -1 | P94: 0 | Q94: 615.1260504 | R94: 0.19 | S94: 116.8739496 | T94: 732 | U94: =IF(CTS_Source[[#This Row],[Montant Payé]]>0,CTS_Source[[#This Row],[Montant TTC]]-CTS_Source[[#This Row],[Montant Payé]],"") ->  | W94: 120 | Z94: 58 | AC94: C31B | AD94: =SUMIF($I56:$I$100006,AC94,$L56:$L$100006) -> 15 | AE94: =SUMIF($I56:$I$100006,AC94,$T56:$T$100006) -> 2030 | AH94: 1-P4AL | AJ94: =SUMIF($I56:$I$100006,AH94,$L56:$L$100006) -> 0 | AK94: =SUMIF($I56:$I$100006,AH94,$T56:$T$100006) -> 0
A95: P | B95: 4 | C95: 2021-01-04 | E95: 01-022 | F95: CLIENT | I95: 1 | J95: Tarif COMPTOIR | N95: 1954.621849 | O95: 0 | Q95: 1954.621849 | R95: 0.19 | S95: 371.3781513 | T95: 2326 | U95: =IF(CTS_Source[[#This Row],[Montant Payé]]>0,CTS_Source[[#This Row],[Montant TTC]]-CTS_Source[[#This Row],[Montant Payé]],"") -> 1 | V95: 2325 | X95: 0 | Y95: 01 | Z95: 59 | AC95: C32 | AD95: =SUMIF($I57:$I$100006,AC95,$L57:$L$100006) -> 66 | AE95: =SUMIF($I57:$I$100006,AC95,$T57:$T$100006) -> 10526.66667 | AH95: 1-P4AL250 | AJ95: =SUMIF($I57:$I$100006,AH95,$L57:$L$100006) -> 0 | AK95: =SUMIF($I57:$I$100006,AH95,$T57:$T$100006) -> 0
D96: 01-022 | G96: 1-PRS | H96: 1 | I96: C3 | J96: Copie Noir & Blanc A3-R / Papier | K96: U | L96: 2 | M96: 16.80672269 | N96: 33.61344538 | O96: -1 | P96: 0 | Q96: 33.61344538 | R96: 0.19 | S96: 6.386554622 | T96: 40 | U96: =IF(CTS_Source[[#This Row],[Montant Payé]]>0,CTS_Source[[#This Row],[Montant TTC]]-CTS_Source[[#This Row],[Montant Payé]],"") ->  | W96: 20 | Z96: 60 | AC96: C32B | AD96: =SUMIF($I58:$I$100006,AC96,$L58:$L$100006) -> 3 | AE96: =SUMIF($I58:$I$100006,AC96,$T58:$T$100006) -> 540 | AH96: 1-P4C250 | AJ96: =SUMIF($I58:$I$100006,AH96,$L58:$L$100006) -> 0 | AK96: =SUMIF($I58:$I$100006,AH96,$T58:$T$100006) -> 0
D97: 01-022 | G97: 1-PRS | H97: 2 | I97: TP | J97: Tirage Noir & Blanc / Papier | K97: ML | L97: 19.05 | M97: 100.8403361 | N97: 1921.008403 | O97: -1 | P97: 0 | Q97: 1921.008403 | R97: 0.19 | S97: 364.9915966 | T97: 2286 | U97: =IF(CTS_Source[[#This Row],[Montant Payé]]>0,CTS_Source[[#This Row],[Montant TTC]]-CTS_Source[[#This Row],[Montant Payé]],"") ->  | W97: 120 | Z97: 61 | AC97: C40 | AD97: =SUMIF($I59:$I$100006,AC97,$L59:$L$100006) -> 1724 | AE97: =SUMIF($I59:$I$100006,AC97,$T59:$T$100006) -> 67007.13206 | AH97: 1-P4C500 | AJ97: =SUMIF($I59:$I$100006,AH97,$L59:$L$100006) -> 0 | AK97: =SUMIF($I59:$I$100006,AH97,$T59:$T$100006) -> 0
A98: P | B98: 4 | C98: 2021-01-04 | E98: 01-023 | F98: CLIENT | I98: 1 | J98: Tarif COMPTOIR | N98: 2907.563025 | O98: 0 | Q98: 2907.563025 | R98: 0.19 | S98: 552.4369748 | T98: 3460 | U98: =IF(CTS_Source[[#This Row],[Montant Payé]]>0,CTS_Source[[#This Row],[Montant TTC]]-CTS_Source[[#This Row],[Montant Payé]],"") -> 0 | V98: 3460 | X98: 0 | Y98: 01 | Z98: 62 | AC98: C40B | AD98: =SUMIF($I60:$I$100006,AC98,$L60:$L$100006) -> 53 | AE98: =SUMIF($I60:$I$100006,AC98,$T60:$T$100006) -> 2650 | AH98: 1-P4F100 | AJ98: =SUMIF($I60:$I$100006,AH98,$L60:$L$100006) -> 6 | AK98: =SUMIF($I60:$I$100006,AH98,$T60:$T$100006) -> 1080
D99: 01-023 | G99: 2-BUR | H99: 1 | I99: 5-CCC60 | J99: Chemise de classement en carte lustrée D.60 | K99: U | L99: 1 | M99: 201.6806723 | N99: 201.6806723 | O99: -1 | P99: 0 | Q99: 201.6806723 | R99: 0.19 | S99: 38.31932773 | T99: 240 | U99: =IF(CTS_Source[[#This Row],[Montant Payé]]>0,CTS_Source[[#This Row],[Montant TTC]]-CTS_Source[[#This Row],[Montant Payé]],"") ->  | W99: 240 | Z99: 63 | AC99: C40S | AD99: =SUMIF($I61:$I$100006,AC99,$L61:$L$100006) -> 5 | AE99: =SUMIF($I61:$I$100006,AC99,$T61:$T$100006) -> 392 | AH99: 1-P4F250 | AJ99: =SUMIF($I61:$I$100006,AH99,$L61:$L$100006) -> 0 | AK99: =SUMIF($I61:$I$100006,AH99,$T61:$T$100006) -> 0
D100: 01-023 | G100: 2-BUR | H100: 2 | I100: 5-CCC25 | J100: Chemise de classement en carte lustrée D.25 | K100: U | L100: 1 | M100: 134.4537815 | N100: 134.4537815 | O100: -1 | P100: 0 | Q100: 134.4537815 | R100: 0.19 | S100: 25.54621849 | T100: 160 | U100: =IF(CTS_Source[[#This Row],[Montant Payé]]>0,CTS_Source[[#This Row],[Montant TTC]]-CTS_Source[[#This Row],[Montant Payé]],"") ->  | W100: 160 | Z100: 64 | AC100: C41 | AD100: =SUMIF($I62:$I$100006,AC100,$L62:$L$100006) -> 239 | AE100: =SUMIF($I62:$I$100006,AC100,$T62:$T$100006) -> 12780.17781 | AH100: 1-P4FB | AJ100: =SUMIF($I62:$I$100006,AH100,$L62:$L$100006) -> 0 | AK100: =SUMIF($I62:$I$100006,AH100,$T62:$T$100006) -> 0
D101: 01-023 | G101: 1-PRS | H101: 3 | I101: PP | J101: Traçage Noir & Blanc / Papier | K101: ML | L101: 3.3 | M101: 201.6806723 | N101: 665.5462185 | O101: -1 | P101: 0 | Q101: 665.5462185 | R101: 0.19 | S101: 126.4537815 | T101: 792 | U101: =IF(CTS_Source[[#This Row],[Montant Payé]]>0,CTS_Source[[#This Row],[Montant TTC]]-CTS_Source[[#This Row],[Montant Payé]],"") ->  | W101: 240 | Z101: 65 | AC101: C41B | AD101: =SUMIF($I63:$I$100006,AC101,$L63:$L$100006) -> 20 | AE101: =SUMIF($I63:$I$100006,AC101,$T63:$T$100006) -> 1400 | AH101: 1-P4NR | AJ101: =SUMIF($I63:$I$100006,AH101,$L63:$L$100006) -> 38 | AK101: =SUMIF($I63:$I$100006,AH101,$T63:$T$100006) -> 22040
D102: 01-023 | G102: 1-PRS | H102: 4 | I102: TP | J102: Tirage Noir & Blanc / Papier | K102: ML | L102: 18.9 | M102: 100.8403361 | N102: 1905.882353 | O102: -1 | P102: 0 | Q102: 1905.882353 | R102: 0.19 | S102: 362.1176471 | T102: 2268 | U102: =IF(CTS_Source[[#This Row],[Montant Payé]]>0,CTS_Source[[#This Row],[Montant TTC]]-CTS_Source[[#This Row],[Montant Payé]],"") ->  | W102: 120 | Z102: 66 | AC102: C42 | AD102: =SUMIF($I64:$I$100006,AC102,$L64:$L$100006) -> 352 | AE102: =SUMIF($I64:$I$100006,AC102,$T64:$T$100006) -> 27653.29669 | AH102: 1-P4NV | AJ102: =SUMIF($I64:$I$100006,AH102,$L64:$L$100006) -> 1 | AK102: =SUMIF($I64:$I$100006,AH102,$T64:$T$100006) -> 704.1515651
A103: P | B103: 4 | C103: 2021-01-04 | E103: 01-024 | F103: CLIENT | I103: 1 | J103: Tarif COMPTOIR | N103: 33.61344538 | O103: 0 | Q103: 33.61344538 | R103: 0.19 | S103: 6.386554622 | T103: 40 | U103: =IF(CTS_Source[[#This Row],[Montant Payé]]>0,CTS_Source[[#This Row],[Montant TTC]]-CTS_Source[[#This Row],[Montant Payé]],"") -> 0 | V103: 40 | X103: 0 | Y103: 01 | Z103: 67 | AC103: C42B | AD103: =SUMIF($I65:$I$100006,AC103,$L65:$L$100006) -> 50 | AE103: =SUMIF($I65:$I$100006,AC103,$T65:$T$100006) -> 4371.098901 | AH103: 1-P4RG | AJ103: =SUMIF($I65:$I$100006,AH103,$L65:$L$100006) -> 0 | AK103: =SUMIF($I65:$I$100006,AH103,$T65:$T$100006) -> 0
D104: 01-024 | G104: 1-PRS | H104: 1 | I104: N4 | J104: Numérisation Noir & Blanc A4 à plat | K104: U | L104: 2 | M104: 16.80672269 | N104: 33.61344538 | O104: -1 | P104: 0 | Q104: 33.61344538 | R104: 0.19 | S104: 6.386554622 | T104: 40 | U104: =IF(CTS_Source[[#This Row],[Montant Payé]]>0,CTS_Source[[#This Row],[Montant TTC]]-CTS_Source[[#This Row],[Montant Payé]],"") ->  | W104: 20 | Z104: 68 | AC104: C60 | AD104: =SUMIF($I66:$I$100006,AC104,$L66:$L$100006) -> 9 | AE104: =SUMIF($I66:$I$100006,AC104,$T66:$T$100006) -> 1392 | AH104: 1-P4TR | AJ104: =SUMIF($I66:$I$100006,AH104,$L66:$L$100006) -> 0 | AK104: =SUMIF($I66:$I$100006,AH104,$T66:$T$100006) -> 0
A105: P | B105: 4 | C105: 2021-01-04 | E105: 01-025 | F105: CLIENT | I105: 1 | J105: Tarif COMPTOIR | N105: 1596.638655 | O105: 0 | Q105: 1596.638655 | R105: 0.19 | S105: 303.3613445 | T105: 1900 | U105: =IF(CTS_Source[[#This Row],[Montant Payé]]>0,CTS_Source[[#This Row],[Montant TTC]]-CTS_Source[[#This Row],[Montant Payé]],"") -> 0 | V105: 1900 | X105: 0 | Y105: 01 | Z105: 69 | AC105: C60B | AD105: =SUMIF($I67:$I$100006,AC105,$L67:$L$100006) -> 0 | AE105: =SUMIF($I67:$I$100006,AC105,$T67:$T$100006) -> 0 | AH105: 1-P4XB | AJ105: =SUMIF($I67:$I$100006,AH105,$L67:$L$100006) -> 0 | AK105: =SUMIF($I67:$I$100006,AH105,$T67:$T$100006) -> 0
D106: 01-025 | G106: 1-PRS | H106: 1 | I106: PPP | J106: Traçage Couleur / Papier Photo | K106: ML | L106: 0.5 | M106: 2218.487395 | N106: 1109.243697 | O106: -1 | P106: 0 | Q106: 1109.243697 | R106: 0.19 | S106: 210.7563025 | T106: 1320 | U106: =IF(CTS_Source[[#This Row],[Montant Payé]]>0,CTS_Source[[#This Row],[Montant TTC]]-CTS_Source[[#This Row],[Montant Payé]],"") ->  | W106: 2640 | Z106: 70 | AC106: C61 | AD106: =SUMIF($I68:$I$100006,AC106,$L68:$L$100006) -> 2 | AE106: =SUMIF($I68:$I$100006,AC106,$T68:$T$100006) -> 364.8351648 | AH106: 1-P4XR | AJ106: =SUMIF($I68:$I$100006,AH106,$L68:$L$100006) -> 0 | AK106: =SUMIF($I68:$I$100006,AH106,$T68:$T$100006) -> 0
D107: 01-025 | G107: 2-BUR | H107: 2 | I107: 2-SF | J107: Stylo à bille Fabs | K107: U | L107: 2 | M107: 21.00840336 | N107: 42.01680672 | O107: -1 | P107: 0 | Q107: 42.01680672 | R107: 0.19 | S107: 7.983193277 | T107: 50 | U107: =IF(CTS_Source[[#This Row],[Montant Payé]]>0,CTS_Source[[#This Row],[Montant TTC]]-CTS_Source[[#This Row],[Montant Payé]],"") ->  | W107: 25 | Z107: 71 | AC107: C61B | AD107: =SUMIF($I69:$I$100006,AC107,$L69:$L$100006) -> 0 | AE107: =SUMIF($I69:$I$100006,AC107,$T69:$T$100006) -> 0 | AH107: - | AJ107: =SUM(AJ75:AJ106) -> 48 | AK107: =SUM(AK75:AK106) -> 31079.99007
D108: 01-025 | G108: 2-BUR | H108: 3 | I108: 5-PPN100 | J108: Pochette perforée A4 neutre / 100 u | K108: U | L108: 1 | M108: 445.3781513 | N108: 445.3781513 | O108: -1 | P108: 0 | Q108: 445.3781513 | R108: 0.19 | S108: 84.62184874 | T108: 530 | U108: =IF(CTS_Source[[#This Row],[Montant Payé]]>0,CTS_Source[[#This Row],[Montant TTC]]-CTS_Source[[#This Row],[Montant Payé]],"") ->  | W108: 530 | Z108: 72 | AC108: C62 | AD108: =SUMIF($I70:$I$100006,AC108,$L70:$L$100006) -> 0 | AE108: =SUMIF($I70:$I$100006,AC108,$T70:$T$100006) -> 0 | AH108: 2-CN | AJ108: =SUMIF($I70:$I$100006,AH108,$L70:$L$100006) -> 15 | AK108: =SUMIF($I70:$I$100006,AH108,$T70:$T$100006) -> 368.9089482
A109: P | B109: 4 | C109: 2021-01-04 | E109: 01-026 | F109: CLIENT | I109: 1 | J109: Tarif COMPTOIR | N109: 33.61344538 | O109: 0 | Q109: 33.61344538 | R109: 0.19 | S109: 6.386554622 | T109: 40 | U109: =IF(CTS_Source[[#This Row],[Montant Payé]]>0,CTS_Source[[#This Row],[Montant TTC]]-CTS_Source[[#This Row],[Montant Payé]],"") -> 0 | V109: 40 | X109: 0 | Y109: 01 | Z109: 73 | AC109: C62B | AD109: =SUMIF($I71:$I$100006,AC109,$L71:$L$100006) -> 0 | AE109: =SUMIF($I71:$I$100006,AC109,$T71:$T$100006) -> 0 | AH109: 2-CN12 | AJ109: =SUMIF($I71:$I$100006,AH109,$L71:$L$100006) -> 0 | AK109: =SUMIF($I71:$I$100006,AH109,$T71:$T$100006) -> 0
D110: 01-026 | G110: 0-PRS | H110: 1 | I110: N40 | J110: Numérisation Couleur A4 à plat | K110: U | L110: 1 | M110: 33.61344538 | N110: 33.61344538 | O110: -1 | P110: 0 | Q110: 33.61344538 | R110: 0.19 | S110: 6.386554622 | T110: 40 | U110: =IF(CTS_Source[[#This Row],[Montant Payé]]>0,CTS_Source[[#This Row],[Montant TTC]]-CTS_Source[[#This Row],[Montant Payé]],"") ->  | W110: 40 | Z110: 74 | AC110: C80 | AD110: =SUMIF($I72:$I$100006,AC110,$L72:$L$100006) -> 69 | AE110: =SUMIF($I72:$I$100006,AC110,$T72:$T$100006) -> 5476.595745 | AH110: 2-FPCD | AJ110: =SUMIF($I72:$I$100006,AH110,$L72:$L$100006) -> 0 | AK110: =SUMIF($I72:$I$100006,AH110,$T72:$T$100006) -> 0
A111: P | B111: 4 | C111: 2021-01-04 | E111: 01-027 | F111: CLIENT | I111: 1 | J111: Tarif COMPTOIR | N111: 65.54621849 | O111: 0 | Q111: 65.54621849 | R111: 0.19 | S111: 12.45378151 | T111: 78 | U111: =IF(CTS_Source[[#This Row],[Montant Payé]]>0,CTS_Source[[#This Row],[Montant TTC]]-CTS_Source[[#This Row],[Montant Payé]],"") -> 2 | V111: 76 | X111: 0 | Y111: 01 | Z111: 75 | AC111: C80B | AD111: =SUMIF($I73:$I$100006,AC111,$L73:$L$100006) -> 0 | AE111: =SUMIF($I73:$I$100006,AC111,$T73:$T$100006) -> 0 | AH111: 2-MHBN | AJ111: =SUMIF($I73:$I$100006,AH111,$L73:$L$100006) -> 0 | AK111: =SUMIF($I73:$I$100006,AH111,$T73:$T$100006) -> 0
D112: 01-027 | G112: 1-PRS | H112: 1 | I112: TP | J112: Tirage Noir & Blanc / Papier | K112: ML | L112: 0.65 | M112: 100.8403361 | N112: 65.54621849 | O112: -1 | P112: 0 | Q112: 65.54621849 | R112: 0.19 | S112: 12.45378151 | T112: 78 | U112: =IF(CTS_Source[[#This Row],[Montant Payé]]>0,CTS_Source[[#This Row],[Montant TTC]]-CTS_Source[[#This Row],[Montant Payé]],"") ->  | W112: 120 | Z112: 76 | AC112: C81 | AD112: =SUMIF($I74:$I$100006,AC112,$L74:$L$100006) -> 2 | AE112: =SUMIF($I74:$I$100006,AC112,$T74:$T$100006) -> 240 | AH112: 2-MHS | AJ112: =SUMIF($I74:$I$100006,AH112,$L74:$L$100006) -> 0 | AK112: =SUMIF($I74:$I$100006,AH112,$T74:$T$100006) -> 0
A113: P | B113: 4 | C113: 2021-01-04 | E113: 01-028 | F113: CLIENT | I113: 1 | J113: Tarif COMPTOIR | N113: 84.03361345 | O113: 0 | Q113: 84.03361345 | R113: 0.19 | S113: 15.96638655 | T113: 100 | U113: =IF(CTS_Source[[#This Row],[Montant Payé]]>0,CTS_Source[[#This Row],[Montant TTC]]-CTS_Source[[#This Row],[Montant Payé]],"") -> 0 | V113: 100 | X113: 0 | Y113: 01 | Z113: 77 | AC113: C81B | AD113: =SUMIF($I75:$I$100006,AC113,$L75:$L$100006) -> 0 | AE113: =SUMIF($I75:$I$100006,AC113,$T75:$T$100006) -> 0 | AH113: 2-MS130 | AJ113: =SUMIF($I75:$I$100006,AH113,$L75:$L$100006) -> 0 | AK113: =SUMIF($I75:$I$100006,AH113,$T75:$T$100006) -> 0
D114: 01-028 | G114: 0-PRS | H114: 1 | I114: I42 | J114: Impression Couleur A4-R / Papier (tout aplat) | K114: U | L114: 1 | M114: 84.03361345 | N114: 84.03361345 | O114: -1 | P114: 0 | Q114: 84.03361345 | R114: 0.19 | S114: 15.96638655 | T114: 100 | U114: =IF(CTS_Source[[#This Row],[Montant Payé]]>0,CTS_Source[[#This Row],[Montant TTC]]-CTS_Source[[#This Row],[Montant Payé]],"") ->  | W114: 100 | Z114: 78 | AC114: C82 | AD114: =SUMIF($I76:$I$100006,AC114,$L76:$L$100006) -> 1 | AE114: =SUMIF($I76:$I$100006,AC114,$T76:$T$100006) -> 160 | AH114: 2-MS133 | AJ114: =SUMIF($I76:$I$100006,AH114,$L76:$L$100006) -> 0 | AK114: =SUMIF($I76:$I$100006,AH114,$T76:$T$100006) -> 0
A115: p | B115: 4 | C115: 2021-01-04 | E115: 01-029 | F115: CLIENT | I115: 1 | J115: Tarif COMPTOIR | N115: 285.7142857 | O115: 0 | Q115: 285.7142857 | R115: 0.19 | S115: 54.28571429 | T115: 340 | U115: =IF(CTS_Source[[#This Row],[Montant Payé]]>0,CTS_Source[[#This Row],[Montant TTC]]-CTS_Source[[#This Row],[Montant Payé]],"") -> 0 | V115: 340 | X115: 0 | Y115: 01 | Z115: 79 | AC115: C82B | AD115: =SUMIF($I77:$I$100006,AC115,$L77:$L$100006) -> 0 | AE115: =SUMIF($I77:$I$100006,AC115,$T77:$T$100006) -> 0 | AH115: 2-MTB4 | AJ115: =SUMIF($I77:$I$100006,AH115,$L77:$L$100006) -> 0 | AK115: =SUMIF($I77:$I$100006,AH115,$T77:$T$100006) -> 0
D116: 01-029 | G116: 2-BUR | H116: 1 | I116: 5-SCS | J116: Sous chemise simple | K116: U | L116: 4 | M116: 12.60504202 | N116: 50.42016807 | O116: -1 | P116: 0 | Q116: 50.42016807 | R116: 0.19 | S116: 9.579831933 | T116: 60 | U116: =IF(CTS_Source[[#This Row],[Montant Payé]]>0,CTS_Source[[#This Row],[Montant TTC]]-CTS_Source[[#This Row],[Montant Payé]],"") ->  | W116: 15 | Z116: 80 | AC116: - | AD116: =SUM(AD91:AD115) -> 2991 | AE116: =SUM(AE91:AE115) -> 168461.5932 | AH116: 2-PM | AJ116: =SUMIF($I78:$I$100006,AH116,$L78:$L$100006) -> 0 | AK116: =SUMIF($I78:$I$100006,AH116,$T78:$T$100006) -> 0
D117: 01-029 | G117: 2-BUR | H117: 2 | I117: 3-RBP10 | J117: Reliure : Baguette plastique n° 10 | K117: U | L117: 4 | M117: 16.80672269 | N117: 67.22689076 | O117: -1 | P117: 0 | Q117: 67.22689076 | R117: 0.19 | S117: 12.77310924 | T117: 80 | U117: =IF(CTS_Source[[#This Row],[Montant Payé]]>0,CTS_Source[[#This Row],[Montant TTC]]-CTS_Source[[#This Row],[Montant Payé]],"") ->  | W117: 20 | Z117: 81 | AC117: I3 | AD117: =SUMIF($I79:$I$100006,AC117,$L79:$L$100006) -> 168 | AE117: =SUMIF($I79:$I$100006,AC117,$T79:$T$100006) -> 6497.212759 | AH117: 2-PMS | AJ117: =SUMIF($I79:$I$100006,AH117,$L79:$L$100006) -> 0 | AK117: =SUMIF($I79:$I$100006,AH117,$T79:$T$100006) -> 0
D118: 01-029 | G118: 2-BUR | H118: 3 | I118: 4-TN3 | J118: Transparent A3 neutre (feuille) | K118: U | L118: 4 | M118: 25.21008403 | N118: 100.8403361 | O118: -1 | P118: 0 | Q118: 100.8403361 | R118: 0.19 | S118: 19.15966387 | T118: 120 | U118: =IF(CTS_Source[[#This Row],[Montant Payé]]>0,CTS_Source[[#This Row],[Montant TTC]]-CTS_Source[[#This Row],[Montant Payé]],"") ->  | W118: 30 | Z118: 82 | AC118: I3B | AD118: =SUMIF($I80:$I$100006,AC118,$L80:$L$100006) -> 5 | AE118: =SUMIF($I80:$I$100006,AC118,$T80:$T$100006) -> 300 | AH118: 2-S224 | AJ118: =SUMIF($I80:$I$100006,AH118,$L80:$L$100006) -> 4 | AK118: =SUMIF($I80:$I$100006,AH118,$T80:$T$100006) -> 588.1057269
D119: 01-029 | G119: 2-BUR | H119: 4 | I119: 4-CB3 | J119: Couverture A3 bristol (feuille) | K119: U | L119: 4 | M119: 16.80672269 | N119: 67.22689076 | O119: -1 | P119: 0 | Q119: 67.22689076 | R119: 0.19 | S119: 12.77310924 | T119: 80 | U119: =IF(CTS_Source[[#This Row],[Montant Payé]]>0,CTS_Source[[#This Row],[Montant TTC]]-CTS_Source[[#This Row],[Montant Payé]],"") ->  | W119: 20 | Z119: 83 | AC119: I3C | AD119: =SUMIF($I81:$I$100006,AC119,$L81:$L$100006) -> 3 | AE119: =SUMIF($I81:$I$100006,AC119,$T81:$T$100006) -> 174 | AH119: 2-S621 | AJ119: =SUMIF($I81:$I$100006,AH119,$L81:$L$100006) -> 9 | AK119: =SUMIF($I81:$I$100006,AH119,$T81:$T$100006) -> 224.9419055
A120: p | B120: 4 | C120: 2021-01-04 | E120: 01-030 | F120: CLIENT | I120: 1 | J120: Tarif COMPTOIR | N120: 1047.058824 | O120: 0 | Q120: 1047.058824 | R120: 0.19 | S120: 198.9411765 | T120: 1246 | U120: =IF(CTS_Source[[#This Row],[Montant Payé]]>0,CTS_Source[[#This Row],[Montant TTC]]-CTS_Source[[#This Row],[Montant Payé]],"") -> 6 | V120: 1240 | X120: 0 | Y120: 01 | Z120: 84 | AC120: I4 | AD120: =SUMIF($I82:$I$100006,AC120,$L82:$L$100006) -> 3275 | AE120: =SUMIF($I82:$I$100006,AC120,$T82:$T$100006) -> 58046.80017 | AH120: 2-S857 | AJ120: =SUMIF($I82:$I$100006,AH120,$L82:$L$100006) -> 6 | AK120: =SUMIF($I82:$I$100006,AH120,$T82:$T$100006) -> 827.132948
D121: 01-030 | G121: 0-PRS | H121: 1 | I121: AGP | J121: Agrafage document (agrafes PM) - de 20 f | K121: U | L121: 8 | M121: 8.403361345 | N121: 67.22689076 | O121: -1 | P121: 0 | Q121: 67.22689076 | R121: 0.19 | S121: 12.77310924 | T121: 80 | U121: =IF(CTS_Source[[#This Row],[Montant Payé]]>0,CTS_Source[[#This Row],[Montant TTC]]-CTS_Source[[#This Row],[Montant Payé]],"") ->  | W121: 10 | Z121: 85 | AC121: I4B | AD121: =SUMIF($I83:$I$100006,AC121,$L83:$L$100006) -> 2 | AE121: =SUMIF($I83:$I$100006,AC121,$T83:$T$100006) -> 60 | AH121: 2-S967 | AJ121: =SUMIF($I83:$I$100006,AH121,$L83:$L$100006) -> 18 | AK121: =SUMIF($I83:$I$100006,AH121,$T83:$T$100006) -> 1759.961251
D122: 01-030 | G122: 1-PRS | H122: 2 | I122: C4 | J122: Copie Noir & Blanc A4-R / Papier | K122: U | L122: 9 | M122: 8.403361345 | N122: 75.6302521 | O122: -1 | P122: 0 | Q122: 75.6302521 | R122: 0.19 | S122: 14.3697479 | T122: 90 | U122: =IF(CTS_Source[[#This Row],[Montant Payé]]>0,CTS_Source[[#This Row],[Montant TTC]]-CTS_Source[[#This Row],[Montant Payé]],"") ->  | W122: 10 | Z122: 86 | AC122: I4C | AD122: =SUMIF($I84:$I$100006,AC122,$L84:$L$100006) -> 4 | AE122: =SUMIF($I84:$I$100006,AC122,$T84:$T$100006) -> 120 | AH122: 2-SAM | AJ122: =SUMIF($I84:$I$100006,AH122,$L84:$L$100006) -> 0 | AK122: =SUMIF($I84:$I$100006,AH122,$T84:$T$100006) -> 0
D123: 01-030 | G123: 0-PRS | H123: 3 | I123: C4S | J123: Copie Noir & Blanc A4-R / Papier / Spéciale | K123: U | L123: 1 | M123: 16.80672269 | N123: 16.80672269 | O123: -1 | P123: 0 | Q123: 16.80672269 | R123: 0.19 | S123: 3.193277311 | T123: 20 | U123: =IF(CTS_Source[[#This Row],[Montant Payé]]>0,CTS_Source[[#This Row],[Montant TTC]]-CTS_Source[[#This Row],[Montant Payé]],"") ->  | W123: 20 | Z123: 87 | AC123: I6 | AD123: =SUMIF($I85:$I$100006,AC123,$L85:$L$100006) -> 1 | AE123: =SUMIF($I85:$I$100006,AC123,$T85:$T$100006) -> 80 | AH123: 2-SBF | AJ123: =SUMIF($I85:$I$100006,AH123,$L85:$L$100006) -> 0 | AK123: =SUMIF($I85:$I$100006,AH123,$T85:$T$100006) -> 0
D124: 01-030 | G124: 1-PRS | H124: 4 | I124: TP | J124: Tirage Noir & Blanc / Papier | K124: ML | L124: 8.8 | M124: 100.8403361 | N124: 887.394958 | O124: -1 | P124: 0 | Q124: 887.394958 | R124: 0.19 | S124: 168.605042 | T124: 1056 | U124: =IF(CTS_Source[[#This Row],[Montant Payé]]>0,CTS_Source[[#This Row],[Montant TTC]]-CTS_Source[[#This Row],[Montant Payé]],"") ->  | W124: 120 | Z124: 88 | AC124: I6B | AD124: =SUMIF($I86:$I$100006,AC124,$L86:$L$100006) -> 0 | AE124: =SUMIF($I86:$I$100006,AC124,$T86:$T$100006) -> 0 | AH124: 2-SBM | AJ124: =SUMIF($I86:$I$100006,AH124,$L86:$L$100006) -> 0 | AK124: =SUMIF($I86:$I$100006,AH124,$T86:$T$100006) -> 0
A125: p | B125: 4 | C125: 2021-01-04 | E125: 01-031 | F125: CLIENT | I125: 1 | J125: Tarif COMPTOIR | N125: 10504.20168 | O125: 0 | Q125: 10504.20168 | R125: 0.19 | S125: 1995.798319 | T125: 12500 | U125: =IF(CTS_Source[[#This Row],[Montant Payé]]>0,CTS_Source[[#This Row],[Montant TTC]]-CTS_Source[[#This Row],[Montant Payé]],"") -> 0 | V125: 12500 | X125: 0 | Y125: 01 | Z125: 89 | AC125: I8 | AD125: =SUMIF($I87:$I$100006,AC125,$L87:$L$100006) -> 13 | AE125: =SUMIF($I87:$I$100006,AC125,$T87:$T$100006) -> 502.2535211 | AH125: 2-SBT | AJ125: =SUMIF($I87:$I$100006,AH125,$L87:$L$100006) -> 0 | AK125: =SUMIF($I87:$I$100006,AH125,$T87:$T$100006) -> 0
D126: 01-031 | G126: 0-PRS | H126: 1 | I126: R4S2 | J126: Reliure A4 Spirale n° 22 à 28 + Transp. + Bristol | K126: U | L126: 4 | M126: 168.0672269 | N126: 672.2689076 | O126: -1 | P126: 0 | Q126: 672.2689076 | R126: 0.19 | S126: 127.7310924 | T126: 800 | U126: =IF(CTS_Source[[#This Row],[Montant Payé]]>0,CTS_Source[[#This Row],[Montant TTC]]-CTS_Source[[#This Row],[Montant Payé]],"") ->  | W126: 200 | Z126: 90 | AC126: I8B | AD126: =SUMIF($I88:$I$100006,AC126,$L88:$L$100006) -> 0 | AE126: =SUMIF($I88:$I$100006,AC126,$T88:$T$100006) -> 0 | AH126: 2-SBTT | AJ126: =SUMIF($I88:$I$100006,AH126,$L88:$L$100006) -> 5 | AK126: =SUMIF($I88:$I$100006,AH126,$T88:$T$100006) -> 121.4
D127: 01-031 | G127: 1-PRS | H127: 2 | I127: C40 | J127: Copie Couleur A4-R / Papier (aucun aplat) | K127: U | L127: 195 | M127: 33.61344538 | N127: 6554.621849 | O127: -1 | P127: 0 | Q127: 6554.621849 | R127: 0.19 | S127: 1245.378151 | T127: 7800 | U127: =IF(CTS_Source[[#This Row],[Montant Payé]]>0,CTS_Source[[#This Row],[Montant TTC]]-CTS_Source[[#This Row],[Montant Payé]],"") ->  | W127: 40 | Z127: 91 | AC127: - | AD127: =SUM(AD117:AD126) -> 3471 | AE127: =SUM(AE117:AE126) -> 65780.26645 | AH127: 2-SF | AJ127: =SUMIF($I89:$I$100006,AH127,$L89:$L$100006) -> 47 | AK127: =SUMIF($I89:$I$100006,AH127,$T89:$T$100006) -> 1172.959527
D128: 01-031 | G128: 1-PRS | H128: 3 | I128: I40 | J128: Impression Couleur A4-R / Papier (aucun aplat) | K128: U | L128: 65 | M128: 50.42016807 | N128: 3277.310924 | O128: -1 | P128: 0 | Q128: 3277.310924 | R128: 0.19 | S128: 622.6890756 | T128: 3900 | U128: =IF(CTS_Source[[#This Row],[Montant Payé]]>0,CTS_Source[[#This Row],[Montant TTC]]-CTS_Source[[#This Row],[Montant Payé]],"") ->  | W128: 60 | Z128: 92 | AC128: I30 | AD128: =SUMIF($I90:$I$100006,AC128,$L90:$L$100006) -> 130 | AE128: =SUMIF($I90:$I$100006,AC128,$T90:$T$100006) -> 14969.71017 | AH128: 2-SF1 | AJ128: =SUMIF($I90:$I$100006,AH128,$L90:$L$100006) -> 11 | AK128: =SUMIF($I90:$I$100006,AH128,$T90:$T$100006) -> 1164.094233
A129: P | B129: 3 | C129: 2021-01-03 | E129: 01-032 | F129: CLIENT | I129: 1 | J129: Tarif COMPTOIR | N129: 310.9243697 | O129: 0 | Q129: 310.9243697 | R129: 0.19 | S129: 59.07563025 | T129: 370 | U129: =IF(CTS_Source[[#This Row],[Montant Payé]]>0,CTS_Source[[#This Row],[Montant TTC]]-CTS_Source[[#This Row],[Montant Payé]],"") -> 0 | V129: 370 | X129: 0 | Y129: 01 | Z129: 93 | AC129: I30B | AD129: =SUMIF($I91:$I$100006,AC129,$L91:$L$100006) -> 6 | AE129: =SUMIF($I91:$I$100006,AC129,$T91:$T$100006) -> 840 | AH129: 2-SFS4 | AJ129: =SUMIF($I91:$I$100006,AH129,$L91:$L$100006) -> 2 | AK129: =SUMIF($I91:$I$100006,AH129,$T91:$T$100006) -> 820
D130: 01-032 | G130: 0-PRS | H130: 1 | I130: N40 | J130: Numérisation Couleur A4 à plat | K130: U | L130: 4 | M130: 33.61344538 | N130: 134.4537815 | O130: -1 | P130: 0 | Q130: 134.4537815 | R130: 0.19 | S130: 25.54621849 | T130: 160 | U130: =IF(CTS_Source[[#This Row],[Montant Payé]]>0,CTS_Source[[#This Row],[Montant TTC]]-CTS_Source[[#This Row],[Montant Payé]],"") ->  | W130: 40 | Z130: 94 | AC130: I31 | AD130: =SUMIF($I92:$I$100006,AC130,$L92:$L$100006) -> 15 | AE130: =SUMIF($I92:$I$100006,AC130,$T92:$T$100006) -> 2269.607143 | AH130: 2-SG6 | AJ130: =SUMIF($I92:$I$100006,AH130,$L92:$L$100006) -> 0 | AK130: =SUMIF($I92:$I$100006,AH130,$T92:$T$100006) -> 0
D131: 01-032 | G131: 1-PRS | H131: 2 | I131: C4 | J131: Copie Noir & Blanc A4-R / Papier | K131: U | L131: 3 | M131: 8.403361345 | N131: 25.21008403 | O131: -1 | P131: 0 | Q131: 25.21008403 | R131: 0.19 | S131: 4.789915966 | T131: 30 | U131: =IF(CTS_Source[[#This Row],[Montant Payé]]>0,CTS_Source[[#This Row],[Montant TTC]]-CTS_Source[[#This Row],[Montant Payé]],"") ->  | W131: 10 | Z131: 95 | AC131: I31B | AD131: =SUMIF($I93:$I$100006,AC131,$L93:$L$100006) -> 17 | AE131: =SUMIF($I93:$I$100006,AC131,$T93:$T$100006) -> 2970 | AH131: 2-SK15 | AJ131: =SUMIF($I93:$I$100006,AH131,$L93:$L$100006) -> 0 | AK131: =SUMIF($I93:$I$100006,AH131,$T93:$T$100006) -> 0
D132: 01-032 | G132: 1-PRS | H132: 3 | I132: I40 | J132: Impression Couleur A4-R / Papier (aucun aplat) | K132: U | L132: 3 | M132: 50.42016807 | N132: 151.2605042 | O132: -1 | P132: 0 | Q132: 151.2605042 | R132: 0.19 | S132: 28.7394958 | T132: 180 | U132: =IF(CTS_Source[[#This Row],[Montant Payé]]>0,CTS_Source[[#This Row],[Montant TTC]]-CTS_Source[[#This Row],[Montant Payé]],"") ->  | W132: 60 | Z132: 96 | AC132: I32 | AD132: =SUMIF($I94:$I$100006,AC132,$L94:$L$100006) -> 73 | AE132: =SUMIF($I94:$I$100006,AC132,$T94:$T$100006) -> 14485.76 | AH132: 2-SPG | AJ132: =SUMIF($I94:$I$100006,AH132,$L94:$L$100006) -> 1 | AK132: =SUMIF($I94:$I$100006,AH132,$T94:$T$100006) -> 22.75510204
A133: p | B133: 4 | C133: 2021-01-04 | E133: 01-033 | F133: CLIENT | I133: 1 | J133: Tarif COMPTOIR | N133: 210.0840336 | O133: 0 | Q133: 210.0840336 | R133: 0.19 | S133: 39.91596639 | T133: 250 | U133: =IF(CTS_Source[[#This Row],[Montant Payé]]>0,CTS_Source[[#This Row],[Montant TTC]]-CTS_Source[[#This Row],[Montant Payé]],"") -> 0 | V133: 250 | X133: 0 | Y133: 01 | Z133: 97 | AC133: I32B | AD133: =SUMIF($I95:$I$100006,AC133,$L95:$L$100006) -> 8 | AE133: =SUMIF($I95:$I$100006,AC133,$T95:$T$100006) -> 1760 | AH133: 2-STF | AJ133: =SUMIF($I95:$I$100006,AH133,$L95:$L$100006) -> 0 | AK133: =SUMIF($I95:$I$100006,AH133,$T95:$T$100006) -> 0
D134: 01-033 | G134: 1-PRS | H134: 1 | I134: C40 | J134: Copie Couleur A4-R / Papier (aucun aplat) | K134: U | L134: 2 | M134: 67.22689076 | N134: 134.4537815 | O134: -1 | P134: 0 | Q134: 134.4537815 | R134: 0.19 | S134: 25.54621849 | T134: 160 | U134: =IF(CTS_Source[[#This Row],[Montant Payé]]>0,CTS_Source[[#This Row],[Montant TTC]]-CTS_Source[[#This Row],[Montant Payé]],"") ->  | W134: 80 | Z134: 98 | AC134: I40 | AD134: =SUMIF($I96:$I$100006,AC134,$L96:$L$100006) -> 585 | AE134: =SUMIF($I96:$I$100006,AC134,$T96:$T$100006) -> 32011.30371 | AH134: - | AJ134: =SUM(AJ108:AJ133) -> 118 | AK134: =SUM(AK108:AK133) -> 7070.259641
D135: 01-033 | G135: 1-PRS | H135: 2 | I135: I40 | J135: Impression Couleur A4-R / Papier (aucun aplat) | K135: U | L135: 1 | M135: 50.42016807 | N135: 50.42016807 | O135: -1 | P135: 0 | Q135: 50.42016807 | R135: 0.19 | S135: 9.579831933 | T135: 60 | U135: =IF(CTS_Source[[#This Row],[Montant Payé]]>0,CTS_Source[[#This Row],[Montant TTC]]-CTS_Source[[#This Row],[Montant Payé]],"") ->  | W135: 60 | Z135: 99 | AC135: I40B | AD135: =SUMIF($I97:$I$100006,AC135,$L97:$L$100006) -> 13 | AE135: =SUMIF($I97:$I$100006,AC135,$T97:$T$100006) -> 1040 | AH135: 3-RBP03 | AJ135: =SUMIF($I97:$I$100006,AH135,$L97:$L$100006) -> 0 | AK135: =SUMIF($I97:$I$100006,AH135,$T97:$T$100006) -> 0
D136: 01-033 | G136: 1-PRS | H136: 3 | I136: C4 | J136: Copie Noir & Blanc A4-R / Papier | K136: U | L136: 1 | M136: 8.403361345 | N136: 8.403361345 | O136: -1 | P136: 0 | Q136: 8.403361345 | R136: 0.19 | S136: 1.596638655 | T136: 10 | U136: =IF(CTS_Source[[#This Row],[Montant Payé]]>0,CTS_Source[[#This Row],[Montant TTC]]-CTS_Source[[#This Row],[Montant Payé]],"") ->  | W136: 10 | Z136: 100 | AC136: I41 | AD136: =SUMIF($I98:$I$100006,AC136,$L98:$L$100006) -> 225 | AE136: =SUMIF($I98:$I$100006,AC136,$T98:$T$100006) -> 16679.37617 | AH136: 3-RBP04 | AJ136: =SUMIF($I98:$I$100006,AH136,$L98:$L$100006) -> 0 | AK136: =SUMIF($I98:$I$100006,AH136,$T98:$T$100006) -> 0
D137: 01-033 | G137: 1-PRS | H137: 4 | I137: I4 | J137: Impression Noir & Blanc A4-R / Papier | K137: U | L137: 1 | M137: 16.80672269 | N137: 16.80672269 | O137: -1 | P137: 0 | Q137: 16.80672269 | R137: 0.19 | S137: 3.193277311 | T137: 20 | U137: =IF(CTS_Source[[#This Row],[Montant Payé]]>0,CTS_Source[[#This Row],[Montant TTC]]-CTS_Source[[#This Row],[Montant Payé]],"") ->  | W137: 20 | Z137: 101 | AC137: I41B | AD137: =SUMIF($I99:$I$100006,AC137,$L99:$L$100006) -> 22 | AE137: =SUMIF($I99:$I$100006,AC137,$T99:$T$100006) -> 2200 | AH137: 3-RBP06 | AJ137: =SUMIF($I99:$I$100006,AH137,$L99:$L$100006) -> 1 | AK137: =SUMIF($I99:$I$100006,AH137,$T99:$T$100006) -> 15
A138: P | B138: 5 | C138: 2021-01-05 | E138: 01-034 | F138: CLIENT | I138: 1 | J138: Tarif COMPTOIR | N138: 211.7647059 | O138: 0 | Q138: 211.7647059 | R138: 0.19 | S138: 40.23529412 | T138: 252 | U138: =IF(CTS_Source[[#This Row],[Montant Payé]]>0,CTS_Source[[#This Row],[Montant TTC]]-CTS_Source[[#This Row],[Montant Payé]],"") -> 2 | V138: 250 | X138: 0 | Y138: 01 | Z138: 102 | AC138: I42 | AD138: =SUMIF($I100:$I$100006,AC138,$L100:$L$100006) -> 65 | AE138: =SUMIF($I100:$I$100006,AC138,$T100:$T$100006) -> 6246.663714 | AH138: 3-RBP08 | AJ138: =SUMIF($I100:$I$100006,AH138,$L100:$L$100006) -> 0 | AK138: =SUMIF($I100:$I$100006,AH138,$T100:$T$100006) -> 0
D139: 01-034 | G139: 1-PRS | H139: 1 | I139: TP | J139: Tirage Noir & Blanc / Papier | K139: ML | L139: 2.1 | M139: 100.8403361 | N139: 211.7647059 | O139: -1 | P139: 0 | Q139: 211.7647059 | R139: 0.19 | S139: 40.23529412 | T139: 252 | U139: =IF(CTS_Source[[#This Row],[Montant Payé]]>0,CTS_Source[[#This Row],[Montant TTC]]-CTS_Source[[#This Row],[Montant Payé]],"") ->  | W139: 120 | Z139: 103 | AC139: I42B | AD139: =SUMIF($I101:$I$100006,AC139,$L101:$L$100006) -> 33 | AE139: =SUMIF($I101:$I$100006,AC139,$T101:$T$100006) -> 3868.901099 | AH139: 3-RBP10 | AJ139: =SUMIF($I101:$I$100006,AH139,$L101:$L$100006) -> 4 | AK139: =SUMIF($I101:$I$100006,AH139,$T101:$T$100006) -> 80
A140: P | B140: 5 | C140: 2021-01-05 | E140: 01-035 | F140: CLIENT | I140: 1 | J140: Tarif COMPTOIR | N140: 84.03361345 | O140: 0 | Q140: 84.03361345 | R140: 0.19 | S140: 15.96638655 | T140: 100 | U140: =IF(CTS_Source[[#This Row],[Montant Payé]]>0,CTS_Source[[#This Row],[Montant TTC]]-CTS_Source[[#This Row],[Montant Payé]],"") -> 0 | V140: 100 | X140: 0 | Y140: 01 | Z140: 104 | AC140: I60 | AD140: =SUMIF($I102:$I$100006,AC140,$L102:$L$100006) -> 0 | AE140: =SUMIF($I102:$I$100006,AC140,$T102:$T$100006) -> 0 | AH140: 3-RBP12 | AJ140: =SUMIF($I102:$I$100006,AH140,$L102:$L$100006) -> 0 | AK140: =SUMIF($I102:$I$100006,AH140,$T102:$T$100006) -> 0
D141: 01-035 | G141: 1-PRS | H141: 1 | I141: I40 | J141: Impression Couleur A4-R / Papier (aucun aplat) | K141: U | L141: 1 | M141: 50.42016807 | N141: 50.42016807 | O141: -1 | P141: 0 | Q141: 50.42016807 | R141: 0.19 | S141: 9.579831933 | T141: 60 | U141: =IF(CTS_Source[[#This Row],[Montant Payé]]>0,CTS_Source[[#This Row],[Montant TTC]]-CTS_Source[[#This Row],[Montant Payé]],"") ->  | W141: 60 | Z141: 105 | AC141: I60B | AD141: =SUMIF($I103:$I$100006,AC141,$L103:$L$100006) -> 0 | AE141: =SUMIF($I103:$I$100006,AC141,$T103:$T$100006) -> 0 | AH141: 3-RBP14 | AJ141: =SUMIF($I103:$I$100006,AH141,$L103:$L$100006) -> 0 | AK141: =SUMIF($I103:$I$100006,AH141,$T103:$T$100006) -> 0
D142: 01-035 | G142: 1-PRS | H142: 2 | I142: C40 | J142: Copie Couleur A4-R / Papier (aucun aplat) | K142: U | L142: 1 | M142: 33.61344538 | N142: 33.61344538 | O142: -1 | P142: 0 | Q142: 33.61344538 | R142: 0.19 | S142: 6.386554622 | T142: 40 | U142: =IF(CTS_Source[[#This Row],[Montant Payé]]>0,CTS_Source[[#This Row],[Montant TTC]]-CTS_Source[[#This Row],[Montant Payé]],"") ->  | W142: 40 | Z142: 106 | AC142: I61 | AD142: =SUMIF($I104:$I$100006,AC142,$L104:$L$100006) -> 0 | AE142: =SUMIF($I104:$I$100006,AC142,$T104:$T$100006) -> 0 | AH142: 3-RBP16 | AJ142: =SUMIF($I104:$I$100006,AH142,$L104:$L$100006) -> 0 | AK142: =SUMIF($I104:$I$100006,AH142,$T104:$T$100006) -> 0
A143: P | B143: 5 | C143: 2021-01-05 | E143: 01-036 | F143: CLIENT | I143: 1 | J143: Tarif COMPTOIR | N143: 415.9663866 | O143: 0 | Q143: 415.9663866 | R143: 0.19 | S143: 79.03361345 | T143: 495 | U143: =IF(CTS_Source[[#This Row],[Montant Payé]]>0,CTS_Source[[#This Row],[Montant TTC]]-CTS_Source[[#This Row],[Montant Payé]],"") -> 5.684341886e-14 | V143: 495 | X143: 0 | Y143: 01 | Z143: 107 | AC143: I61B | AD143: =SUMIF($I105:$I$100006,AC143,$L105:$L$100006) -> 0 | AE143: =SUMIF($I105:$I$100006,AC143,$T105:$T$100006) -> 0 | AH143: 3-RBP18 | AJ143: =SUMIF($I105:$I$100006,AH143,$L105:$L$100006) -> 0 | AK143: =SUMIF($I105:$I$100006,AH143,$T105:$T$100006) -> 0
D144: 01-036 | G144: 2-BUR | H144: 1 | I144: 5-CDS | J144: Chemise dossier simple | K144: U | L144: 1 | M144: 12.60504202 | N144: 12.60504202 | O144: -1 | P144: 0 | Q144: 12.60504202 | R144: 0.19 | S144: 2.394957983 | T144: 15 | U144: =IF(CTS_Source[[#This Row],[Montant Payé]]>0,CTS_Source[[#This Row],[Montant TTC]]-CTS_Source[[#This Row],[Montant Payé]],"") ->  | W144: 15 | Z144: 108 | AC144: I62 | AD144: =SUMIF($I106:$I$100006,AC144,$L106:$L$100006) -> 0 | AE144: =SUMIF($I106:$I$100006,AC144,$T106:$T$100006) -> 0 | AH144: 3-RBP25 | AJ144: =SUMIF($I106:$I$100006,AH144,$L106:$L$100006) -> 0 | AK144: =SUMIF($I106:$I$100006,AH144,$T106:$T$100006) -> 0
D145: 01-036 | G145: 1-PRS | H145: 2 | I145: TP | J145: Tirage Noir & Blanc / Papier | K145: ML | L145: 2 | M145: 100.8403361 | N145: 201.6806723 | O145: -1 | P145: 0 | Q145: 201.6806723 | R145: 0.19 | S145: 38.31932773 | T145: 240 | U145: =IF(CTS_Source[[#This Row],[Montant Payé]]>0,CTS_Source[[#This Row],[Montant TTC]]-CTS_Source[[#This Row],[Montant Payé]],"") ->  | W145: 120 | Z145: 109 | AC145: I62B | AD145: =SUMIF($I107:$I$100006,AC145,$L107:$L$100006) -> 0 | AE145: =SUMIF($I107:$I$100006,AC145,$T107:$T$100006) -> 0 | AH145: 3-RBPR | AJ145: =SUMIF($I107:$I$100006,AH145,$L107:$L$100006) -> 0 | AK145: =SUMIF($I107:$I$100006,AH145,$T107:$T$100006) -> 0
D146: 01-036 | G146: 0-PRS | H146: 3 | I146: AGP | J146: Agrafage document (agrafes PM) - de 20 f | K146: U | L146: 4 | M146: 8.403361345 | N146: 33.61344538 | O146: -1 | P146: 0 | Q146: 33.61344538 | R146: 0.19 | S146: 6.386554622 | T146: 40 | U146: =IF(CTS_Source[[#This Row],[Montant Payé]]>0,CTS_Source[[#This Row],[Montant TTC]]-CTS_Source[[#This Row],[Montant Payé]],"") ->  | W146: 10 | Z146: 110 | AC146: I80 | AD146: =SUMIF($I108:$I$100006,AC146,$L108:$L$100006) -> 0 | AE146: =SUMIF($I108:$I$100006,AC146,$T108:$T$100006) -> 0 | AH146: 3-RBR05 | AJ146: =SUMIF($I108:$I$100006,AH146,$L108:$L$100006) -> 0 | AK146: =SUMIF($I108:$I$100006,AH146,$T108:$T$100006) -> 0
D147: 01-036 | G147: 1-PRS | H147: 4 | I147: C4 | J147: Copie Noir & Blanc A4-R / Papier | K147: U | L147: 20 | M147: 8.403361345 | N147: 168.0672269 | O147: -1 | P147: 0 | Q147: 168.0672269 | R147: 0.19 | S147: 31.93277311 | T147: 200 | U147: =IF(CTS_Source[[#This Row],[Montant Payé]]>0,CTS_Source[[#This Row],[Montant TTC]]-CTS_Source[[#This Row],[Montant Payé]],"") ->  | W147: 10 | Z147: 111 | AC147: I80B | AD147: =SUMIF($I109:$I$100006,AC147,$L109:$L$100006) -> 0 | AE147: =SUMIF($I109:$I$100006,AC147,$T109:$T$100006) -> 0 | AH147: 3-RBR07 | AJ147: =SUMIF($I109:$I$100006,AH147,$L109:$L$100006) -> 1 | AK147: =SUMIF($I109:$I$100006,AH147,$T109:$T$100006) -> 13.82926829
A148: P | B148: 5 | C148: 2021-01-05 | E148: 01-037 | F148: CLIENT | I148: 1 | J148: Tarif COMPTOIR | N148: 100.8403361 | O148: 0 | Q148: 100.8403361 | R148: 0.19 | S148: 19.15966387 | T148: 120 | U148: =IF(CTS_Source[[#This Row],[Montant Payé]]>0,CTS_Source[[#This Row],[Montant TTC]]-CTS_Source[[#This Row],[Montant Payé]],"") -> 0 | V148: 120 | X148: 0 | Y148: 01 | Z148: 112 | AC148: I81 | AD148: =SUMIF($I110:$I$100006,AC148,$L110:$L$100006) -> 0 | AE148: =SUMIF($I110:$I$100006,AC148,$T110:$T$100006) -> 0 | AH148: 3-RBR10 | AJ148: =SUMIF($I110:$I$100006,AH148,$L110:$L$100006) -> 0 | AK148: =SUMIF($I110:$I$100006,AH148,$T110:$T$100006) -> 0
D149: 01-037 | G149: 1-PRS | H149: 1 | I149: I40 | J149: Impression Couleur A4-R / Papier (aucun aplat) | K149: U | L149: 2 | M149: 50.42016807 | N149: 100.8403361 | O149: -1 | P149: 0 | Q149: 100.8403361 | R149: 0.19 | S149: 19.15966387 | T149: 120 | U149: =IF(CTS_Source[[#This Row],[Montant Payé]]>0,CTS_Source[[#This Row],[Montant TTC]]-CTS_Source[[#This Row],[Montant Payé]],"") ->  | W149: 60 | Z149: 113 | AC149: I81B | AD149: =SUMIF($I111:$I$100006,AC149,$L111:$L$100006) -> 0 | AE149: =SUMIF($I111:$I$100006,AC149,$T111:$T$100006) -> 0 | AH149: 3-RP5 | AJ149: =SUMIF($I111:$I$100006,AH149,$L111:$L$100006) -> 0 | AK149: =SUMIF($I111:$I$100006,AH149,$T111:$T$100006) -> 0
A150: P | B150: 5 | C150: 2021-01-05 | E150: 01-038 | F150: CLIENT | I150: 1 | J150: Tarif COMPTOIR | N150: 142.8571429 | O150: 0 | Q150: 142.8571429 | R150: 0.19 | S150: 27.14285714 | T150: 170 | U150: =IF(CTS_Source[[#This Row],[Montant Payé]]>0,CTS_Source[[#This Row],[Montant TTC]]-CTS_Source[[#This Row],[Montant Payé]],"") -> 0 | V150: 170 | X150: 0 | Y150: 01 | Z150: 114 | AC150: I82 | AD150: =SUMIF($I112:$I$100006,AC150,$L112:$L$100006) -> 1 | AE150: =SUMIF($I112:$I$100006,AC150,$T112:$T$100006) -> 200 | AH150: 3-RSM04 | AJ150: =SUMIF($I112:$I$100006,AH150,$L112:$L$100006) -> 0 | AK150: =SUMIF($I112:$I$100006,AH150,$T112:$T$100006) -> 0
D151: 01-038 | G151: 0-PRS | H151: 1 | I151: AGP | J151: Agrafage document (agrafes PM) - de 20 f | K151: U | L151: 1 | M151: 8.403361345 | N151: 8.403361345 | O151: -1 | P151: 0 | Q151: 8.403361345 | R151: 0.19 | S151: 1.596638655 | T151: 10 | U151: =IF(CTS_Source[[#This Row],[Montant Payé]]>0,CTS_Source[[#This Row],[Montant TTC]]-CTS_Source[[#This Row],[Montant Payé]],"") ->  | W151: 10 | Z151: 115 | AC151: I82B | AD151: =SUMIF($I113:$I$100006,AC151,$L113:$L$100006) -> 0 | AE151: =SUMIF($I113:$I$100006,AC151,$T113:$T$100006) -> 0 | AH151: 3-RSM08 | AJ151: =SUMIF($I113:$I$100006,AH151,$L113:$L$100006) -> 0 | AK151: =SUMIF($I113:$I$100006,AH151,$T113:$T$100006) -> 0
D152: 01-038 | G152: 1-PRS | H152: 2 | I152: C4 | J152: Copie Noir & Blanc A4-R / Papier | K152: U | L152: 12 | M152: 8.403361345 | N152: 100.8403361 | O152: -1 | P152: 0 | Q152: 100.8403361 | R152: 0.19 | S152: 19.15966387 | T152: 120 | U152: =IF(CTS_Source[[#This Row],[Montant Payé]]>0,CTS_Source[[#This Row],[Montant TTC]]-CTS_Source[[#This Row],[Montant Payé]],"") ->  | W152: 10 | Z152: 116 | AC152: - | AD152: =SUM(AD128:AD151) -> 1193 | AE152: =SUM(AE128:AE151) -> 99541.322 | AH152: 3-RSM11 | AJ152: =SUMIF($I114:$I$100006,AH152,$L114:$L$100006) -> 0 | AK152: =SUMIF($I114:$I$100006,AH152,$T114:$T$100006) -> 0
D153: 01-038 | G153: 0-PRS | H153: 3 | I153: C4S | J153: Copie Noir & Blanc A4-R / Papier / Spéciale | K153: U | L153: 2 | M153: 16.80672269 | N153: 33.61344538 | O153: -1 | P153: 0 | Q153: 33.61344538 | R153: 0.19 | S153: 6.386554622 | T153: 40 | U153: =IF(CTS_Source[[#This Row],[Montant Payé]]>0,CTS_Source[[#This Row],[Montant TTC]]-CTS_Source[[#This Row],[Montant Payé]],"") ->  | W153: 20 | Z153: 117 | AC153: TC | AD153: =SUMIF($I115:$I$100006,AC153,$L115:$L$100006) -> 3.65 | AE153: =SUMIF($I115:$I$100006,AC153,$T115:$T$100006) -> 657 | AH153: 3-RSM14 | AJ153: =SUMIF($I115:$I$100006,AH153,$L115:$L$100006) -> 0 | AK153: =SUMIF($I115:$I$100006,AH153,$T115:$T$100006) -> 0
A154: P | B154: 5 | C154: 2021-01-05 | E154: 01-039 | F154: CLIENT | I154: 1 | J154: Tarif COMPTOIR | N154: 622.6890756 | O154: 0 | Q154: 622.6890756 | R154: 0.19 | S154: 118.3109244 | T154: 741 | U154: =IF(CTS_Source[[#This Row],[Montant Payé]]>0,CTS_Source[[#This Row],[Montant TTC]]-CTS_Source[[#This Row],[Montant Payé]],"") -> 1 | V154: 740 | X154: 0 | Y154: 01 | Z154: 118 | AC154: TCS | AD154: =SUMIF($I116:$I$100006,AC154,$L116:$L$100006) -> 0 | AE154: =SUMIF($I116:$I$100006,AC154,$T116:$T$100006) -> 0 | AH154: 3-RSP06 | AJ154: =SUMIF($I116:$I$100006,AH154,$L116:$L$100006) -> 0 | AK154: =SUMIF($I116:$I$100006,AH154,$T116:$T$100006) -> 0
D155: 01-039 | G155: 0-PRS | H155: 1 | I155: PP1 | J155: Traçage Couleur / Papier (avec aplats) | K155: ML | L155: 0.65 | M155: 957.9831933 | N155: 622.6890756 | O155: -1 | P155: 0 | Q155: 622.6890756 | R155: 0.19 | S155: 118.3109244 | T155: 741 | U155: =IF(CTS_Source[[#This Row],[Montant Payé]]>0,CTS_Source[[#This Row],[Montant TTC]]-CTS_Source[[#This Row],[Montant Payé]],"") ->  | W155: 1140 | Z155: 119 | AC155: TP | AD155: =SUMIF($I117:$I$100006,AC155,$L117:$L$100006) -> 3345.25 | AE155: =SUMIF($I117:$I$100006,AC155,$T117:$T$100006) -> 373651.8534 | AH155: 3-RSP08 | AJ155: =SUMIF($I117:$I$100006,AH155,$L117:$L$100006) -> 0 | AK155: =SUMIF($I117:$I$100006,AH155,$T117:$T$100006) -> 0
A156: P | B156: 5 | C156: 2021-01-05 | E156: 01-040 | F156: CLIENT | I156: 1 | J156: Tarif COMPTOIR | N156: 181.512605 | O156: 0 | Q156: 181.512605 | R156: 0.19 | S156: 34.48739496 | T156: 216 | U156: =IF(CTS_Source[[#This Row],[Montant Payé]]>0,CTS_Source[[#This Row],[Montant TTC]]-CTS_Source[[#This Row],[Montant Payé]],"") -> 6 | V156: 210 | X156: 0 | Y156: 01 | Z156: 120 | AC156: TPA0 | AD156: =SUMIF($I118:$I$100006,AC156,$L118:$L$100006) -> 0 | AE156: =SUMIF($I118:$I$100006,AC156,$T118:$T$100006) -> 0 | AH156: 3-RSP10 | AJ156: =SUMIF($I118:$I$100006,AH156,$L118:$L$100006) -> 0 | AK156: =SUMIF($I118:$I$100006,AH156,$T118:$T$100006) -> 0
D157: 01-040 | G157: 1-PRS | H157: 1 | I157: TP | J157: Tirage Noir & Blanc / Papier | K157: ML | L157: 1.8 | M157: 100.8403361 | N157: 181.512605 | O157: -1 | P157: 0 | Q157: 181.512605 | R157: 0.19 | S157: 34.48739496 | T157: 216 | U157: =IF(CTS_Source[[#This Row],[Montant Payé]]>0,CTS_Source[[#This Row],[Montant TTC]]-CTS_Source[[#This Row],[Montant Payé]],"") ->  | W157: 120 | Z157: 121 | AC157: TPA1 | AD157: =SUMIF($I119:$I$100006,AC157,$L119:$L$100006) -> 0 | AE157: =SUMIF($I119:$I$100006,AC157,$T119:$T$100006) -> 0 | AH157: 3-RSP12 | AJ157: =SUMIF($I119:$I$100006,AH157,$L119:$L$100006) -> 0 | AK157: =SUMIF($I119:$I$100006,AH157,$T119:$T$100006) -> 0
A158: P | B158: 5 | C158: 2021-01-05 | E158: 01-041 | F158: CLIENT | I158: 1 | J158: Tarif COMPTOIR | N158: 2531.092437 | O158: 0 | Q158: 2531.092437 | R158: 0.19 | S158: 480.907563 | T158: 3012 | U158: =IF(CTS_Source[[#This Row],[Montant Payé]]>0,CTS_Source[[#This Row],[Montant TTC]]-CTS_Source[[#This Row],[Montant Payé]],"") -> 12 | V158: 3000 | X158: 0 | Y158: 01 | Z158: 122 | AC158: TPRV | AD158: =SUMIF($I120:$I$100006,AC158,$L120:$L$100006) -> 0 | AE158: =SUMIF($I120:$I$100006,AC158,$T120:$T$100006) -> 0 | AH158: 3-RSP14 | AJ158: =SUMIF($I120:$I$100006,AH158,$L120:$L$100006) -> 0 | AK158: =SUMIF($I120:$I$100006,AH158,$T120:$T$100006) -> 0
D159: 01-041 | G159: 1-PRS | H159: 1 | I159: PP | J159: Traçage Noir & Blanc / Papier | K159: ML | L159: 12.55 | M159: 201.6806723 | N159: 2531.092437 | O159: -1 | P159: 0 | Q159: 2531.092437 | R159: 0.19 | S159: 480.907563 | T159: 3012 | U159: =IF(CTS_Source[[#This Row],[Montant Payé]]>0,CTS_Source[[#This Row],[Montant TTC]]-CTS_Source[[#This Row],[Montant Payé]],"") ->  | W159: 240 | Z159: 123 | AC159: TPS | AD159: =SUMIF($I121:$I$100006,AC159,$L121:$L$100006) -> 4.52 | AE159: =SUMIF($I121:$I$100006,AC159,$T121:$T$100006) -> 800 | AH159: 3-RSP16 | AJ159: =SUMIF($I121:$I$100006,AH159,$L121:$L$100006) -> 0 | AK159: =SUMIF($I121:$I$100006,AH159,$T121:$T$100006) -> 0
A160: P | B160: 5 | C160: 2021-01-05 | E160: 01-042 | F160: CLIENT | I160: 1 | J160: Tarif COMPTOIR | N160: 84.03361345 | O160: 0 | Q160: 84.03361345 | R160: 0.19 | S160: 15.96638655 | T160: 100 | U160: =IF(CTS_Source[[#This Row],[Montant Payé]]>0,CTS_Source[[#This Row],[Montant TTC]]-CTS_Source[[#This Row],[Montant Payé]],"") -> 0 | V160: 100 | X160: 0 | Y160: 01 | Z160: 124 | AC160: - | AD160: =SUM(AD153:AD159) -> 3353.42 | AE160: =SUM(AE153:AE159) -> 375108.8534 | AH160: 3-RSP18 | AJ160: =SUMIF($I122:$I$100006,AH160,$L122:$L$100006) -> 0 | AK160: =SUMIF($I122:$I$100006,AH160,$T122:$T$100006) -> 0
D161: 01-042 | G161: 1-PRS | H161: 1 | I161: I40 | J161: Impression Couleur A4-R / Papier (aucun aplat) | K161: U | L161: 1 | M161: 50.42016807 | N161: 50.42016807 | O161: -1 | P161: 0 | Q161: 50.42016807 | R161: 0.19 | S161: 9.579831933 | T161: 60 | U161: =IF(CTS_Source[[#This Row],[Montant Payé]]>0,CTS_Source[[#This Row],[Montant TTC]]-CTS_Source[[#This Row],[Montant Payé]],"") ->  | W161: 60 | Z161: 125 | AC161: TP0 | AD161: =SUMIF($I123:$I$100006,AC161,$L123:$L$100006) -> 337.95 | AE161: =SUMIF($I123:$I$100006,AC161,$T123:$T$100006) -> 187580.9478 | AH161: 3-RSP20 | AJ161: =SUMIF($I123:$I$100006,AH161,$L123:$L$100006) -> 0 | AK161: =SUMIF($I123:$I$100006,AH161,$T123:$T$100006) -> 0
D162: 01-042 | G162: 1-PRS | H162: 2 | I162: C40 | J162: Copie Couleur A4-R / Papier (aucun aplat) | K162: U | L162: 1 | M162: 33.61344538 | N162: 33.61344538 | O162: -1 | P162: 0 | Q162: 33.61344538 | R162: 0.19 | S162: 6.386554622 | T162: 40 | U162: =IF(CTS_Source[[#This Row],[Montant Payé]]>0,CTS_Source[[#This Row],[Montant TTC]]-CTS_Source[[#This Row],[Montant Payé]],"") ->  | W162: 40 | Z162: 126 | AC162: TP0A0 | AD162: =SUMIF($I124:$I$100006,AC162,$L124:$L$100006) -> 0 | AE162: =SUMIF($I124:$I$100006,AC162,$T124:$T$100006) -> 0 | AH162: 3-RSP22 | AJ162: =SUMIF($I124:$I$100006,AH162,$L124:$L$100006) -> 0 | AK162: =SUMIF($I124:$I$100006,AH162,$T124:$T$100006) -> 0
A163: P | B163: 5 | C163: 2021-01-05 | E163: 01-043 | F163: CLIENT | I163: 1 | J163: Tarif COMPTOIR | N163: 974.789916 | O163: 0 | Q163: 974.789916 | R163: 0.19 | S163: 185.210084 | T163: 1160 | U163: =IF(CTS_Source[[#This Row],[Montant Payé]]>0,CTS_Source[[#This Row],[Montant TTC]]-CTS_Source[[#This Row],[Montant Payé]],"") -> 0 | V163: 1160 | X163: 0 | Y163: 01 | Z163: 127 | AC163: TP0A1 | AD163: =SUMIF($I125:$I$100006,AC163,$L125:$L$100006) -> 0 | AE163: =SUMIF($I125:$I$100006,AC163,$T125:$T$100006) -> 0 | AH163: 3-RSP25 | AJ163: =SUMIF($I125:$I$100006,AH163,$L125:$L$100006) -> 0 | AK163: =SUMIF($I125:$I$100006,AH163,$T125:$T$100006) -> 0
D164: 01-043 | G164: 1-PRS | H164: 1 | I164: C8 | J164: Copie Noir & Blanc A4-RV / Papier | K164: U | L164: 3 | M164: 16.80672269 | N164: 50.42016807 | O164: -1 | P164: 0 | Q164: 50.42016807 | R164: 0.19 | S164: 9.579831933 | T164: 60 | U164: =IF(CTS_Source[[#This Row],[Montant Payé]]>0,CTS_Source[[#This Row],[Montant TTC]]-CTS_Source[[#This Row],[Montant Payé]],"") ->  | W164: 20 | X164: 20 | Z164: 128 | AC164: TP1 | AD164: =SUMIF($I126:$I$100006,AC164,$L126:$L$100006) -> 14.45 | AE164: =SUMIF($I126:$I$100006,AC164,$T126:$T$100006) -> 12713.14383 | AH164: 3-RSP28 | AJ164: =SUMIF($I126:$I$100006,AH164,$L126:$L$100006) -> 0 | AK164: =SUMIF($I126:$I$100006,AH164,$T126:$T$100006) -> 0
D165: 01-043 | G165: 0-PRS | H165: 2 | I165: C8S | J165: Copie Noir & Blanc A4-RV / Papier / Spéciale | K165: U | L165: 1 | M165: 50.42016807 | N165: 50.42016807 | O165: -1 | P165: 0 | Q165: 50.42016807 | R165: 0.19 | S165: 9.579831933 | T165: 60 | U165: =IF(CTS_Source[[#This Row],[Montant Payé]]>0,CTS_Source[[#This Row],[Montant TTC]]-CTS_Source[[#This Row],[Montant Payé]],"") ->  | W165: 60 | X165: 60 | Z165: 129 | AC165: TP2 | AD165: =SUMIF($I127:$I$100006,AC165,$L127:$L$100006) -> 21.05 | AE165: =SUMIF($I127:$I$100006,AC165,$T127:$T$100006) -> 25116 | AH165: 3-RSP32 | AJ165: =SUMIF($I127:$I$100006,AH165,$L127:$L$100006) -> 0 | AK165: =SUMIF($I127:$I$100006,AH165,$T127:$T$100006) -> 0
D166: 01-043 | G166: 0-PRS | H166: 3 | I166: C42 | J166: Copie Couleur A4-R / Papier (tout aplat) | K166: U | L166: 6 | M166: 67.22689076 | N166: 403.3613445 | O166: -1 | P166: 0 | Q166: 403.3613445 | R166: 0.19 | S166: 76.63865546 | T166: 480 | U166: =IF(CTS_Source[[#This Row],[Montant Payé]]>0,CTS_Source[[#This Row],[Montant TTC]]-CTS_Source[[#This Row],[Montant Payé]],"") ->  | W166: 80 | X166: 80 | Z166: 130 | AC166: TPF | AD166: =SUMIF($I128:$I$100006,AC166,$L128:$L$100006) -> 0 | AE166: =SUMIF($I128:$I$100006,AC166,$T128:$T$100006) -> 0 | AH166: 3-RSP38 | AJ166: =SUMIF($I128:$I$100006,AH166,$L128:$L$100006) -> 0 | AK166: =SUMIF($I128:$I$100006,AH166,$T128:$T$100006) -> 0
D167: 01-043 | G167: 1-PRS | H167: 4 | I167: C30 | J167: Copie Couleur A3-R / Papier (aucun aplat) | K167: U | L167: 2 | M167: 67.22689076 | N167: 134.4537815 | O167: -1 | P167: 0 | Q167: 134.4537815 | R167: 0.19 | S167: 25.54621849 | T167: 160 | U167: =IF(CTS_Source[[#This Row],[Montant Payé]]>0,CTS_Source[[#This Row],[Montant TTC]]-CTS_Source[[#This Row],[Montant Payé]],"") ->  | W167: 80 | X167: 80 | Z167: 131 | AC167: TPP | AD167: =SUMIF($I129:$I$100006,AC167,$L129:$L$100006) -> 0 | AE167: =SUMIF($I129:$I$100006,AC167,$T129:$T$100006) -> 0 | AH167: 3-RSP45 | AJ167: =SUMIF($I129:$I$100006,AH167,$L129:$L$100006) -> 0 | AK167: =SUMIF($I129:$I$100006,AH167,$T129:$T$100006) -> 0
D168: 01-043 | G168: 1-PRS | H168: 5 | I168: C6 | J168: Copie Noir & Blanc A3-RV / Papier | K168: U | L168: 2 | M168: 33.61344538 | N168: 67.22689076 | O168: -1 | P168: 0 | Q168: 67.22689076 | R168: 0.19 | S168: 12.77310924 | T168: 80 | U168: =IF(CTS_Source[[#This Row],[Montant Payé]]>0,CTS_Source[[#This Row],[Montant TTC]]-CTS_Source[[#This Row],[Montant Payé]],"") ->  | W168: 40 | X168: 40 | Z168: 132 | AC168: - | AD168: =SUM(AD161:AD167) -> 373.45 | AE168: =SUM(AE161:AE167) -> 225410.0916 | AH168: 3-RSP51 | AJ168: =SUMIF($I130:$I$100006,AH168,$L130:$L$100006) -> 0 | AK168: =SUMIF($I130:$I$100006,AH168,$T130:$T$100006) -> 0
D169: 01-043 | G169: 1-PRS | H169: 6 | I169: C4 | J169: Copie Noir & Blanc A4-R / Papier | K169: U | L169: 32 | M169: 8.403361345 | N169: 268.907563 | O169: -1 | P169: 0 | Q169: 268.907563 | R169: 0.19 | S169: 51.09243697 | T169: 320 | U169: =IF(CTS_Source[[#This Row],[Montant Payé]]>0,CTS_Source[[#This Row],[Montant TTC]]-CTS_Source[[#This Row],[Montant Payé]],"") ->  | W169: 10 | X169: 10 | Z169: 133 | AC169: PC | AD169: =SUMIF($I131:$I$100006,AC169,$L131:$L$100006) -> 2.5 | AE169: =SUMIF($I131:$I$100006,AC169,$T131:$T$100006) -> 842.8235294 | AH169: - | AJ169: =SUM(AJ135:AJ168) -> 6 | AK169: =SUM(AK135:AK168) -> 108.8292683
A170: P | B170: 5 | C170: 2021-01-05 | E170: 01-044 | F170: CLIENT | I170: 1 | J170: Tarif COMPTOIR | N170: 168.0672269 | O170: 0 | Q170: 168.0672269 | R170: 0.19 | S170: 31.93277311 | T170: 200 | U170: =IF(CTS_Source[[#This Row],[Montant Payé]]>0,CTS_Source[[#This Row],[Montant TTC]]-CTS_Source[[#This Row],[Montant Payé]],"") -> 0 | V170: 200 | X170: 0 | Y170: 01 | Z170: 134 | AC170: PCS | AD170: =SUMIF($I132:$I$100006,AC170,$L132:$L$100006) -> 0 | AE170: =SUMIF($I132:$I$100006,AC170,$T132:$T$100006) -> 0 | AH170: 4-C3B180 | AJ170: =SUMIF($I132:$I$100006,AH170,$L132:$L$100006) -> 0 | AK170: =SUMIF($I132:$I$100006,AH170,$T132:$T$100006) -> 0
D171: 01-044 | G171: 1-PRS | H171: 1 | I171: C40 | J171: Copie Couleur A4-R / Papier (aucun aplat) | K171: U | L171: 5 | M171: 33.61344538 | N171: 168.0672269 | O171: -1 | P171: 0 | Q171: 168.0672269 | R171: 0.19 | S171: 31.93277311 | T171: 200 | U171: =IF(CTS_Source[[#This Row],[Montant Payé]]>0,CTS_Source[[#This Row],[Montant TTC]]-CTS_Source[[#This Row],[Montant Payé]],"") ->  | W171: 40 | Z171: 135 | AC171: PP | AD171: =SUMIF($I133:$I$100006,AC171,$L133:$L$100006) -> 768.1 | AE171: =SUMIF($I133:$I$100006,AC171,$T133:$T$100006) -> 169509.3842 | AH171: 4-C3B200 | AJ171: =SUMIF($I133:$I$100006,AH171,$L133:$L$100006) -> 0 | AK171: =SUMIF($I133:$I$100006,AH171,$T133:$T$100006) -> 0
A172: P | B172: 5 | C172: 2021-01-05 | E172: 01-045 | F172: CLIENT | I172: 1 | J172: Tarif COMPTOIR | N172: 352.9411765 | O172: 0 | Q172: 352.9411765 | R172: 0.19 | S172: 67.05882353 | T172: 420 | U172: =IF(CTS_Source[[#This Row],[Montant Payé]]>0,CTS_Source[[#This Row],[Montant TTC]]-CTS_Source[[#This Row],[Montant Payé]],"") -> 0 | V172: 420 | X172: 0 | Y172: 01 | Z172: 136 | AC172: PPA0 | AD172: =SUMIF($I134:$I$100006,AC172,$L134:$L$100006) -> 0 | AE172: =SUMIF($I134:$I$100006,AC172,$T134:$T$100006) -> 0 | AH172: 4-C4B180 | AJ172: =SUMIF($I134:$I$100006,AH172,$L134:$L$100006) -> 3 | AK172: =SUMIF($I134:$I$100006,AH172,$T134:$T$100006) -> 1290
D173: 01-045 | G173: 1-PRS | H173: 1 | I173: I4 | J173: Impression Noir & Blanc A4-R / Papier | K173: U | L173: 21 | M173: 16.80672269 | N173: 352.9411765 | O173: -1 | P173: 0 | Q173: 352.9411765 | R173: 0.19 | S173: 67.05882353 | T173: 420 | U173: =IF(CTS_Source[[#This Row],[Montant Payé]]>0,CTS_Source[[#This Row],[Montant TTC]]-CTS_Source[[#This Row],[Montant Payé]],"") ->  | W173: 20 | Z173: 137 | AC173: PPA1 | AD173: =SUMIF($I135:$I$100006,AC173,$L135:$L$100006) -> 0 | AE173: =SUMIF($I135:$I$100006,AC173,$T135:$T$100006) -> 0 | AH173: 4-C4B200 | AJ173: =SUMIF($I135:$I$100006,AH173,$L135:$L$100006) -> 0 | AK173: =SUMIF($I135:$I$100006,AH173,$T135:$T$100006) -> 0
A174: P | B174: 5 | C174: 2021-01-05 | E174: 01-046 | F174: CLIENT | I174: 1 | J174: Tarif COMPTOIR | N174: 33.61344538 | O174: 0 | Q174: 33.61344538 | R174: 0.19 | S174: 6.386554622 | T174: 40 | U174: =IF(CTS_Source[[#This Row],[Montant Payé]]>0,CTS_Source[[#This Row],[Montant TTC]]-CTS_Source[[#This Row],[Montant Payé]],"") -> 0 | V174: 40 | X174: 0 | Y174: 01 | Z174: 138 | AC174: PPS | AD174: =SUMIF($I136:$I$100006,AC174,$L136:$L$100006) -> 6.4 | AE174: =SUMIF($I136:$I$100006,AC174,$T136:$T$100006) -> 2302.2 | AH174: 4-C4G250 | AJ174: =SUMIF($I136:$I$100006,AH174,$L136:$L$100006) -> 0 | AK174: =SUMIF($I136:$I$100006,AH174,$T136:$T$100006) -> 0
D175: 01-046 | G175: 1-PRS | H175: 1 | I175: I4 | J175: Impression Noir & Blanc A4-R / Papier | K175: U | L175: 2 | M175: 16.80672269 | N175: 33.61344538 | O175: -1 | P175: 0 | Q175: 33.61344538 | R175: 0.19 | S175: 6.386554622 | T175: 40 | U175: =IF(CTS_Source[[#This Row],[Montant Payé]]>0,CTS_Source[[#This Row],[Montant TTC]]-CTS_Source[[#This Row],[Montant Payé]],"") ->  | W175: 20 | Z175: 139 | AC175: - | AD175: =SUM(AD169:AD174) -> 777 | AE175: =SUM(AE169:AE174) -> 172654.4077 | AH175: 4-C4G300 | AJ175: =SUMIF($I137:$I$100006,AH175,$L137:$L$100006) -> 0 | AK175: =SUMIF($I137:$I$100006,AH175,$T137:$T$100006) -> 0
A176: P | B176: 5 | C176: 2021-01-05 | E176: 01-047 | F176: CLIENT | I176: 1 | J176: Tarif COMPTOIR | N176: 877.3109244 | O176: 0 | Q176: 877.3109244 | R176: 0.19 | S176: 166.6890756 | T176: 1044 | U176: =IF(CTS_Source[[#This Row],[Montant Payé]]>0,CTS_Source[[#This Row],[Montant TTC]]-CTS_Source[[#This Row],[Montant Payé]],"") -> 4 | V176: 1040 | X176: 0 | Y176: 01 | Z176: 140 | AC176: PP0 | AD176: =SUMIF($I138:$I$100006,AC176,$L138:$L$100006) -> 203.65 | AE176: =SUMIF($I138:$I$100006,AC176,$T138:$T$100006) -> 161800.7183 | AH176: 4-CB3 | AJ176: =SUMIF($I138:$I$100006,AH176,$L138:$L$100006) -> 9 | AK176: =SUMIF($I138:$I$100006,AH176,$T138:$T$100006) -> 180
D177: 01-047 | G177: 1-PRS | H177: 1 | I177: TP | J177: Tirage Noir & Blanc / Papier | K177: ML | L177: 8.7 | M177: 100.8403361 | N177: 877.3109244 | O177: -1 | P177: 0 | Q177: 877.3109244 | R177: 0.19 | S177: 166.6890756 | T177: 1044 | U177: =IF(CTS_Source[[#This Row],[Montant Payé]]>0,CTS_Source[[#This Row],[Montant TTC]]-CTS_Source[[#This Row],[Montant Payé]],"") ->  | W177: 120 | Z177: 141 | AC177: PP1 | AD177: =SUMIF($I139:$I$100006,AC177,$L139:$L$100006) -> 6.1 | AE177: =SUMIF($I139:$I$100006,AC177,$T139:$T$100006) -> 6830.314006 | AH177: 4-CB4 | AJ177: =SUMIF($I139:$I$100006,AH177,$L139:$L$100006) -> 6 | AK177: =SUMIF($I139:$I$100006,AH177,$T139:$T$100006) -> 79.76880318
A178: P | B178: 5 | C178: 2021-01-05 | E178: 01-048 | F178: CLIENT | I178: 1 | J178: Tarif COMPTOIR | N178: 12282.35294 | O178: 0 | Q178: 12282.35294 | R178: 0.19 | S178: 2333.647059 | T178: 14616 | U178: =IF(CTS_Source[[#This Row],[Montant Payé]]>0,CTS_Source[[#This Row],[Montant TTC]]-CTS_Source[[#This Row],[Montant Payé]],"") -> 16 | V178: 14600 | X178: 0 | Y178: 01 | Z178: 142 | AC178: PP2 | AD178: =SUMIF($I140:$I$100006,AC178,$L140:$L$100006) -> 4.8 | AE178: =SUMIF($I140:$I$100006,AC178,$T140:$T$100006) -> 6623.424 | AH178: 4-CGC | AJ178: =SUMIF($I140:$I$100006,AH178,$L140:$L$100006) -> 0 | AK178: =SUMIF($I140:$I$100006,AH178,$T140:$T$100006) -> 0
D179: 01-048 | G179: 1-PRS | H179: 1 | I179: PP0 | J179: Traçage Couleur / Papier (aucun aplat) | K179: ML | L179: 10.15 | M179: 705.8823529 | N179: 7164.705882 | O179: -1 | P179: 0 | Q179: 7164.705882 | R179: 0.19 | S179: 1361.294118 | T179: 8526 | U179: =IF(CTS_Source[[#This Row],[Montant Payé]]>0,CTS_Source[[#This Row],[Montant TTC]]-CTS_Source[[#This Row],[Montant Payé]],"") ->  | W179: 840 | Z179: 143 | AC179: PPB | AD179: =SUMIF($I141:$I$100006,AC179,$L141:$L$100006) -> 0 | AE179: =SUMIF($I141:$I$100006,AC179,$T141:$T$100006) -> 0 | AH179: 4-FPA3 | AJ179: =SUMIF($I141:$I$100006,AH179,$L141:$L$100006) -> 0 | AK179: =SUMIF($I141:$I$100006,AH179,$T141:$T$100006) -> 0
D180: 01-048 | G180: 1-PRS | H180: 2 | I180: TP0 | J180: Tirage Couleur / Papier (aucun aplat) | K180: ML | L180: 10.15 | M180: 504.2016807 | N180: 5117.647059 | O180: -1 | P180: 0 | Q180: 5117.647059 | R180: 0.19 | S180: 972.3529412 | T180: 6090 | U180: =IF(CTS_Source[[#This Row],[Montant Payé]]>0,CTS_Source[[#This Row],[Montant TTC]]-CTS_Source[[#This Row],[Montant Payé]],"") ->  | W180: 600 | Z180: 144 | AC180: PPF | AD180: =SUMIF($I142:$I$100006,AC180,$L142:$L$100006) -> 0 | AE180: =SUMIF($I142:$I$100006,AC180,$T142:$T$100006) -> 0 | AH180: 4-FPA4 | AJ180: =SUMIF($I142:$I$100006,AH180,$L142:$L$100006) -> 0 | AK180: =SUMIF($I142:$I$100006,AH180,$T142:$T$100006) -> 0
A181: P | B181: 5 | C181: 2021-01-05 | E181: 01-049 | F181: CLIENT | I181: 1 | J181: Tarif COMPTOIR | N181: 968.0672269 | O181: 0 | Q181: 968.0672269 | R181: 0.19 | S181: 183.9327731 | T181: 1152 | U181: =IF(CTS_Source[[#This Row],[Montant Payé]]>0,CTS_Source[[#This Row],[Montant TTC]]-CTS_Source[[#This Row],[Montant Payé]],"") -> 2 | V181: 1150 | X181: 0 | Y181: 01 | Z181: 145 | AC181: PPP | AD181: =SUMIF($I143:$I$100006,AC181,$L143:$L$100006) -> 17.65 | AE181: =SUMIF($I143:$I$100006,AC181,$T143:$T$100006) -> 42872.41266 | AH181: 4-FPA5 | AJ181: =SUMIF($I143:$I$100006,AH181,$L143:$L$100006) -> 0 | AK181: =SUMIF($I143:$I$100006,AH181,$T143:$T$100006) -> 0
D182: 01-049 | G182: 1-PRS | H182: 1 | I182: PP | J182: Traçage Noir & Blanc / Papier | K182: ML | L182: 2.4 | M182: 201.6806723 | N182: 484.0336134 | O182: -1 | P182: 0 | Q182: 484.0336134 | R182: 0.19 | S182: 91.96638655 | T182: 576 | U182: =IF(CTS_Source[[#This Row],[Montant Payé]]>0,CTS_Source[[#This Row],[Montant TTC]]-CTS_Source[[#This Row],[Montant Payé]],"") ->  | W182: 240 | Z182: 146 | AC182: - | AD182: =SUM(AD176:AD181) -> 232.2 | AE182: =SUM(AE176:AE181) -> 218126.8689 | AH182: 4-T3N100 | AJ182: =SUMIF($I144:$I$100006,AH182,$L144:$L$100006) -> 0 | AK182: =SUMIF($I144:$I$100006,AH182,$T144:$T$100006) -> 0
D183: 01-049 | G183: 1-PRS | H183: 2 | I183: TP | J183: Tirage Noir & Blanc / Papier | K183: ML | L183: 4.8 | M183: 100.8403361 | N183: 484.0336134 | O183: -1 | P183: 0 | Q183: 484.0336134 | R183: 0.19 | S183: 91.96638655 | T183: 576 | U183: =IF(CTS_Source[[#This Row],[Montant Payé]]>0,CTS_Source[[#This Row],[Montant TTC]]-CTS_Source[[#This Row],[Montant Payé]],"") ->  | W183: 120 | Z183: 147 | AC183: N3 | AD183: =SUMIF($I145:$I$100006,AC183,$L145:$L$100006) -> 15 | AE183: =SUMIF($I145:$I$100006,AC183,$T145:$T$100006) -> 523.9306712 | AH183: 4-T4C100 | AJ183: =SUMIF($I145:$I$100006,AH183,$L145:$L$100006) -> 0 | AK183: =SUMIF($I145:$I$100006,AH183,$T145:$T$100006) -> 0
A184: P | B184: 5 | C184: 2021-01-05 | E184: 01-050 | F184: CLIENT | I184: 1 | J184: Tarif COMPTOIR | N184: 880.6722689 | O184: 0 | Q184: 880.6722689 | R184: 0.19 | S184: 167.3277311 | T184: 1048 | U184: =IF(CTS_Source[[#This Row],[Montant Payé]]>0,CTS_Source[[#This Row],[Montant TTC]]-CTS_Source[[#This Row],[Montant Payé]],"") -> 3 | V184: 1045 | X184: 0 | Y184: 01 | Z184: 148 | AC184: N4 | AD184: =SUMIF($I146:$I$100006,AC184,$L146:$L$100006) -> 280 | AE184: =SUMIF($I146:$I$100006,AC184,$T146:$T$100006) -> 5261.249231 | AH184: 4-T4N100 | AJ184: =SUMIF($I146:$I$100006,AH184,$L146:$L$100006) -> 4 | AK184: =SUMIF($I146:$I$100006,AH184,$T146:$T$100006) -> 3119.395817
D185: 01-050 | G185: 2-BUR | H185: 1 | I185: 6-BACR | J185: Boite d'archives en carton rigide | K185: U | L185: 1 | M185: 134.4537815 | N185: 134.4537815 | O185: -1 | P185: 0 | Q185: 134.4537815 | R185: 0.19 | S185: 25.54621849 | T185: 160 | U185: =IF(CTS_Source[[#This Row],[Montant Payé]]>0,CTS_Source[[#This Row],[Montant TTC]]-CTS_Source[[#This Row],[Montant Payé]],"") ->  | W185: 160 | Z185: 149 | AC185: NP | AD185: =SUMIF($I147:$I$100006,AC185,$L147:$L$100006) -> 73.25 | AE185: =SUMIF($I147:$I$100006,AC185,$T147:$T$100006) -> 16077.24287 | AH185: 4-TN3 | AJ185: =SUMIF($I147:$I$100006,AH185,$L147:$L$100006) -> 3 | AK185: =SUMIF($I147:$I$100006,AH185,$T147:$T$100006) -> 90
D186: 01-050 | G186: 2-BUR | H186: 2 | I186: 2-S857 | J186: Stylo Topball 857 | K186: U | L186: 1 | M186: 117.6470588 | N186: 117.6470588 | O186: -1 | P186: 0 | Q186: 117.6470588 | R186: 0.19 | S186: 22.35294118 | T186: 140 | U186: =IF(CTS_Source[[#This Row],[Montant Payé]]>0,CTS_Source[[#This Row],[Montant TTC]]-CTS_Source[[#This Row],[Montant Payé]],"") ->  | W186: 140 | Z186: 150 | AC186: - | AD186: =SUM(AD183:AD185) -> 368.25 | AE186: =SUM(AE183:AE185) -> 21862.42277 | AH186: 4-TN4 | AJ186: =SUMIF($I148:$I$100006,AH186,$L148:$L$100006) -> 9 | AK186: =SUMIF($I148:$I$100006,AH186,$T148:$T$100006) -> 117.9173149
D187: 01-050 | G187: 2-BUR | H187: 3 | I187: 2-S967 | J187: Stylo Topliner 967 | K187: U | L187: 1 | M187: 84.03361345 | N187: 84.03361345 | O187: -1 | P187: 0 | Q187: 84.03361345 | R187: 0.19 | S187: 15.96638655 | T187: 100 | U187: =IF(CTS_Source[[#This Row],[Montant Payé]]>0,CTS_Source[[#This Row],[Montant TTC]]-CTS_Source[[#This Row],[Montant Payé]],"") ->  | W187: 100 | Z187: 151 | AC187: N30 | AD187: =SUMIF($I149:$I$100006,AC187,$L149:$L$100006) -> 3 | AE187: =SUMIF($I149:$I$100006,AC187,$T149:$T$100006) -> 225.6326531 | AH187: - | AJ187: =SUM(AJ170:AJ186) -> 34 | AK187: =SUM(AK170:AK186) -> 4877.081935
D188: 01-050 | G188: 1-PRS | H188: 4 | I188: TP | J188: Tirage Noir & Blanc / Papier | K188: ML | L188: 5.4 | M188: 100.8403361 | N188: 544.5378151 | O188: -1 | P188: 0 | Q188: 544.5378151 | R188: 0.19 | S188: 103.4621849 | T188: 648 | U188: =IF(CTS_Source[[#This Row],[Montant Payé]]>0,CTS_Source[[#This Row],[Montant TTC]]-CTS_Source[[#This Row],[Montant Payé]],"") ->  | W188: 120 | Z188: 152 | AC188: N40 | AD188: =SUMIF($I150:$I$100006,AC188,$L150:$L$100006) -> 328 | AE188: =SUMIF($I150:$I$100006,AC188,$T150:$T$100006) -> 12202.61714 | AH188: 5-AR10 | AJ188: =SUMIF($I150:$I$100006,AH188,$L150:$L$100006) -> 0 | AK188: =SUMIF($I150:$I$100006,AH188,$T150:$T$100006) -> 0
A189: P | B189: 5 | C189: 2021-01-05 | E189: 01-051 | F189: DAHMANI Djamel | I189: 1 | J189: Tarif COMPTOIR | N189: 2092.436975 | O189: 0 | Q189: 2092.436975 | R189: 0.19 | S189: 397.5630252 | T189: 2490 | U189: =IF(CTS_Source[[#This Row],[Montant Payé]]>0,CTS_Source[[#This Row],[Montant TTC]]-CTS_Source[[#This Row],[Montant Payé]],"") -> 0 | V189: 2490 | X189: 0 | Y189: 01 | Z189: 153 | AC189: NP0 | AD189: =SUMIF($I151:$I$100006,AC189,$L151:$L$100006) -> 98.2 | AE189: =SUMIF($I151:$I$100006,AC189,$T151:$T$100006) -> 44008.70675 | AH189: 5-AR100 | AJ189: =SUMIF($I151:$I$100006,AH189,$L151:$L$100006) -> 0 | AK189: =SUMIF($I151:$I$100006,AH189,$T151:$T$100006) -> 0
D190: 01-051 | G190: 1-PRS | H190: 1 | I190: TP | J190: Tirage Noir & Blanc / Papier | K190: ML | L190: 24.9 | M190: 84.03361345 | N190: 2092.436975 | O190: -1 | P190: 0 | Q190: 2092.436975 | R190: 0.19 | S190: 397.5630252 | T190: 2490 | U190: =IF(CTS_Source[[#This Row],[Montant Payé]]>0,CTS_Source[[#This Row],[Montant TTC]]-CTS_Source[[#This Row],[Montant Payé]],"") ->  | W190: 100 | Z190: 154 | AC190: - | AD190: =SUM(AD187:AD189) -> 429.2 | AE190: =SUM(AE187:AE189) -> 56436.95655 | AH190: 5-AR20 | AJ190: =SUMIF($I152:$I$100006,AH190,$L152:$L$100006) -> 0 | AK190: =SUMIF($I152:$I$100006,AH190,$T152:$T$100006) -> 0
A191: P | B191: 5 | C191: 2021-01-05 | E191: 01-052 | F191: CLIENT | I191: 1 | J191: Tarif COMPTOIR | N191: 492.4369748 | O191: 0 | Q191: 492.4369748 | R191: 0.19 | S191: 93.56302521 | T191: 586 | U191: =IF(CTS_Source[[#This Row],[Montant Payé]]>0,CTS_Source[[#This Row],[Montant TTC]]-CTS_Source[[#This Row],[Montant Payé]],"") -> 6 | V191: 580 | X191: 0 | Y191: 01 | Z191: 155 | AC191: R3B1 | AD191: =SUMIF($I153:$I$100006,AC191,$L153:$L$100006) -> 14 | AE191: =SUMIF($I153:$I$100006,AC191,$T153:$T$100006) -> 2070 | AH191: 5-AR30 | AJ191: =SUMIF($I153:$I$100006,AH191,$L153:$L$100006) -> 0 | AK191: =SUMIF($I153:$I$100006,AH191,$T153:$T$100006) -> 0
D192: 01-052 | G192: 0-PRS | H192: 1 | I192: AGP | J192: Agrafage document (agrafes PM) - de 20 f | K192: U | L192: 3 | M192: 8.403361345 | N192: 25.21008403 | O192: -1 | P192: 0 | Q192: 25.21008403 | R192: 0.19 | S192: 4.789915966 | T192: 30 | U192: =IF(CTS_Source[[#This Row],[Montant Payé]]>0,CTS_Source[[#This Row],[Montant TTC]]-CTS_Source[[#This Row],[Montant Payé]],"") ->  | W192: 10 | Z192: 156 | AC192: R3B2 | AD192: =SUMIF($I154:$I$100006,AC192,$L154:$L$100006) -> 0 | AE192: =SUMIF($I154:$I$100006,AC192,$T154:$T$100006) -> 0 | AH192: 5-AR40 | AJ192: =SUMIF($I154:$I$100006,AH192,$L154:$L$100006) -> 1 | AK192: =SUMIF($I154:$I$100006,AH192,$T154:$T$100006) -> 520
D193: 01-052 | G193: 1-PRS | H193: 2 | I193: C4 | J193: Copie Noir & Blanc A4-R / Papier | K193: U | L193: 2 | M193: 8.403361345 | N193: 16.80672269 | O193: -1 | P193: 0 | Q193: 16.80672269 | R193: 0.19 | S193: 3.193277311 | T193: 20 | U193: =IF(CTS_Source[[#This Row],[Montant Payé]]>0,CTS_Source[[#This Row],[Montant TTC]]-CTS_Source[[#This Row],[Montant Payé]],"") ->  | W193: 10 | Z193: 157 | AC193: R3B3 | AD193: =SUMIF($I155:$I$100006,AC193,$L155:$L$100006) -> 0 | AE193: =SUMIF($I155:$I$100006,AC193,$T155:$T$100006) -> 0 | AH193: 5-AR60 | AJ193: =SUMIF($I155:$I$100006,AH193,$L155:$L$100006) -> 0 | AK193: =SUMIF($I155:$I$100006,AH193,$T155:$T$100006) -> 0
D194: 01-052 | G194: 0-PRS | H194: 3 | I194: C4S | J194: Copie Noir & Blanc A4-R / Papier / Spéciale | K194: U | L194: 1 | M194: 16.80672269 | N194: 16.80672269 | O194: -1 | P194: 0 | Q194: 16.80672269 | R194: 0.19 | S194: 3.193277311 | T194: 20 | U194: =IF(CTS_Source[[#This Row],[Montant Payé]]>0,CTS_Source[[#This Row],[Montant TTC]]-CTS_Source[[#This Row],[Montant Payé]],"") ->  | W194: 20 | Z194: 158 | AC194: R3M | AD194: =SUMIF($I156:$I$100006,AC194,$L156:$L$100006) -> 0 | AE194: =SUMIF($I156:$I$100006,AC194,$T156:$T$100006) -> 0 | AH194: 5-AR80 | AJ194: =SUMIF($I156:$I$100006,AH194,$L156:$L$100006) -> 0 | AK194: =SUMIF($I156:$I$100006,AH194,$T156:$T$100006) -> 0
D195: 01-052 | G195: 1-PRS | H195: 4 | I195: TP | J195: Tirage Noir & Blanc / Papier | K195: ML | L195: 4.3 | M195: 100.8403361 | N195: 433.6134454 | O195: -1 | P195: 0 | Q195: 433.6134454 | R195: 0.19 | S195: 82.38655462 | T195: 516 | U195: =IF(CTS_Source[[#This Row],[Montant Payé]]>0,CTS_Source[[#This Row],[Montant TTC]]-CTS_Source[[#This Row],[Montant Payé]],"") ->  | W195: 120 | Z195: 159 | AC195: R3P | AD195: =SUMIF($I157:$I$100006,AC195,$L157:$L$100006) -> 0 | AE195: =SUMIF($I157:$I$100006,AC195,$T157:$T$100006) -> 0 | AH195: 5-BC35 | AJ195: =SUMIF($I157:$I$100006,AH195,$L157:$L$100006) -> 8 | AK195: =SUMIF($I157:$I$100006,AH195,$T157:$T$100006) -> 2328.421053
A196: P | B196: 5 | C196: 2021-01-05 | E196: 01-053 | F196: CLIENT | I196: 1 | J196: Tarif COMPTOIR | N196: 2218.487395 | O196: 0 | Q196: 2218.487395 | R196: 0.19 | S196: 421.512605 | T196: 2640 | U196: =IF(CTS_Source[[#This Row],[Montant Payé]]>0,CTS_Source[[#This Row],[Montant TTC]]-CTS_Source[[#This Row],[Montant Payé]],"") -> 0 | V196: 2640 | X196: 0 | Y196: 01 | Z196: 160 | AC196: R3S1 | AD196: =SUMIF($I158:$I$100006,AC196,$L158:$L$100006) -> 6 | AE196: =SUMIF($I158:$I$100006,AC196,$T158:$T$100006) -> 1200 | AH196: 5-BC55 | AJ196: =SUMIF($I158:$I$100006,AH196,$L158:$L$100006) -> 0 | AK196: =SUMIF($I158:$I$100006,AH196,$T158:$T$100006) -> 0
D197: 01-053 | G197: 1-PRS | H197: 1 | I197: PPP | J197: Traçage Couleur / Papier Photo | K197: ML | L197: 1 | M197: 2218.487395 | N197: 2218.487395 | O197: -1 | P197: 0 | Q197: 2218.487395 | R197: 0.19 | S197: 421.512605 | T197: 2640 | U197: =IF(CTS_Source[[#This Row],[Montant Payé]]>0,CTS_Source[[#This Row],[Montant TTC]]-CTS_Source[[#This Row],[Montant Payé]],"") ->  | W197: 2640 | Z197: 161 | AC197: R3S2 | AD197: =SUMIF($I159:$I$100006,AC197,$L159:$L$100006) -> 0 | AE197: =SUMIF($I159:$I$100006,AC197,$T159:$T$100006) -> 0 | AH197: 5-CCC25 | AJ197: =SUMIF($I159:$I$100006,AH197,$L159:$L$100006) -> 14 | AK197: =SUMIF($I159:$I$100006,AH197,$T159:$T$100006) -> 2256.674913
A198: P | B198: 6 | C198: 2021-01-06 | E198: 01-054 | F198: CLIENT | I198: 1 | J198: Tarif COMPTOIR | N198: 319.3277311 | O198: 0 | Q198: 319.3277311 | R198: 0.19 | S198: 60.67226891 | T198: 380 | U198: =IF(CTS_Source[[#This Row],[Montant Payé]]>0,CTS_Source[[#This Row],[Montant TTC]]-CTS_Source[[#This Row],[Montant Payé]],"") -> 0 | V198: 380 | X198: 0 | Y198: 01 | Z198: 162 | AC198: R3S3 | AD198: =SUMIF($I160:$I$100006,AC198,$L160:$L$100006) -> 0 | AE198: =SUMIF($I160:$I$100006,AC198,$T160:$T$100006) -> 0 | AH198: 5-CCC40 | AJ198: =SUMIF($I160:$I$100006,AH198,$L160:$L$100006) -> 11 | AK198: =SUMIF($I160:$I$100006,AH198,$T160:$T$100006) -> 2281.244655
D199: 01-054 | G199: 1-PRS | H199: 1 | I199: I4 | J199: Impression Noir & Blanc A4-R / Papier | K199: U | L199: 5 | M199: 16.80672269 | N199: 84.03361345 | O199: -1 | P199: 0 | Q199: 84.03361345 | R199: 0.19 | S199: 15.96638655 | T199: 100 | U199: =IF(CTS_Source[[#This Row],[Montant Payé]]>0,CTS_Source[[#This Row],[Montant TTC]]-CTS_Source[[#This Row],[Montant Payé]],"") ->  | W199: 20 | Z199: 163 | AC199: R4B | AD199: =SUMIF($I161:$I$100006,AC199,$L161:$L$100006) -> 0 | AE199: =SUMIF($I161:$I$100006,AC199,$T161:$T$100006) -> 0 | AH199: 5-CCC60 | AJ199: =SUMIF($I161:$I$100006,AH199,$L161:$L$100006) -> 5 | AK199: =SUMIF($I161:$I$100006,AH199,$T161:$T$100006) -> 1237.376705
D200: 01-054 | G200: 1-PRS | H200: 2 | I200: I40 | J200: Impression Couleur A4-R / Papier (aucun aplat) | K200: U | L200: 2 | M200: 50.42016807 | N200: 100.8403361 | O200: -1 | P200: 0 | Q200: 100.8403361 | R200: 0.19 | S200: 19.15966387 | T200: 120 | U200: =IF(CTS_Source[[#This Row],[Montant Payé]]>0,CTS_Source[[#This Row],[Montant TTC]]-CTS_Source[[#This Row],[Montant Payé]],"") ->  | W200: 60 | Z200: 164 | AC200: R4B1 | AD200: =SUMIF($I162:$I$100006,AC200,$L162:$L$100006) -> 32 | AE200: =SUMIF($I162:$I$100006,AC200,$T162:$T$100006) -> 3167.604868 | AH200: 5-CCP25 | AJ200: =SUMIF($I162:$I$100006,AH200,$L162:$L$100006) -> 0 | AK200: =SUMIF($I162:$I$100006,AH200,$T162:$T$100006) -> 0
D201: 01-054 | G201: 0-PRS | H201: 3 | I201: I40B | J201: Impression Couleur A4-R / Bristol (aucun aplat) | K201: U | L201: 2 | M201: 67.22689076 | N201: 134.4537815 | O201: -1 | P201: 0 | Q201: 134.4537815 | R201: 0.19 | S201: 25.54621849 | T201: 160 | U201: =IF(CTS_Source[[#This Row],[Montant Payé]]>0,CTS_Source[[#This Row],[Montant TTC]]-CTS_Source[[#This Row],[Montant Payé]],"") ->  | W201: 80 | Z201: 165 | AC201: R4B2 | AD201: =SUMIF($I163:$I$100006,AC201,$L163:$L$100006) -> 5 | AE201: =SUMIF($I163:$I$100006,AC201,$T163:$T$100006) -> 750 | AH201: 5-CCP40 | AJ201: =SUMIF($I163:$I$100006,AH201,$L163:$L$100006) -> 0 | AK201: =SUMIF($I163:$I$100006,AH201,$T163:$T$100006) -> 0
... 2049 more rows

Sheet SAI copie (hidden)
A1: < | B1: SAISIE | D1: VALIDER | J1: Saisir C5-Date, E5-N° Fiche, F5-Client, I5-Tarif Client, I6-Article, L6-Quantité, P5-Remise, U5-Timbre
T2: REPORT
C3: Date | D3: 2019-04-23 | E3: Client
L4: Quant. | M4: P.U. TTC | N4: Mont. TTC
C5: N° Fiche | D5: 03-002 | F5: PP | I5: =IF(ISNA(INDEX(#REF!,MATCH(F5,#REF!,0))),"",INDEX(#REF!,MATCH(F5,#REF!,0))) ->  | L5: 12 | M5: =IF(ISERROR(VLOOKUP($F5,#REF!,8+OFFSET($Z:$Z,MATCH($Z23,$Z:$Z,0)-2,8,1,1),FALSE)),"",(VLOOKUP($F5,#REF!,8+OFFSET($Z:$Z,MATCH($Z23,$Z:$Z,0)-2,8,1,1),FALSE))) ->  | N5: =IFERROR(L5*M5,"") ->  | P5: TOTAL | Q5: =Q22 -> -84.03361345 | S5: HT
F6: PC | I6: =IF(ISNA(INDEX(#REF!,MATCH(F6,#REF!,0))),"",INDEX(#REF!,MATCH(F6,#REF!,0))) ->  | L6: 6 | M6: =IF(ISERROR(VLOOKUP($F6,#REF!,8+OFFSET($Z:$Z,MATCH($Z24,$Z:$Z,0)-2,8,1,1),FALSE)),"",(VLOOKUP($F6,#REF!,8+OFFSET($Z:$Z,MATCH($Z24,$Z:$Z,0)-2,8,1,1),FALSE))) ->  | N6: =IFERROR(L6*M6,"") -> 
C7: =IF(D7=1,"Tarif COMPTOIR",IF(OR(D7=2),"Tarif CONVENTION",IF(OR(D7=3),"Tarif SPECIAL",""))) ->  | D7: =IFERROR(INDEX(#REF!,MATCH(F3,#REF!,0)),"") ->  | F7: I3 | I7: =IF(ISNA(INDEX(#REF!,MATCH(F7,#REF!,0))),"",INDEX(#REF!,MATCH(F7,#REF!,0))) ->  | L7: 24 | M7: =IF(ISERROR(VLOOKUP($F7,#REF!,8+OFFSET($Z:$Z,MATCH($Z25,$Z:$Z,0)-2,8,1,1),FALSE)),"",(VLOOKUP($F7,#REF!,8+OFFSET($Z:$Z,MATCH($Z25,$Z:$Z,0)-2,8,1,1),FALSE))) ->  | P7: TOTAL | Q7: =SUM(N5:N19) -> 0 | S7: TTC
F8: N4 | I8: =IF(ISNA(INDEX(#REF!,MATCH(F8,#REF!,0))),"",INDEX(#REF!,MATCH(F8,#REF!,0))) ->  | L8: 36 | M8: =IF(ISERROR(VLOOKUP($F8,#REF!,8+OFFSET($Z:$Z,MATCH($Z26,$Z:$Z,0)-2,8,1,1),FALSE)),"",(VLOOKUP($F8,#REF!,8+OFFSET($Z:$Z,MATCH($Z26,$Z:$Z,0)-2,8,1,1),FALSE))) -> 
F9: C8 | I9: =IF(ISNA(INDEX(#REF!,MATCH(F9,#REF!,0))),"",INDEX(#REF!,MATCH(F9,#REF!,0))) ->  | L9: 12 | M9: =IF(ISERROR(VLOOKUP($F9,#REF!,8+OFFSET($Z:$Z,MATCH($Z27,$Z:$Z,0)-2,8,1,1),FALSE)),"",(VLOOKUP($F9,#REF!,8+OFFSET($Z:$Z,MATCH($Z27,$Z:$Z,0)-2,8,1,1),FALSE))) ->  | P9: REMISE | Q9: 100 | S9: DA
I10: =IF(ISNA(INDEX(#REF!,MATCH(F10,#REF!,0))),"",INDEX(#REF!,MATCH(F10,#REF!,0))) ->  | M10: =IF(ISERROR(VLOOKUP($F10,#REF!,8+OFFSET($Z:$Z,MATCH($Z28,$Z:$Z,0)-2,8,1,1),FALSE)),"",(VLOOKUP($F10,#REF!,8+OFFSET($Z:$Z,MATCH($Z28,$Z:$Z,0)-2,8,1,1),FALSE))) -> 
I11: =IF(ISNA(INDEX(#REF!,MATCH(F11,#REF!,0))),"",INDEX(#REF!,MATCH(F11,#REF!,0))) ->  | M11: =IF(ISERROR(VLOOKUP($F11,#REF!,8+OFFSET($Z:$Z,MATCH($Z29,$Z:$Z,0)-2,8,1,1),FALSE)),"",(VLOOKUP($F11,#REF!,8+OFFSET($Z:$Z,MATCH($Z29,$Z:$Z,0)-2,8,1,1),FALSE))) ->  | P11: A PAYER | Q11: =+Q7-Q9 -> -100 | S11: DA
I12: =IF(ISNA(INDEX(#REF!,MATCH(F12,#REF!,0))),"",INDEX(#REF!,MATCH(F12,#REF!,0))) ->  | M12: =IF(ISERROR(VLOOKUP($F12,#REF!,8+OFFSET($Z:$Z,MATCH($Z30,$Z:$Z,0)-2,8,1,1),FALSE)),"",(VLOOKUP($F12,#REF!,8+OFFSET($Z:$Z,MATCH($Z30,$Z:$Z,0)-2,8,1,1),FALSE))) -> 
I13: =IF(ISNA(INDEX(#REF!,MATCH(F13,#REF!,0))),"",INDEX(#REF!,MATCH(F13,#REF!,0))) ->  | M13: =IF(ISERROR(VLOOKUP($F13,#REF!,8+OFFSET($Z:$Z,MATCH($Z31,$Z:$Z,0)-2,8,1,1),FALSE)),"",(VLOOKUP($F13,#REF!,8+OFFSET($Z:$Z,MATCH($Z31,$Z:$Z,0)-2,8,1,1),FALSE))) ->  | P13: RECU | Q13: 7000 | S13: DA
I14: =IF(ISNA(INDEX(#REF!,MATCH(F14,#REF!,0))),"",INDEX(#REF!,MATCH(F14,#REF!,0))) ->  | M14: =IF(ISERROR(VLOOKUP($F14,#REF!,8+OFFSET($Z:$Z,MATCH($Z32,$Z:$Z,0)-2,8,1,1),FALSE)),"",(VLOOKUP($F14,#REF!,8+OFFSET($Z:$Z,MATCH($Z32,$Z:$Z,0)-2,8,1,1),FALSE))) -> 
I15: =IF(ISNA(INDEX(#REF!,MATCH(F15,#REF!,0))),"",INDEX(#REF!,MATCH(F15,#REF!,0))) ->  | M15: =IF(ISERROR(VLOOKUP($F15,#REF!,8+OFFSET($Z:$Z,MATCH($Z33,$Z:$Z,0)-2,8,1,1),FALSE)),"",(VLOOKUP($F15,#REF!,8+OFFSET($Z:$Z,MATCH($Z33,$Z:$Z,0)-2,8,1,1),FALSE))) ->  | P15: REDUE MONNAIE | Q15: =Q13-Q11 -> 7100 | S15: DA
I16: =IF(ISNA(INDEX(#REF!,MATCH(F16,#REF!,0))),"",INDEX(#REF!,MATCH(F16,#REF!,0))) ->  | M16: =IF(ISERROR(VLOOKUP($F16,#REF!,8+OFFSET($Z:$Z,MATCH($Z34,$Z:$Z,0)-2,8,1,1),FALSE)),"",(VLOOKUP($F16,#REF!,8+OFFSET($Z:$Z,MATCH($Z34,$Z:$Z,0)-2,8,1,1),FALSE))) -> 
I17: =IF(ISNA(INDEX(#REF!,MATCH(F17,#REF!,0))),"",INDEX(#REF!,MATCH(F17,#REF!,0))) ->  | M17: =IF(ISERROR(VLOOKUP($F17,#REF!,8+OFFSET($Z:$Z,MATCH($Z35,$Z:$Z,0)-2,8,1,1),FALSE)),"",(VLOOKUP($F17,#REF!,8+OFFSET($Z:$Z,MATCH($Z35,$Z:$Z,0)-2,8,1,1),FALSE))) ->  | R17: P
I18: =IF(ISNA(INDEX(#REF!,MATCH(F18,#REF!,0))),"",INDEX(#REF!,MATCH(F18,#REF!,0))) ->  | M18: =IF(ISERROR(VLOOKUP($F18,#REF!,8+OFFSET($Z:$Z,MATCH($Z36,$Z:$Z,0)-2,8,1,1),FALSE)),"",(VLOOKUP($F18,#REF!,8+OFFSET($Z:$Z,MATCH($Z36,$Z:$Z,0)-2,8,1,1),FALSE))) -> 
I19: =IF(ISNA(INDEX(#REF!,MATCH(F19,#REF!,0))),"",INDEX(#REF!,MATCH(F19,#REF!,0))) ->  | M19: =IF(ISERROR(VLOOKUP($F19,#REF!,8+OFFSET($Z:$Z,MATCH($Z37,$Z:$Z,0)-2,8,1,1),FALSE)),"",(VLOOKUP($F19,#REF!,8+OFFSET($Z:$Z,MATCH($Z37,$Z:$Z,0)-2,8,1,1),FALSE))) -> 
A21: N° Ordre | B21: Mois | C21: Date | D21: Colonne1 | E21: N° Fiche | F21: Colonne3 | G21: Colonne4 | H21: Colonne5 | I21: Code Article | J21: Désignation Article | K21: Unité | L21: Colonne2 | M21: Prix Unité HT | N21: Montant HT Brut | O21: Remise % | P21: Remise Montant | Q21: Montant HT Net | R21: Taux TVA | S21: Montant TVA | T21: Montant TTC | U21: Timbre | V21: Montant TTC+Timbre | W21: Total Net recherché | X21: Montant HT | Y21: Remise TTC | Z21: Indice
A22: P | B22: =IF(SAI_20[[#This Row],[Date]]<>"",MONTH(SAI_20[[#This Row],[Date]]),B21) -> 4 | C22: =D3 -> 2019-04-23 | E22: =D5 -> 03-002 | I22: =IFERROR(INDEX(#REF!,MATCH(F:F,#REF!,0)),"") ->  | J22: =IF(I22=1,"Tarif COMPTOIR",IF(OR(I22=2),"Tarif CONVENTION",IF(OR(I22=3),"Tarif SPECIAL",""))) ->  | K22: =IF(ISNA(INDEX(#REF!,MATCH(I22,#REF!,0))),"",INDEX(#REF!,MATCH(I22,#REF!,0))) ->  | L22: =L4 -> Quant. | N22: =SUMIF($D23:$D$68,$E22,N23:N$68) -> 0 | O22: =IFERROR(P22/N22,0) -> 0 | P22: =Q9/1.19 -> 84.03361345 | Q22: =IF($N22="","",$N22-$P22) -> -84.03361345 | R22: 0.19 | S22: =IFERROR(Q22*R22,"") -> -15.96638655 | T22: =IFERROR(Q22+S22,"") -> -100 | U22: =T22*0.01 -> -1 | V22: =IFERROR(T22+U22,"") -> -101 | W22: =Q11 -> -100 | X22: =SAI_20[[#This Row],[Montant HT Net]] -> -84.03361345 | Y22: =Q9 -> 100 | Z22: =+R17 -> P
B23: =IF(SAI_20[[#This Row],[Date]]<>"",MONTH(SAI_20[[#This Row],[Date]]),B22) -> 4 | D23: =IF(E23<>"","",IF(D22="",E22,D22)) -> 03-002 | I23: =F5 -> PP | J23: =IF(ISNA(INDEX(#REF!,MATCH(I23,#REF!,0))),"",INDEX(#REF!,MATCH(I23,#REF!,0))) ->  | K23: =IF(ISNA(INDEX(#REF!,MATCH(I23,#REF!,0))),"",INDEX(#REF!,MATCH(I23,#REF!,0))) ->  | L23: 12 | M23: =M5/(1+R23) ->  | N23: =IFERROR(L23*M23,"") ->  | O23: =IF(E23<>"","",IF(O22="",O22,O22)) -> 0 | P23: =IFERROR($N23*$O23,"") ->  | R23: =IF(ISNA(INDEX(#REF!,MATCH(I23,#REF!,0))),"",INDEX(#REF!,MATCH(I23,#REF!,0))) ->  | S23: =IF($Q23="","",$Q23*$R23) ->  | T23: =IF($Q23="","",$Q23+$S23) ->  | Z23: =D23 -> 03-002
B24: =IF(SAI_20[[#This Row],[Date]]<>"",MONTH(SAI_20[[#This Row],[Date]]),B23) -> 4 | D24: =IF(E24<>"","",IF(D23="",E23,D23)) -> 03-002 | I24: =F6 -> PC | J24: =IF(ISNA(INDEX(#REF!,MATCH(I24,#REF!,0))),"",INDEX(#REF!,MATCH(I24,#REF!,0))) ->  | K24: =IF(ISNA(INDEX(#REF!,MATCH(I24,#REF!,0))),"",INDEX(#REF!,MATCH(I24,#REF!,0))) ->  | L24: 6 | M24: =M6/(1+R24) ->  | N24: =IFERROR(L24*M24,"") ->  | O24: =IF(E24<>"","",IF(O23="",O23,O23)) -> 0 | P24: =IFERROR($N24*$O24,"") ->  | R24: =IF(ISNA(INDEX(#REF!,MATCH(I24,#REF!,0))),"",INDEX(#REF!,MATCH(I24,#REF!,0))) ->  | S24: =IF($Q24="","",$Q24*$R24) ->  | T24: =IF($Q24="","",$Q24+$S24) ->  | Z24: =D24 -> 03-002
B25: =IF(SAI_20[[#This Row],[Date]]<>"",MONTH(SAI_20[[#This Row],[Date]]),B24) -> 4 | D25: =IF(E25<>"","",IF(D24="",E24,D24)) -> 03-002 | I25: =F7 -> I3 | J25: =IF(ISNA(INDEX(#REF!,MATCH(I25,#REF!,0))),"",INDEX(#REF!,MATCH(I25,#REF!,0))) ->  | K25: =IF(ISNA(INDEX(#REF!,MATCH(I25,#REF!,0))),"",INDEX(#REF!,MATCH(I25,#REF!,0))) ->  | L25: 24 | M25: =M7/(1+R25) ->  | N25: =IFERROR(L25*M25,"") ->  | O25: =IF(E25<>"","",IF(O24="",O24,O24)) -> 0 | P25: =IFERROR($N25*$O25,"") ->  | R25: =IF(ISNA(INDEX(#REF!,MATCH(I25,#REF!,0))),"",INDEX(#REF!,MATCH(I25,#REF!,0))) ->  | S25: =IF($Q25="","",$Q25*$R25) ->  | T25: =IF($Q25="","",$Q25+$S25) ->  | Z25: =D25 -> 03-002
B26: =IF(SAI_20[[#This Row],[Date]]<>"",MONTH(SAI_20[[#This Row],[Date]]),B25) -> 4 | D26: =IF(E26<>"","",IF(D25="",E25,D25)) -> 03-002 | I26: =F8 -> N4 | J26: =IF(ISNA(INDEX(#REF!,MATCH(I26,#REF!,0))),"",INDEX(#REF!,MATCH(I26,#REF!,0))) ->  | K26: =IF(ISNA(INDEX(#REF!,MATCH(I26,#REF!,0))),"",INDEX(#REF!,MATCH(I26,#REF!,0))) ->  | L26: 36 | M26: =M8/(1+R26) ->  | N26: =IFERROR(L26*M26,"") ->  | O26: =IF(E26<>"","",IF(O25="",O25,O25)) -> 0 | P26: =IFERROR($N26*$O26,"") ->  | R26: =IF(ISNA(INDEX(#REF!,MATCH(I26,#REF!,0))),"",INDEX(#REF!,MATCH(I26,#REF!,0))) ->  | S26: =IF($Q26="","",$Q26*$R26) ->  | T26: =IF($Q26="","",$Q26+$S26) ->  | Z26: =D26 -> 03-002
B27: =IF(SAI_20[[#This Row],[Date]]<>"",MONTH(SAI_20[[#This Row],[Date]]),B26) -> 4 | D27: =IF(E27<>"","",IF(D26="",E26,D26)) -> 03-002 | I27: =F9 -> C8 | J27: =IF(ISNA(INDEX(#REF!,MATCH(I27,#REF!,0))),"",INDEX(#REF!,MATCH(I27,#REF!,0))) ->  | K27: =IF(ISNA(INDEX(#REF!,MATCH(I27,#REF!,0))),"",INDEX(#REF!,MATCH(I27,#REF!,0))) ->  | L27: 12 | M27: =M9/(1+R27) ->  | N27: =IFERROR(L27*M27,"") ->  | O27: =IF(E27<>"","",IF(O26="",O26,O26)) -> 0 | P27: =IFERROR($N27*$O27,"") ->  | R27: =IF(ISNA(INDEX(#REF!,MATCH(I27,#REF!,0))),"",INDEX(#REF!,MATCH(I27,#REF!,0))) ->  | S27: =IF($Q27="","",$Q27*$R27) ->  | T27: =IF($Q27="","",$Q27+$S27) ->  | Z27: =D27 -> 03-002
R28: =IF(ISNA(INDEX(#REF!,MATCH(I28,#REF!,0))),"",INDEX(#REF!,MATCH(I28,#REF!,0))) -> 
R29: =IF(ISNA(INDEX(#REF!,MATCH(I29,#REF!,0))),"",INDEX(#REF!,MATCH(I29,#REF!,0))) -> 
R30: =IF(ISNA(INDEX(#REF!,MATCH(I30,#REF!,0))),"",INDEX(#REF!,MATCH(I30,#REF!,0))) -> 
R31: =IF(ISNA(INDEX(#REF!,MATCH(I31,#REF!,0))),"",INDEX(#REF!,MATCH(I31,#REF!,0))) -> 
R32: =IF(ISNA(INDEX(#REF!,MATCH(I32,#REF!,0))),"",INDEX(#REF!,MATCH(I32,#REF!,0))) -> 
R33: =IF(ISNA(INDEX(#REF!,MATCH(I33,#REF!,0))),"",INDEX(#REF!,MATCH(I33,#REF!,0))) -> 
R34: =IF(ISNA(INDEX(#REF!,MATCH(I34,#REF!,0))),"",INDEX(#REF!,MATCH(I34,#REF!,0))) -> 
R35: =IF(ISNA(INDEX(#REF!,MATCH(I35,#REF!,0))),"",INDEX(#REF!,MATCH(I35,#REF!,0))) -> 
R36: =IF(ISNA(INDEX(#REF!,MATCH(I36,#REF!,0))),"",INDEX(#REF!,MATCH(I36,#REF!,0))) -> 
R37: =IF(ISNA(INDEX(#REF!,MATCH(I37,#REF!,0))),"",INDEX(#REF!,MATCH(I37,#REF!,0))) -> 
R38: =IF(ISNA(INDEX(#REF!,MATCH(I38,#REF!,0))),"",INDEX(#REF!,MATCH(I38,#REF!,0))) -> 
R39: =IF(ISNA(INDEX(#REF!,MATCH(I39,#REF!,0))),"",INDEX(#REF!,MATCH(I39,#REF!,0))) -> 
R40: =IF(ISNA(INDEX(#REF!,MATCH(I40,#REF!,0))),"",INDEX(#REF!,MATCH(I40,#REF!,0))) -> 
R41: =IF(ISNA(INDEX(#REF!,MATCH(I41,#REF!,0))),"",INDEX(#REF!,MATCH(I41,#REF!,0))) -> 
R42: =IF(ISNA(INDEX(#REF!,MATCH(I42,#REF!,0))),"",INDEX(#REF!,MATCH(I42,#REF!,0))) -> 
R43: =IF(ISNA(INDEX(#REF!,MATCH(I43,#REF!,0))),"",INDEX(#REF!,MATCH(I43,#REF!,0))) -> 
R44: =IF(ISNA(INDEX(#REF!,MATCH(I44,#REF!,0))),"",INDEX(#REF!,MATCH(I44,#REF!,0))) -> 
R45: =IF(ISNA(INDEX(#REF!,MATCH(I45,#REF!,0))),"",INDEX(#REF!,MATCH(I45,#REF!,0))) -> 
R46: =IF(ISNA(INDEX(#REF!,MATCH(I46,#REF!,0))),"",INDEX(#REF!,MATCH(I46,#REF!,0))) -> 
R47: =IF(ISNA(INDEX(#REF!,MATCH(I47,#REF!,0))),"",INDEX(#REF!,MATCH(I47,#REF!,0))) -> 
R48: =IF(ISNA(INDEX(#REF!,MATCH(I48,#REF!,0))),"",INDEX(#REF!,MATCH(I48,#REF!,0))) ->  | W48: =Q37 -> 

Sheet CTR (hidden)
A1: ◄ | B1: ▼ | C1: ▲ | G1: =SUM(G6:G99999) -> 1622346.418 | H1: =SUM(H6:H99999) -> 24.72750967 | I1: 381.1990756 | J1: 1629321.521 | K1: 295247.3706 | L1: 1938082.694 | M1: 16026.03131 | N1: 1930761.384 | O1: P | P1: =SUMIF(O:O,"P",N:N)-N1 -> 1722739.29
G2: 01 | H2: 02 | I2: 03 | J2: 04 | K2: 05 | L2: 06 | O2: C | P2: =SUMIF(O:O,"C",N:N) -> 81783.638
B3: RECAP. | G3: 07 | H3: 08 | I3: 09 | J3: 10 | K3: 11 | L3: 12 | O3: I | P3: =SUMIF(O:O,"I",N:N) -> 91718.398
O4: F | P4: =SUMIF(O:O,"F",N:N) -> 34520.0583
A5: N° Ordre | B5: Jour | C5: Mois | D5: Date | E5: N° Fiche | F5: Client | G5: Montant HT Brut | H5: Taux Remise | I5: Montant Remise | J5: Montant HT Net | K5: TVA | L5: Montant TTC | M5: Remise | N5: Montant Payé | O5: Etat | P5: Obs. | Q5: Colonne1 | R5: Colonne2 | S5: Colonne3 | V5: 1 | W5: 2 | X5: 3 | Y5: 4 | Z5: 5 | AA5: 6 | AB5: 7 | AC5: 8 | AD5: 9 | AE5: 10 | AF5: 11 | AG5: 12
A6: 1 | B6: =IFERROR(DAY(CTR[[#This Row],[Date]]),"") -> 3 | C6: =IFERROR(MONTH(CTR[[#This Row],[Date]]),"") -> 1 | D6: =IF(ISNA(INDEX(CTS!C:C,MATCH(E6,CTS!$E:$E,0))),"",(INDEX(CTS!C:C,MATCH(E6,CTS!$E:$E,0)))) -> 44199 | E6: 01-001 | F6: =IF(ISNA(INDEX(CTS!$F:$F,MATCH(E6,CTS!$E:$E,0))),"",(INDEX(CTS!$F:$F,MATCH(E6,CTS!$E:$E,0)))) -> CLIENT | G6: =IF(ISNA(INDEX(CTS!$N:$N,MATCH(E6,CTS!$E:$E,0))),"",(INDEX(CTS!$N:$N,MATCH(E6,CTS!$E:$E,0)))) -> 1411.764706 | H6: =IF(ISNA(INDEX(CTS!$O:$O,MATCH(E6,CTS!$E:$E,0))),"",(INDEX(CTS!$O:$O,MATCH(E6,CTS!$E:$E,0)))) -> 0 | I6: =IF(ISNA(INDEX(CTS!$P:$P,MATCH(E6,CTS!$E:$E,0))),"",(INDEX(CTS!$P:$P,MATCH(E6,CTS!$E:$E,0)))) -> 0 | J6: =IF(ISNA(INDEX(CTS!$Q:$Q,MATCH(E6,CTS!$E:$E,0))),"",(INDEX(CTS!$Q:$Q,MATCH(E6,CTS!$E:$E,0)))) -> 1411.764706 | K6: =IF(ISNA(INDEX(CTS!$S:$S,MATCH(E6,CTS!$E:$E,0))),"",(INDEX(CTS!$S:$S,MATCH(E6,CTS!$E:$E,0)))) -> 268.2352941 | L6: =IF(ISNA(INDEX(CTS!$T:$T,MATCH(E6,CTS!$E:$E,0))),"",(INDEX(CTS!$T:$T,MATCH(E6,CTS!$E:$E,0)))) -> 1680 | M6: =IF(ISNA(INDEX(CTS!$U:$U,MATCH(E6,CTS!$E:$E,0))),"",(INDEX(CTS!$U:$U,MATCH(E6,CTS!$E:$E,0)))) -> 0 | N6: =IF(ISNA(INDEX(CTS!$V:$V,MATCH(E6,CTS!$E:$E,0))),"",(INDEX(CTS!$V:$V,MATCH(E6,CTS!$E:$E,0)))) -> 1680 | O6: =IFERROR(INDEX(CTS!$A:$A,MATCH(E6,CTS!$E:$E,0)),".") -> P | P6: =IFERROR(IFERROR(INDEX(#REF!,MATCH(E6,#REF!,0)),IFERROR(INDEX(#REF!,MATCH(E6,#REF!,0)),INDEX(#REF!,MATCH(E6,#REF!,0)) )),".") -> . | R6: =IFERROR(VLOOKUP(E6,#REF!,8,FALSE),IFERROR(VLOOKUP(E6,#REF!,8,FALSE),IFERROR(VLOOKUP(E6,#REF!,8,FALSE),""))) ->  | S6: =IFERROR(TEXT(P6,"mm") & "-" & TEXT(P6,"aaaa"),"") -> .-. | U6: 1 | V6: =SUMIFS($L6:$L$99999,$B6:$B$99999,$U6,$C6:$C$99999,V$5) -> 0 | W6: =SUMIFS($L6:$L$99999,$B6:$B$99999,$U6,$C6:$C$99999,W$5) -> 20870
A7: 2 | B7: =IFERROR(DAY(CTR[[#This Row],[Date]]),"") -> 3 | C7: =IFERROR(MONTH(CTR[[#This Row],[Date]]),"") -> 1 | D7: =IF(ISNA(INDEX(CTS!C:C,MATCH(E7,CTS!$E:$E,0))),"",(INDEX(CTS!C:C,MATCH(E7,CTS!$E:$E,0)))) -> 44199 | E7: 01-002 | F7: =IF(ISNA(INDEX(CTS!$F:$F,MATCH(E7,CTS!$E:$E,0))),"",(INDEX(CTS!$F:$F,MATCH(E7,CTS!$E:$E,0)))) -> CLIENT | G7: =IF(ISNA(INDEX(CTS!$N:$N,MATCH(E7,CTS!$E:$E,0))),"",(INDEX(CTS!$N:$N,MATCH(E7,CTS!$E:$E,0)))) -> 201.6806723 | H7: =IF(ISNA(INDEX(CTS!$O:$O,MATCH(E7,CTS!$E:$E,0))),"",(INDEX(CTS!$O:$O,MATCH(E7,CTS!$E:$E,0)))) -> 0 | I7: =IF(ISNA(INDEX(CTS!$P:$P,MATCH(E7,CTS!$E:$E,0))),"",(INDEX(CTS!$P:$P,MATCH(E7,CTS!$E:$E,0)))) -> 0 | J7: =IF(ISNA(INDEX(CTS!$Q:$Q,MATCH(E7,CTS!$E:$E,0))),"",(INDEX(CTS!$Q:$Q,MATCH(E7,CTS!$E:$E,0)))) -> 201.6806723 | K7: =IF(ISNA(INDEX(CTS!$S:$S,MATCH(E7,CTS!$E:$E,0))),"",(INDEX(CTS!$S:$S,MATCH(E7,CTS!$E:$E,0)))) -> 38.31932773 | L7: =IF(ISNA(INDEX(CTS!$T:$T,MATCH(E7,CTS!$E:$E,0))),"",(INDEX(CTS!$T:$T,MATCH(E7,CTS!$E:$E,0)))) -> 240 | M7: =IF(ISNA(INDEX(CTS!$U:$U,MATCH(E7,CTS!$E:$E,0))),"",(INDEX(CTS!$U:$U,MATCH(E7,CTS!$E:$E,0)))) -> 0 | N7: =IF(ISNA(INDEX(CTS!$V:$V,MATCH(E7,CTS!$E:$E,0))),"",(INDEX(CTS!$V:$V,MATCH(E7,CTS!$E:$E,0)))) -> 240 | O7: =IFERROR(INDEX(CTS!$A:$A,MATCH(E7,CTS!$E:$E,0)),".") -> P | P7: =IFERROR(IFERROR(INDEX(#REF!,MATCH(E7,#REF!,0)),IFERROR(INDEX(#REF!,MATCH(E7,#REF!,0)),INDEX(#REF!,MATCH(E7,#REF!,0)) )),".") -> . | R7: =IFERROR(VLOOKUP(E7,#REF!,8,FALSE),IFERROR(VLOOKUP(E7,#REF!,8,FALSE),IFERROR(VLOOKUP(E7,#REF!,8,FALSE),""))) ->  | S7: .-. | U7: 2 | V7: =SUMIFS($L7:$L$99999,$B7:$B$99999,$U7,$C7:$C$99999,V$5) -> 0 | W7: =SUMIFS($L7:$L$99999,$B7:$B$99999,$U7,$C7:$C$99999,W$5) -> 19407
A8: 3 | B8: =IFERROR(DAY(CTR[[#This Row],[Date]]),"") -> 3 | C8: =IFERROR(MONTH(CTR[[#This Row],[Date]]),"") -> 1 | D8: =IF(ISNA(INDEX(CTS!C:C,MATCH(E8,CTS!$E:$E,0))),"",(INDEX(CTS!C:C,MATCH(E8,CTS!$E:$E,0)))) -> 44199 | E8: 01-003 | F8: =IF(ISNA(INDEX(CTS!$F:$F,MATCH(E8,CTS!$E:$E,0))),"",(INDEX(CTS!$F:$F,MATCH(E8,CTS!$E:$E,0)))) -> CLIENT | G8: =IF(ISNA(INDEX(CTS!$N:$N,MATCH(E8,CTS!$E:$E,0))),"",(INDEX(CTS!$N:$N,MATCH(E8,CTS!$E:$E,0)))) -> 239.4957983 | H8: =IF(ISNA(INDEX(CTS!$O:$O,MATCH(E8,CTS!$E:$E,0))),"",(INDEX(CTS!$O:$O,MATCH(E8,CTS!$E:$E,0)))) -> 0 | I8: =IF(ISNA(INDEX(CTS!$P:$P,MATCH(E8,CTS!$E:$E,0))),"",(INDEX(CTS!$P:$P,MATCH(E8,CTS!$E:$E,0)))) -> 0 | J8: =IF(ISNA(INDEX(CTS!$Q:$Q,MATCH(E8,CTS!$E:$E,0))),"",(INDEX(CTS!$Q:$Q,MATCH(E8,CTS!$E:$E,0)))) -> 239.4957983 | K8: =IF(ISNA(INDEX(CTS!$S:$S,MATCH(E8,CTS!$E:$E,0))),"",(INDEX(CTS!$S:$S,MATCH(E8,CTS!$E:$E,0)))) -> 45.50420168 | L8: =IF(ISNA(INDEX(CTS!$T:$T,MATCH(E8,CTS!$E:$E,0))),"",(INDEX(CTS!$T:$T,MATCH(E8,CTS!$E:$E,0)))) -> 285 | M8: =IF(ISNA(INDEX(CTS!$U:$U,MATCH(E8,CTS!$E:$E,0))),"",(INDEX(CTS!$U:$U,MATCH(E8,CTS!$E:$E,0)))) -> 0 | N8: =IF(ISNA(INDEX(CTS!$V:$V,MATCH(E8,CTS!$E:$E,0))),"",(INDEX(CTS!$V:$V,MATCH(E8,CTS!$E:$E,0)))) -> 285 | O8: =IFERROR(INDEX(CTS!$A:$A,MATCH(E8,CTS!$E:$E,0)),".") -> P | P8: =IFERROR(IFERROR(INDEX(#REF!,MATCH(E8,#REF!,0)),IFERROR(INDEX(#REF!,MATCH(E8,#REF!,0)),INDEX(#REF!,MATCH(E8,#REF!,0)) )),".") -> . | R8: =IFERROR(VLOOKUP(E8,#REF!,8,FALSE),IFERROR(VLOOKUP(E8,#REF!,8,FALSE),IFERROR(VLOOKUP(E8,#REF!,8,FALSE),""))) ->  | S8: .-. | U8: 3 | V8: =SUMIFS($L8:$L$99999,$B8:$B$99999,$U8,$C8:$C$99999,V$5) -> 18944 | W8: =SUMIFS($L8:$L$99999,$B8:$B$99999,$U8,$C8:$C$99999,W$5) -> 19794
A9: 4 | B9: =IFERROR(DAY(CTR[[#This Row],[Date]]),"") -> 3 | C9: =IFERROR(MONTH(CTR[[#This Row],[Date]]),"") -> 1 | D9: =IF(ISNA(INDEX(CTS!C:C,MATCH(E9,CTS!$E:$E,0))),"",(INDEX(CTS!C:C,MATCH(E9,CTS!$E:$E,0)))) -> 44199 | E9: 01-004 | F9: =IF(ISNA(INDEX(CTS!$F:$F,MATCH(E9,CTS!$E:$E,0))),"",(INDEX(CTS!$F:$F,MATCH(E9,CTS!$E:$E,0)))) -> CLIENT | G9: =IF(ISNA(INDEX(CTS!$N:$N,MATCH(E9,CTS!$E:$E,0))),"",(INDEX(CTS!$N:$N,MATCH(E9,CTS!$E:$E,0)))) -> 252.1008403 | H9: =IF(ISNA(INDEX(CTS!$O:$O,MATCH(E9,CTS!$E:$E,0))),"",(INDEX(CTS!$O:$O,MATCH(E9,CTS!$E:$E,0)))) -> 0 | I9: =IF(ISNA(INDEX(CTS!$P:$P,MATCH(E9,CTS!$E:$E,0))),"",(INDEX(CTS!$P:$P,MATCH(E9,CTS!$E:$E,0)))) -> 0 | J9: =IF(ISNA(INDEX(CTS!$Q:$Q,MATCH(E9,CTS!$E:$E,0))),"",(INDEX(CTS!$Q:$Q,MATCH(E9,CTS!$E:$E,0)))) -> 252.1008403 | K9: =IF(ISNA(INDEX(CTS!$S:$S,MATCH(E9,CTS!$E:$E,0))),"",(INDEX(CTS!$S:$S,MATCH(E9,CTS!$E:$E,0)))) -> 47.89915966 | L9: =IF(ISNA(INDEX(CTS!$T:$T,MATCH(E9,CTS!$E:$E,0))),"",(INDEX(CTS!$T:$T,MATCH(E9,CTS!$E:$E,0)))) -> 300 | M9: =IF(ISNA(INDEX(CTS!$U:$U,MATCH(E9,CTS!$E:$E,0))),"",(INDEX(CTS!$U:$U,MATCH(E9,CTS!$E:$E,0)))) -> 0 | N9: =IF(ISNA(INDEX(CTS!$V:$V,MATCH(E9,CTS!$E:$E,0))),"",(INDEX(CTS!$V:$V,MATCH(E9,CTS!$E:$E,0)))) -> 300 | O9: =IFERROR(INDEX(CTS!$A:$A,MATCH(E9,CTS!$E:$E,0)),".") -> P | P9: =IFERROR(IFERROR(INDEX(#REF!,MATCH(E9,#REF!,0)),IFERROR(INDEX(#REF!,MATCH(E9,#REF!,0)),INDEX(#REF!,MATCH(E9,#REF!,0)) )),".") -> . | R9: =IFERROR(VLOOKUP(E9,#REF!,8,FALSE),IFERROR(VLOOKUP(E9,#REF!,8,FALSE),IFERROR(VLOOKUP(E9,#REF!,8,FALSE),""))) ->  | S9: .-. | U9: 4 | V9: =SUMIFS($L9:$L$99999,$B9:$B$99999,$U9,$C9:$C$99999,V$5) -> 23744 | W9: =SUMIFS($L9:$L$99999,$B9:$B$99999,$U9,$C9:$C$99999,W$5) -> 67754.304
A10: 5 | B10: =IFERROR(DAY(CTR[[#This Row],[Date]]),"") -> 3 | C10: =IFERROR(MONTH(CTR[[#This Row],[Date]]),"") -> 1 | D10: =IF(ISNA(INDEX(CTS!C:C,MATCH(E10,CTS!$E:$E,0))),"",(INDEX(CTS!C:C,MATCH(E10,CTS!$E:$E,0)))) -> 44199 | E10: 01-005 | F10: =IF(ISNA(INDEX(CTS!$F:$F,MATCH(E10,CTS!$E:$E,0))),"",(INDEX(CTS!$F:$F,MATCH(E10,CTS!$E:$E,0)))) -> CLIENT | G10: =IF(ISNA(INDEX(CTS!$N:$N,MATCH(E10,CTS!$E:$E,0))),"",(INDEX(CTS!$N:$N,MATCH(E10,CTS!$E:$E,0)))) -> 242.0168067 | H10: =IF(ISNA(INDEX(CTS!$O:$O,MATCH(E10,CTS!$E:$E,0))),"",(INDEX(CTS!$O:$O,MATCH(E10,CTS!$E:$E,0)))) -> 0 | I10: =IF(ISNA(INDEX(CTS!$P:$P,MATCH(E10,CTS!$E:$E,0))),"",(INDEX(CTS!$P:$P,MATCH(E10,CTS!$E:$E,0)))) -> 0 | J10: =IF(ISNA(INDEX(CTS!$Q:$Q,MATCH(E10,CTS!$E:$E,0))),"",(INDEX(CTS!$Q:$Q,MATCH(E10,CTS!$E:$E,0)))) -> 242.0168067 | K10: =IF(ISNA(INDEX(CTS!$S:$S,MATCH(E10,CTS!$E:$E,0))),"",(INDEX(CTS!$S:$S,MATCH(E10,CTS!$E:$E,0)))) -> 45.98319328 | L10: =IF(ISNA(INDEX(CTS!$T:$T,MATCH(E10,CTS!$E:$E,0))),"",(INDEX(CTS!$T:$T,MATCH(E10,CTS!$E:$E,0)))) -> 288 | M10: =IF(ISNA(INDEX(CTS!$U:$U,MATCH(E10,CTS!$E:$E,0))),"",(INDEX(CTS!$U:$U,MATCH(E10,CTS!$E:$E,0)))) -> 8 | N10: =IF(ISNA(INDEX(CTS!$V:$V,MATCH(E10,CTS!$E:$E,0))),"",(INDEX(CTS!$V:$V,MATCH(E10,CTS!$E:$E,0)))) -> 280 | O10: =IFERROR(INDEX(CTS!$A:$A,MATCH(E10,CTS!$E:$E,0)),".") -> P | P10: =IFERROR(IFERROR(INDEX(#REF!,MATCH(E10,#REF!,0)),IFERROR(INDEX(#REF!,MATCH(E10,#REF!,0)),INDEX(#REF!,MATCH(E10,#REF!,0)) )),".") -> . | R10: =IFERROR(VLOOKUP(E10,#REF!,8,FALSE),IFERROR(VLOOKUP(E10,#REF!,8,FALSE),IFERROR(VLOOKUP(E10,#REF!,8,FALSE),""))) ->  | S10: .-. | U10: 5 | V10: =SUMIFS($L10:$L$99999,$B10:$B$99999,$U10,$C10:$C$99999,V$5) -> 30602 | W10: =SUMIFS($L10:$L$99999,$B10:$B$99999,$U10,$C10:$C$99999,W$5) -> 0
A11: 6 | B11: =IFERROR(DAY(CTR[[#This Row],[Date]]),"") -> 3 | C11: =IFERROR(MONTH(CTR[[#This Row],[Date]]),"") -> 1 | D11: =IF(ISNA(INDEX(CTS!C:C,MATCH(E11,CTS!$E:$E,0))),"",(INDEX(CTS!C:C,MATCH(E11,CTS!$E:$E,0)))) -> 44199 | E11: 01-006 | F11: =IF(ISNA(INDEX(CTS!$F:$F,MATCH(E11,CTS!$E:$E,0))),"",(INDEX(CTS!$F:$F,MATCH(E11,CTS!$E:$E,0)))) -> CLIENT | G11: =IF(ISNA(INDEX(CTS!$N:$N,MATCH(E11,CTS!$E:$E,0))),"",(INDEX(CTS!$N:$N,MATCH(E11,CTS!$E:$E,0)))) -> 67.22689076 | H11: =IF(ISNA(INDEX(CTS!$O:$O,MATCH(E11,CTS!$E:$E,0))),"",(INDEX(CTS!$O:$O,MATCH(E11,CTS!$E:$E,0)))) -> 0 | I11: =IF(ISNA(INDEX(CTS!$P:$P,MATCH(E11,CTS!$E:$E,0))),"",(INDEX(CTS!$P:$P,MATCH(E11,CTS!$E:$E,0)))) -> 0 | J11: =IF(ISNA(INDEX(CTS!$Q:$Q,MATCH(E11,CTS!$E:$E,0))),"",(INDEX(CTS!$Q:$Q,MATCH(E11,CTS!$E:$E,0)))) -> 67.22689076 | K11: =IF(ISNA(INDEX(CTS!$S:$S,MATCH(E11,CTS!$E:$E,0))),"",(INDEX(CTS!$S:$S,MATCH(E11,CTS!$E:$E,0)))) -> 12.77310924 | L11: =IF(ISNA(INDEX(CTS!$T:$T,MATCH(E11,CTS!$E:$E,0))),"",(INDEX(CTS!$T:$T,MATCH(E11,CTS!$E:$E,0)))) -> 80 | M11: =IF(ISNA(INDEX(CTS!$U:$U,MATCH(E11,CTS!$E:$E,0))),"",(INDEX(CTS!$U:$U,MATCH(E11,CTS!$E:$E,0)))) -> 0 | N11: =IF(ISNA(INDEX(CTS!$V:$V,MATCH(E11,CTS!$E:$E,0))),"",(INDEX(CTS!$V:$V,MATCH(E11,CTS!$E:$E,0)))) -> 80 | O11: =IFERROR(INDEX(CTS!$A:$A,MATCH(E11,CTS!$E:$E,0)),".") -> P | P11: =IFERROR(IFERROR(INDEX(#REF!,MATCH(E11,#REF!,0)),IFERROR(INDEX(#REF!,MATCH(E11,#REF!,0)),INDEX(#REF!,MATCH(E11,#REF!,0)) )),".") -> . | R11: =IFERROR(VLOOKUP(E11,#REF!,8,FALSE),IFERROR(VLOOKUP(E11,#REF!,8,FALSE),IFERROR(VLOOKUP(E11,#REF!,8,FALSE),""))) ->  | S11: .-. | U11: 6 | V11: =SUMIFS($L11:$L$99999,$B11:$B$99999,$U11,$C11:$C$99999,V$5) -> 32635 | W11: =SUMIFS($L11:$L$99999,$B11:$B$99999,$U11,$C11:$C$99999,W$5) -> 0
A12: 7 | B12: =IFERROR(DAY(CTR[[#This Row],[Date]]),"") -> 3 | C12: =IFERROR(MONTH(CTR[[#This Row],[Date]]),"") -> 1 | D12: =IF(ISNA(INDEX(CTS!C:C,MATCH(E12,CTS!$E:$E,0))),"",(INDEX(CTS!C:C,MATCH(E12,CTS!$E:$E,0)))) -> 44199 | E12: 01-007 | F12: =IF(ISNA(INDEX(CTS!$F:$F,MATCH(E12,CTS!$E:$E,0))),"",(INDEX(CTS!$F:$F,MATCH(E12,CTS!$E:$E,0)))) -> CLIENT | G12: =IF(ISNA(INDEX(CTS!$N:$N,MATCH(E12,CTS!$E:$E,0))),"",(INDEX(CTS!$N:$N,MATCH(E12,CTS!$E:$E,0)))) -> 2988.235294 | H12: =IF(ISNA(INDEX(CTS!$O:$O,MATCH(E12,CTS!$E:$E,0))),"",(INDEX(CTS!$O:$O,MATCH(E12,CTS!$E:$E,0)))) -> 0 | I12: =IF(ISNA(INDEX(CTS!$P:$P,MATCH(E12,CTS!$E:$E,0))),"",(INDEX(CTS!$P:$P,MATCH(E12,CTS!$E:$E,0)))) -> 0 | J12: =IF(ISNA(INDEX(CTS!$Q:$Q,MATCH(E12,CTS!$E:$E,0))),"",(INDEX(CTS!$Q:$Q,MATCH(E12,CTS!$E:$E,0)))) -> 2988.235294 | K12: =IF(ISNA(INDEX(CTS!$S:$S,MATCH(E12,CTS!$E:$E,0))),"",(INDEX(CTS!$S:$S,MATCH(E12,CTS!$E:$E,0)))) -> 567.7647059 | L12: =IF(ISNA(INDEX(CTS!$T:$T,MATCH(E12,CTS!$E:$E,0))),"",(INDEX(CTS!$T:$T,MATCH(E12,CTS!$E:$E,0)))) -> 3556 | M12: =IF(ISNA(INDEX(CTS!$U:$U,MATCH(E12,CTS!$E:$E,0))),"",(INDEX(CTS!$U:$U,MATCH(E12,CTS!$E:$E,0)))) -> 6 | N12: =IF(ISNA(INDEX(CTS!$V:$V,MATCH(E12,CTS!$E:$E,0))),"",(INDEX(CTS!$V:$V,MATCH(E12,CTS!$E:$E,0)))) -> 3550 | O12: =IFERROR(INDEX(CTS!$A:$A,MATCH(E12,CTS!$E:$E,0)),".") -> P | P12: =IFERROR(IFERROR(INDEX(#REF!,MATCH(E12,#REF!,0)),IFERROR(INDEX(#REF!,MATCH(E12,#REF!,0)),INDEX(#REF!,MATCH(E12,#REF!,0)) )),".") -> . | R12: =IFERROR(VLOOKUP(E12,#REF!,8,FALSE),IFERROR(VLOOKUP(E12,#REF!,8,FALSE),IFERROR(VLOOKUP(E12,#REF!,8,FALSE),""))) ->  | S12: .-. | U12: 7 | V12: =SUMIFS($L12:$L$99999,$B12:$B$99999,$U12,$C12:$C$99999,V$5) -> 33436 | W12: =SUMIFS($L12:$L$99999,$B12:$B$99999,$U12,$C12:$C$99999,W$5) -> 12355
A13: 8 | B13: =IFERROR(DAY(CTR[[#This Row],[Date]]),"") -> 3 | C13: =IFERROR(MONTH(CTR[[#This Row],[Date]]),"") -> 1 | D13: =IF(ISNA(INDEX(CTS!C:C,MATCH(E13,CTS!$E:$E,0))),"",(INDEX(CTS!C:C,MATCH(E13,CTS!$E:$E,0)))) -> 44199 | E13: 01-008 | F13: =IF(ISNA(INDEX(CTS!$F:$F,MATCH(E13,CTS!$E:$E,0))),"",(INDEX(CTS!$F:$F,MATCH(E13,CTS!$E:$E,0)))) -> CLIENT | G13: =IF(ISNA(INDEX(CTS!$N:$N,MATCH(E13,CTS!$E:$E,0))),"",(INDEX(CTS!$N:$N,MATCH(E13,CTS!$E:$E,0)))) -> 2909.243697 | H13: =IF(ISNA(INDEX(CTS!$O:$O,MATCH(E13,CTS!$E:$E,0))),"",(INDEX(CTS!$O:$O,MATCH(E13,CTS!$E:$E,0)))) -> 0 | I13: =IF(ISNA(INDEX(CTS!$P:$P,MATCH(E13,CTS!$E:$E,0))),"",(INDEX(CTS!$P:$P,MATCH(E13,CTS!$E:$E,0)))) -> 0 | J13: =IF(ISNA(INDEX(CTS!$Q:$Q,MATCH(E13,CTS!$E:$E,0))),"",(INDEX(CTS!$Q:$Q,MATCH(E13,CTS!$E:$E,0)))) -> 2909.243697 | K13: =IF(ISNA(INDEX(CTS!$S:$S,MATCH(E13,CTS!$E:$E,0))),"",(INDEX(CTS!$S:$S,MATCH(E13,CTS!$E:$E,0)))) -> 552.7563025 | L13: =IF(ISNA(INDEX(CTS!$T:$T,MATCH(E13,CTS!$E:$E,0))),"",(INDEX(CTS!$T:$T,MATCH(E13,CTS!$E:$E,0)))) -> 3462 | M13: =IF(ISNA(INDEX(CTS!$U:$U,MATCH(E13,CTS!$E:$E,0))),"",(INDEX(CTS!$U:$U,MATCH(E13,CTS!$E:$E,0)))) -> 2 | N13: =IF(ISNA(INDEX(CTS!$V:$V,MATCH(E13,CTS!$E:$E,0))),"",(INDEX(CTS!$V:$V,MATCH(E13,CTS!$E:$E,0)))) -> 3460 | O13: =IFERROR(INDEX(CTS!$A:$A,MATCH(E13,CTS!$E:$E,0)),".") -> P | P13: =IFERROR(IFERROR(INDEX(#REF!,MATCH(E13,#REF!,0)),IFERROR(INDEX(#REF!,MATCH(E13,#REF!,0)),INDEX(#REF!,MATCH(E13,#REF!,0)) )),".") -> . | R13: =IFERROR(VLOOKUP(E13,#REF!,8,FALSE),IFERROR(VLOOKUP(E13,#REF!,8,FALSE),IFERROR(VLOOKUP(E13,#REF!,8,FALSE),""))) ->  | S13: .-. | U13: 8 | V13: =SUMIFS($L13:$L$99999,$B13:$B$99999,$U13,$C13:$C$99999,V$5) -> 0 | W13: =SUMIFS($L13:$L$99999,$B13:$B$99999,$U13,$C13:$C$99999,W$5) -> 27685
A14: 9 | B14: =IFERROR(DAY(CTR[[#This Row],[Date]]),"") -> 3 | C14: =IFERROR(MONTH(CTR[[#This Row],[Date]]),"") -> 1 | D14: =IF(ISNA(INDEX(CTS!C:C,MATCH(E14,CTS!$E:$E,0))),"",(INDEX(CTS!C:C,MATCH(E14,CTS!$E:$E,0)))) -> 44199 | E14: 01-009 | F14: =IF(ISNA(INDEX(CTS!$F:$F,MATCH(E14,CTS!$E:$E,0))),"",(INDEX(CTS!$F:$F,MATCH(E14,CTS!$E:$E,0)))) -> CLIENT | G14: =IF(ISNA(INDEX(CTS!$N:$N,MATCH(E14,CTS!$E:$E,0))),"",(INDEX(CTS!$N:$N,MATCH(E14,CTS!$E:$E,0)))) -> 216.8067227 | H14: =IF(ISNA(INDEX(CTS!$O:$O,MATCH(E14,CTS!$E:$E,0))),"",(INDEX(CTS!$O:$O,MATCH(E14,CTS!$E:$E,0)))) -> 0 | I14: =IF(ISNA(INDEX(CTS!$P:$P,MATCH(E14,CTS!$E:$E,0))),"",(INDEX(CTS!$P:$P,MATCH(E14,CTS!$E:$E,0)))) -> 0 | J14: =IF(ISNA(INDEX(CTS!$Q:$Q,MATCH(E14,CTS!$E:$E,0))),"",(INDEX(CTS!$Q:$Q,MATCH(E14,CTS!$E:$E,0)))) -> 216.8067227 | K14: =IF(ISNA(INDEX(CTS!$S:$S,MATCH(E14,CTS!$E:$E,0))),"",(INDEX(CTS!$S:$S,MATCH(E14,CTS!$E:$E,0)))) -> 41.19327731 | L14: =IF(ISNA(INDEX(CTS!$T:$T,MATCH(E14,CTS!$E:$E,0))),"",(INDEX(CTS!$T:$T,MATCH(E14,CTS!$E:$E,0)))) -> 258 | M14: =IF(ISNA(INDEX(CTS!$U:$U,MATCH(E14,CTS!$E:$E,0))),"",(INDEX(CTS!$U:$U,MATCH(E14,CTS!$E:$E,0)))) -> 0 | N14: =IF(ISNA(INDEX(CTS!$V:$V,MATCH(E14,CTS!$E:$E,0))),"",(INDEX(CTS!$V:$V,MATCH(E14,CTS!$E:$E,0)))) -> 258 | O14: =IFERROR(INDEX(CTS!$A:$A,MATCH(E14,CTS!$E:$E,0)),".") -> P | P14: =IFERROR(IFERROR(INDEX(#REF!,MATCH(E14,#REF!,0)),IFERROR(INDEX(#REF!,MATCH(E14,#REF!,0)),INDEX(#REF!,MATCH(E14,#REF!,0)) )),".") -> . | R14: =IFERROR(VLOOKUP(E14,#REF!,8,FALSE),IFERROR(VLOOKUP(E14,#REF!,8,FALSE),IFERROR(VLOOKUP(E14,#REF!,8,FALSE),""))) ->  | S14: .-. | U14: 9 | V14: =SUMIFS($L14:$L$99999,$B14:$B$99999,$U14,$C14:$C$99999,V$5) -> 0 | W14: =SUMIFS($L14:$L$99999,$B14:$B$99999,$U14,$C14:$C$99999,W$5) -> 25617
A15: 10 | B15: =IFERROR(DAY(CTR[[#This Row],[Date]]),"") -> 3 | C15: =IFERROR(MONTH(CTR[[#This Row],[Date]]),"") -> 1 | D15: =IF(ISNA(INDEX(CTS!C:C,MATCH(E15,CTS!$E:$E,0))),"",(INDEX(CTS!C:C,MATCH(E15,CTS!$E:$E,0)))) -> 44199 | E15: 01-010 | F15: =IF(ISNA(INDEX(CTS!$F:$F,MATCH(E15,CTS!$E:$E,0))),"",(INDEX(CTS!$F:$F,MATCH(E15,CTS!$E:$E,0)))) -> CLIENT | G15: =IF(ISNA(INDEX(CTS!$N:$N,MATCH(E15,CTS!$E:$E,0))),"",(INDEX(CTS!$N:$N,MATCH(E15,CTS!$E:$E,0)))) -> 466.3865546 | H15: =IF(ISNA(INDEX(CTS!$O:$O,MATCH(E15,CTS!$E:$E,0))),"",(INDEX(CTS!$O:$O,MATCH(E15,CTS!$E:$E,0)))) -> 0 | I15: =IF(ISNA(INDEX(CTS!$P:$P,MATCH(E15,CTS!$E:$E,0))),"",(INDEX(CTS!$P:$P,MATCH(E15,CTS!$E:$E,0)))) -> 0 | J15: =IF(ISNA(INDEX(CTS!$Q:$Q,MATCH(E15,CTS!$E:$E,0))),"",(INDEX(CTS!$Q:$Q,MATCH(E15,CTS!$E:$E,0)))) -> 466.3865546 | K15: =IF(ISNA(INDEX(CTS!$S:$S,MATCH(E15,CTS!$E:$E,0))),"",(INDEX(CTS!$S:$S,MATCH(E15,CTS!$E:$E,0)))) -> 88.61344538 | L15: =IF(ISNA(INDEX(CTS!$T:$T,MATCH(E15,CTS!$E:$E,0))),"",(INDEX(CTS!$T:$T,MATCH(E15,CTS!$E:$E,0)))) -> 555 | M15: =IF(ISNA(INDEX(CTS!$U:$U,MATCH(E15,CTS!$E:$E,0))),"",(INDEX(CTS!$U:$U,MATCH(E15,CTS!$E:$E,0)))) -> 0 | N15: =IF(ISNA(INDEX(CTS!$V:$V,MATCH(E15,CTS!$E:$E,0))),"",(INDEX(CTS!$V:$V,MATCH(E15,CTS!$E:$E,0)))) -> 555 | O15: =IFERROR(INDEX(CTS!$A:$A,MATCH(E15,CTS!$E:$E,0)),".") -> P | P15: =IFERROR(IFERROR(INDEX(#REF!,MATCH(E15,#REF!,0)),IFERROR(INDEX(#REF!,MATCH(E15,#REF!,0)),INDEX(#REF!,MATCH(E15,#REF!,0)) )),".") -> . | R15: =IFERROR(VLOOKUP(E15,#REF!,8,FALSE),IFERROR(VLOOKUP(E15,#REF!,8,FALSE),IFERROR(VLOOKUP(E15,#REF!,8,FALSE),""))) ->  | S15: .-. | U15: 10 | V15: =SUMIFS($L15:$L$99999,$B15:$B$99999,$U15,$C15:$C$99999,V$5) -> 27016 | W15: =SUMIFS($L15:$L$99999,$B15:$B$99999,$U15,$C15:$C$99999,W$5) -> 30674.476
A16: 11 | B16: =IFERROR(DAY(CTR[[#This Row],[Date]]),"") -> 3 | C16: =IFERROR(MONTH(CTR[[#This Row],[Date]]),"") -> 1 | D16: =IF(ISNA(INDEX(CTS!C:C,MATCH(E16,CTS!$E:$E,0))),"",(INDEX(CTS!C:C,MATCH(E16,CTS!$E:$E,0)))) -> 44199 | E16: 01-011 | F16: =IF(ISNA(INDEX(CTS!$F:$F,MATCH(E16,CTS!$E:$E,0))),"",(INDEX(CTS!$F:$F,MATCH(E16,CTS!$E:$E,0)))) -> CLIENT | G16: =IF(ISNA(INDEX(CTS!$N:$N,MATCH(E16,CTS!$E:$E,0))),"",(INDEX(CTS!$N:$N,MATCH(E16,CTS!$E:$E,0)))) -> 554.6218487 | H16: =IF(ISNA(INDEX(CTS!$O:$O,MATCH(E16,CTS!$E:$E,0))),"",(INDEX(CTS!$O:$O,MATCH(E16,CTS!$E:$E,0)))) -> 0 | I16: =IF(ISNA(INDEX(CTS!$P:$P,MATCH(E16,CTS!$E:$E,0))),"",(INDEX(CTS!$P:$P,MATCH(E16,CTS!$E:$E,0)))) -> 0 | J16: =IF(ISNA(INDEX(CTS!$Q:$Q,MATCH(E16,CTS!$E:$E,0))),"",(INDEX(CTS!$Q:$Q,MATCH(E16,CTS!$E:$E,0)))) -> 554.6218487 | K16: =IF(ISNA(INDEX(CTS!$S:$S,MATCH(E16,CTS!$E:$E,0))),"",(INDEX(CTS!$S:$S,MATCH(E16,CTS!$E:$E,0)))) -> 105.3781513 | L16: =IF(ISNA(INDEX(CTS!$T:$T,MATCH(E16,CTS!$E:$E,0))),"",(INDEX(CTS!$T:$T,MATCH(E16,CTS!$E:$E,0)))) -> 660 | M16: =IF(ISNA(INDEX(CTS!$U:$U,MATCH(E16,CTS!$E:$E,0))),"",(INDEX(CTS!$U:$U,MATCH(E16,CTS!$E:$E,0)))) -> 0 | N16: =IF(ISNA(INDEX(CTS!$V:$V,MATCH(E16,CTS!$E:$E,0))),"",(INDEX(CTS!$V:$V,MATCH(E16,CTS!$E:$E,0)))) -> 660 | O16: =IFERROR(INDEX(CTS!$A:$A,MATCH(E16,CTS!$E:$E,0)),".") -> P | P16: =IFERROR(IFERROR(INDEX(#REF!,MATCH(E16,#REF!,0)),IFERROR(INDEX(#REF!,MATCH(E16,#REF!,0)),INDEX(#REF!,MATCH(E16,#REF!,0)) )),".") -> . | R16: =IFERROR(VLOOKUP(E16,#REF!,8,FALSE),IFERROR(VLOOKUP(E16,#REF!,8,FALSE),IFERROR(VLOOKUP(E16,#REF!,8,FALSE),""))) ->  | S16: .-. | U16: 11 | V16: =SUMIFS($L16:$L$99999,$B16:$B$99999,$U16,$C16:$C$99999,V$5) -> 30086.94 | W16: =SUMIFS($L16:$L$99999,$B16:$B$99999,$U16,$C16:$C$99999,W$5) -> 25104.51
A17: 12 | B17: =IFERROR(DAY(CTR[[#This Row],[Date]]),"") -> 3 | C17: =IFERROR(MONTH(CTR[[#This Row],[Date]]),"") -> 1 | D17: =IF(ISNA(INDEX(CTS!C:C,MATCH(E17,CTS!$E:$E,0))),"",(INDEX(CTS!C:C,MATCH(E17,CTS!$E:$E,0)))) -> 44199 | E17: 01-012 | F17: =IF(ISNA(INDEX(CTS!$F:$F,MATCH(E17,CTS!$E:$E,0))),"",(INDEX(CTS!$F:$F,MATCH(E17,CTS!$E:$E,0)))) -> CLIENT | G17: =IF(ISNA(INDEX(CTS!$N:$N,MATCH(E17,CTS!$E:$E,0))),"",(INDEX(CTS!$N:$N,MATCH(E17,CTS!$E:$E,0)))) -> 1895.798319 | H17: =IF(ISNA(INDEX(CTS!$O:$O,MATCH(E17,CTS!$E:$E,0))),"",(INDEX(CTS!$O:$O,MATCH(E17,CTS!$E:$E,0)))) -> 0 | I17: =IF(ISNA(INDEX(CTS!$P:$P,MATCH(E17,CTS!$E:$E,0))),"",(INDEX(CTS!$P:$P,MATCH(E17,CTS!$E:$E,0)))) -> 0 | J17: =IF(ISNA(INDEX(CTS!$Q:$Q,MATCH(E17,CTS!$E:$E,0))),"",(INDEX(CTS!$Q:$Q,MATCH(E17,CTS!$E:$E,0)))) -> 1895.798319 | K17: =IF(ISNA(INDEX(CTS!$S:$S,MATCH(E17,CTS!$E:$E,0))),"",(INDEX(CTS!$S:$S,MATCH(E17,CTS!$E:$E,0)))) -> 360.2016807 | L17: =IF(ISNA(INDEX(CTS!$T:$T,MATCH(E17,CTS!$E:$E,0))),"",(INDEX(CTS!$T:$T,MATCH(E17,CTS!$E:$E,0)))) -> 2256 | M17: =IF(ISNA(INDEX(CTS!$U:$U,MATCH(E17,CTS!$E:$E,0))),"",(INDEX(CTS!$U:$U,MATCH(E17,CTS!$E:$E,0)))) -> 6 | N17: =IF(ISNA(INDEX(CTS!$V:$V,MATCH(E17,CTS!$E:$E,0))),"",(INDEX(CTS!$V:$V,MATCH(E17,CTS!$E:$E,0)))) -> 2250 | O17: =IFERROR(INDEX(CTS!$A:$A,MATCH(E17,CTS!$E:$E,0)),".") -> P | P17: =IFERROR(IFERROR(INDEX(#REF!,MATCH(E17,#REF!,0)),IFERROR(INDEX(#REF!,MATCH(E17,#REF!,0)),INDEX(#REF!,MATCH(E17,#REF!,0)) )),".") -> . | R17: =IFERROR(VLOOKUP(E17,#REF!,8,FALSE),IFERROR(VLOOKUP(E17,#REF!,8,FALSE),IFERROR(VLOOKUP(E17,#REF!,8,FALSE),""))) ->  | S17: .-. | U17: 12 | V17: =SUMIFS($L17:$L$99999,$B17:$B$99999,$U17,$C17:$C$99999,V$5) -> 0 | W17: =SUMIFS($L17:$L$99999,$B17:$B$99999,$U17,$C17:$C$99999,W$5) -> 0
A18: 13 | B18: =IFERROR(DAY(CTR[[#This Row],[Date]]),"") -> 3 | C18: =IFERROR(MONTH(CTR[[#This Row],[Date]]),"") -> 1 | D18: =IF(ISNA(INDEX(CTS!C:C,MATCH(E18,CTS!$E:$E,0))),"",(INDEX(CTS!C:C,MATCH(E18,CTS!$E:$E,0)))) -> 44199 | E18: 01-013 | F18: =IF(ISNA(INDEX(CTS!$F:$F,MATCH(E18,CTS!$E:$E,0))),"",(INDEX(CTS!$F:$F,MATCH(E18,CTS!$E:$E,0)))) -> CLIENT | G18: =IF(ISNA(INDEX(CTS!$N:$N,MATCH(E18,CTS!$E:$E,0))),"",(INDEX(CTS!$N:$N,MATCH(E18,CTS!$E:$E,0)))) -> 33.61344538 | H18: =IF(ISNA(INDEX(CTS!$O:$O,MATCH(E18,CTS!$E:$E,0))),"",(INDEX(CTS!$O:$O,MATCH(E18,CTS!$E:$E,0)))) -> 0 | I18: =IF(ISNA(INDEX(CTS!$P:$P,MATCH(E18,CTS!$E:$E,0))),"",(INDEX(CTS!$P:$P,MATCH(E18,CTS!$E:$E,0)))) -> 0 | J18: =IF(ISNA(INDEX(CTS!$Q:$Q,MATCH(E18,CTS!$E:$E,0))),"",(INDEX(CTS!$Q:$Q,MATCH(E18,CTS!$E:$E,0)))) -> 33.61344538 | K18: =IF(ISNA(INDEX(CTS!$S:$S,MATCH(E18,CTS!$E:$E,0))),"",(INDEX(CTS!$S:$S,MATCH(E18,CTS!$E:$E,0)))) -> 6.386554622 | L18: =IF(ISNA(INDEX(CTS!$T:$T,MATCH(E18,CTS!$E:$E,0))),"",(INDEX(CTS!$T:$T,MATCH(E18,CTS!$E:$E,0)))) -> 40 | M18: =IF(ISNA(INDEX(CTS!$U:$U,MATCH(E18,CTS!$E:$E,0))),"",(INDEX(CTS!$U:$U,MATCH(E18,CTS!$E:$E,0)))) -> 0 | N18: =IF(ISNA(INDEX(CTS!$V:$V,MATCH(E18,CTS!$E:$E,0))),"",(INDEX(CTS!$V:$V,MATCH(E18,CTS!$E:$E,0)))) -> 40 | O18: =IFERROR(INDEX(CTS!$A:$A,MATCH(E18,CTS!$E:$E,0)),".") -> P | P18: =IFERROR(IFERROR(INDEX(#REF!,MATCH(E18,#REF!,0)),IFERROR(INDEX(#REF!,MATCH(E18,#REF!,0)),INDEX(#REF!,MATCH(E18,#REF!,0)) )),".") -> . | R18: =IFERROR(VLOOKUP(E18,#REF!,8,FALSE),IFERROR(VLOOKUP(E18,#REF!,8,FALSE),IFERROR(VLOOKUP(E18,#REF!,8,FALSE),""))) ->  | S18: .-. | U18: 13 | V18: =SUMIFS($L18:$L$99999,$B18:$B$99999,$U18,$C18:$C$99999,V$5) -> 20236.15 | W18: =SUMIFS($L18:$L$99999,$B18:$B$99999,$U18,$C18:$C$99999,W$5) -> 0
A19: 14 | B19: =IFERROR(DAY(CTR[[#This Row],[Date]]),"") -> 3 | C19: =IFERROR(MONTH(CTR[[#This Row],[Date]]),"") -> 1 | D19: =IF(ISNA(INDEX(CTS!C:C,MATCH(E19,CTS!$E:$E,0))),"",(INDEX(CTS!C:C,MATCH(E19,CTS!$E:$E,0)))) -> 44199 | E19: 01-014 | F19: =IF(ISNA(INDEX(CTS!$F:$F,MATCH(E19,CTS!$E:$E,0))),"",(INDEX(CTS!$F:$F,MATCH(E19,CTS!$E:$E,0)))) -> CLIENT | G19: =IF(ISNA(INDEX(CTS!$N:$N,MATCH(E19,CTS!$E:$E,0))),"",(INDEX(CTS!$N:$N,MATCH(E19,CTS!$E:$E,0)))) -> 181.512605 | H19: =IF(ISNA(INDEX(CTS!$O:$O,MATCH(E19,CTS!$E:$E,0))),"",(INDEX(CTS!$O:$O,MATCH(E19,CTS!$E:$E,0)))) -> 0 | I19: =IF(ISNA(INDEX(CTS!$P:$P,MATCH(E19,CTS!$E:$E,0))),"",(INDEX(CTS!$P:$P,MATCH(E19,CTS!$E:$E,0)))) -> 0 | J19: =IF(ISNA(INDEX(CTS!$Q:$Q,MATCH(E19,CTS!$E:$E,0))),"",(INDEX(CTS!$Q:$Q,MATCH(E19,CTS!$E:$E,0)))) -> 181.512605 | K19: =IF(ISNA(INDEX(CTS!$S:$S,MATCH(E19,CTS!$E:$E,0))),"",(INDEX(CTS!$S:$S,MATCH(E19,CTS!$E:$E,0)))) -> 34.48739496 | L19: =IF(ISNA(INDEX(CTS!$T:$T,MATCH(E19,CTS!$E:$E,0))),"",(INDEX(CTS!$T:$T,MATCH(E19,CTS!$E:$E,0)))) -> 216 | M19: =IF(ISNA(INDEX(CTS!$U:$U,MATCH(E19,CTS!$E:$E,0))),"",(INDEX(CTS!$U:$U,MATCH(E19,CTS!$E:$E,0)))) -> 16 | N19: =IF(ISNA(INDEX(CTS!$V:$V,MATCH(E19,CTS!$E:$E,0))),"",(INDEX(CTS!$V:$V,MATCH(E19,CTS!$E:$E,0)))) -> 200 | O19: =IFERROR(INDEX(CTS!$A:$A,MATCH(E19,CTS!$E:$E,0)),".") -> P | P19: =IFERROR(IFERROR(INDEX(#REF!,MATCH(E19,#REF!,0)),IFERROR(INDEX(#REF!,MATCH(E19,#REF!,0)),INDEX(#REF!,MATCH(E19,#REF!,0)) )),".") -> . | R19: =IFERROR(VLOOKUP(E19,#REF!,8,FALSE),IFERROR(VLOOKUP(E19,#REF!,8,FALSE),IFERROR(VLOOKUP(E19,#REF!,8,FALSE),""))) ->  | S19: .-. | U19: 14 | V19: =SUMIFS($L19:$L$99999,$B19:$B$99999,$U19,$C19:$C$99999,V$5) -> 14060.7 | W19: =SUMIFS($L19:$L$99999,$B19:$B$99999,$U19,$C19:$C$99999,W$5) -> 36834
A20: 15 | B20: =IFERROR(DAY(CTR[[#This Row],[Date]]),"") -> 3 | C20: =IFERROR(MONTH(CTR[[#This Row],[Date]]),"") -> 1 | D20: =IF(ISNA(INDEX(CTS!C:C,MATCH(E20,CTS!$E:$E,0))),"",(INDEX(CTS!C:C,MATCH(E20,CTS!$E:$E,0)))) -> 44199 | E20: 01-015 | F20: =IF(ISNA(INDEX(CTS!$F:$F,MATCH(E20,CTS!$E:$E,0))),"",(INDEX(CTS!$F:$F,MATCH(E20,CTS!$E:$E,0)))) -> CLIENT | G20: =IF(ISNA(INDEX(CTS!$N:$N,MATCH(E20,CTS!$E:$E,0))),"",(INDEX(CTS!$N:$N,MATCH(E20,CTS!$E:$E,0)))) -> 1739.495798 | H20: =IF(ISNA(INDEX(CTS!$O:$O,MATCH(E20,CTS!$E:$E,0))),"",(INDEX(CTS!$O:$O,MATCH(E20,CTS!$E:$E,0)))) -> 0 | I20: =IF(ISNA(INDEX(CTS!$P:$P,MATCH(E20,CTS!$E:$E,0))),"",(INDEX(CTS!$P:$P,MATCH(E20,CTS!$E:$E,0)))) -> 0 | J20: =IF(ISNA(INDEX(CTS!$Q:$Q,MATCH(E20,CTS!$E:$E,0))),"",(INDEX(CTS!$Q:$Q,MATCH(E20,CTS!$E:$E,0)))) -> 1739.495798 | K20: =IF(ISNA(INDEX(CTS!$S:$S,MATCH(E20,CTS!$E:$E,0))),"",(INDEX(CTS!$S:$S,MATCH(E20,CTS!$E:$E,0)))) -> 330.5042017 | L20: =IF(ISNA(INDEX(CTS!$T:$T,MATCH(E20,CTS!$E:$E,0))),"",(INDEX(CTS!$T:$T,MATCH(E20,CTS!$E:$E,0)))) -> 2070 | M20: =IF(ISNA(INDEX(CTS!$U:$U,MATCH(E20,CTS!$E:$E,0))),"",(INDEX(CTS!$U:$U,MATCH(E20,CTS!$E:$E,0)))) -> 0 | N20: =IF(ISNA(INDEX(CTS!$V:$V,MATCH(E20,CTS!$E:$E,0))),"",(INDEX(CTS!$V:$V,MATCH(E20,CTS!$E:$E,0)))) -> 2070 | O20: =IFERROR(INDEX(CTS!$A:$A,MATCH(E20,CTS!$E:$E,0)),".") -> p | P20: =IFERROR(IFERROR(INDEX(#REF!,MATCH(E20,#REF!,0)),IFERROR(INDEX(#REF!,MATCH(E20,#REF!,0)),INDEX(#REF!,MATCH(E20,#REF!,0)) )),".") -> . | R20: =IFERROR(VLOOKUP(E20,#REF!,8,FALSE),IFERROR(VLOOKUP(E20,#REF!,8,FALSE),IFERROR(VLOOKUP(E20,#REF!,8,FALSE),""))) ->  | S20: .-. | U20: 15 | V20: =SUMIFS($L20:$L$99999,$B20:$B$99999,$U20,$C20:$C$99999,V$5) -> 0 | W20: =SUMIFS($L20:$L$99999,$B20:$B$99999,$U20,$C20:$C$99999,W$5) -> 58576
A21: 16 | B21: =IFERROR(DAY(CTR[[#This Row],[Date]]),"") -> 3 | C21: =IFERROR(MONTH(CTR[[#This Row],[Date]]),"") -> 1 | D21: =IF(ISNA(INDEX(CTS!C:C,MATCH(E21,CTS!$E:$E,0))),"",(INDEX(CTS!C:C,MATCH(E21,CTS!$E:$E,0)))) -> 44199 | E21: 01-016 | F21: =IF(ISNA(INDEX(CTS!$F:$F,MATCH(E21,CTS!$E:$E,0))),"",(INDEX(CTS!$F:$F,MATCH(E21,CTS!$E:$E,0)))) -> CLIENT | G21: =IF(ISNA(INDEX(CTS!$N:$N,MATCH(E21,CTS!$E:$E,0))),"",(INDEX(CTS!$N:$N,MATCH(E21,CTS!$E:$E,0)))) -> 504.2016807 | H21: =IF(ISNA(INDEX(CTS!$O:$O,MATCH(E21,CTS!$E:$E,0))),"",(INDEX(CTS!$O:$O,MATCH(E21,CTS!$E:$E,0)))) -> 0 | I21: =IF(ISNA(INDEX(CTS!$P:$P,MATCH(E21,CTS!$E:$E,0))),"",(INDEX(CTS!$P:$P,MATCH(E21,CTS!$E:$E,0)))) -> 0 | J21: =IF(ISNA(INDEX(CTS!$Q:$Q,MATCH(E21,CTS!$E:$E,0))),"",(INDEX(CTS!$Q:$Q,MATCH(E21,CTS!$E:$E,0)))) -> 504.2016807 | K21: =IF(ISNA(INDEX(CTS!$S:$S,MATCH(E21,CTS!$E:$E,0))),"",(INDEX(CTS!$S:$S,MATCH(E21,CTS!$E:$E,0)))) -> 95.79831933 | L21: =IF(ISNA(INDEX(CTS!$T:$T,MATCH(E21,CTS!$E:$E,0))),"",(INDEX(CTS!$T:$T,MATCH(E21,CTS!$E:$E,0)))) -> 600 | M21: =IF(ISNA(INDEX(CTS!$U:$U,MATCH(E21,CTS!$E:$E,0))),"",(INDEX(CTS!$U:$U,MATCH(E21,CTS!$E:$E,0)))) -> 0 | N21: =IF(ISNA(INDEX(CTS!$V:$V,MATCH(E21,CTS!$E:$E,0))),"",(INDEX(CTS!$V:$V,MATCH(E21,CTS!$E:$E,0)))) -> 600 | O21: =IFERROR(INDEX(CTS!$A:$A,MATCH(E21,CTS!$E:$E,0)),".") -> P | P21: =IFERROR(IFERROR(INDEX(#REF!,MATCH(E21,#REF!,0)),IFERROR(INDEX(#REF!,MATCH(E21,#REF!,0)),INDEX(#REF!,MATCH(E21,#REF!,0)) )),".") -> . | R21: =IFERROR(VLOOKUP(E21,#REF!,8,FALSE),IFERROR(VLOOKUP(E21,#REF!,8,FALSE),IFERROR(VLOOKUP(E21,#REF!,8,FALSE),""))) ->  | S21: .-. | U21: 16 | V21: =SUMIFS($L21:$L$99999,$B21:$B$99999,$U21,$C21:$C$99999,V$5) -> 0 | W21: =SUMIFS($L21:$L$99999,$B21:$B$99999,$U21,$C21:$C$99999,W$5) -> 81369.24
A22: 17 | B22: =IFERROR(DAY(CTR[[#This Row],[Date]]),"") -> 3 | C22: =IFERROR(MONTH(CTR[[#This Row],[Date]]),"") -> 1 | D22: =IF(ISNA(INDEX(CTS!C:C,MATCH(E22,CTS!$E:$E,0))),"",(INDEX(CTS!C:C,MATCH(E22,CTS!$E:$E,0)))) -> 44199 | E22: 01-017 | F22: =IF(ISNA(INDEX(CTS!$F:$F,MATCH(E22,CTS!$E:$E,0))),"",(INDEX(CTS!$F:$F,MATCH(E22,CTS!$E:$E,0)))) -> CLIENT | G22: =IF(ISNA(INDEX(CTS!$N:$N,MATCH(E22,CTS!$E:$E,0))),"",(INDEX(CTS!$N:$N,MATCH(E22,CTS!$E:$E,0)))) -> 100.8403361 | H22: =IF(ISNA(INDEX(CTS!$O:$O,MATCH(E22,CTS!$E:$E,0))),"",(INDEX(CTS!$O:$O,MATCH(E22,CTS!$E:$E,0)))) -> 0 | I22: =IF(ISNA(INDEX(CTS!$P:$P,MATCH(E22,CTS!$E:$E,0))),"",(INDEX(CTS!$P:$P,MATCH(E22,CTS!$E:$E,0)))) -> 0 | J22: =IF(ISNA(INDEX(CTS!$Q:$Q,MATCH(E22,CTS!$E:$E,0))),"",(INDEX(CTS!$Q:$Q,MATCH(E22,CTS!$E:$E,0)))) -> 100.8403361 | K22: =IF(ISNA(INDEX(CTS!$S:$S,MATCH(E22,CTS!$E:$E,0))),"",(INDEX(CTS!$S:$S,MATCH(E22,CTS!$E:$E,0)))) -> 19.15966387 | L22: =IF(ISNA(INDEX(CTS!$T:$T,MATCH(E22,CTS!$E:$E,0))),"",(INDEX(CTS!$T:$T,MATCH(E22,CTS!$E:$E,0)))) -> 120 | M22: =IF(ISNA(INDEX(CTS!$U:$U,MATCH(E22,CTS!$E:$E,0))),"",(INDEX(CTS!$U:$U,MATCH(E22,CTS!$E:$E,0)))) -> 0 | N22: =IF(ISNA(INDEX(CTS!$V:$V,MATCH(E22,CTS!$E:$E,0))),"",(INDEX(CTS!$V:$V,MATCH(E22,CTS!$E:$E,0)))) -> 120 | O22: =IFERROR(INDEX(CTS!$A:$A,MATCH(E22,CTS!$E:$E,0)),".") -> P | P22: =IFERROR(IFERROR(INDEX(#REF!,MATCH(E22,#REF!,0)),IFERROR(INDEX(#REF!,MATCH(E22,#REF!,0)),INDEX(#REF!,MATCH(E22,#REF!,0)) )),".") -> . | R22: =IFERROR(VLOOKUP(E22,#REF!,8,FALSE),IFERROR(VLOOKUP(E22,#REF!,8,FALSE),IFERROR(VLOOKUP(E22,#REF!,8,FALSE),""))) ->  | S22: .-. | U22: 17 | V22: =SUMIFS($L22:$L$99999,$B22:$B$99999,$U22,$C22:$C$99999,V$5) -> 28118 | W22: =SUMIFS($L22:$L$99999,$B22:$B$99999,$U22,$C22:$C$99999,W$5) -> 23460
A23: 18 | B23: =IFERROR(DAY(CTR[[#This Row],[Date]]),"") -> 3 | C23: =IFERROR(MONTH(CTR[[#This Row],[Date]]),"") -> 1 | D23: =IF(ISNA(INDEX(CTS!C:C,MATCH(E23,CTS!$E:$E,0))),"",(INDEX(CTS!C:C,MATCH(E23,CTS!$E:$E,0)))) -> 44199 | E23: 01-018 | F23: =IF(ISNA(INDEX(CTS!$F:$F,MATCH(E23,CTS!$E:$E,0))),"",(INDEX(CTS!$F:$F,MATCH(E23,CTS!$E:$E,0)))) -> CLIENT | G23: =IF(ISNA(INDEX(CTS!$N:$N,MATCH(E23,CTS!$E:$E,0))),"",(INDEX(CTS!$N:$N,MATCH(E23,CTS!$E:$E,0)))) -> 2470.588235 | H23: =IF(ISNA(INDEX(CTS!$O:$O,MATCH(E23,CTS!$E:$E,0))),"",(INDEX(CTS!$O:$O,MATCH(E23,CTS!$E:$E,0)))) -> 0 | I23: =IF(ISNA(INDEX(CTS!$P:$P,MATCH(E23,CTS!$E:$E,0))),"",(INDEX(CTS!$P:$P,MATCH(E23,CTS!$E:$E,0)))) -> 0 | J23: =IF(ISNA(INDEX(CTS!$Q:$Q,MATCH(E23,CTS!$E:$E,0))),"",(INDEX(CTS!$Q:$Q,MATCH(E23,CTS!$E:$E,0)))) -> 2470.588235 | K23: =IF(ISNA(INDEX(CTS!$S:$S,MATCH(E23,CTS!$E:$E,0))),"",(INDEX(CTS!$S:$S,MATCH(E23,CTS!$E:$E,0)))) -> 469.4117647 | L23: =IF(ISNA(INDEX(CTS!$T:$T,MATCH(E23,CTS!$E:$E,0))),"",(INDEX(CTS!$T:$T,MATCH(E23,CTS!$E:$E,0)))) -> 2940 | M23: =IF(ISNA(INDEX(CTS!$U:$U,MATCH(E23,CTS!$E:$E,0))),"",(INDEX(CTS!$U:$U,MATCH(E23,CTS!$E:$E,0)))) -> 0 | N23: =IF(ISNA(INDEX(CTS!$V:$V,MATCH(E23,CTS!$E:$E,0))),"",(INDEX(CTS!$V:$V,MATCH(E23,CTS!$E:$E,0)))) -> 2940 | O23: =IFERROR(INDEX(CTS!$A:$A,MATCH(E23,CTS!$E:$E,0)),".") -> P | P23: =IFERROR(IFERROR(INDEX(#REF!,MATCH(E23,#REF!,0)),IFERROR(INDEX(#REF!,MATCH(E23,#REF!,0)),INDEX(#REF!,MATCH(E23,#REF!,0)) )),".") -> . | R23: =IFERROR(VLOOKUP(E23,#REF!,8,FALSE),IFERROR(VLOOKUP(E23,#REF!,8,FALSE),IFERROR(VLOOKUP(E23,#REF!,8,FALSE),""))) ->  | S23: .-. | U23: 18 | V23: =SUMIFS($L23:$L$99999,$B23:$B$99999,$U23,$C23:$C$99999,V$5) -> 33289.28 | W23: =SUMIFS($L23:$L$99999,$B23:$B$99999,$U23,$C23:$C$99999,W$5) -> 10737.6
A24: 19 | B24: =IFERROR(DAY(CTR[[#This Row],[Date]]),"") -> 3 | C24: =IFERROR(MONTH(CTR[[#This Row],[Date]]),"") -> 1 | D24: =IF(ISNA(INDEX(CTS!C:C,MATCH(E24,CTS!$E:$E,0))),"",(INDEX(CTS!C:C,MATCH(E24,CTS!$E:$E,0)))) -> 44199 | E24: 01-019 | F24: =IF(ISNA(INDEX(CTS!$F:$F,MATCH(E24,CTS!$E:$E,0))),"",(INDEX(CTS!$F:$F,MATCH(E24,CTS!$E:$E,0)))) -> CLIENT | G24: =IF(ISNA(INDEX(CTS!$N:$N,MATCH(E24,CTS!$E:$E,0))),"",(INDEX(CTS!$N:$N,MATCH(E24,CTS!$E:$E,0)))) -> 166.3865546 | H24: =IF(ISNA(INDEX(CTS!$O:$O,MATCH(E24,CTS!$E:$E,0))),"",(INDEX(CTS!$O:$O,MATCH(E24,CTS!$E:$E,0)))) -> 0 | I24: =IF(ISNA(INDEX(CTS!$P:$P,MATCH(E24,CTS!$E:$E,0))),"",(INDEX(CTS!$P:$P,MATCH(E24,CTS!$E:$E,0)))) -> 0 | J24: =IF(ISNA(INDEX(CTS!$Q:$Q,MATCH(E24,CTS!$E:$E,0))),"",(INDEX(CTS!$Q:$Q,MATCH(E24,CTS!$E:$E,0)))) -> 166.3865546 | K24: =IF(ISNA(INDEX(CTS!$S:$S,MATCH(E24,CTS!$E:$E,0))),"",(INDEX(CTS!$S:$S,MATCH(E24,CTS!$E:$E,0)))) -> 31.61344538 | L24: =IF(ISNA(INDEX(CTS!$T:$T,MATCH(E24,CTS!$E:$E,0))),"",(INDEX(CTS!$T:$T,MATCH(E24,CTS!$E:$E,0)))) -> 198 | M24: =IF(ISNA(INDEX(CTS!$U:$U,MATCH(E24,CTS!$E:$E,0))),"",(INDEX(CTS!$U:$U,MATCH(E24,CTS!$E:$E,0)))) -> 3 | N24: =IF(ISNA(INDEX(CTS!$V:$V,MATCH(E24,CTS!$E:$E,0))),"",(INDEX(CTS!$V:$V,MATCH(E24,CTS!$E:$E,0)))) -> 195 | O24: =IFERROR(INDEX(CTS!$A:$A,MATCH(E24,CTS!$E:$E,0)),".") -> P | P24: =IFERROR(IFERROR(INDEX(#REF!,MATCH(E24,#REF!,0)),IFERROR(INDEX(#REF!,MATCH(E24,#REF!,0)),INDEX(#REF!,MATCH(E24,#REF!,0)) )),".") -> . | R24: =IFERROR(VLOOKUP(E24,#REF!,8,FALSE),IFERROR(VLOOKUP(E24,#REF!,8,FALSE),IFERROR(VLOOKUP(E24,#REF!,8,FALSE),""))) ->  | S24: .-. | U24: 19 | V24: =SUMIFS($L24:$L$99999,$B24:$B$99999,$U24,$C24:$C$99999,V$5) -> 32978.0056 | W24: =SUMIFS($L24:$L$99999,$B24:$B$99999,$U24,$C24:$C$99999,W$5) -> 0
A25: 20 | B25: =IFERROR(DAY(CTR[[#This Row],[Date]]),"") -> 3 | C25: =IFERROR(MONTH(CTR[[#This Row],[Date]]),"") -> 1 | D25: =IF(ISNA(INDEX(CTS!C:C,MATCH(E25,CTS!$E:$E,0))),"",(INDEX(CTS!C:C,MATCH(E25,CTS!$E:$E,0)))) -> 44199 | E25: 01-020 | F25: =IF(ISNA(INDEX(CTS!$F:$F,MATCH(E25,CTS!$E:$E,0))),"",(INDEX(CTS!$F:$F,MATCH(E25,CTS!$E:$E,0)))) -> CLIENT | G25: =IF(ISNA(INDEX(CTS!$N:$N,MATCH(E25,CTS!$E:$E,0))),"",(INDEX(CTS!$N:$N,MATCH(E25,CTS!$E:$E,0)))) -> 579.8319328 | H25: =IF(ISNA(INDEX(CTS!$O:$O,MATCH(E25,CTS!$E:$E,0))),"",(INDEX(CTS!$O:$O,MATCH(E25,CTS!$E:$E,0)))) -> 0 | I25: =IF(ISNA(INDEX(CTS!$P:$P,MATCH(E25,CTS!$E:$E,0))),"",(INDEX(CTS!$P:$P,MATCH(E25,CTS!$E:$E,0)))) -> 0 | J25: =IF(ISNA(INDEX(CTS!$Q:$Q,MATCH(E25,CTS!$E:$E,0))),"",(INDEX(CTS!$Q:$Q,MATCH(E25,CTS!$E:$E,0)))) -> 579.8319328 | K25: =IF(ISNA(INDEX(CTS!$S:$S,MATCH(E25,CTS!$E:$E,0))),"",(INDEX(CTS!$S:$S,MATCH(E25,CTS!$E:$E,0)))) -> 110.1680672 | L25: =IF(ISNA(INDEX(CTS!$T:$T,MATCH(E25,CTS!$E:$E,0))),"",(INDEX(CTS!$T:$T,MATCH(E25,CTS!$E:$E,0)))) -> 690 | M25: =IF(ISNA(INDEX(CTS!$U:$U,MATCH(E25,CTS!$E:$E,0))),"",(INDEX(CTS!$U:$U,MATCH(E25,CTS!$E:$E,0)))) -> 0 | N25: =IF(ISNA(INDEX(CTS!$V:$V,MATCH(E25,CTS!$E:$E,0))),"",(INDEX(CTS!$V:$V,MATCH(E25,CTS!$E:$E,0)))) -> 690 | O25: =IFERROR(INDEX(CTS!$A:$A,MATCH(E25,CTS!$E:$E,0)),".") -> P | P25: =IFERROR(IFERROR(INDEX(#REF!,MATCH(E25,#REF!,0)),IFERROR(INDEX(#REF!,MATCH(E25,#REF!,0)),INDEX(#REF!,MATCH(E25,#REF!,0)) )),".") -> . | R25: =IFERROR(VLOOKUP(E25,#REF!,8,FALSE),IFERROR(VLOOKUP(E25,#REF!,8,FALSE),IFERROR(VLOOKUP(E25,#REF!,8,FALSE),""))) ->  | S25: .-. | U25: 20 | V25: =SUMIFS($L25:$L$99999,$B25:$B$99999,$U25,$C25:$C$99999,V$5) -> 30612 | W25: =SUMIFS($L25:$L$99999,$B25:$B$99999,$U25,$C25:$C$99999,W$5) -> 0
A26: 21 | B26: =IFERROR(DAY(CTR[[#This Row],[Date]]),"") -> 4 | C26: =IFERROR(MONTH(CTR[[#This Row],[Date]]),"") -> 1 | D26: =IF(ISNA(INDEX(CTS!C:C,MATCH(E26,CTS!$E:$E,0))),"",(INDEX(CTS!C:C,MATCH(E26,CTS!$E:$E,0)))) -> 44200 | E26: 01-021 | F26: =IF(ISNA(INDEX(CTS!$F:$F,MATCH(E26,CTS!$E:$E,0))),"",(INDEX(CTS!$F:$F,MATCH(E26,CTS!$E:$E,0)))) -> CLIENT | G26: =IF(ISNA(INDEX(CTS!$N:$N,MATCH(E26,CTS!$E:$E,0))),"",(INDEX(CTS!$N:$N,MATCH(E26,CTS!$E:$E,0)))) -> 1230.252101 | H26: =IF(ISNA(INDEX(CTS!$O:$O,MATCH(E26,CTS!$E:$E,0))),"",(INDEX(CTS!$O:$O,MATCH(E26,CTS!$E:$E,0)))) -> 0 | I26: =IF(ISNA(INDEX(CTS!$P:$P,MATCH(E26,CTS!$E:$E,0))),"",(INDEX(CTS!$P:$P,MATCH(E26,CTS!$E:$E,0)))) -> 0 | J26: =IF(ISNA(INDEX(CTS!$Q:$Q,MATCH(E26,CTS!$E:$E,0))),"",(INDEX(CTS!$Q:$Q,MATCH(E26,CTS!$E:$E,0)))) -> 1230.252101 | K26: =IF(ISNA(INDEX(CTS!$S:$S,MATCH(E26,CTS!$E:$E,0))),"",(INDEX(CTS!$S:$S,MATCH(E26,CTS!$E:$E,0)))) -> 233.7478992 | L26: =IF(ISNA(INDEX(CTS!$T:$T,MATCH(E26,CTS!$E:$E,0))),"",(INDEX(CTS!$T:$T,MATCH(E26,CTS!$E:$E,0)))) -> 1464 | M26: =IF(ISNA(INDEX(CTS!$U:$U,MATCH(E26,CTS!$E:$E,0))),"",(INDEX(CTS!$U:$U,MATCH(E26,CTS!$E:$E,0)))) -> 4 | N26: =IF(ISNA(INDEX(CTS!$V:$V,MATCH(E26,CTS!$E:$E,0))),"",(INDEX(CTS!$V:$V,MATCH(E26,CTS!$E:$E,0)))) -> 1460 | O26: =IFERROR(INDEX(CTS!$A:$A,MATCH(E26,CTS!$E:$E,0)),".") -> P | P26: =IFERROR(IFERROR(INDEX(#REF!,MATCH(E26,#REF!,0)),IFERROR(INDEX(#REF!,MATCH(E26,#REF!,0)),INDEX(#REF!,MATCH(E26,#REF!,0)) )),".") -> . | R26: =IFERROR(VLOOKUP(E26,#REF!,8,FALSE),IFERROR(VLOOKUP(E26,#REF!,8,FALSE),IFERROR(VLOOKUP(E26,#REF!,8,FALSE),""))) ->  | S26: .-. | U26: 21 | V26: =SUMIFS($L26:$L$99999,$B26:$B$99999,$U26,$C26:$C$99999,V$5) -> 22975 | W26: =SUMIFS($L26:$L$99999,$B26:$B$99999,$U26,$C26:$C$99999,W$5) -> 11970
A27: 22 | B27: =IFERROR(DAY(CTR[[#This Row],[Date]]),"") -> 4 | C27: =IFERROR(MONTH(CTR[[#This Row],[Date]]),"") -> 1 | D27: =IF(ISNA(INDEX(CTS!C:C,MATCH(E27,CTS!$E:$E,0))),"",(INDEX(CTS!C:C,MATCH(E27,CTS!$E:$E,0)))) -> 44200 | E27: 01-022 | F27: =IF(ISNA(INDEX(CTS!$F:$F,MATCH(E27,CTS!$E:$E,0))),"",(INDEX(CTS!$F:$F,MATCH(E27,CTS!$E:$E,0)))) -> CLIENT | G27: =IF(ISNA(INDEX(CTS!$N:$N,MATCH(E27,CTS!$E:$E,0))),"",(INDEX(CTS!$N:$N,MATCH(E27,CTS!$E:$E,0)))) -> 1954.621849 | H27: =IF(ISNA(INDEX(CTS!$O:$O,MATCH(E27,CTS!$E:$E,0))),"",(INDEX(CTS!$O:$O,MATCH(E27,CTS!$E:$E,0)))) -> 0 | I27: =IF(ISNA(INDEX(CTS!$P:$P,MATCH(E27,CTS!$E:$E,0))),"",(INDEX(CTS!$P:$P,MATCH(E27,CTS!$E:$E,0)))) -> 0 | J27: =IF(ISNA(INDEX(CTS!$Q:$Q,MATCH(E27,CTS!$E:$E,0))),"",(INDEX(CTS!$Q:$Q,MATCH(E27,CTS!$E:$E,0)))) -> 1954.621849 | K27: =IF(ISNA(INDEX(CTS!$S:$S,MATCH(E27,CTS!$E:$E,0))),"",(INDEX(CTS!$S:$S,MATCH(E27,CTS!$E:$E,0)))) -> 371.3781513 | L27: =IF(ISNA(INDEX(CTS!$T:$T,MATCH(E27,CTS!$E:$E,0))),"",(INDEX(CTS!$T:$T,MATCH(E27,CTS!$E:$E,0)))) -> 2326 | M27: =IF(ISNA(INDEX(CTS!$U:$U,MATCH(E27,CTS!$E:$E,0))),"",(INDEX(CTS!$U:$U,MATCH(E27,CTS!$E:$E,0)))) -> 1 | N27: =IF(ISNA(INDEX(CTS!$V:$V,MATCH(E27,CTS!$E:$E,0))),"",(INDEX(CTS!$V:$V,MATCH(E27,CTS!$E:$E,0)))) -> 2325 | O27: =IFERROR(INDEX(CTS!$A:$A,MATCH(E27,CTS!$E:$E,0)),".") -> P | P27: =IFERROR(IFERROR(INDEX(#REF!,MATCH(E27,#REF!,0)),IFERROR(INDEX(#REF!,MATCH(E27,#REF!,0)),INDEX(#REF!,MATCH(E27,#REF!,0)) )),".") -> . | R27: =IFERROR(VLOOKUP(E27,#REF!,8,FALSE),IFERROR(VLOOKUP(E27,#REF!,8,FALSE),IFERROR(VLOOKUP(E27,#REF!,8,FALSE),""))) ->  | S27: .-. | U27: 22 | V27: =SUMIFS($L27:$L$99999,$B27:$B$99999,$U27,$C27:$C$99999,V$5) -> 0 | W27: =SUMIFS($L27:$L$99999,$B27:$B$99999,$U27,$C27:$C$99999,W$5) -> 30024.9
A28: 23 | B28: =IFERROR(DAY(CTR[[#This Row],[Date]]),"") -> 4 | C28: =IFERROR(MONTH(CTR[[#This Row],[Date]]),"") -> 1 | D28: =IF(ISNA(INDEX(CTS!C:C,MATCH(E28,CTS!$E:$E,0))),"",(INDEX(CTS!C:C,MATCH(E28,CTS!$E:$E,0)))) -> 44200 | E28: 01-023 | F28: =IF(ISNA(INDEX(CTS!$F:$F,MATCH(E28,CTS!$E:$E,0))),"",(INDEX(CTS!$F:$F,MATCH(E28,CTS!$E:$E,0)))) -> CLIENT | G28: =IF(ISNA(INDEX(CTS!$N:$N,MATCH(E28,CTS!$E:$E,0))),"",(INDEX(CTS!$N:$N,MATCH(E28,CTS!$E:$E,0)))) -> 2907.563025 | H28: =IF(ISNA(INDEX(CTS!$O:$O,MATCH(E28,CTS!$E:$E,0))),"",(INDEX(CTS!$O:$O,MATCH(E28,CTS!$E:$E,0)))) -> 0 | I28: =IF(ISNA(INDEX(CTS!$P:$P,MATCH(E28,CTS!$E:$E,0))),"",(INDEX(CTS!$P:$P,MATCH(E28,CTS!$E:$E,0)))) -> 0 | J28: =IF(ISNA(INDEX(CTS!$Q:$Q,MATCH(E28,CTS!$E:$E,0))),"",(INDEX(CTS!$Q:$Q,MATCH(E28,CTS!$E:$E,0)))) -> 2907.563025 | K28: =IF(ISNA(INDEX(CTS!$S:$S,MATCH(E28,CTS!$E:$E,0))),"",(INDEX(CTS!$S:$S,MATCH(E28,CTS!$E:$E,0)))) -> 552.4369748 | L28: =IF(ISNA(INDEX(CTS!$T:$T,MATCH(E28,CTS!$E:$E,0))),"",(INDEX(CTS!$T:$T,MATCH(E28,CTS!$E:$E,0)))) -> 3460 | M28: =IF(ISNA(INDEX(CTS!$U:$U,MATCH(E28,CTS!$E:$E,0))),"",(INDEX(CTS!$U:$U,MATCH(E28,CTS!$E:$E,0)))) -> 0 | N28: =IF(ISNA(INDEX(CTS!$V:$V,MATCH(E28,CTS!$E:$E,0))),"",(INDEX(CTS!$V:$V,MATCH(E28,CTS!$E:$E,0)))) -> 3460 | O28: =IFERROR(INDEX(CTS!$A:$A,MATCH(E28,CTS!$E:$E,0)),".") -> P | P28: =IFERROR(IFERROR(INDEX(#REF!,MATCH(E28,#REF!,0)),IFERROR(INDEX(#REF!,MATCH(E28,#REF!,0)),INDEX(#REF!,MATCH(E28,#REF!,0)) )),".") -> . | R28: =IFERROR(VLOOKUP(E28,#REF!,8,FALSE),IFERROR(VLOOKUP(E28,#REF!,8,FALSE),IFERROR(VLOOKUP(E28,#REF!,8,FALSE),""))) ->  | S28: .-. | U28: 23 | V28: =SUMIFS($L28:$L$99999,$B28:$B$99999,$U28,$C28:$C$99999,V$5) -> 0 | W28: =SUMIFS($L28:$L$99999,$B28:$B$99999,$U28,$C28:$C$99999,W$5) -> 25002.8
A29: 24 | B29: =IFERROR(DAY(CTR[[#This Row],[Date]]),"") -> 4 | C29: =IFERROR(MONTH(CTR[[#This Row],[Date]]),"") -> 1 | D29: =IF(ISNA(INDEX(CTS!C:C,MATCH(E29,CTS!$E:$E,0))),"",(INDEX(CTS!C:C,MATCH(E29,CTS!$E:$E,0)))) -> 44200 | E29: 01-024 | F29: =IF(ISNA(INDEX(CTS!$F:$F,MATCH(E29,CTS!$E:$E,0))),"",(INDEX(CTS!$F:$F,MATCH(E29,CTS!$E:$E,0)))) -> CLIENT | G29: =IF(ISNA(INDEX(CTS!$N:$N,MATCH(E29,CTS!$E:$E,0))),"",(INDEX(CTS!$N:$N,MATCH(E29,CTS!$E:$E,0)))) -> 33.61344538 | H29: =IF(ISNA(INDEX(CTS!$O:$O,MATCH(E29,CTS!$E:$E,0))),"",(INDEX(CTS!$O:$O,MATCH(E29,CTS!$E:$E,0)))) -> 0 | I29: =IF(ISNA(INDEX(CTS!$P:$P,MATCH(E29,CTS!$E:$E,0))),"",(INDEX(CTS!$P:$P,MATCH(E29,CTS!$E:$E,0)))) -> 0 | J29: =IF(ISNA(INDEX(CTS!$Q:$Q,MATCH(E29,CTS!$E:$E,0))),"",(INDEX(CTS!$Q:$Q,MATCH(E29,CTS!$E:$E,0)))) -> 33.61344538 | K29: =IF(ISNA(INDEX(CTS!$S:$S,MATCH(E29,CTS!$E:$E,0))),"",(INDEX(CTS!$S:$S,MATCH(E29,CTS!$E:$E,0)))) -> 6.386554622 | L29: =IF(ISNA(INDEX(CTS!$T:$T,MATCH(E29,CTS!$E:$E,0))),"",(INDEX(CTS!$T:$T,MATCH(E29,CTS!$E:$E,0)))) -> 40 | M29: =IF(ISNA(INDEX(CTS!$U:$U,MATCH(E29,CTS!$E:$E,0))),"",(INDEX(CTS!$U:$U,MATCH(E29,CTS!$E:$E,0)))) -> 0 | N29: =IF(ISNA(INDEX(CTS!$V:$V,MATCH(E29,CTS!$E:$E,0))),"",(INDEX(CTS!$V:$V,MATCH(E29,CTS!$E:$E,0)))) -> 40 | O29: =IFERROR(INDEX(CTS!$A:$A,MATCH(E29,CTS!$E:$E,0)),".") -> P | P29: =IFERROR(IFERROR(INDEX(#REF!,MATCH(E29,#REF!,0)),IFERROR(INDEX(#REF!,MATCH(E29,#REF!,0)),INDEX(#REF!,MATCH(E29,#REF!,0)) )),".") -> . | R29: =IFERROR(VLOOKUP(E29,#REF!,8,FALSE),IFERROR(VLOOKUP(E29,#REF!,8,FALSE),IFERROR(VLOOKUP(E29,#REF!,8,FALSE),""))) ->  | S29: .-. | U29: 24 | V29: =SUMIFS($L29:$L$99999,$B29:$B$99999,$U29,$C29:$C$99999,V$5) -> 78498 | W29: =SUMIFS($L29:$L$99999,$B29:$B$99999,$U29,$C29:$C$99999,W$5) -> 51014.9983
A30: 25 | B30: =IFERROR(DAY(CTR[[#This Row],[Date]]),"") -> 4 | C30: =IFERROR(MONTH(CTR[[#This Row],[Date]]),"") -> 1 | D30: =IF(ISNA(INDEX(CTS!C:C,MATCH(E30,CTS!$E:$E,0))),"",(INDEX(CTS!C:C,MATCH(E30,CTS!$E:$E,0)))) -> 44200 | E30: 01-025 | F30: =IF(ISNA(INDEX(CTS!$F:$F,MATCH(E30,CTS!$E:$E,0))),"",(INDEX(CTS!$F:$F,MATCH(E30,CTS!$E:$E,0)))) -> CLIENT | G30: =IF(ISNA(INDEX(CTS!$N:$N,MATCH(E30,CTS!$E:$E,0))),"",(INDEX(CTS!$N:$N,MATCH(E30,CTS!$E:$E,0)))) -> 1596.638655 | H30: =IF(ISNA(INDEX(CTS!$O:$O,MATCH(E30,CTS!$E:$E,0))),"",(INDEX(CTS!$O:$O,MATCH(E30,CTS!$E:$E,0)))) -> 0 | I30: =IF(ISNA(INDEX(CTS!$P:$P,MATCH(E30,CTS!$E:$E,0))),"",(INDEX(CTS!$P:$P,MATCH(E30,CTS!$E:$E,0)))) -> 0 | J30: =IF(ISNA(INDEX(CTS!$Q:$Q,MATCH(E30,CTS!$E:$E,0))),"",(INDEX(CTS!$Q:$Q,MATCH(E30,CTS!$E:$E,0)))) -> 1596.638655 | K30: =IF(ISNA(INDEX(CTS!$S:$S,MATCH(E30,CTS!$E:$E,0))),"",(INDEX(CTS!$S:$S,MATCH(E30,CTS!$E:$E,0)))) -> 303.3613445 | L30: =IF(ISNA(INDEX(CTS!$T:$T,MATCH(E30,CTS!$E:$E,0))),"",(INDEX(CTS!$T:$T,MATCH(E30,CTS!$E:$E,0)))) -> 1900 | M30: =IF(ISNA(INDEX(CTS!$U:$U,MATCH(E30,CTS!$E:$E,0))),"",(INDEX(CTS!$U:$U,MATCH(E30,CTS!$E:$E,0)))) -> 0 | N30: =IF(ISNA(INDEX(CTS!$V:$V,MATCH(E30,CTS!$E:$E,0))),"",(INDEX(CTS!$V:$V,MATCH(E30,CTS!$E:$E,0)))) -> 1900 | O30: =IFERROR(INDEX(CTS!$A:$A,MATCH(E30,CTS!$E:$E,0)),".") -> P | P30: =IFERROR(IFERROR(INDEX(#REF!,MATCH(E30,#REF!,0)),IFERROR(INDEX(#REF!,MATCH(E30,#REF!,0)),INDEX(#REF!,MATCH(E30,#REF!,0)) )),".") -> . | R30: =IFERROR(VLOOKUP(E30,#REF!,8,FALSE),IFERROR(VLOOKUP(E30,#REF!,8,FALSE),IFERROR(VLOOKUP(E30,#REF!,8,FALSE),""))) ->  | S30: .-. | U30: 25 | V30: =SUMIFS($L30:$L$99999,$B30:$B$99999,$U30,$C30:$C$99999,V$5) -> 35345 | W30: =SUMIFS($L30:$L$99999,$B30:$B$99999,$U30,$C30:$C$99999,W$5) -> 35556.44
A31: 26 | B31: =IFERROR(DAY(CTR[[#This Row],[Date]]),"") -> 4 | C31: =IFERROR(MONTH(CTR[[#This Row],[Date]]),"") -> 1 | D31: =IF(ISNA(INDEX(CTS!C:C,MATCH(E31,CTS!$E:$E,0))),"",(INDEX(CTS!C:C,MATCH(E31,CTS!$E:$E,0)))) -> 44200 | E31: 01-026 | F31: =IF(ISNA(INDEX(CTS!$F:$F,MATCH(E31,CTS!$E:$E,0))),"",(INDEX(CTS!$F:$F,MATCH(E31,CTS!$E:$E,0)))) -> CLIENT | G31: =IF(ISNA(INDEX(CTS!$N:$N,MATCH(E31,CTS!$E:$E,0))),"",(INDEX(CTS!$N:$N,MATCH(E31,CTS!$E:$E,0)))) -> 33.61344538 | H31: =IF(ISNA(INDEX(CTS!$O:$O,MATCH(E31,CTS!$E:$E,0))),"",(INDEX(CTS!$O:$O,MATCH(E31,CTS!$E:$E,0)))) -> 0 | I31: =IF(ISNA(INDEX(CTS!$P:$P,MATCH(E31,CTS!$E:$E,0))),"",(INDEX(CTS!$P:$P,MATCH(E31,CTS!$E:$E,0)))) -> 0 | J31: =IF(ISNA(INDEX(CTS!$Q:$Q,MATCH(E31,CTS!$E:$E,0))),"",(INDEX(CTS!$Q:$Q,MATCH(E31,CTS!$E:$E,0)))) -> 33.61344538 | K31: =IF(ISNA(INDEX(CTS!$S:$S,MATCH(E31,CTS!$E:$E,0))),"",(INDEX(CTS!$S:$S,MATCH(E31,CTS!$E:$E,0)))) -> 6.386554622 | L31: =IF(ISNA(INDEX(CTS!$T:$T,MATCH(E31,CTS!$E:$E,0))),"",(INDEX(CTS!$T:$T,MATCH(E31,CTS!$E:$E,0)))) -> 40 | M31: =IF(ISNA(INDEX(CTS!$U:$U,MATCH(E31,CTS!$E:$E,0))),"",(INDEX(CTS!$U:$U,MATCH(E31,CTS!$E:$E,0)))) -> 0 | N31: =IF(ISNA(INDEX(CTS!$V:$V,MATCH(E31,CTS!$E:$E,0))),"",(INDEX(CTS!$V:$V,MATCH(E31,CTS!$E:$E,0)))) -> 40 | O31: =IFERROR(INDEX(CTS!$A:$A,MATCH(E31,CTS!$E:$E,0)),".") -> P | P31: =IFERROR(IFERROR(INDEX(#REF!,MATCH(E31,#REF!,0)),IFERROR(INDEX(#REF!,MATCH(E31,#REF!,0)),INDEX(#REF!,MATCH(E31,#REF!,0)) )),".") -> . | R31: =IFERROR(VLOOKUP(E31,#REF!,8,FALSE),IFERROR(VLOOKUP(E31,#REF!,8,FALSE),IFERROR(VLOOKUP(E31,#REF!,8,FALSE),""))) ->  | S31: .-. | U31: 26 | V31: =SUMIFS($L31:$L$99999,$B31:$B$99999,$U31,$C31:$C$99999,V$5) -> 84648.424 | W31: =SUMIFS($L31:$L$99999,$B31:$B$99999,$U31,$C31:$C$99999,W$5) -> 0
A32: 27 | B32: =IFERROR(DAY(CTR[[#This Row],[Date]]),"") -> 4 | C32: =IFERROR(MONTH(CTR[[#This Row],[Date]]),"") -> 1 | D32: =IF(ISNA(INDEX(CTS!C:C,MATCH(E32,CTS!$E:$E,0))),"",(INDEX(CTS!C:C,MATCH(E32,CTS!$E:$E,0)))) -> 44200 | E32: 01-027 | F32: =IF(ISNA(INDEX(CTS!$F:$F,MATCH(E32,CTS!$E:$E,0))),"",(INDEX(CTS!$F:$F,MATCH(E32,CTS!$E:$E,0)))) -> CLIENT | G32: =IF(ISNA(INDEX(CTS!$N:$N,MATCH(E32,CTS!$E:$E,0))),"",(INDEX(CTS!$N:$N,MATCH(E32,CTS!$E:$E,0)))) -> 65.54621849 | H32: =IF(ISNA(INDEX(CTS!$O:$O,MATCH(E32,CTS!$E:$E,0))),"",(INDEX(CTS!$O:$O,MATCH(E32,CTS!$E:$E,0)))) -> 0 | I32: =IF(ISNA(INDEX(CTS!$P:$P,MATCH(E32,CTS!$E:$E,0))),"",(INDEX(CTS!$P:$P,MATCH(E32,CTS!$E:$E,0)))) -> 0 | J32: =IF(ISNA(INDEX(CTS!$Q:$Q,MATCH(E32,CTS!$E:$E,0))),"",(INDEX(CTS!$Q:$Q,MATCH(E32,CTS!$E:$E,0)))) -> 65.54621849 | K32: =IF(ISNA(INDEX(CTS!$S:$S,MATCH(E32,CTS!$E:$E,0))),"",(INDEX(CTS!$S:$S,MATCH(E32,CTS!$E:$E,0)))) -> 12.45378151 | L32: =IF(ISNA(INDEX(CTS!$T:$T,MATCH(E32,CTS!$E:$E,0))),"",(INDEX(CTS!$T:$T,MATCH(E32,CTS!$E:$E,0)))) -> 78 | M32: =IF(ISNA(INDEX(CTS!$U:$U,MATCH(E32,CTS!$E:$E,0))),"",(INDEX(CTS!$U:$U,MATCH(E32,CTS!$E:$E,0)))) -> 2 | N32: =IF(ISNA(INDEX(CTS!$V:$V,MATCH(E32,CTS!$E:$E,0))),"",(INDEX(CTS!$V:$V,MATCH(E32,CTS!$E:$E,0)))) -> 76 | O32: =IFERROR(INDEX(CTS!$A:$A,MATCH(E32,CTS!$E:$E,0)),".") -> P | P32: =IFERROR(IFERROR(INDEX(#REF!,MATCH(E32,#REF!,0)),IFERROR(INDEX(#REF!,MATCH(E32,#REF!,0)),INDEX(#REF!,MATCH(E32,#REF!,0)) )),".") -> . | R32: =IFERROR(VLOOKUP(E32,#REF!,8,FALSE),IFERROR(VLOOKUP(E32,#REF!,8,FALSE),IFERROR(VLOOKUP(E32,#REF!,8,FALSE),""))) ->  | S32: .-. | U32: 27 | V32: =SUMIFS($L32:$L$99999,$B32:$B$99999,$U32,$C32:$C$99999,V$5) -> 18623 | W32: =SUMIFS($L32:$L$99999,$B32:$B$99999,$U32,$C32:$C$99999,W$5) -> 0
A33: 28 | B33: =IFERROR(DAY(CTR[[#This Row],[Date]]),"") -> 4 | C33: =IFERROR(MONTH(CTR[[#This Row],[Date]]),"") -> 1 | D33: =IF(ISNA(INDEX(CTS!C:C,MATCH(E33,CTS!$E:$E,0))),"",(INDEX(CTS!C:C,MATCH(E33,CTS!$E:$E,0)))) -> 44200 | E33: 01-028 | F33: =IF(ISNA(INDEX(CTS!$F:$F,MATCH(E33,CTS!$E:$E,0))),"",(INDEX(CTS!$F:$F,MATCH(E33,CTS!$E:$E,0)))) -> CLIENT | G33: =IF(ISNA(INDEX(CTS!$N:$N,MATCH(E33,CTS!$E:$E,0))),"",(INDEX(CTS!$N:$N,MATCH(E33,CTS!$E:$E,0)))) -> 84.03361345 | H33: =IF(ISNA(INDEX(CTS!$O:$O,MATCH(E33,CTS!$E:$E,0))),"",(INDEX(CTS!$O:$O,MATCH(E33,CTS!$E:$E,0)))) -> 0 | I33: =IF(ISNA(INDEX(CTS!$P:$P,MATCH(E33,CTS!$E:$E,0))),"",(INDEX(CTS!$P:$P,MATCH(E33,CTS!$E:$E,0)))) -> 0 | J33: =IF(ISNA(INDEX(CTS!$Q:$Q,MATCH(E33,CTS!$E:$E,0))),"",(INDEX(CTS!$Q:$Q,MATCH(E33,CTS!$E:$E,0)))) -> 84.03361345 | K33: =IF(ISNA(INDEX(CTS!$S:$S,MATCH(E33,CTS!$E:$E,0))),"",(INDEX(CTS!$S:$S,MATCH(E33,CTS!$E:$E,0)))) -> 15.96638655 | L33: =IF(ISNA(INDEX(CTS!$T:$T,MATCH(E33,CTS!$E:$E,0))),"",(INDEX(CTS!$T:$T,MATCH(E33,CTS!$E:$E,0)))) -> 100 | M33: =IF(ISNA(INDEX(CTS!$U:$U,MATCH(E33,CTS!$E:$E,0))),"",(INDEX(CTS!$U:$U,MATCH(E33,CTS!$E:$E,0)))) -> 0 | N33: =IF(ISNA(INDEX(CTS!$V:$V,MATCH(E33,CTS!$E:$E,0))),"",(INDEX(CTS!$V:$V,MATCH(E33,CTS!$E:$E,0)))) -> 100 | O33: =IFERROR(INDEX(CTS!$A:$A,MATCH(E33,CTS!$E:$E,0)),".") -> P | P33: =IFERROR(IFERROR(INDEX(#REF!,MATCH(E33,#REF!,0)),IFERROR(INDEX(#REF!,MATCH(E33,#REF!,0)),INDEX(#REF!,MATCH(E33,#REF!,0)) )),".") -> . | R33: =IFERROR(VLOOKUP(E33,#REF!,8,FALSE),IFERROR(VLOOKUP(E33,#REF!,8,FALSE),IFERROR(VLOOKUP(E33,#REF!,8,FALSE),""))) ->  | S33: .-. | U33: 28 | V33: =SUMIFS($L33:$L$99999,$B33:$B$99999,$U33,$C33:$C$99999,V$5) -> 30041 | W33: =SUMIFS($L33:$L$99999,$B33:$B$99999,$U33,$C33:$C$99999,W$5) -> 25214.456
A34: 29 | B34: =IFERROR(DAY(CTR[[#This Row],[Date]]),"") -> 4 | C34: =IFERROR(MONTH(CTR[[#This Row],[Date]]),"") -> 1 | D34: =IF(ISNA(INDEX(CTS!C:C,MATCH(E34,CTS!$E:$E,0))),"",(INDEX(CTS!C:C,MATCH(E34,CTS!$E:$E,0)))) -> 44200 | E34: 01-029 | F34: =IF(ISNA(INDEX(CTS!$F:$F,MATCH(E34,CTS!$E:$E,0))),"",(INDEX(CTS!$F:$F,MATCH(E34,CTS!$E:$E,0)))) -> CLIENT | G34: =IF(ISNA(INDEX(CTS!$N:$N,MATCH(E34,CTS!$E:$E,0))),"",(INDEX(CTS!$N:$N,MATCH(E34,CTS!$E:$E,0)))) -> 285.7142857 | H34: =IF(ISNA(INDEX(CTS!$O:$O,MATCH(E34,CTS!$E:$E,0))),"",(INDEX(CTS!$O:$O,MATCH(E34,CTS!$E:$E,0)))) -> 0 | I34: =IF(ISNA(INDEX(CTS!$P:$P,MATCH(E34,CTS!$E:$E,0))),"",(INDEX(CTS!$P:$P,MATCH(E34,CTS!$E:$E,0)))) -> 0 | J34: =IF(ISNA(INDEX(CTS!$Q:$Q,MATCH(E34,CTS!$E:$E,0))),"",(INDEX(CTS!$Q:$Q,MATCH(E34,CTS!$E:$E,0)))) -> 285.7142857 | K34: =IF(ISNA(INDEX(CTS!$S:$S,MATCH(E34,CTS!$E:$E,0))),"",(INDEX(CTS!$S:$S,MATCH(E34,CTS!$E:$E,0)))) -> 54.28571429 | L34: =IF(ISNA(INDEX(CTS!$T:$T,MATCH(E34,CTS!$E:$E,0))),"",(INDEX(CTS!$T:$T,MATCH(E34,CTS!$E:$E,0)))) -> 340 | M34: =IF(ISNA(INDEX(CTS!$U:$U,MATCH(E34,CTS!$E:$E,0))),"",(INDEX(CTS!$U:$U,MATCH(E34,CTS!$E:$E,0)))) -> 0 | N34: =IF(ISNA(INDEX(CTS!$V:$V,MATCH(E34,CTS!$E:$E,0))),"",(INDEX(CTS!$V:$V,MATCH(E34,CTS!$E:$E,0)))) -> 340 | O34: =IFERROR(INDEX(CTS!$A:$A,MATCH(E34,CTS!$E:$E,0)),".") -> p | P34: =IFERROR(IFERROR(INDEX(#REF!,MATCH(E34,#REF!,0)),IFERROR(INDEX(#REF!,MATCH(E34,#REF!,0)),INDEX(#REF!,MATCH(E34,#REF!,0)) )),".") -> . | R34: =IFERROR(VLOOKUP(E34,#REF!,8,FALSE),IFERROR(VLOOKUP(E34,#REF!,8,FALSE),IFERROR(VLOOKUP(E34,#REF!,8,FALSE),""))) ->  | S34: .-. | U34: 29 | V34: =SUMIFS($L34:$L$99999,$B34:$B$99999,$U34,$C34:$C$99999,V$5) -> 0 | W34: =SUMIFS($L34:$L$99999,$B34:$B$99999,$U34,$C34:$C$99999,W$5) -> 0
A35: 30 | B35: =IFERROR(DAY(CTR[[#This Row],[Date]]),"") -> 4 | C35: =IFERROR(MONTH(CTR[[#This Row],[Date]]),"") -> 1 | D35: =IF(ISNA(INDEX(CTS!C:C,MATCH(E35,CTS!$E:$E,0))),"",(INDEX(CTS!C:C,MATCH(E35,CTS!$E:$E,0)))) -> 44200 | E35: 01-030 | F35: =IF(ISNA(INDEX(CTS!$F:$F,MATCH(E35,CTS!$E:$E,0))),"",(INDEX(CTS!$F:$F,MATCH(E35,CTS!$E:$E,0)))) -> CLIENT | G35: =IF(ISNA(INDEX(CTS!$N:$N,MATCH(E35,CTS!$E:$E,0))),"",(INDEX(CTS!$N:$N,MATCH(E35,CTS!$E:$E,0)))) -> 1047.058824 | H35: =IF(ISNA(INDEX(CTS!$O:$O,MATCH(E35,CTS!$E:$E,0))),"",(INDEX(CTS!$O:$O,MATCH(E35,CTS!$E:$E,0)))) -> 0 | I35: =IF(ISNA(INDEX(CTS!$P:$P,MATCH(E35,CTS!$E:$E,0))),"",(INDEX(CTS!$P:$P,MATCH(E35,CTS!$E:$E,0)))) -> 0 | J35: =IF(ISNA(INDEX(CTS!$Q:$Q,MATCH(E35,CTS!$E:$E,0))),"",(INDEX(CTS!$Q:$Q,MATCH(E35,CTS!$E:$E,0)))) -> 1047.058824 | K35: =IF(ISNA(INDEX(CTS!$S:$S,MATCH(E35,CTS!$E:$E,0))),"",(INDEX(CTS!$S:$S,MATCH(E35,CTS!$E:$E,0)))) -> 198.9411765 | L35: =IF(ISNA(INDEX(CTS!$T:$T,MATCH(E35,CTS!$E:$E,0))),"",(INDEX(CTS!$T:$T,MATCH(E35,CTS!$E:$E,0)))) -> 1246 | M35: =IF(ISNA(INDEX(CTS!$U:$U,MATCH(E35,CTS!$E:$E,0))),"",(INDEX(CTS!$U:$U,MATCH(E35,CTS!$E:$E,0)))) -> 6 | N35: =IF(ISNA(INDEX(CTS!$V:$V,MATCH(E35,CTS!$E:$E,0))),"",(INDEX(CTS!$V:$V,MATCH(E35,CTS!$E:$E,0)))) -> 1240 | O35: =IFERROR(INDEX(CTS!$A:$A,MATCH(E35,CTS!$E:$E,0)),".") -> p | P35: =IFERROR(IFERROR(INDEX(#REF!,MATCH(E35,#REF!,0)),IFERROR(INDEX(#REF!,MATCH(E35,#REF!,0)),INDEX(#REF!,MATCH(E35,#REF!,0)) )),".") -> . | R35: =IFERROR(VLOOKUP(E35,#REF!,8,FALSE),IFERROR(VLOOKUP(E35,#REF!,8,FALSE),IFERROR(VLOOKUP(E35,#REF!,8,FALSE),""))) ->  | S35: .-. | U35: 30 | V35: =SUMIFS($L35:$L$99999,$B35:$B$99999,$U35,$C35:$C$99999,V$5) -> 0 | W35: =SUMIFS($L35:$L$99999,$B35:$B$99999,$U35,$C35:$C$99999,W$5) -> 0
A36: 31 | B36: =IFERROR(DAY(CTR[[#This Row],[Date]]),"") -> 4 | C36: =IFERROR(MONTH(CTR[[#This Row],[Date]]),"") -> 1 | D36: =IF(ISNA(INDEX(CTS!C:C,MATCH(E36,CTS!$E:$E,0))),"",(INDEX(CTS!C:C,MATCH(E36,CTS!$E:$E,0)))) -> 44200 | E36: 01-031 | F36: =IF(ISNA(INDEX(CTS!$F:$F,MATCH(E36,CTS!$E:$E,0))),"",(INDEX(CTS!$F:$F,MATCH(E36,CTS!$E:$E,0)))) -> CLIENT | G36: =IF(ISNA(INDEX(CTS!$N:$N,MATCH(E36,CTS!$E:$E,0))),"",(INDEX(CTS!$N:$N,MATCH(E36,CTS!$E:$E,0)))) -> 10504.20168 | H36: =IF(ISNA(INDEX(CTS!$O:$O,MATCH(E36,CTS!$E:$E,0))),"",(INDEX(CTS!$O:$O,MATCH(E36,CTS!$E:$E,0)))) -> 0 | I36: =IF(ISNA(INDEX(CTS!$P:$P,MATCH(E36,CTS!$E:$E,0))),"",(INDEX(CTS!$P:$P,MATCH(E36,CTS!$E:$E,0)))) -> 0 | J36: =IF(ISNA(INDEX(CTS!$Q:$Q,MATCH(E36,CTS!$E:$E,0))),"",(INDEX(CTS!$Q:$Q,MATCH(E36,CTS!$E:$E,0)))) -> 10504.20168 | K36: =IF(ISNA(INDEX(CTS!$S:$S,MATCH(E36,CTS!$E:$E,0))),"",(INDEX(CTS!$S:$S,MATCH(E36,CTS!$E:$E,0)))) -> 1995.798319 | L36: =IF(ISNA(INDEX(CTS!$T:$T,MATCH(E36,CTS!$E:$E,0))),"",(INDEX(CTS!$T:$T,MATCH(E36,CTS!$E:$E,0)))) -> 12500 | M36: =IF(ISNA(INDEX(CTS!$U:$U,MATCH(E36,CTS!$E:$E,0))),"",(INDEX(CTS!$U:$U,MATCH(E36,CTS!$E:$E,0)))) -> 0 | N36: =IF(ISNA(INDEX(CTS!$V:$V,MATCH(E36,CTS!$E:$E,0))),"",(INDEX(CTS!$V:$V,MATCH(E36,CTS!$E:$E,0)))) -> 12500 | O36: =IFERROR(INDEX(CTS!$A:$A,MATCH(E36,CTS!$E:$E,0)),".") -> p | P36: =IFERROR(IFERROR(INDEX(#REF!,MATCH(E36,#REF!,0)),IFERROR(INDEX(#REF!,MATCH(E36,#REF!,0)),INDEX(#REF!,MATCH(E36,#REF!,0)) )),".") -> . | R36: =IFERROR(VLOOKUP(E36,#REF!,8,FALSE),IFERROR(VLOOKUP(E36,#REF!,8,FALSE),IFERROR(VLOOKUP(E36,#REF!,8,FALSE),""))) ->  | S36: .-. | U36: 31 | V36: =SUMIFS($L36:$L$99999,$B36:$B$99999,$U36,$C36:$C$99999,V$5) -> 20450.568 | W36: =SUMIFS($L36:$L$99999,$B36:$B$99999,$U36,$C36:$C$99999,W$5) -> 0
A37: 32 | B37: =IFERROR(DAY(CTR[[#This Row],[Date]]),"") -> 3 | C37: =IFERROR(MONTH(CTR[[#This Row],[Date]]),"") -> 1 | D37: =IF(ISNA(INDEX(CTS!C:C,MATCH(E37,CTS!$E:$E,0))),"",(INDEX(CTS!C:C,MATCH(E37,CTS!$E:$E,0)))) -> 44199 | E37: 01-032 | F37: =IF(ISNA(INDEX(CTS!$F:$F,MATCH(E37,CTS!$E:$E,0))),"",(INDEX(CTS!$F:$F,MATCH(E37,CTS!$E:$E,0)))) -> CLIENT | G37: =IF(ISNA(INDEX(CTS!$N:$N,MATCH(E37,CTS!$E:$E,0))),"",(INDEX(CTS!$N:$N,MATCH(E37,CTS!$E:$E,0)))) -> 310.9243697 | H37: =IF(ISNA(INDEX(CTS!$O:$O,MATCH(E37,CTS!$E:$E,0))),"",(INDEX(CTS!$O:$O,MATCH(E37,CTS!$E:$E,0)))) -> 0 | I37: =IF(ISNA(INDEX(CTS!$P:$P,MATCH(E37,CTS!$E:$E,0))),"",(INDEX(CTS!$P:$P,MATCH(E37,CTS!$E:$E,0)))) -> 0 | J37: =IF(ISNA(INDEX(CTS!$Q:$Q,MATCH(E37,CTS!$E:$E,0))),"",(INDEX(CTS!$Q:$Q,MATCH(E37,CTS!$E:$E,0)))) -> 310.9243697 | K37: =IF(ISNA(INDEX(CTS!$S:$S,MATCH(E37,CTS!$E:$E,0))),"",(INDEX(CTS!$S:$S,MATCH(E37,CTS!$E:$E,0)))) -> 59.07563025 | L37: =IF(ISNA(INDEX(CTS!$T:$T,MATCH(E37,CTS!$E:$E,0))),"",(INDEX(CTS!$T:$T,MATCH(E37,CTS!$E:$E,0)))) -> 370 | M37: =IF(ISNA(INDEX(CTS!$U:$U,MATCH(E37,CTS!$E:$E,0))),"",(INDEX(CTS!$U:$U,MATCH(E37,CTS!$E:$E,0)))) -> 0 | N37: =IF(ISNA(INDEX(CTS!$V:$V,MATCH(E37,CTS!$E:$E,0))),"",(INDEX(CTS!$V:$V,MATCH(E37,CTS!$E:$E,0)))) -> 370 | O37: =IFERROR(INDEX(CTS!$A:$A,MATCH(E37,CTS!$E:$E,0)),".") -> P | P37: =IFERROR(IFERROR(INDEX(#REF!,MATCH(E37,#REF!,0)),IFERROR(INDEX(#REF!,MATCH(E37,#REF!,0)),INDEX(#REF!,MATCH(E37,#REF!,0)) )),".") -> . | R37: =IFERROR(VLOOKUP(E37,#REF!,8,FALSE),IFERROR(VLOOKUP(E37,#REF!,8,FALSE),IFERROR(VLOOKUP(E37,#REF!,8,FALSE),""))) ->  | S37: .-. | V37: =SUM(V6:V36) -> 646339.0676 | W37: =SUM(W6:W36) -> 639021.7243
A38: 33 | B38: =IFERROR(DAY(CTR[[#This Row],[Date]]),"") -> 4 | C38: =IFERROR(MONTH(CTR[[#This Row],[Date]]),"") -> 1 | D38: =IF(ISNA(INDEX(CTS!C:C,MATCH(E38,CTS!$E:$E,0))),"",(INDEX(CTS!C:C,MATCH(E38,CTS!$E:$E,0)))) -> 44200 | E38: 01-033 | F38: =IF(ISNA(INDEX(CTS!$F:$F,MATCH(E38,CTS!$E:$E,0))),"",(INDEX(CTS!$F:$F,MATCH(E38,CTS!$E:$E,0)))) -> CLIENT | G38: =IF(ISNA(INDEX(CTS!$N:$N,MATCH(E38,CTS!$E:$E,0))),"",(INDEX(CTS!$N:$N,MATCH(E38,CTS!$E:$E,0)))) -> 210.0840336 | H38: =IF(ISNA(INDEX(CTS!$O:$O,MATCH(E38,CTS!$E:$E,0))),"",(INDEX(CTS!$O:$O,MATCH(E38,CTS!$E:$E,0)))) -> 0 | I38: =IF(ISNA(INDEX(CTS!$P:$P,MATCH(E38,CTS!$E:$E,0))),"",(INDEX(CTS!$P:$P,MATCH(E38,CTS!$E:$E,0)))) -> 0 | J38: =IF(ISNA(INDEX(CTS!$Q:$Q,MATCH(E38,CTS!$E:$E,0))),"",(INDEX(CTS!$Q:$Q,MATCH(E38,CTS!$E:$E,0)))) -> 210.0840336 | K38: =IF(ISNA(INDEX(CTS!$S:$S,MATCH(E38,CTS!$E:$E,0))),"",(INDEX(CTS!$S:$S,MATCH(E38,CTS!$E:$E,0)))) -> 39.91596639 | L38: =IF(ISNA(INDEX(CTS!$T:$T,MATCH(E38,CTS!$E:$E,0))),"",(INDEX(CTS!$T:$T,MATCH(E38,CTS!$E:$E,0)))) -> 250 | M38: =IF(ISNA(INDEX(CTS!$U:$U,MATCH(E38,CTS!$E:$E,0))),"",(INDEX(CTS!$U:$U,MATCH(E38,CTS!$E:$E,0)))) -> 0 | N38: =IF(ISNA(INDEX(CTS!$V:$V,MATCH(E38,CTS!$E:$E,0))),"",(INDEX(CTS!$V:$V,MATCH(E38,CTS!$E:$E,0)))) -> 250 | O38: =IFERROR(INDEX(CTS!$A:$A,MATCH(E38,CTS!$E:$E,0)),".") -> p | P38: =IFERROR(IFERROR(INDEX(#REF!,MATCH(E38,#REF!,0)),IFERROR(INDEX(#REF!,MATCH(E38,#REF!,0)),INDEX(#REF!,MATCH(E38,#REF!,0)) )),".") -> . | R38: =IFERROR(VLOOKUP(E38,#REF!,8,FALSE),IFERROR(VLOOKUP(E38,#REF!,8,FALSE),IFERROR(VLOOKUP(E38,#REF!,8,FALSE),""))) ->  | S38: .-. | W38: =V37+W37 -> 1285360.792
A39: 34 | B39: =IFERROR(DAY(CTR[[#This Row],[Date]]),"") -> 5 | C39: =IFERROR(MONTH(CTR[[#This Row],[Date]]),"") -> 1 | D39: =IF(ISNA(INDEX(CTS!C:C,MATCH(E39,CTS!$E:$E,0))),"",(INDEX(CTS!C:C,MATCH(E39,CTS!$E:$E,0)))) -> 44201 | E39: 01-034 | F39: =IF(ISNA(INDEX(CTS!$F:$F,MATCH(E39,CTS!$E:$E,0))),"",(INDEX(CTS!$F:$F,MATCH(E39,CTS!$E:$E,0)))) -> CLIENT | G39: =IF(ISNA(INDEX(CTS!$N:$N,MATCH(E39,CTS!$E:$E,0))),"",(INDEX(CTS!$N:$N,MATCH(E39,CTS!$E:$E,0)))) -> 211.7647059 | H39: =IF(ISNA(INDEX(CTS!$O:$O,MATCH(E39,CTS!$E:$E,0))),"",(INDEX(CTS!$O:$O,MATCH(E39,CTS!$E:$E,0)))) -> 0 | I39: =IF(ISNA(INDEX(CTS!$P:$P,MATCH(E39,CTS!$E:$E,0))),"",(INDEX(CTS!$P:$P,MATCH(E39,CTS!$E:$E,0)))) -> 0 | J39: =IF(ISNA(INDEX(CTS!$Q:$Q,MATCH(E39,CTS!$E:$E,0))),"",(INDEX(CTS!$Q:$Q,MATCH(E39,CTS!$E:$E,0)))) -> 211.7647059 | K39: =IF(ISNA(INDEX(CTS!$S:$S,MATCH(E39,CTS!$E:$E,0))),"",(INDEX(CTS!$S:$S,MATCH(E39,CTS!$E:$E,0)))) -> 40.23529412 | L39: =IF(ISNA(INDEX(CTS!$T:$T,MATCH(E39,CTS!$E:$E,0))),"",(INDEX(CTS!$T:$T,MATCH(E39,CTS!$E:$E,0)))) -> 252 | M39: =IF(ISNA(INDEX(CTS!$U:$U,MATCH(E39,CTS!$E:$E,0))),"",(INDEX(CTS!$U:$U,MATCH(E39,CTS!$E:$E,0)))) -> 2 | N39: =IF(ISNA(INDEX(CTS!$V:$V,MATCH(E39,CTS!$E:$E,0))),"",(INDEX(CTS!$V:$V,MATCH(E39,CTS!$E:$E,0)))) -> 250 | O39: =IFERROR(INDEX(CTS!$A:$A,MATCH(E39,CTS!$E:$E,0)),".") -> P | P39: =IFERROR(IFERROR(INDEX(#REF!,MATCH(E39,#REF!,0)),IFERROR(INDEX(#REF!,MATCH(E39,#REF!,0)),INDEX(#REF!,MATCH(E39,#REF!,0)) )),".") -> . | R39: =IFERROR(VLOOKUP(E39,#REF!,8,FALSE),IFERROR(VLOOKUP(E39,#REF!,8,FALSE),IFERROR(VLOOKUP(E39,#REF!,8,FALSE),""))) ->  | S39: .-.
A40: 35 | B40: =IFERROR(DAY(CTR[[#This Row],[Date]]),"") -> 5 | C40: =IFERROR(MONTH(CTR[[#This Row],[Date]]),"") -> 1 | D40: =IF(ISNA(INDEX(CTS!C:C,MATCH(E40,CTS!$E:$E,0))),"",(INDEX(CTS!C:C,MATCH(E40,CTS!$E:$E,0)))) -> 44201 | E40: 01-035 | F40: =IF(ISNA(INDEX(CTS!$F:$F,MATCH(E40,CTS!$E:$E,0))),"",(INDEX(CTS!$F:$F,MATCH(E40,CTS!$E:$E,0)))) -> CLIENT | G40: =IF(ISNA(INDEX(CTS!$N:$N,MATCH(E40,CTS!$E:$E,0))),"",(INDEX(CTS!$N:$N,MATCH(E40,CTS!$E:$E,0)))) -> 84.03361345 | H40: =IF(ISNA(INDEX(CTS!$O:$O,MATCH(E40,CTS!$E:$E,0))),"",(INDEX(CTS!$O:$O,MATCH(E40,CTS!$E:$E,0)))) -> 0 | I40: =IF(ISNA(INDEX(CTS!$P:$P,MATCH(E40,CTS!$E:$E,0))),"",(INDEX(CTS!$P:$P,MATCH(E40,CTS!$E:$E,0)))) -> 0 | J40: =IF(ISNA(INDEX(CTS!$Q:$Q,MATCH(E40,CTS!$E:$E,0))),"",(INDEX(CTS!$Q:$Q,MATCH(E40,CTS!$E:$E,0)))) -> 84.03361345 | K40: =IF(ISNA(INDEX(CTS!$S:$S,MATCH(E40,CTS!$E:$E,0))),"",(INDEX(CTS!$S:$S,MATCH(E40,CTS!$E:$E,0)))) -> 15.96638655 | L40: =IF(ISNA(INDEX(CTS!$T:$T,MATCH(E40,CTS!$E:$E,0))),"",(INDEX(CTS!$T:$T,MATCH(E40,CTS!$E:$E,0)))) -> 100 | M40: =IF(ISNA(INDEX(CTS!$U:$U,MATCH(E40,CTS!$E:$E,0))),"",(INDEX(CTS!$U:$U,MATCH(E40,CTS!$E:$E,0)))) -> 0 | N40: =IF(ISNA(INDEX(CTS!$V:$V,MATCH(E40,CTS!$E:$E,0))),"",(INDEX(CTS!$V:$V,MATCH(E40,CTS!$E:$E,0)))) -> 100 | O40: =IFERROR(INDEX(CTS!$A:$A,MATCH(E40,CTS!$E:$E,0)),".") -> P | P40: =IFERROR(IFERROR(INDEX(#REF!,MATCH(E40,#REF!,0)),IFERROR(INDEX(#REF!,MATCH(E40,#REF!,0)),INDEX(#REF!,MATCH(E40,#REF!,0)) )),".") -> . | R40: =IFERROR(VLOOKUP(E40,#REF!,8,FALSE),IFERROR(VLOOKUP(E40,#REF!,8,FALSE),IFERROR(VLOOKUP(E40,#REF!,8,FALSE),""))) ->  | S40: .-.
A41: 36 | B41: =IFERROR(DAY(CTR[[#This Row],[Date]]),"") -> 5 | C41: =IFERROR(MONTH(CTR[[#This Row],[Date]]),"") -> 1 | D41: =IF(ISNA(INDEX(CTS!C:C,MATCH(E41,CTS!$E:$E,0))),"",(INDEX(CTS!C:C,MATCH(E41,CTS!$E:$E,0)))) -> 44201 | E41: 01-036 | F41: =IF(ISNA(INDEX(CTS!$F:$F,MATCH(E41,CTS!$E:$E,0))),"",(INDEX(CTS!$F:$F,MATCH(E41,CTS!$E:$E,0)))) -> CLIENT | G41: =IF(ISNA(INDEX(CTS!$N:$N,MATCH(E41,CTS!$E:$E,0))),"",(INDEX(CTS!$N:$N,MATCH(E41,CTS!$E:$E,0)))) -> 415.9663866 | H41: =IF(ISNA(INDEX(CTS!$O:$O,MATCH(E41,CTS!$E:$E,0))),"",(INDEX(CTS!$O:$O,MATCH(E41,CTS!$E:$E,0)))) -> 0 | I41: =IF(ISNA(INDEX(CTS!$P:$P,MATCH(E41,CTS!$E:$E,0))),"",(INDEX(CTS!$P:$P,MATCH(E41,CTS!$E:$E,0)))) -> 0 | J41: =IF(ISNA(INDEX(CTS!$Q:$Q,MATCH(E41,CTS!$E:$E,0))),"",(INDEX(CTS!$Q:$Q,MATCH(E41,CTS!$E:$E,0)))) -> 415.9663866 | K41: =IF(ISNA(INDEX(CTS!$S:$S,MATCH(E41,CTS!$E:$E,0))),"",(INDEX(CTS!$S:$S,MATCH(E41,CTS!$E:$E,0)))) -> 79.03361345 | L41: =IF(ISNA(INDEX(CTS!$T:$T,MATCH(E41,CTS!$E:$E,0))),"",(INDEX(CTS!$T:$T,MATCH(E41,CTS!$E:$E,0)))) -> 495 | M41: =IF(ISNA(INDEX(CTS!$U:$U,MATCH(E41,CTS!$E:$E,0))),"",(INDEX(CTS!$U:$U,MATCH(E41,CTS!$E:$E,0)))) -> 5.684341886e-14 | N41: =IF(ISNA(INDEX(CTS!$V:$V,MATCH(E41,CTS!$E:$E,0))),"",(INDEX(CTS!$V:$V,MATCH(E41,CTS!$E:$E,0)))) -> 495 | O41: =IFERROR(INDEX(CTS!$A:$A,MATCH(E41,CTS!$E:$E,0)),".") -> P | P41: =IFERROR(IFERROR(INDEX(#REF!,MATCH(E41,#REF!,0)),IFERROR(INDEX(#REF!,MATCH(E41,#REF!,0)),INDEX(#REF!,MATCH(E41,#REF!,0)) )),".") -> . | R41: =IFERROR(VLOOKUP(E41,#REF!,8,FALSE),IFERROR(VLOOKUP(E41,#REF!,8,FALSE),IFERROR(VLOOKUP(E41,#REF!,8,FALSE),""))) ->  | S41: .-.
A42: 37 | B42: =IFERROR(DAY(CTR[[#This Row],[Date]]),"") -> 5 | C42: =IFERROR(MONTH(CTR[[#This Row],[Date]]),"") -> 1 | D42: =IF(ISNA(INDEX(CTS!C:C,MATCH(E42,CTS!$E:$E,0))),"",(INDEX(CTS!C:C,MATCH(E42,CTS!$E:$E,0)))) -> 44201 | E42: 01-037 | F42: =IF(ISNA(INDEX(CTS!$F:$F,MATCH(E42,CTS!$E:$E,0))),"",(INDEX(CTS!$F:$F,MATCH(E42,CTS!$E:$E,0)))) -> CLIENT | G42: =IF(ISNA(INDEX(CTS!$N:$N,MATCH(E42,CTS!$E:$E,0))),"",(INDEX(CTS!$N:$N,MATCH(E42,CTS!$E:$E,0)))) -> 100.8403361 | H42: =IF(ISNA(INDEX(CTS!$O:$O,MATCH(E42,CTS!$E:$E,0))),"",(INDEX(CTS!$O:$O,MATCH(E42,CTS!$E:$E,0)))) -> 0 | I42: =IF(ISNA(INDEX(CTS!$P:$P,MATCH(E42,CTS!$E:$E,0))),"",(INDEX(CTS!$P:$P,MATCH(E42,CTS!$E:$E,0)))) -> 0 | J42: =IF(ISNA(INDEX(CTS!$Q:$Q,MATCH(E42,CTS!$E:$E,0))),"",(INDEX(CTS!$Q:$Q,MATCH(E42,CTS!$E:$E,0)))) -> 100.8403361 | K42: =IF(ISNA(INDEX(CTS!$S:$S,MATCH(E42,CTS!$E:$E,0))),"",(INDEX(CTS!$S:$S,MATCH(E42,CTS!$E:$E,0)))) -> 19.15966387 | L42: =IF(ISNA(INDEX(CTS!$T:$T,MATCH(E42,CTS!$E:$E,0))),"",(INDEX(CTS!$T:$T,MATCH(E42,CTS!$E:$E,0)))) -> 120 | M42: =IF(ISNA(INDEX(CTS!$U:$U,MATCH(E42,CTS!$E:$E,0))),"",(INDEX(CTS!$U:$U,MATCH(E42,CTS!$E:$E,0)))) -> 0 | N42: =IF(ISNA(INDEX(CTS!$V:$V,MATCH(E42,CTS!$E:$E,0))),"",(INDEX(CTS!$V:$V,MATCH(E42,CTS!$E:$E,0)))) -> 120 | O42: =IFERROR(INDEX(CTS!$A:$A,MATCH(E42,CTS!$E:$E,0)),".") -> P | P42: =IFERROR(IFERROR(INDEX(#REF!,MATCH(E42,#REF!,0)),IFERROR(INDEX(#REF!,MATCH(E42,#REF!,0)),INDEX(#REF!,MATCH(E42,#REF!,0)) )),".") -> . | R42: =IFERROR(VLOOKUP(E42,#REF!,8,FALSE),IFERROR(VLOOKUP(E42,#REF!,8,FALSE),IFERROR(VLOOKUP(E42,#REF!,8,FALSE),""))) ->  | S42: .-.
A43: 38 | B43: =IFERROR(DAY(CTR[[#This Row],[Date]]),"") -> 5 | C43: =IFERROR(MONTH(CTR[[#This Row],[Date]]),"") -> 1 | D43: =IF(ISNA(INDEX(CTS!C:C,MATCH(E43,CTS!$E:$E,0))),"",(INDEX(CTS!C:C,MATCH(E43,CTS!$E:$E,0)))) -> 44201 | E43: 01-038 | F43: =IF(ISNA(INDEX(CTS!$F:$F,MATCH(E43,CTS!$E:$E,0))),"",(INDEX(CTS!$F:$F,MATCH(E43,CTS!$E:$E,0)))) -> CLIENT | G43: =IF(ISNA(INDEX(CTS!$N:$N,MATCH(E43,CTS!$E:$E,0))),"",(INDEX(CTS!$N:$N,MATCH(E43,CTS!$E:$E,0)))) -> 142.8571429 | H43: =IF(ISNA(INDEX(CTS!$O:$O,MATCH(E43,CTS!$E:$E,0))),"",(INDEX(CTS!$O:$O,MATCH(E43,CTS!$E:$E,0)))) -> 0 | I43: =IF(ISNA(INDEX(CTS!$P:$P,MATCH(E43,CTS!$E:$E,0))),"",(INDEX(CTS!$P:$P,MATCH(E43,CTS!$E:$E,0)))) -> 0 | J43: =IF(ISNA(INDEX(CTS!$Q:$Q,MATCH(E43,CTS!$E:$E,0))),"",(INDEX(CTS!$Q:$Q,MATCH(E43,CTS!$E:$E,0)))) -> 142.8571429 | K43: =IF(ISNA(INDEX(CTS!$S:$S,MATCH(E43,CTS!$E:$E,0))),"",(INDEX(CTS!$S:$S,MATCH(E43,CTS!$E:$E,0)))) -> 27.14285714 | L43: =IF(ISNA(INDEX(CTS!$T:$T,MATCH(E43,CTS!$E:$E,0))),"",(INDEX(CTS!$T:$T,MATCH(E43,CTS!$E:$E,0)))) -> 170 | M43: =IF(ISNA(INDEX(CTS!$U:$U,MATCH(E43,CTS!$E:$E,0))),"",(INDEX(CTS!$U:$U,MATCH(E43,CTS!$E:$E,0)))) -> 0 | N43: =IF(ISNA(INDEX(CTS!$V:$V,MATCH(E43,CTS!$E:$E,0))),"",(INDEX(CTS!$V:$V,MATCH(E43,CTS!$E:$E,0)))) -> 170 | O43: =IFERROR(INDEX(CTS!$A:$A,MATCH(E43,CTS!$E:$E,0)),".") -> P | P43: =IFERROR(IFERROR(INDEX(#REF!,MATCH(E43,#REF!,0)),IFERROR(INDEX(#REF!,MATCH(E43,#REF!,0)),INDEX(#REF!,MATCH(E43,#REF!,0)) )),".") -> . | R43: =IFERROR(VLOOKUP(E43,#REF!,8,FALSE),IFERROR(VLOOKUP(E43,#REF!,8,FALSE),IFERROR(VLOOKUP(E43,#REF!,8,FALSE),""))) ->  | S43: .-.
A44: 39 | B44: =IFERROR(DAY(CTR[[#This Row],[Date]]),"") -> 5 | C44: =IFERROR(MONTH(CTR[[#This Row],[Date]]),"") -> 1 | D44: =IF(ISNA(INDEX(CTS!C:C,MATCH(E44,CTS!$E:$E,0))),"",(INDEX(CTS!C:C,MATCH(E44,CTS!$E:$E,0)))) -> 44201 | E44: 01-039 | F44: =IF(ISNA(INDEX(CTS!$F:$F,MATCH(E44,CTS!$E:$E,0))),"",(INDEX(CTS!$F:$F,MATCH(E44,CTS!$E:$E,0)))) -> CLIENT | G44: =IF(ISNA(INDEX(CTS!$N:$N,MATCH(E44,CTS!$E:$E,0))),"",(INDEX(CTS!$N:$N,MATCH(E44,CTS!$E:$E,0)))) -> 622.6890756 | H44: =IF(ISNA(INDEX(CTS!$O:$O,MATCH(E44,CTS!$E:$E,0))),"",(INDEX(CTS!$O:$O,MATCH(E44,CTS!$E:$E,0)))) -> 0 | I44: =IF(ISNA(INDEX(CTS!$P:$P,MATCH(E44,CTS!$E:$E,0))),"",(INDEX(CTS!$P:$P,MATCH(E44,CTS!$E:$E,0)))) -> 0 | J44: =IF(ISNA(INDEX(CTS!$Q:$Q,MATCH(E44,CTS!$E:$E,0))),"",(INDEX(CTS!$Q:$Q,MATCH(E44,CTS!$E:$E,0)))) -> 622.6890756 | K44: =IF(ISNA(INDEX(CTS!$S:$S,MATCH(E44,CTS!$E:$E,0))),"",(INDEX(CTS!$S:$S,MATCH(E44,CTS!$E:$E,0)))) -> 118.3109244 | L44: =IF(ISNA(INDEX(CTS!$T:$T,MATCH(E44,CTS!$E:$E,0))),"",(INDEX(CTS!$T:$T,MATCH(E44,CTS!$E:$E,0)))) -> 741 | M44: =IF(ISNA(INDEX(CTS!$U:$U,MATCH(E44,CTS!$E:$E,0))),"",(INDEX(CTS!$U:$U,MATCH(E44,CTS!$E:$E,0)))) -> 1 | N44: =IF(ISNA(INDEX(CTS!$V:$V,MATCH(E44,CTS!$E:$E,0))),"",(INDEX(CTS!$V:$V,MATCH(E44,CTS!$E:$E,0)))) -> 740 | O44: =IFERROR(INDEX(CTS!$A:$A,MATCH(E44,CTS!$E:$E,0)),".") -> P | P44: =IFERROR(IFERROR(INDEX(#REF!,MATCH(E44,#REF!,0)),IFERROR(INDEX(#REF!,MATCH(E44,#REF!,0)),INDEX(#REF!,MATCH(E44,#REF!,0)) )),".") -> . | R44: =IFERROR(VLOOKUP(E44,#REF!,8,FALSE),IFERROR(VLOOKUP(E44,#REF!,8,FALSE),IFERROR(VLOOKUP(E44,#REF!,8,FALSE),""))) ->  | S44: .-.
A45: 40 | B45: =IFERROR(DAY(CTR[[#This Row],[Date]]),"") -> 5 | C45: =IFERROR(MONTH(CTR[[#This Row],[Date]]),"") -> 1 | D45: =IF(ISNA(INDEX(CTS!C:C,MATCH(E45,CTS!$E:$E,0))),"",(INDEX(CTS!C:C,MATCH(E45,CTS!$E:$E,0)))) -> 44201 | E45: 01-040 | F45: =IF(ISNA(INDEX(CTS!$F:$F,MATCH(E45,CTS!$E:$E,0))),"",(INDEX(CTS!$F:$F,MATCH(E45,CTS!$E:$E,0)))) -> CLIENT | G45: =IF(ISNA(INDEX(CTS!$N:$N,MATCH(E45,CTS!$E:$E,0))),"",(INDEX(CTS!$N:$N,MATCH(E45,CTS!$E:$E,0)))) -> 181.512605 | H45: =IF(ISNA(INDEX(CTS!$O:$O,MATCH(E45,CTS!$E:$E,0))),"",(INDEX(CTS!$O:$O,MATCH(E45,CTS!$E:$E,0)))) -> 0 | I45: =IF(ISNA(INDEX(CTS!$P:$P,MATCH(E45,CTS!$E:$E,0))),"",(INDEX(CTS!$P:$P,MATCH(E45,CTS!$E:$E,0)))) -> 0 | J45: =IF(ISNA(INDEX(CTS!$Q:$Q,MATCH(E45,CTS!$E:$E,0))),"",(INDEX(CTS!$Q:$Q,MATCH(E45,CTS!$E:$E,0)))) -> 181.512605 | K45: =IF(ISNA(INDEX(CTS!$S:$S,MATCH(E45,CTS!$E:$E,0))),"",(INDEX(CTS!$S:$S,MATCH(E45,CTS!$E:$E,0)))) -> 34.48739496 | L45: =IF(ISNA(INDEX(CTS!$T:$T,MATCH(E45,CTS!$E:$E,0))),"",(INDEX(CTS!$T:$T,MATCH(E45,CTS!$E:$E,0)))) -> 216 | M45: =IF(ISNA(INDEX(CTS!$U:$U,MATCH(E45,CTS!$E:$E,0))),"",(INDEX(CTS!$U:$U,MATCH(E45,CTS!$E:$E,0)))) -> 6 | N45: =IF(ISNA(INDEX(CTS!$V:$V,MATCH(E45,CTS!$E:$E,0))),"",(INDEX(CTS!$V:$V,MATCH(E45,CTS!$E:$E,0)))) -> 210 | O45: =IFERROR(INDEX(CTS!$A:$A,MATCH(E45,CTS!$E:$E,0)),".") -> P | P45: =IFERROR(IFERROR(INDEX(#REF!,MATCH(E45,#REF!,0)),IFERROR(INDEX(#REF!,MATCH(E45,#REF!,0)),INDEX(#REF!,MATCH(E45,#REF!,0)) )),".") -> . | R45: =IFERROR(VLOOKUP(E45,#REF!,8,FALSE),IFERROR(VLOOKUP(E45,#REF!,8,FALSE),IFERROR(VLOOKUP(E45,#REF!,8,FALSE),""))) ->  | S45: .-.
A46: 41 | B46: =IFERROR(DAY(CTR[[#This Row],[Date]]),"") -> 5 | C46: =IFERROR(MONTH(CTR[[#This Row],[Date]]),"") -> 1 | D46: =IF(ISNA(INDEX(CTS!C:C,MATCH(E46,CTS!$E:$E,0))),"",(INDEX(CTS!C:C,MATCH(E46,CTS!$E:$E,0)))) -> 44201 | E46: 01-041 | F46: =IF(ISNA(INDEX(CTS!$F:$F,MATCH(E46,CTS!$E:$E,0))),"",(INDEX(CTS!$F:$F,MATCH(E46,CTS!$E:$E,0)))) -> CLIENT | G46: =IF(ISNA(INDEX(CTS!$N:$N,MATCH(E46,CTS!$E:$E,0))),"",(INDEX(CTS!$N:$N,MATCH(E46,CTS!$E:$E,0)))) -> 2531.092437 | H46: =IF(ISNA(INDEX(CTS!$O:$O,MATCH(E46,CTS!$E:$E,0))),"",(INDEX(CTS!$O:$O,MATCH(E46,CTS!$E:$E,0)))) -> 0 | I46: =IF(ISNA(INDEX(CTS!$P:$P,MATCH(E46,CTS!$E:$E,0))),"",(INDEX(CTS!$P:$P,MATCH(E46,CTS!$E:$E,0)))) -> 0 | J46: =IF(ISNA(INDEX(CTS!$Q:$Q,MATCH(E46,CTS!$E:$E,0))),"",(INDEX(CTS!$Q:$Q,MATCH(E46,CTS!$E:$E,0)))) -> 2531.092437 | K46: =IF(ISNA(INDEX(CTS!$S:$S,MATCH(E46,CTS!$E:$E,0))),"",(INDEX(CTS!$S:$S,MATCH(E46,CTS!$E:$E,0)))) -> 480.907563 | L46: =IF(ISNA(INDEX(CTS!$T:$T,MATCH(E46,CTS!$E:$E,0))),"",(INDEX(CTS!$T:$T,MATCH(E46,CTS!$E:$E,0)))) -> 3012 | M46: =IF(ISNA(INDEX(CTS!$U:$U,MATCH(E46,CTS!$E:$E,0))),"",(INDEX(CTS!$U:$U,MATCH(E46,CTS!$E:$E,0)))) -> 12 | N46: =IF(ISNA(INDEX(CTS!$V:$V,MATCH(E46,CTS!$E:$E,0))),"",(INDEX(CTS!$V:$V,MATCH(E46,CTS!$E:$E,0)))) -> 3000 | O46: =IFERROR(INDEX(CTS!$A:$A,MATCH(E46,CTS!$E:$E,0)),".") -> P | P46: =IFERROR(IFERROR(INDEX(#REF!,MATCH(E46,#REF!,0)),IFERROR(INDEX(#REF!,MATCH(E46,#REF!,0)),INDEX(#REF!,MATCH(E46,#REF!,0)) )),".") -> . | R46: =IFERROR(VLOOKUP(E46,#REF!,8,FALSE),IFERROR(VLOOKUP(E46,#REF!,8,FALSE),IFERROR(VLOOKUP(E46,#REF!,8,FALSE),""))) ->  | S46: .-.
A47: 42 | B47: =IFERROR(DAY(CTR[[#This Row],[Date]]),"") -> 5 | C47: =IFERROR(MONTH(CTR[[#This Row],[Date]]),"") -> 1 | D47: =IF(ISNA(INDEX(CTS!C:C,MATCH(E47,CTS!$E:$E,0))),"",(INDEX(CTS!C:C,MATCH(E47,CTS!$E:$E,0)))) -> 44201 | E47: 01-042 | F47: =IF(ISNA(INDEX(CTS!$F:$F,MATCH(E47,CTS!$E:$E,0))),"",(INDEX(CTS!$F:$F,MATCH(E47,CTS!$E:$E,0)))) -> CLIENT | G47: =IF(ISNA(INDEX(CTS!$N:$N,MATCH(E47,CTS!$E:$E,0))),"",(INDEX(CTS!$N:$N,MATCH(E47,CTS!$E:$E,0)))) -> 84.03361345 | H47: =IF(ISNA(INDEX(CTS!$O:$O,MATCH(E47,CTS!$E:$E,0))),"",(INDEX(CTS!$O:$O,MATCH(E47,CTS!$E:$E,0)))) -> 0 | I47: =IF(ISNA(INDEX(CTS!$P:$P,MATCH(E47,CTS!$E:$E,0))),"",(INDEX(CTS!$P:$P,MATCH(E47,CTS!$E:$E,0)))) -> 0 | J47: =IF(ISNA(INDEX(CTS!$Q:$Q,MATCH(E47,CTS!$E:$E,0))),"",(INDEX(CTS!$Q:$Q,MATCH(E47,CTS!$E:$E,0)))) -> 84.03361345 | K47: =IF(ISNA(INDEX(CTS!$S:$S,MATCH(E47,CTS!$E:$E,0))),"",(INDEX(CTS!$S:$S,MATCH(E47,CTS!$E:$E,0)))) -> 15.96638655 | L47: =IF(ISNA(INDEX(CTS!$T:$T,MATCH(E47,CTS!$E:$E,0))),"",(INDEX(CTS!$T:$T,MATCH(E47,CTS!$E:$E,0)))) -> 100 | M47: =IF(ISNA(INDEX(CTS!$U:$U,MATCH(E47,CTS!$E:$E,0))),"",(INDEX(CTS!$U:$U,MATCH(E47,CTS!$E:$E,0)))) -> 0 | N47: =IF(ISNA(INDEX(CTS!$V:$V,MATCH(E47,CTS!$E:$E,0))),"",(INDEX(CTS!$V:$V,MATCH(E47,CTS!$E:$E,0)))) -> 100 | O47: =IFERROR(INDEX(CTS!$A:$A,MATCH(E47,CTS!$E:$E,0)),".") -> P | P47: =IFERROR(IFERROR(INDEX(#REF!,MATCH(E47,#REF!,0)),IFERROR(INDEX(#REF!,MATCH(E47,#REF!,0)),INDEX(#REF!,MATCH(E47,#REF!,0)) )),".") -> . | R47: =IFERROR(VLOOKUP(E47,#REF!,8,FALSE),IFERROR(VLOOKUP(E47,#REF!,8,FALSE),IFERROR(VLOOKUP(E47,#REF!,8,FALSE),""))) ->  | S47: .-.
A48: 43 | B48: =IFERROR(DAY(CTR[[#This Row],[Date]]),"") -> 5 | C48: =IFERROR(MONTH(CTR[[#This Row],[Date]]),"") -> 1 | D48: =IF(ISNA(INDEX(CTS!C:C,MATCH(E48,CTS!$E:$E,0))),"",(INDEX(CTS!C:C,MATCH(E48,CTS!$E:$E,0)))) -> 44201 | E48: 01-043 | F48: =IF(ISNA(INDEX(CTS!$F:$F,MATCH(E48,CTS!$E:$E,0))),"",(INDEX(CTS!$F:$F,MATCH(E48,CTS!$E:$E,0)))) -> CLIENT | G48: =IF(ISNA(INDEX(CTS!$N:$N,MATCH(E48,CTS!$E:$E,0))),"",(INDEX(CTS!$N:$N,MATCH(E48,CTS!$E:$E,0)))) -> 974.789916 | H48: =IF(ISNA(INDEX(CTS!$O:$O,MATCH(E48,CTS!$E:$E,0))),"",(INDEX(CTS!$O:$O,MATCH(E48,CTS!$E:$E,0)))) -> 0 | I48: =IF(ISNA(INDEX(CTS!$P:$P,MATCH(E48,CTS!$E:$E,0))),"",(INDEX(CTS!$P:$P,MATCH(E48,CTS!$E:$E,0)))) -> 0 | J48: =IF(ISNA(INDEX(CTS!$Q:$Q,MATCH(E48,CTS!$E:$E,0))),"",(INDEX(CTS!$Q:$Q,MATCH(E48,CTS!$E:$E,0)))) -> 974.789916 | K48: =IF(ISNA(INDEX(CTS!$S:$S,MATCH(E48,CTS!$E:$E,0))),"",(INDEX(CTS!$S:$S,MATCH(E48,CTS!$E:$E,0)))) -> 185.210084 | L48: =IF(ISNA(INDEX(CTS!$T:$T,MATCH(E48,CTS!$E:$E,0))),"",(INDEX(CTS!$T:$T,MATCH(E48,CTS!$E:$E,0)))) -> 1160 | M48: =IF(ISNA(INDEX(CTS!$U:$U,MATCH(E48,CTS!$E:$E,0))),"",(INDEX(CTS!$U:$U,MATCH(E48,CTS!$E:$E,0)))) -> 0 | N48: =IF(ISNA(INDEX(CTS!$V:$V,MATCH(E48,CTS!$E:$E,0))),"",(INDEX(CTS!$V:$V,MATCH(E48,CTS!$E:$E,0)))) -> 1160 | O48: =IFERROR(INDEX(CTS!$A:$A,MATCH(E48,CTS!$E:$E,0)),".") -> P | P48: =IFERROR(IFERROR(INDEX(#REF!,MATCH(E48,#REF!,0)),IFERROR(INDEX(#REF!,MATCH(E48,#REF!,0)),INDEX(#REF!,MATCH(E48,#REF!,0)) )),".") -> . | R48: =IFERROR(VLOOKUP(E48,#REF!,8,FALSE),IFERROR(VLOOKUP(E48,#REF!,8,FALSE),IFERROR(VLOOKUP(E48,#REF!,8,FALSE),""))) ->  | S48: .-.
A49: 44 | B49: =IFERROR(DAY(CTR[[#This Row],[Date]]),"") -> 5 | C49: =IFERROR(MONTH(CTR[[#This Row],[Date]]),"") -> 1 | D49: =IF(ISNA(INDEX(CTS!C:C,MATCH(E49,CTS!$E:$E,0))),"",(INDEX(CTS!C:C,MATCH(E49,CTS!$E:$E,0)))) -> 44201 | E49: 01-044 | F49: =IF(ISNA(INDEX(CTS!$F:$F,MATCH(E49,CTS!$E:$E,0))),"",(INDEX(CTS!$F:$F,MATCH(E49,CTS!$E:$E,0)))) -> CLIENT | G49: =IF(ISNA(INDEX(CTS!$N:$N,MATCH(E49,CTS!$E:$E,0))),"",(INDEX(CTS!$N:$N,MATCH(E49,CTS!$E:$E,0)))) -> 168.0672269 | H49: =IF(ISNA(INDEX(CTS!$O:$O,MATCH(E49,CTS!$E:$E,0))),"",(INDEX(CTS!$O:$O,MATCH(E49,CTS!$E:$E,0)))) -> 0 | I49: =IF(ISNA(INDEX(CTS!$P:$P,MATCH(E49,CTS!$E:$E,0))),"",(INDEX(CTS!$P:$P,MATCH(E49,CTS!$E:$E,0)))) -> 0 | J49: =IF(ISNA(INDEX(CTS!$Q:$Q,MATCH(E49,CTS!$E:$E,0))),"",(INDEX(CTS!$Q:$Q,MATCH(E49,CTS!$E:$E,0)))) -> 168.0672269 | K49: =IF(ISNA(INDEX(CTS!$S:$S,MATCH(E49,CTS!$E:$E,0))),"",(INDEX(CTS!$S:$S,MATCH(E49,CTS!$E:$E,0)))) -> 31.93277311 | L49: =IF(ISNA(INDEX(CTS!$T:$T,MATCH(E49,CTS!$E:$E,0))),"",(INDEX(CTS!$T:$T,MATCH(E49,CTS!$E:$E,0)))) -> 200 | M49: =IF(ISNA(INDEX(CTS!$U:$U,MATCH(E49,CTS!$E:$E,0))),"",(INDEX(CTS!$U:$U,MATCH(E49,CTS!$E:$E,0)))) -> 0 | N49: =IF(ISNA(INDEX(CTS!$V:$V,MATCH(E49,CTS!$E:$E,0))),"",(INDEX(CTS!$V:$V,MATCH(E49,CTS!$E:$E,0)))) -> 200 | O49: =IFERROR(INDEX(CTS!$A:$A,MATCH(E49,CTS!$E:$E,0)),".") -> P | P49: =IFERROR(IFERROR(INDEX(#REF!,MATCH(E49,#REF!,0)),IFERROR(INDEX(#REF!,MATCH(E49,#REF!,0)),INDEX(#REF!,MATCH(E49,#REF!,0)) )),".") -> . | R49: =IFERROR(VLOOKUP(E49,#REF!,8,FALSE),IFERROR(VLOOKUP(E49,#REF!,8,FALSE),IFERROR(VLOOKUP(E49,#REF!,8,FALSE),""))) ->  | S49: .-.
A50: 45 | B50: =IFERROR(DAY(CTR[[#This Row],[Date]]),"") -> 5 | C50: =IFERROR(MONTH(CTR[[#This Row],[Date]]),"") -> 1 | D50: =IF(ISNA(INDEX(CTS!C:C,MATCH(E50,CTS!$E:$E,0))),"",(INDEX(CTS!C:C,MATCH(E50,CTS!$E:$E,0)))) -> 44201 | E50: 01-045 | F50: =IF(ISNA(INDEX(CTS!$F:$F,MATCH(E50,CTS!$E:$E,0))),"",(INDEX(CTS!$F:$F,MATCH(E50,CTS!$E:$E,0)))) -> CLIENT | G50: =IF(ISNA(INDEX(CTS!$N:$N,MATCH(E50,CTS!$E:$E,0))),"",(INDEX(CTS!$N:$N,MATCH(E50,CTS!$E:$E,0)))) -> 352.9411765 | H50: =IF(ISNA(INDEX(CTS!$O:$O,MATCH(E50,CTS!$E:$E,0))),"",(INDEX(CTS!$O:$O,MATCH(E50,CTS!$E:$E,0)))) -> 0 | I50: =IF(ISNA(INDEX(CTS!$P:$P,MATCH(E50,CTS!$E:$E,0))),"",(INDEX(CTS!$P:$P,MATCH(E50,CTS!$E:$E,0)))) -> 0 | J50: =IF(ISNA(INDEX(CTS!$Q:$Q,MATCH(E50,CTS!$E:$E,0))),"",(INDEX(CTS!$Q:$Q,MATCH(E50,CTS!$E:$E,0)))) -> 352.9411765 | K50: =IF(ISNA(INDEX(CTS!$S:$S,MATCH(E50,CTS!$E:$E,0))),"",(INDEX(CTS!$S:$S,MATCH(E50,CTS!$E:$E,0)))) -> 67.05882353 | L50: =IF(ISNA(INDEX(CTS!$T:$T,MATCH(E50,CTS!$E:$E,0))),"",(INDEX(CTS!$T:$T,MATCH(E50,CTS!$E:$E,0)))) -> 420 | M50: =IF(ISNA(INDEX(CTS!$U:$U,MATCH(E50,CTS!$E:$E,0))),"",(INDEX(CTS!$U:$U,MATCH(E50,CTS!$E:$E,0)))) -> 0 | N50: =IF(ISNA(INDEX(CTS!$V:$V,MATCH(E50,CTS!$E:$E,0))),"",(INDEX(CTS!$V:$V,MATCH(E50,CTS!$E:$E,0)))) -> 420 | O50: =IFERROR(INDEX(CTS!$A:$A,MATCH(E50,CTS!$E:$E,0)),".") -> P | P50: =IFERROR(IFERROR(INDEX(#REF!,MATCH(E50,#REF!,0)),IFERROR(INDEX(#REF!,MATCH(E50,#REF!,0)),INDEX(#REF!,MATCH(E50,#REF!,0)) )),".") -> . | R50: =IFERROR(VLOOKUP(E50,#REF!,8,FALSE),IFERROR(VLOOKUP(E50,#REF!,8,FALSE),IFERROR(VLOOKUP(E50,#REF!,8,FALSE),""))) ->  | S50: .-.
A51: 46 | B51: =IFERROR(DAY(CTR[[#This Row],[Date]]),"") -> 5 | C51: =IFERROR(MONTH(CTR[[#This Row],[Date]]),"") -> 1 | D51: =IF(ISNA(INDEX(CTS!C:C,MATCH(E51,CTS!$E:$E,0))),"",(INDEX(CTS!C:C,MATCH(E51,CTS!$E:$E,0)))) -> 44201 | E51: 01-046 | F51: =IF(ISNA(INDEX(CTS!$F:$F,MATCH(E51,CTS!$E:$E,0))),"",(INDEX(CTS!$F:$F,MATCH(E51,CTS!$E:$E,0)))) -> CLIENT | G51: =IF(ISNA(INDEX(CTS!$N:$N,MATCH(E51,CTS!$E:$E,0))),"",(INDEX(CTS!$N:$N,MATCH(E51,CTS!$E:$E,0)))) -> 33.61344538 | H51: =IF(ISNA(INDEX(CTS!$O:$O,MATCH(E51,CTS!$E:$E,0))),"",(INDEX(CTS!$O:$O,MATCH(E51,CTS!$E:$E,0)))) -> 0 | I51: =IF(ISNA(INDEX(CTS!$P:$P,MATCH(E51,CTS!$E:$E,0))),"",(INDEX(CTS!$P:$P,MATCH(E51,CTS!$E:$E,0)))) -> 0 | J51: =IF(ISNA(INDEX(CTS!$Q:$Q,MATCH(E51,CTS!$E:$E,0))),"",(INDEX(CTS!$Q:$Q,MATCH(E51,CTS!$E:$E,0)))) -> 33.61344538 | K51: =IF(ISNA(INDEX(CTS!$S:$S,MATCH(E51,CTS!$E:$E,0))),"",(INDEX(CTS!$S:$S,MATCH(E51,CTS!$E:$E,0)))) -> 6.386554622 | L51: =IF(ISNA(INDEX(CTS!$T:$T,MATCH(E51,CTS!$E:$E,0))),"",(INDEX(CTS!$T:$T,MATCH(E51,CTS!$E:$E,0)))) -> 40 | M51: =IF(ISNA(INDEX(CTS!$U:$U,MATCH(E51,CTS!$E:$E,0))),"",(INDEX(CTS!$U:$U,MATCH(E51,CTS!$E:$E,0)))) -> 0 | N51: =IF(ISNA(INDEX(CTS!$V:$V,MATCH(E51,CTS!$E:$E,0))),"",(INDEX(CTS!$V:$V,MATCH(E51,CTS!$E:$E,0)))) -> 40 | O51: =IFERROR(INDEX(CTS!$A:$A,MATCH(E51,CTS!$E:$E,0)),".") -> P | P51: =IFERROR(IFERROR(INDEX(#REF!,MATCH(E51,#REF!,0)),IFERROR(INDEX(#REF!,MATCH(E51,#REF!,0)),INDEX(#REF!,MATCH(E51,#REF!,0)) )),".") -> . | R51: =IFERROR(VLOOKUP(E51,#REF!,8,FALSE),IFERROR(VLOOKUP(E51,#REF!,8,FALSE),IFERROR(VLOOKUP(E51,#REF!,8,FALSE),""))) ->  | S51: .-.
A52: 47 | B52: =IFERROR(DAY(CTR[[#This Row],[Date]]),"") -> 5 | C52: =IFERROR(MONTH(CTR[[#This Row],[Date]]),"") -> 1 | D52: =IF(ISNA(INDEX(CTS!C:C,MATCH(E52,CTS!$E:$E,0))),"",(INDEX(CTS!C:C,MATCH(E52,CTS!$E:$E,0)))) -> 44201 | E52: 01-047 | F52: =IF(ISNA(INDEX(CTS!$F:$F,MATCH(E52,CTS!$E:$E,0))),"",(INDEX(CTS!$F:$F,MATCH(E52,CTS!$E:$E,0)))) -> CLIENT | G52: =IF(ISNA(INDEX(CTS!$N:$N,MATCH(E52,CTS!$E:$E,0))),"",(INDEX(CTS!$N:$N,MATCH(E52,CTS!$E:$E,0)))) -> 877.3109244 | H52: =IF(ISNA(INDEX(CTS!$O:$O,MATCH(E52,CTS!$E:$E,0))),"",(INDEX(CTS!$O:$O,MATCH(E52,CTS!$E:$E,0)))) -> 0 | I52: =IF(ISNA(INDEX(CTS!$P:$P,MATCH(E52,CTS!$E:$E,0))),"",(INDEX(CTS!$P:$P,MATCH(E52,CTS!$E:$E,0)))) -> 0 | J52: =IF(ISNA(INDEX(CTS!$Q:$Q,MATCH(E52,CTS!$E:$E,0))),"",(INDEX(CTS!$Q:$Q,MATCH(E52,CTS!$E:$E,0)))) -> 877.3109244 | K52: =IF(ISNA(INDEX(CTS!$S:$S,MATCH(E52,CTS!$E:$E,0))),"",(INDEX(CTS!$S:$S,MATCH(E52,CTS!$E:$E,0)))) -> 166.6890756 | L52: =IF(ISNA(INDEX(CTS!$T:$T,MATCH(E52,CTS!$E:$E,0))),"",(INDEX(CTS!$T:$T,MATCH(E52,CTS!$E:$E,0)))) -> 1044 | M52: =IF(ISNA(INDEX(CTS!$U:$U,MATCH(E52,CTS!$E:$E,0))),"",(INDEX(CTS!$U:$U,MATCH(E52,CTS!$E:$E,0)))) -> 4 | N52: =IF(ISNA(INDEX(CTS!$V:$V,MATCH(E52,CTS!$E:$E,0))),"",(INDEX(CTS!$V:$V,MATCH(E52,CTS!$E:$E,0)))) -> 1040 | O52: =IFERROR(INDEX(CTS!$A:$A,MATCH(E52,CTS!$E:$E,0)),".") -> P | P52: =IFERROR(IFERROR(INDEX(#REF!,MATCH(E52,#REF!,0)),IFERROR(INDEX(#REF!,MATCH(E52,#REF!,0)),INDEX(#REF!,MATCH(E52,#REF!,0)) )),".") -> . | R52: =IFERROR(VLOOKUP(E52,#REF!,8,FALSE),IFERROR(VLOOKUP(E52,#REF!,8,FALSE),IFERROR(VLOOKUP(E52,#REF!,8,FALSE),""))) ->  | S52: .-.
A53: 48 | B53: =IFERROR(DAY(CTR[[#This Row],[Date]]),"") -> 5 | C53: =IFERROR(MONTH(CTR[[#This Row],[Date]]),"") -> 1 | D53: =IF(ISNA(INDEX(CTS!C:C,MATCH(E53,CTS!$E:$E,0))),"",(INDEX(CTS!C:C,MATCH(E53,CTS!$E:$E,0)))) -> 44201 | E53: 01-048 | F53: =IF(ISNA(INDEX(CTS!$F:$F,MATCH(E53,CTS!$E:$E,0))),"",(INDEX(CTS!$F:$F,MATCH(E53,CTS!$E:$E,0)))) -> CLIENT | G53: =IF(ISNA(INDEX(CTS!$N:$N,MATCH(E53,CTS!$E:$E,0))),"",(INDEX(CTS!$N:$N,MATCH(E53,CTS!$E:$E,0)))) -> 12282.35294 | H53: =IF(ISNA(INDEX(CTS!$O:$O,MATCH(E53,CTS!$E:$E,0))),"",(INDEX(CTS!$O:$O,MATCH(E53,CTS!$E:$E,0)))) -> 0 | I53: =IF(ISNA(INDEX(CTS!$P:$P,MATCH(E53,CTS!$E:$E,0))),"",(INDEX(CTS!$P:$P,MATCH(E53,CTS!$E:$E,0)))) -> 0 | J53: =IF(ISNA(INDEX(CTS!$Q:$Q,MATCH(E53,CTS!$E:$E,0))),"",(INDEX(CTS!$Q:$Q,MATCH(E53,CTS!$E:$E,0)))) -> 12282.35294 | K53: =IF(ISNA(INDEX(CTS!$S:$S,MATCH(E53,CTS!$E:$E,0))),"",(INDEX(CTS!$S:$S,MATCH(E53,CTS!$E:$E,0)))) -> 2333.647059 | L53: =IF(ISNA(INDEX(CTS!$T:$T,MATCH(E53,CTS!$E:$E,0))),"",(INDEX(CTS!$T:$T,MATCH(E53,CTS!$E:$E,0)))) -> 14616 | M53: =IF(ISNA(INDEX(CTS!$U:$U,MATCH(E53,CTS!$E:$E,0))),"",(INDEX(CTS!$U:$U,MATCH(E53,CTS!$E:$E,0)))) -> 16 | N53: =IF(ISNA(INDEX(CTS!$V:$V,MATCH(E53,CTS!$E:$E,0))),"",(INDEX(CTS!$V:$V,MATCH(E53,CTS!$E:$E,0)))) -> 14600 | O53: =IFERROR(INDEX(CTS!$A:$A,MATCH(E53,CTS!$E:$E,0)),".") -> P | P53: =IFERROR(IFERROR(INDEX(#REF!,MATCH(E53,#REF!,0)),IFERROR(INDEX(#REF!,MATCH(E53,#REF!,0)),INDEX(#REF!,MATCH(E53,#REF!,0)) )),".") -> . | R53: =IFERROR(VLOOKUP(E53,#REF!,8,FALSE),IFERROR(VLOOKUP(E53,#REF!,8,FALSE),IFERROR(VLOOKUP(E53,#REF!,8,FALSE),""))) ->  | S53: .-.
A54: 49 | B54: =IFERROR(DAY(CTR[[#This Row],[Date]]),"") -> 5 | C54: =IFERROR(MONTH(CTR[[#This Row],[Date]]),"") -> 1 | D54: =IF(ISNA(INDEX(CTS!C:C,MATCH(E54,CTS!$E:$E,0))),"",(INDEX(CTS!C:C,MATCH(E54,CTS!$E:$E,0)))) -> 44201 | E54: 01-049 | F54: =IF(ISNA(INDEX(CTS!$F:$F,MATCH(E54,CTS!$E:$E,0))),"",(INDEX(CTS!$F:$F,MATCH(E54,CTS!$E:$E,0)))) -> CLIENT | G54: =IF(ISNA(INDEX(CTS!$N:$N,MATCH(E54,CTS!$E:$E,0))),"",(INDEX(CTS!$N:$N,MATCH(E54,CTS!$E:$E,0)))) -> 968.0672269 | H54: =IF(ISNA(INDEX(CTS!$O:$O,MATCH(E54,CTS!$E:$E,0))),"",(INDEX(CTS!$O:$O,MATCH(E54,CTS!$E:$E,0)))) -> 0 | I54: =IF(ISNA(INDEX(CTS!$P:$P,MATCH(E54,CTS!$E:$E,0))),"",(INDEX(CTS!$P:$P,MATCH(E54,CTS!$E:$E,0)))) -> 0 | J54: =IF(ISNA(INDEX(CTS!$Q:$Q,MATCH(E54,CTS!$E:$E,0))),"",(INDEX(CTS!$Q:$Q,MATCH(E54,CTS!$E:$E,0)))) -> 968.0672269 | K54: =IF(ISNA(INDEX(CTS!$S:$S,MATCH(E54,CTS!$E:$E,0))),"",(INDEX(CTS!$S:$S,MATCH(E54,CTS!$E:$E,0)))) -> 183.9327731 | L54: =IF(ISNA(INDEX(CTS!$T:$T,MATCH(E54,CTS!$E:$E,0))),"",(INDEX(CTS!$T:$T,MATCH(E54,CTS!$E:$E,0)))) -> 1152 | M54: =IF(ISNA(INDEX(CTS!$U:$U,MATCH(E54,CTS!$E:$E,0))),"",(INDEX(CTS!$U:$U,MATCH(E54,CTS!$E:$E,0)))) -> 2 | N54: =IF(ISNA(INDEX(CTS!$V:$V,MATCH(E54,CTS!$E:$E,0))),"",(INDEX(CTS!$V:$V,MATCH(E54,CTS!$E:$E,0)))) -> 1150 | O54: =IFERROR(INDEX(CTS!$A:$A,MATCH(E54,CTS!$E:$E,0)),".") -> P | P54: =IFERROR(IFERROR(INDEX(#REF!,MATCH(E54,#REF!,0)),IFERROR(INDEX(#REF!,MATCH(E54,#REF!,0)),INDEX(#REF!,MATCH(E54,#REF!,0)) )),".") -> . | R54: =IFERROR(VLOOKUP(E54,#REF!,8,FALSE),IFERROR(VLOOKUP(E54,#REF!,8,FALSE),IFERROR(VLOOKUP(E54,#REF!,8,FALSE),""))) ->  | S54: .-.
A55: 50 | B55: =IFERROR(DAY(CTR[[#This Row],[Date]]),"") -> 5 | C55: =IFERROR(MONTH(CTR[[#This Row],[Date]]),"") -> 1 | D55: =IF(ISNA(INDEX(CTS!C:C,MATCH(E55,CTS!$E:$E,0))),"",(INDEX(CTS!C:C,MATCH(E55,CTS!$E:$E,0)))) -> 44201 | E55: 01-050 | F55: =IF(ISNA(INDEX(CTS!$F:$F,MATCH(E55,CTS!$E:$E,0))),"",(INDEX(CTS!$F:$F,MATCH(E55,CTS!$E:$E,0)))) -> CLIENT | G55: =IF(ISNA(INDEX(CTS!$N:$N,MATCH(E55,CTS!$E:$E,0))),"",(INDEX(CTS!$N:$N,MATCH(E55,CTS!$E:$E,0)))) -> 880.6722689 | H55: =IF(ISNA(INDEX(CTS!$O:$O,MATCH(E55,CTS!$E:$E,0))),"",(INDEX(CTS!$O:$O,MATCH(E55,CTS!$E:$E,0)))) -> 0 | I55: =IF(ISNA(INDEX(CTS!$P:$P,MATCH(E55,CTS!$E:$E,0))),"",(INDEX(CTS!$P:$P,MATCH(E55,CTS!$E:$E,0)))) -> 0 | J55: =IF(ISNA(INDEX(CTS!$Q:$Q,MATCH(E55,CTS!$E:$E,0))),"",(INDEX(CTS!$Q:$Q,MATCH(E55,CTS!$E:$E,0)))) -> 880.6722689 | K55: =IF(ISNA(INDEX(CTS!$S:$S,MATCH(E55,CTS!$E:$E,0))),"",(INDEX(CTS!$S:$S,MATCH(E55,CTS!$E:$E,0)))) -> 167.3277311 | L55: =IF(ISNA(INDEX(CTS!$T:$T,MATCH(E55,CTS!$E:$E,0))),"",(INDEX(CTS!$T:$T,MATCH(E55,CTS!$E:$E,0)))) -> 1048 | M55: =IF(ISNA(INDEX(CTS!$U:$U,MATCH(E55,CTS!$E:$E,0))),"",(INDEX(CTS!$U:$U,MATCH(E55,CTS!$E:$E,0)))) -> 3 | N55: =IF(ISNA(INDEX(CTS!$V:$V,MATCH(E55,CTS!$E:$E,0))),"",(INDEX(CTS!$V:$V,MATCH(E55,CTS!$E:$E,0)))) -> 1045 | O55: =IFERROR(INDEX(CTS!$A:$A,MATCH(E55,CTS!$E:$E,0)),".") -> P | P55: =IFERROR(IFERROR(INDEX(#REF!,MATCH(E55,#REF!,0)),IFERROR(INDEX(#REF!,MATCH(E55,#REF!,0)),INDEX(#REF!,MATCH(E55,#REF!,0)) )),".") -> . | R55: =IFERROR(VLOOKUP(E55,#REF!,8,FALSE),IFERROR(VLOOKUP(E55,#REF!,8,FALSE),IFERROR(VLOOKUP(E55,#REF!,8,FALSE),""))) ->  | S55: .-.
A56: 51 | B56: =IFERROR(DAY(CTR[[#This Row],[Date]]),"") -> 5 | C56: =IFERROR(MONTH(CTR[[#This Row],[Date]]),"") -> 1 | D56: =IF(ISNA(INDEX(CTS!C:C,MATCH(E56,CTS!$E:$E,0))),"",(INDEX(CTS!C:C,MATCH(E56,CTS!$E:$E,0)))) -> 44201 | E56: 01-051 | F56: =IF(ISNA(INDEX(CTS!$F:$F,MATCH(E56,CTS!$E:$E,0))),"",(INDEX(CTS!$F:$F,MATCH(E56,CTS!$E:$E,0)))) -> DAHMANI Djamel | G56: =IF(ISNA(INDEX(CTS!$N:$N,MATCH(E56,CTS!$E:$E,0))),"",(INDEX(CTS!$N:$N,MATCH(E56,CTS!$E:$E,0)))) -> 2092.436975 | H56: =IF(ISNA(INDEX(CTS!$O:$O,MATCH(E56,CTS!$E:$E,0))),"",(INDEX(CTS!$O:$O,MATCH(E56,CTS!$E:$E,0)))) -> 0 | I56: =IF(ISNA(INDEX(CTS!$P:$P,MATCH(E56,CTS!$E:$E,0))),"",(INDEX(CTS!$P:$P,MATCH(E56,CTS!$E:$E,0)))) -> 0 | J56: =IF(ISNA(INDEX(CTS!$Q:$Q,MATCH(E56,CTS!$E:$E,0))),"",(INDEX(CTS!$Q:$Q,MATCH(E56,CTS!$E:$E,0)))) -> 2092.436975 | K56: =IF(ISNA(INDEX(CTS!$S:$S,MATCH(E56,CTS!$E:$E,0))),"",(INDEX(CTS!$S:$S,MATCH(E56,CTS!$E:$E,0)))) -> 397.5630252 | L56: =IF(ISNA(INDEX(CTS!$T:$T,MATCH(E56,CTS!$E:$E,0))),"",(INDEX(CTS!$T:$T,MATCH(E56,CTS!$E:$E,0)))) -> 2490 | M56: =IF(ISNA(INDEX(CTS!$U:$U,MATCH(E56,CTS!$E:$E,0))),"",(INDEX(CTS!$U:$U,MATCH(E56,CTS!$E:$E,0)))) -> 0 | N56: =IF(ISNA(INDEX(CTS!$V:$V,MATCH(E56,CTS!$E:$E,0))),"",(INDEX(CTS!$V:$V,MATCH(E56,CTS!$E:$E,0)))) -> 2490 | O56: =IFERROR(INDEX(CTS!$A:$A,MATCH(E56,CTS!$E:$E,0)),".") -> P | P56: =IFERROR(IFERROR(INDEX(#REF!,MATCH(E56,#REF!,0)),IFERROR(INDEX(#REF!,MATCH(E56,#REF!,0)),INDEX(#REF!,MATCH(E56,#REF!,0)) )),".") -> . | R56: =IFERROR(VLOOKUP(E56,#REF!,8,FALSE),IFERROR(VLOOKUP(E56,#REF!,8,FALSE),IFERROR(VLOOKUP(E56,#REF!,8,FALSE),""))) ->  | S56: .-.
A57: 52 | B57: =IFERROR(DAY(CTR[[#This Row],[Date]]),"") -> 5 | C57: =IFERROR(MONTH(CTR[[#This Row],[Date]]),"") -> 1 | D57: =IF(ISNA(INDEX(CTS!C:C,MATCH(E57,CTS!$E:$E,0))),"",(INDEX(CTS!C:C,MATCH(E57,CTS!$E:$E,0)))) -> 44201 | E57: 01-052 | F57: =IF(ISNA(INDEX(CTS!$F:$F,MATCH(E57,CTS!$E:$E,0))),"",(INDEX(CTS!$F:$F,MATCH(E57,CTS!$E:$E,0)))) -> CLIENT | G57: =IF(ISNA(INDEX(CTS!$N:$N,MATCH(E57,CTS!$E:$E,0))),"",(INDEX(CTS!$N:$N,MATCH(E57,CTS!$E:$E,0)))) -> 492.4369748 | H57: =IF(ISNA(INDEX(CTS!$O:$O,MATCH(E57,CTS!$E:$E,0))),"",(INDEX(CTS!$O:$O,MATCH(E57,CTS!$E:$E,0)))) -> 0 | I57: =IF(ISNA(INDEX(CTS!$P:$P,MATCH(E57,CTS!$E:$E,0))),"",(INDEX(CTS!$P:$P,MATCH(E57,CTS!$E:$E,0)))) -> 0 | J57: =IF(ISNA(INDEX(CTS!$Q:$Q,MATCH(E57,CTS!$E:$E,0))),"",(INDEX(CTS!$Q:$Q,MATCH(E57,CTS!$E:$E,0)))) -> 492.4369748 | K57: =IF(ISNA(INDEX(CTS!$S:$S,MATCH(E57,CTS!$E:$E,0))),"",(INDEX(CTS!$S:$S,MATCH(E57,CTS!$E:$E,0)))) -> 93.56302521 | L57: =IF(ISNA(INDEX(CTS!$T:$T,MATCH(E57,CTS!$E:$E,0))),"",(INDEX(CTS!$T:$T,MATCH(E57,CTS!$E:$E,0)))) -> 586 | M57: =IF(ISNA(INDEX(CTS!$U:$U,MATCH(E57,CTS!$E:$E,0))),"",(INDEX(CTS!$U:$U,MATCH(E57,CTS!$E:$E,0)))) -> 6 | N57: =IF(ISNA(INDEX(CTS!$V:$V,MATCH(E57,CTS!$E:$E,0))),"",(INDEX(CTS!$V:$V,MATCH(E57,CTS!$E:$E,0)))) -> 580 | O57: =IFERROR(INDEX(CTS!$A:$A,MATCH(E57,CTS!$E:$E,0)),".") -> P | P57: =IFERROR(IFERROR(INDEX(#REF!,MATCH(E57,#REF!,0)),IFERROR(INDEX(#REF!,MATCH(E57,#REF!,0)),INDEX(#REF!,MATCH(E57,#REF!,0)) )),".") -> . | R57: =IFERROR(VLOOKUP(E57,#REF!,8,FALSE),IFERROR(VLOOKUP(E57,#REF!,8,FALSE),IFERROR(VLOOKUP(E57,#REF!,8,FALSE),""))) ->  | S57: .-.
A58: 53 | B58: =IFERROR(DAY(CTR[[#This Row],[Date]]),"") -> 5 | C58: =IFERROR(MONTH(CTR[[#This Row],[Date]]),"") -> 1 | D58: =IF(ISNA(INDEX(CTS!C:C,MATCH(E58,CTS!$E:$E,0))),"",(INDEX(CTS!C:C,MATCH(E58,CTS!$E:$E,0)))) -> 44201 | E58: 01-053 | F58: =IF(ISNA(INDEX(CTS!$F:$F,MATCH(E58,CTS!$E:$E,0))),"",(INDEX(CTS!$F:$F,MATCH(E58,CTS!$E:$E,0)))) -> CLIENT | G58: =IF(ISNA(INDEX(CTS!$N:$N,MATCH(E58,CTS!$E:$E,0))),"",(INDEX(CTS!$N:$N,MATCH(E58,CTS!$E:$E,0)))) -> 2218.487395 | H58: =IF(ISNA(INDEX(CTS!$O:$O,MATCH(E58,CTS!$E:$E,0))),"",(INDEX(CTS!$O:$O,MATCH(E58,CTS!$E:$E,0)))) -> 0 | I58: =IF(ISNA(INDEX(CTS!$P:$P,MATCH(E58,CTS!$E:$E,0))),"",(INDEX(CTS!$P:$P,MATCH(E58,CTS!$E:$E,0)))) -> 0 | J58: =IF(ISNA(INDEX(CTS!$Q:$Q,MATCH(E58,CTS!$E:$E,0))),"",(INDEX(CTS!$Q:$Q,MATCH(E58,CTS!$E:$E,0)))) -> 2218.487395 | K58: =IF(ISNA(INDEX(CTS!$S:$S,MATCH(E58,CTS!$E:$E,0))),"",(INDEX(CTS!$S:$S,MATCH(E58,CTS!$E:$E,0)))) -> 421.512605 | L58: =IF(ISNA(INDEX(CTS!$T:$T,MATCH(E58,CTS!$E:$E,0))),"",(INDEX(CTS!$T:$T,MATCH(E58,CTS!$E:$E,0)))) -> 2640 | M58: =IF(ISNA(INDEX(CTS!$U:$U,MATCH(E58,CTS!$E:$E,0))),"",(INDEX(CTS!$U:$U,MATCH(E58,CTS!$E:$E,0)))) -> 0 | N58: =IF(ISNA(INDEX(CTS!$V:$V,MATCH(E58,CTS!$E:$E,0))),"",(INDEX(CTS!$V:$V,MATCH(E58,CTS!$E:$E,0)))) -> 2640 | O58: =IFERROR(INDEX(CTS!$A:$A,MATCH(E58,CTS!$E:$E,0)),".") -> P | P58: =IFERROR(IFERROR(INDEX(#REF!,MATCH(E58,#REF!,0)),IFERROR(INDEX(#REF!,MATCH(E58,#REF!,0)),INDEX(#REF!,MATCH(E58,#REF!,0)) )),".") -> . | R58: =IFERROR(VLOOKUP(E58,#REF!,8,FALSE),IFERROR(VLOOKUP(E58,#REF!,8,FALSE),IFERROR(VLOOKUP(E58,#REF!,8,FALSE),""))) ->  | S58: .-.
A59: 54 | B59: =IFERROR(DAY(CTR[[#This Row],[Date]]),"") -> 6 | C59: =IFERROR(MONTH(CTR[[#This Row],[Date]]),"") -> 1 | D59: =IF(ISNA(INDEX(CTS!C:C,MATCH(E59,CTS!$E:$E,0))),"",(INDEX(CTS!C:C,MATCH(E59,CTS!$E:$E,0)))) -> 44202 | E59: 01-054 | F59: =IF(ISNA(INDEX(CTS!$F:$F,MATCH(E59,CTS!$E:$E,0))),"",(INDEX(CTS!$F:$F,MATCH(E59,CTS!$E:$E,0)))) -> CLIENT | G59: =IF(ISNA(INDEX(CTS!$N:$N,MATCH(E59,CTS!$E:$E,0))),"",(INDEX(CTS!$N:$N,MATCH(E59,CTS!$E:$E,0)))) -> 319.3277311 | H59: =IF(ISNA(INDEX(CTS!$O:$O,MATCH(E59,CTS!$E:$E,0))),"",(INDEX(CTS!$O:$O,MATCH(E59,CTS!$E:$E,0)))) -> 0 | I59: =IF(ISNA(INDEX(CTS!$P:$P,MATCH(E59,CTS!$E:$E,0))),"",(INDEX(CTS!$P:$P,MATCH(E59,CTS!$E:$E,0)))) -> 0 | J59: =IF(ISNA(INDEX(CTS!$Q:$Q,MATCH(E59,CTS!$E:$E,0))),"",(INDEX(CTS!$Q:$Q,MATCH(E59,CTS!$E:$E,0)))) -> 319.3277311 | K59: =IF(ISNA(INDEX(CTS!$S:$S,MATCH(E59,CTS!$E:$E,0))),"",(INDEX(CTS!$S:$S,MATCH(E59,CTS!$E:$E,0)))) -> 60.67226891 | L59: =IF(ISNA(INDEX(CTS!$T:$T,MATCH(E59,CTS!$E:$E,0))),"",(INDEX(CTS!$T:$T,MATCH(E59,CTS!$E:$E,0)))) -> 380 | M59: =IF(ISNA(INDEX(CTS!$U:$U,MATCH(E59,CTS!$E:$E,0))),"",(INDEX(CTS!$U:$U,MATCH(E59,CTS!$E:$E,0)))) -> 0 | N59: =IF(ISNA(INDEX(CTS!$V:$V,MATCH(E59,CTS!$E:$E,0))),"",(INDEX(CTS!$V:$V,MATCH(E59,CTS!$E:$E,0)))) -> 380 | O59: =IFERROR(INDEX(CTS!$A:$A,MATCH(E59,CTS!$E:$E,0)),".") -> P | P59: =IFERROR(IFERROR(INDEX(#REF!,MATCH(E59,#REF!,0)),IFERROR(INDEX(#REF!,MATCH(E59,#REF!,0)),INDEX(#REF!,MATCH(E59,#REF!,0)) )),".") -> . | R59: =IFERROR(VLOOKUP(E59,#REF!,8,FALSE),IFERROR(VLOOKUP(E59,#REF!,8,FALSE),IFERROR(VLOOKUP(E59,#REF!,8,FALSE),""))) ->  | S59: .-.
A60: 55 | B60: =IFERROR(DAY(CTR[[#This Row],[Date]]),"") -> 6 | C60: =IFERROR(MONTH(CTR[[#This Row],[Date]]),"") -> 1 | D60: =IF(ISNA(INDEX(CTS!C:C,MATCH(E60,CTS!$E:$E,0))),"",(INDEX(CTS!C:C,MATCH(E60,CTS!$E:$E,0)))) -> 44202 | E60: 01-055 | F60: =IF(ISNA(INDEX(CTS!$F:$F,MATCH(E60,CTS!$E:$E,0))),"",(INDEX(CTS!$F:$F,MATCH(E60,CTS!$E:$E,0)))) -> CLIENT | G60: =IF(ISNA(INDEX(CTS!$N:$N,MATCH(E60,CTS!$E:$E,0))),"",(INDEX(CTS!$N:$N,MATCH(E60,CTS!$E:$E,0)))) -> 50.42016807 | H60: =IF(ISNA(INDEX(CTS!$O:$O,MATCH(E60,CTS!$E:$E,0))),"",(INDEX(CTS!$O:$O,MATCH(E60,CTS!$E:$E,0)))) -> 0 | I60: =IF(ISNA(INDEX(CTS!$P:$P,MATCH(E60,CTS!$E:$E,0))),"",(INDEX(CTS!$P:$P,MATCH(E60,CTS!$E:$E,0)))) -> 0 | J60: =IF(ISNA(INDEX(CTS!$Q:$Q,MATCH(E60,CTS!$E:$E,0))),"",(INDEX(CTS!$Q:$Q,MATCH(E60,CTS!$E:$E,0)))) -> 50.42016807 | K60: =IF(ISNA(INDEX(CTS!$S:$S,MATCH(E60,CTS!$E:$E,0))),"",(INDEX(CTS!$S:$S,MATCH(E60,CTS!$E:$E,0)))) -> 9.579831933 | L60: =IF(ISNA(INDEX(CTS!$T:$T,MATCH(E60,CTS!$E:$E,0))),"",(INDEX(CTS!$T:$T,MATCH(E60,CTS!$E:$E,0)))) -> 60 | M60: =IF(ISNA(INDEX(CTS!$U:$U,MATCH(E60,CTS!$E:$E,0))),"",(INDEX(CTS!$U:$U,MATCH(E60,CTS!$E:$E,0)))) -> 0 | N60: =IF(ISNA(INDEX(CTS!$V:$V,MATCH(E60,CTS!$E:$E,0))),"",(INDEX(CTS!$V:$V,MATCH(E60,CTS!$E:$E,0)))) -> 60 | O60: =IFERROR(INDEX(CTS!$A:$A,MATCH(E60,CTS!$E:$E,0)),".") -> P | P60: =IFERROR(IFERROR(INDEX(#REF!,MATCH(E60,#REF!,0)),IFERROR(INDEX(#REF!,MATCH(E60,#REF!,0)),INDEX(#REF!,MATCH(E60,#REF!,0)) )),".") -> . | R60: =IFERROR(VLOOKUP(E60,#REF!,8,FALSE),IFERROR(VLOOKUP(E60,#REF!,8,FALSE),IFERROR(VLOOKUP(E60,#REF!,8,FALSE),""))) ->  | S60: .-.
A61: 56 | B61: =IFERROR(DAY(CTR[[#This Row],[Date]]),"") -> 6 | C61: =IFERROR(MONTH(CTR[[#This Row],[Date]]),"") -> 1 | D61: =IF(ISNA(INDEX(CTS!C:C,MATCH(E61,CTS!$E:$E,0))),"",(INDEX(CTS!C:C,MATCH(E61,CTS!$E:$E,0)))) -> 44202 | E61: 01-056 | F61: =IF(ISNA(INDEX(CTS!$F:$F,MATCH(E61,CTS!$E:$E,0))),"",(INDEX(CTS!$F:$F,MATCH(E61,CTS!$E:$E,0)))) -> CLIENT | G61: =IF(ISNA(INDEX(CTS!$N:$N,MATCH(E61,CTS!$E:$E,0))),"",(INDEX(CTS!$N:$N,MATCH(E61,CTS!$E:$E,0)))) -> 983.1932773 | H61: =IF(ISNA(INDEX(CTS!$O:$O,MATCH(E61,CTS!$E:$E,0))),"",(INDEX(CTS!$O:$O,MATCH(E61,CTS!$E:$E,0)))) -> 0 | I61: =IF(ISNA(INDEX(CTS!$P:$P,MATCH(E61,CTS!$E:$E,0))),"",(INDEX(CTS!$P:$P,MATCH(E61,CTS!$E:$E,0)))) -> 0 | J61: =IF(ISNA(INDEX(CTS!$Q:$Q,MATCH(E61,CTS!$E:$E,0))),"",(INDEX(CTS!$Q:$Q,MATCH(E61,CTS!$E:$E,0)))) -> 983.1932773 | K61: =IF(ISNA(INDEX(CTS!$S:$S,MATCH(E61,CTS!$E:$E,0))),"",(INDEX(CTS!$S:$S,MATCH(E61,CTS!$E:$E,0)))) -> 186.8067227 | L61: =IF(ISNA(INDEX(CTS!$T:$T,MATCH(E61,CTS!$E:$E,0))),"",(INDEX(CTS!$T:$T,MATCH(E61,CTS!$E:$E,0)))) -> 1170 | M61: =IF(ISNA(INDEX(CTS!$U:$U,MATCH(E61,CTS!$E:$E,0))),"",(INDEX(CTS!$U:$U,MATCH(E61,CTS!$E:$E,0)))) -> 0 | N61: =IF(ISNA(INDEX(CTS!$V:$V,MATCH(E61,CTS!$E:$E,0))),"",(INDEX(CTS!$V:$V,MATCH(E61,CTS!$E:$E,0)))) -> 1170 | O61: =IFERROR(INDEX(CTS!$A:$A,MATCH(E61,CTS!$E:$E,0)),".") -> P | P61: =IFERROR(IFERROR(INDEX(#REF!,MATCH(E61,#REF!,0)),IFERROR(INDEX(#REF!,MATCH(E61,#REF!,0)),INDEX(#REF!,MATCH(E61,#REF!,0)) )),".") -> . | R61: =IFERROR(VLOOKUP(E61,#REF!,8,FALSE),IFERROR(VLOOKUP(E61,#REF!,8,FALSE),IFERROR(VLOOKUP(E61,#REF!,8,FALSE),""))) ->  | S61: .-.
A62: 57 | B62: =IFERROR(DAY(CTR[[#This Row],[Date]]),"") -> 6 | C62: =IFERROR(MONTH(CTR[[#This Row],[Date]]),"") -> 1 | D62: =IF(ISNA(INDEX(CTS!C:C,MATCH(E62,CTS!$E:$E,0))),"",(INDEX(CTS!C:C,MATCH(E62,CTS!$E:$E,0)))) -> 44202 | E62: 01-057 | F62: =IF(ISNA(INDEX(CTS!$F:$F,MATCH(E62,CTS!$E:$E,0))),"",(INDEX(CTS!$F:$F,MATCH(E62,CTS!$E:$E,0)))) -> CLIENT | G62: =IF(ISNA(INDEX(CTS!$N:$N,MATCH(E62,CTS!$E:$E,0))),"",(INDEX(CTS!$N:$N,MATCH(E62,CTS!$E:$E,0)))) -> 5092.436975 | H62: =IF(ISNA(INDEX(CTS!$O:$O,MATCH(E62,CTS!$E:$E,0))),"",(INDEX(CTS!$O:$O,MATCH(E62,CTS!$E:$E,0)))) -> 0 | I62: =IF(ISNA(INDEX(CTS!$P:$P,MATCH(E62,CTS!$E:$E,0))),"",(INDEX(CTS!$P:$P,MATCH(E62,CTS!$E:$E,0)))) -> 0 | J62: =IF(ISNA(INDEX(CTS!$Q:$Q,MATCH(E62,CTS!$E:$E,0))),"",(INDEX(CTS!$Q:$Q,MATCH(E62,CTS!$E:$E,0)))) -> 5092.436975 | K62: =IF(ISNA(INDEX(CTS!$S:$S,MATCH(E62,CTS!$E:$E,0))),"",(INDEX(CTS!$S:$S,MATCH(E62,CTS!$E:$E,0)))) -> 967.5630252 | L62: =IF(ISNA(INDEX(CTS!$T:$T,MATCH(E62,CTS!$E:$E,0))),"",(INDEX(CTS!$T:$T,MATCH(E62,CTS!$E:$E,0)))) -> 6060 | M62: =IF(ISNA(INDEX(CTS!$U:$U,MATCH(E62,CTS!$E:$E,0))),"",(INDEX(CTS!$U:$U,MATCH(E62,CTS!$E:$E,0)))) -> 0 | N62: =IF(ISNA(INDEX(CTS!$V:$V,MATCH(E62,CTS!$E:$E,0))),"",(INDEX(CTS!$V:$V,MATCH(E62,CTS!$E:$E,0)))) -> 6060 | O62: =IFERROR(INDEX(CTS!$A:$A,MATCH(E62,CTS!$E:$E,0)),".") -> P | P62: =IFERROR(IFERROR(INDEX(#REF!,MATCH(E62,#REF!,0)),IFERROR(INDEX(#REF!,MATCH(E62,#REF!,0)),INDEX(#REF!,MATCH(E62,#REF!,0)) )),".") -> . | R62: =IFERROR(VLOOKUP(E62,#REF!,8,FALSE),IFERROR(VLOOKUP(E62,#REF!,8,FALSE),IFERROR(VLOOKUP(E62,#REF!,8,FALSE),""))) ->  | S62: .-.
A63: 58 | B63: =IFERROR(DAY(CTR[[#This Row],[Date]]),"") -> 6 | C63: =IFERROR(MONTH(CTR[[#This Row],[Date]]),"") -> 1 | D63: =IF(ISNA(INDEX(CTS!C:C,MATCH(E63,CTS!$E:$E,0))),"",(INDEX(CTS!C:C,MATCH(E63,CTS!$E:$E,0)))) -> 44202 | E63: 01-058 | F63: =IF(ISNA(INDEX(CTS!$F:$F,MATCH(E63,CTS!$E:$E,0))),"",(INDEX(CTS!$F:$F,MATCH(E63,CTS!$E:$E,0)))) -> CLIENT | G63: =IF(ISNA(INDEX(CTS!$N:$N,MATCH(E63,CTS!$E:$E,0))),"",(INDEX(CTS!$N:$N,MATCH(E63,CTS!$E:$E,0)))) -> 211.7647059 | H63: =IF(ISNA(INDEX(CTS!$O:$O,MATCH(E63,CTS!$E:$E,0))),"",(INDEX(CTS!$O:$O,MATCH(E63,CTS!$E:$E,0)))) -> 0 | I63: =IF(ISNA(INDEX(CTS!$P:$P,MATCH(E63,CTS!$E:$E,0))),"",(INDEX(CTS!$P:$P,MATCH(E63,CTS!$E:$E,0)))) -> 0 | J63: =IF(ISNA(INDEX(CTS!$Q:$Q,MATCH(E63,CTS!$E:$E,0))),"",(INDEX(CTS!$Q:$Q,MATCH(E63,CTS!$E:$E,0)))) -> 211.7647059 | K63: =IF(ISNA(INDEX(CTS!$S:$S,MATCH(E63,CTS!$E:$E,0))),"",(INDEX(CTS!$S:$S,MATCH(E63,CTS!$E:$E,0)))) -> 40.23529412 | L63: =IF(ISNA(INDEX(CTS!$T:$T,MATCH(E63,CTS!$E:$E,0))),"",(INDEX(CTS!$T:$T,MATCH(E63,CTS!$E:$E,0)))) -> 252 | M63: =IF(ISNA(INDEX(CTS!$U:$U,MATCH(E63,CTS!$E:$E,0))),"",(INDEX(CTS!$U:$U,MATCH(E63,CTS!$E:$E,0)))) -> 2 | N63: =IF(ISNA(INDEX(CTS!$V:$V,MATCH(E63,CTS!$E:$E,0))),"",(INDEX(CTS!$V:$V,MATCH(E63,CTS!$E:$E,0)))) -> 250 | O63: =IFERROR(INDEX(CTS!$A:$A,MATCH(E63,CTS!$E:$E,0)),".") -> P | P63: =IFERROR(IFERROR(INDEX(#REF!,MATCH(E63,#REF!,0)),IFERROR(INDEX(#REF!,MATCH(E63,#REF!,0)),INDEX(#REF!,MATCH(E63,#REF!,0)) )),".") -> . | R63: =IFERROR(VLOOKUP(E63,#REF!,8,FALSE),IFERROR(VLOOKUP(E63,#REF!,8,FALSE),IFERROR(VLOOKUP(E63,#REF!,8,FALSE),""))) ->  | S63: .-.
A64: 59 | B64: =IFERROR(DAY(CTR[[#This Row],[Date]]),"") -> 6 | C64: =IFERROR(MONTH(CTR[[#This Row],[Date]]),"") -> 1 | D64: =IF(ISNA(INDEX(CTS!C:C,MATCH(E64,CTS!$E:$E,0))),"",(INDEX(CTS!C:C,MATCH(E64,CTS!$E:$E,0)))) -> 44202 | E64: 01-059 | F64: =IF(ISNA(INDEX(CTS!$F:$F,MATCH(E64,CTS!$E:$E,0))),"",(INDEX(CTS!$F:$F,MATCH(E64,CTS!$E:$E,0)))) -> CLIENT | G64: =IF(ISNA(INDEX(CTS!$N:$N,MATCH(E64,CTS!$E:$E,0))),"",(INDEX(CTS!$N:$N,MATCH(E64,CTS!$E:$E,0)))) -> 131.092437 | H64: =IF(ISNA(INDEX(CTS!$O:$O,MATCH(E64,CTS!$E:$E,0))),"",(INDEX(CTS!$O:$O,MATCH(E64,CTS!$E:$E,0)))) -> 0 | I64: =IF(ISNA(INDEX(CTS!$P:$P,MATCH(E64,CTS!$E:$E,0))),"",(INDEX(CTS!$P:$P,MATCH(E64,CTS!$E:$E,0)))) -> 0 | J64: =IF(ISNA(INDEX(CTS!$Q:$Q,MATCH(E64,CTS!$E:$E,0))),"",(INDEX(CTS!$Q:$Q,MATCH(E64,CTS!$E:$E,0)))) -> 131.092437 | K64: =IF(ISNA(INDEX(CTS!$S:$S,MATCH(E64,CTS!$E:$E,0))),"",(INDEX(CTS!$S:$S,MATCH(E64,CTS!$E:$E,0)))) -> 24.90756303 | L64: =IF(ISNA(INDEX(CTS!$T:$T,MATCH(E64,CTS!$E:$E,0))),"",(INDEX(CTS!$T:$T,MATCH(E64,CTS!$E:$E,0)))) -> 156 | M64: =IF(ISNA(INDEX(CTS!$U:$U,MATCH(E64,CTS!$E:$E,0))),"",(INDEX(CTS!$U:$U,MATCH(E64,CTS!$E:$E,0)))) -> 6 | N64: =IF(ISNA(INDEX(CTS!$V:$V,MATCH(E64,CTS!$E:$E,0))),"",(INDEX(CTS!$V:$V,MATCH(E64,CTS!$E:$E,0)))) -> 150 | O64: =IFERROR(INDEX(CTS!$A:$A,MATCH(E64,CTS!$E:$E,0)),".") -> P | P64: =IFERROR(IFERROR(INDEX(#REF!,MATCH(E64,#REF!,0)),IFERROR(INDEX(#REF!,MATCH(E64,#REF!,0)),INDEX(#REF!,MATCH(E64,#REF!,0)) )),".") -> . | R64: =IFERROR(VLOOKUP(E64,#REF!,8,FALSE),IFERROR(VLOOKUP(E64,#REF!,8,FALSE),IFERROR(VLOOKUP(E64,#REF!,8,FALSE),""))) ->  | S64: .-.
A65: 60 | B65: =IFERROR(DAY(CTR[[#This Row],[Date]]),"") -> 6 | C65: =IFERROR(MONTH(CTR[[#This Row],[Date]]),"") -> 1 | D65: =IF(ISNA(INDEX(CTS!C:C,MATCH(E65,CTS!$E:$E,0))),"",(INDEX(CTS!C:C,MATCH(E65,CTS!$E:$E,0)))) -> 44202 | E65: 01-060 | F65: =IF(ISNA(INDEX(CTS!$F:$F,MATCH(E65,CTS!$E:$E,0))),"",(INDEX(CTS!$F:$F,MATCH(E65,CTS!$E:$E,0)))) -> PROMOTION IMMOBILIERE MAISON SESAME | G65: =IF(ISNA(INDEX(CTS!$N:$N,MATCH(E65,CTS!$E:$E,0))),"",(INDEX(CTS!$N:$N,MATCH(E65,CTS!$E:$E,0)))) -> 17568.90756 | H65: =IF(ISNA(INDEX(CTS!$O:$O,MATCH(E65,CTS!$E:$E,0))),"",(INDEX(CTS!$O:$O,MATCH(E65,CTS!$E:$E,0)))) -> 0 | I65: =IF(ISNA(INDEX(CTS!$P:$P,MATCH(E65,CTS!$E:$E,0))),"",(INDEX(CTS!$P:$P,MATCH(E65,CTS!$E:$E,0)))) -> 0 | J65: =IF(ISNA(INDEX(CTS!$Q:$Q,MATCH(E65,CTS!$E:$E,0))),"",(INDEX(CTS!$Q:$Q,MATCH(E65,CTS!$E:$E,0)))) -> 17568.90756 | K65: =IF(ISNA(INDEX(CTS!$S:$S,MATCH(E65,CTS!$E:$E,0))),"",(INDEX(CTS!$S:$S,MATCH(E65,CTS!$E:$E,0)))) -> 3304.29 | L65: =IF(ISNA(INDEX(CTS!$T:$T,MATCH(E65,CTS!$E:$E,0))),"",(INDEX(CTS!$T:$T,MATCH(E65,CTS!$E:$E,0)))) -> 20907 | M65: =IF(ISNA(INDEX(CTS!$U:$U,MATCH(E65,CTS!$E:$E,0))),"",(INDEX(CTS!$U:$U,MATCH(E65,CTS!$E:$E,0)))) -> 7 | N65: =IF(ISNA(INDEX(CTS!$V:$V,MATCH(E65,CTS!$E:$E,0))),"",(INDEX(CTS!$V:$V,MATCH(E65,CTS!$E:$E,0)))) -> 20900 | O65: =IFERROR(INDEX(CTS!$A:$A,MATCH(E65,CTS!$E:$E,0)),".") -> C | P65: =IFERROR(IFERROR(INDEX(#REF!,MATCH(E65,#REF!,0)),IFERROR(INDEX(#REF!,MATCH(E65,#REF!,0)),INDEX(#REF!,MATCH(E65,#REF!,0)) )),".") -> . | R65: =IFERROR(VLOOKUP(E65,#REF!,8,FALSE),IFERROR(VLOOKUP(E65,#REF!,8,FALSE),IFERROR(VLOOKUP(E65,#REF!,8,FALSE),""))) ->  | S65: .-.
A66: 61 | B66: =IFERROR(DAY(CTR[[#This Row],[Date]]),"") -> 6 | C66: =IFERROR(MONTH(CTR[[#This Row],[Date]]),"") -> 1 | D66: =IF(ISNA(INDEX(CTS!C:C,MATCH(E66,CTS!$E:$E,0))),"",(INDEX(CTS!C:C,MATCH(E66,CTS!$E:$E,0)))) -> 44202 | E66: 01-061 | F66: =IF(ISNA(INDEX(CTS!$F:$F,MATCH(E66,CTS!$E:$E,0))),"",(INDEX(CTS!$F:$F,MATCH(E66,CTS!$E:$E,0)))) -> CLIENT | G66: =IF(ISNA(INDEX(CTS!$N:$N,MATCH(E66,CTS!$E:$E,0))),"",(INDEX(CTS!$N:$N,MATCH(E66,CTS!$E:$E,0)))) -> 275.6302521 | H66: =IF(ISNA(INDEX(CTS!$O:$O,MATCH(E66,CTS!$E:$E,0))),"",(INDEX(CTS!$O:$O,MATCH(E66,CTS!$E:$E,0)))) -> 0 | I66: =IF(ISNA(INDEX(CTS!$P:$P,MATCH(E66,CTS!$E:$E,0))),"",(INDEX(CTS!$P:$P,MATCH(E66,CTS!$E:$E,0)))) -> 0 | J66: =IF(ISNA(INDEX(CTS!$Q:$Q,MATCH(E66,CTS!$E:$E,0))),"",(INDEX(CTS!$Q:$Q,MATCH(E66,CTS!$E:$E,0)))) -> 275.6302521 | K66: =IF(ISNA(INDEX(CTS!$S:$S,MATCH(E66,CTS!$E:$E,0))),"",(INDEX(CTS!$S:$S,MATCH(E66,CTS!$E:$E,0)))) -> 52.3697479 | L66: =IF(ISNA(INDEX(CTS!$T:$T,MATCH(E66,CTS!$E:$E,0))),"",(INDEX(CTS!$T:$T,MATCH(E66,CTS!$E:$E,0)))) -> 328 | M66: =IF(ISNA(INDEX(CTS!$U:$U,MATCH(E66,CTS!$E:$E,0))),"",(INDEX(CTS!$U:$U,MATCH(E66,CTS!$E:$E,0)))) -> 2 | N66: =IF(ISNA(INDEX(CTS!$V:$V,MATCH(E66,CTS!$E:$E,0))),"",(INDEX(CTS!$V:$V,MATCH(E66,CTS!$E:$E,0)))) -> 326 | O66: =IFERROR(INDEX(CTS!$A:$A,MATCH(E66,CTS!$E:$E,0)),".") -> P | P66: =IFERROR(IFERROR(INDEX(#REF!,MATCH(E66,#REF!,0)),IFERROR(INDEX(#REF!,MATCH(E66,#REF!,0)),INDEX(#REF!,MATCH(E66,#REF!,0)) )),".") -> . | R66: =IFERROR(VLOOKUP(E66,#REF!,8,FALSE),IFERROR(VLOOKUP(E66,#REF!,8,FALSE),IFERROR(VLOOKUP(E66,#REF!,8,FALSE),""))) ->  | S66: .-.
A67: 62 | B67: =IFERROR(DAY(CTR[[#This Row],[Date]]),"") -> 6 | C67: =IFERROR(MONTH(CTR[[#This Row],[Date]]),"") -> 1 | D67: =IF(ISNA(INDEX(CTS!C:C,MATCH(E67,CTS!$E:$E,0))),"",(INDEX(CTS!C:C,MATCH(E67,CTS!$E:$E,0)))) -> 44202 | E67: 01-062 | F67: =IF(ISNA(INDEX(CTS!$F:$F,MATCH(E67,CTS!$E:$E,0))),"",(INDEX(CTS!$F:$F,MATCH(E67,CTS!$E:$E,0)))) -> CLIENT | G67: =IF(ISNA(INDEX(CTS!$N:$N,MATCH(E67,CTS!$E:$E,0))),"",(INDEX(CTS!$N:$N,MATCH(E67,CTS!$E:$E,0)))) -> 564.7058824 | H67: =IF(ISNA(INDEX(CTS!$O:$O,MATCH(E67,CTS!$E:$E,0))),"",(INDEX(CTS!$O:$O,MATCH(E67,CTS!$E:$E,0)))) -> 0 | I67: =IF(ISNA(INDEX(CTS!$P:$P,MATCH(E67,CTS!$E:$E,0))),"",(INDEX(CTS!$P:$P,MATCH(E67,CTS!$E:$E,0)))) -> 0 | J67: =IF(ISNA(INDEX(CTS!$Q:$Q,MATCH(E67,CTS!$E:$E,0))),"",(INDEX(CTS!$Q:$Q,MATCH(E67,CTS!$E:$E,0)))) -> 564.7058824 | K67: =IF(ISNA(INDEX(CTS!$S:$S,MATCH(E67,CTS!$E:$E,0))),"",(INDEX(CTS!$S:$S,MATCH(E67,CTS!$E:$E,0)))) -> 107.2941176 | L67: =IF(ISNA(INDEX(CTS!$T:$T,MATCH(E67,CTS!$E:$E,0))),"",(INDEX(CTS!$T:$T,MATCH(E67,CTS!$E:$E,0)))) -> 672 | M67: =IF(ISNA(INDEX(CTS!$U:$U,MATCH(E67,CTS!$E:$E,0))),"",(INDEX(CTS!$U:$U,MATCH(E67,CTS!$E:$E,0)))) -> 2 | N67: =IF(ISNA(INDEX(CTS!$V:$V,MATCH(E67,CTS!$E:$E,0))),"",(INDEX(CTS!$V:$V,MATCH(E67,CTS!$E:$E,0)))) -> 670 | O67: =IFERROR(INDEX(CTS!$A:$A,MATCH(E67,CTS!$E:$E,0)),".") -> P | P67: =IFERROR(IFERROR(INDEX(#REF!,MATCH(E67,#REF!,0)),IFERROR(INDEX(#REF!,MATCH(E67,#REF!,0)),INDEX(#REF!,MATCH(E67,#REF!,0)) )),".") -> . | R67: =IFERROR(VLOOKUP(E67,#REF!,8,FALSE),IFERROR(VLOOKUP(E67,#REF!,8,FALSE),IFERROR(VLOOKUP(E67,#REF!,8,FALSE),""))) ->  | S67: .-.
A68: 63 | B68: =IFERROR(DAY(CTR[[#This Row],[Date]]),"") -> 6 | C68: =IFERROR(MONTH(CTR[[#This Row],[Date]]),"") -> 1 | D68: =IF(ISNA(INDEX(CTS!C:C,MATCH(E68,CTS!$E:$E,0))),"",(INDEX(CTS!C:C,MATCH(E68,CTS!$E:$E,0)))) -> 44202 | E68: 01-063 | F68: =IF(ISNA(INDEX(CTS!$F:$F,MATCH(E68,CTS!$E:$E,0))),"",(INDEX(CTS!$F:$F,MATCH(E68,CTS!$E:$E,0)))) -> CLIENT | G68: =IF(ISNA(INDEX(CTS!$N:$N,MATCH(E68,CTS!$E:$E,0))),"",(INDEX(CTS!$N:$N,MATCH(E68,CTS!$E:$E,0)))) -> 115.9663866 | H68: =IF(ISNA(INDEX(CTS!$O:$O,MATCH(E68,CTS!$E:$E,0))),"",(INDEX(CTS!$O:$O,MATCH(E68,CTS!$E:$E,0)))) -> 0 | I68: =IF(ISNA(INDEX(CTS!$P:$P,MATCH(E68,CTS!$E:$E,0))),"",(INDEX(CTS!$P:$P,MATCH(E68,CTS!$E:$E,0)))) -> 0 | J68: =IF(ISNA(INDEX(CTS!$Q:$Q,MATCH(E68,CTS!$E:$E,0))),"",(INDEX(CTS!$Q:$Q,MATCH(E68,CTS!$E:$E,0)))) -> 115.9663866 | K68: =IF(ISNA(INDEX(CTS!$S:$S,MATCH(E68,CTS!$E:$E,0))),"",(INDEX(CTS!$S:$S,MATCH(E68,CTS!$E:$E,0)))) -> 22.03361345 | L68: =IF(ISNA(INDEX(CTS!$T:$T,MATCH(E68,CTS!$E:$E,0))),"",(INDEX(CTS!$T:$T,MATCH(E68,CTS!$E:$E,0)))) -> 138 | M68: =IF(ISNA(INDEX(CTS!$U:$U,MATCH(E68,CTS!$E:$E,0))),"",(INDEX(CTS!$U:$U,MATCH(E68,CTS!$E:$E,0)))) -> 2 | N68: =IF(ISNA(INDEX(CTS!$V:$V,MATCH(E68,CTS!$E:$E,0))),"",(INDEX(CTS!$V:$V,MATCH(E68,CTS!$E:$E,0)))) -> 136 | O68: =IFERROR(INDEX(CTS!$A:$A,MATCH(E68,CTS!$E:$E,0)),".") -> P | P68: =IFERROR(IFERROR(INDEX(#REF!,MATCH(E68,#REF!,0)),IFERROR(INDEX(#REF!,MATCH(E68,#REF!,0)),INDEX(#REF!,MATCH(E68,#REF!,0)) )),".") -> . | R68: =IFERROR(VLOOKUP(E68,#REF!,8,FALSE),IFERROR(VLOOKUP(E68,#REF!,8,FALSE),IFERROR(VLOOKUP(E68,#REF!,8,FALSE),""))) ->  | S68: .-.
A69: 64 | B69: =IFERROR(DAY(CTR[[#This Row],[Date]]),"") -> 6 | C69: =IFERROR(MONTH(CTR[[#This Row],[Date]]),"") -> 1 | D69: =IF(ISNA(INDEX(CTS!C:C,MATCH(E69,CTS!$E:$E,0))),"",(INDEX(CTS!C:C,MATCH(E69,CTS!$E:$E,0)))) -> 44202 | E69: 01-064 | F69: =IF(ISNA(INDEX(CTS!$F:$F,MATCH(E69,CTS!$E:$E,0))),"",(INDEX(CTS!$F:$F,MATCH(E69,CTS!$E:$E,0)))) -> CLIENT | G69: =IF(ISNA(INDEX(CTS!$N:$N,MATCH(E69,CTS!$E:$E,0))),"",(INDEX(CTS!$N:$N,MATCH(E69,CTS!$E:$E,0)))) -> 285.7142857 | H69: =IF(ISNA(INDEX(CTS!$O:$O,MATCH(E69,CTS!$E:$E,0))),"",(INDEX(CTS!$O:$O,MATCH(E69,CTS!$E:$E,0)))) -> 0 | I69: =IF(ISNA(INDEX(CTS!$P:$P,MATCH(E69,CTS!$E:$E,0))),"",(INDEX(CTS!$P:$P,MATCH(E69,CTS!$E:$E,0)))) -> 0 | J69: =IF(ISNA(INDEX(CTS!$Q:$Q,MATCH(E69,CTS!$E:$E,0))),"",(INDEX(CTS!$Q:$Q,MATCH(E69,CTS!$E:$E,0)))) -> 285.7142857 | K69: =IF(ISNA(INDEX(CTS!$S:$S,MATCH(E69,CTS!$E:$E,0))),"",(INDEX(CTS!$S:$S,MATCH(E69,CTS!$E:$E,0)))) -> 54.28571429 | L69: =IF(ISNA(INDEX(CTS!$T:$T,MATCH(E69,CTS!$E:$E,0))),"",(INDEX(CTS!$T:$T,MATCH(E69,CTS!$E:$E,0)))) -> 340 | M69: =IF(ISNA(INDEX(CTS!$U:$U,MATCH(E69,CTS!$E:$E,0))),"",(INDEX(CTS!$U:$U,MATCH(E69,CTS!$E:$E,0)))) -> 0 | N69: =IF(ISNA(INDEX(CTS!$V:$V,MATCH(E69,CTS!$E:$E,0))),"",(INDEX(CTS!$V:$V,MATCH(E69,CTS!$E:$E,0)))) -> 340 | O69: =IFERROR(INDEX(CTS!$A:$A,MATCH(E69,CTS!$E:$E,0)),".") -> P | P69: =IFERROR(IFERROR(INDEX(#REF!,MATCH(E69,#REF!,0)),IFERROR(INDEX(#REF!,MATCH(E69,#REF!,0)),INDEX(#REF!,MATCH(E69,#REF!,0)) )),".") -> . | R69: =IFERROR(VLOOKUP(E69,#REF!,8,FALSE),IFERROR(VLOOKUP(E69,#REF!,8,FALSE),IFERROR(VLOOKUP(E69,#REF!,8,FALSE),""))) ->  | S69: .-.
A70: 65 | B70: =IFERROR(DAY(CTR[[#This Row],[Date]]),"") -> 6 | C70: =IFERROR(MONTH(CTR[[#This Row],[Date]]),"") -> 1 | D70: =IF(ISNA(INDEX(CTS!C:C,MATCH(E70,CTS!$E:$E,0))),"",(INDEX(CTS!C:C,MATCH(E70,CTS!$E:$E,0)))) -> 44202 | E70: 01-065 | F70: =IF(ISNA(INDEX(CTS!$F:$F,MATCH(E70,CTS!$E:$E,0))),"",(INDEX(CTS!$F:$F,MATCH(E70,CTS!$E:$E,0)))) -> CLIENT | G70: =IF(ISNA(INDEX(CTS!$N:$N,MATCH(E70,CTS!$E:$E,0))),"",(INDEX(CTS!$N:$N,MATCH(E70,CTS!$E:$E,0)))) -> 156.302521 | H70: =IF(ISNA(INDEX(CTS!$O:$O,MATCH(E70,CTS!$E:$E,0))),"",(INDEX(CTS!$O:$O,MATCH(E70,CTS!$E:$E,0)))) -> 0 | I70: =IF(ISNA(INDEX(CTS!$P:$P,MATCH(E70,CTS!$E:$E,0))),"",(INDEX(CTS!$P:$P,MATCH(E70,CTS!$E:$E,0)))) -> 0 | J70: =IF(ISNA(INDEX(CTS!$Q:$Q,MATCH(E70,CTS!$E:$E,0))),"",(INDEX(CTS!$Q:$Q,MATCH(E70,CTS!$E:$E,0)))) -> 156.302521 | K70: =IF(ISNA(INDEX(CTS!$S:$S,MATCH(E70,CTS!$E:$E,0))),"",(INDEX(CTS!$S:$S,MATCH(E70,CTS!$E:$E,0)))) -> 29.69747899 | L70: =IF(ISNA(INDEX(CTS!$T:$T,MATCH(E70,CTS!$E:$E,0))),"",(INDEX(CTS!$T:$T,MATCH(E70,CTS!$E:$E,0)))) -> 186 | M70: =IF(ISNA(INDEX(CTS!$U:$U,MATCH(E70,CTS!$E:$E,0))),"",(INDEX(CTS!$U:$U,MATCH(E70,CTS!$E:$E,0)))) -> 4 | N70: =IF(ISNA(INDEX(CTS!$V:$V,MATCH(E70,CTS!$E:$E,0))),"",(INDEX(CTS!$V:$V,MATCH(E70,CTS!$E:$E,0)))) -> 182 | O70: =IFERROR(INDEX(CTS!$A:$A,MATCH(E70,CTS!$E:$E,0)),".") -> P | P70: =IFERROR(IFERROR(INDEX(#REF!,MATCH(E70,#REF!,0)),IFERROR(INDEX(#REF!,MATCH(E70,#REF!,0)),INDEX(#REF!,MATCH(E70,#REF!,0)) )),".") -> . | R70: =IFERROR(VLOOKUP(E70,#REF!,8,FALSE),IFERROR(VLOOKUP(E70,#REF!,8,FALSE),IFERROR(VLOOKUP(E70,#REF!,8,FALSE),""))) ->  | S70: =IFERROR(TEXT(P70,"mm") & "-" & TEXT(P70,"aaaa"),"") -> .-.
A71: 66 | B71: =IFERROR(DAY(CTR[[#This Row],[Date]]),"") -> 6 | C71: =IFERROR(MONTH(CTR[[#This Row],[Date]]),"") -> 1 | D71: =IF(ISNA(INDEX(CTS!C:C,MATCH(E71,CTS!$E:$E,0))),"",(INDEX(CTS!C:C,MATCH(E71,CTS!$E:$E,0)))) -> 44202 | E71: 01-066 | F71: =IF(ISNA(INDEX(CTS!$F:$F,MATCH(E71,CTS!$E:$E,0))),"",(INDEX(CTS!$F:$F,MATCH(E71,CTS!$E:$E,0)))) -> CLIENT | G71: =IF(ISNA(INDEX(CTS!$N:$N,MATCH(E71,CTS!$E:$E,0))),"",(INDEX(CTS!$N:$N,MATCH(E71,CTS!$E:$E,0)))) -> 242.0168067 | H71: =IF(ISNA(INDEX(CTS!$O:$O,MATCH(E71,CTS!$E:$E,0))),"",(INDEX(CTS!$O:$O,MATCH(E71,CTS!$E:$E,0)))) -> 0 | I71: =IF(ISNA(INDEX(CTS!$P:$P,MATCH(E71,CTS!$E:$E,0))),"",(INDEX(CTS!$P:$P,MATCH(E71,CTS!$E:$E,0)))) -> 0 | J71: =IF(ISNA(INDEX(CTS!$Q:$Q,MATCH(E71,CTS!$E:$E,0))),"",(INDEX(CTS!$Q:$Q,MATCH(E71,CTS!$E:$E,0)))) -> 242.0168067 | K71: =IF(ISNA(INDEX(CTS!$S:$S,MATCH(E71,CTS!$E:$E,0))),"",(INDEX(CTS!$S:$S,MATCH(E71,CTS!$E:$E,0)))) -> 45.98319328 | L71: =IF(ISNA(INDEX(CTS!$T:$T,MATCH(E71,CTS!$E:$E,0))),"",(INDEX(CTS!$T:$T,MATCH(E71,CTS!$E:$E,0)))) -> 288 | M71: =IF(ISNA(INDEX(CTS!$U:$U,MATCH(E71,CTS!$E:$E,0))),"",(INDEX(CTS!$U:$U,MATCH(E71,CTS!$E:$E,0)))) -> 3 | N71: =IF(ISNA(INDEX(CTS!$V:$V,MATCH(E71,CTS!$E:$E,0))),"",(INDEX(CTS!$V:$V,MATCH(E71,CTS!$E:$E,0)))) -> 285 | O71: =IFERROR(INDEX(CTS!$A:$A,MATCH(E71,CTS!$E:$E,0)),".") -> P | P71: =IFERROR(IFERROR(INDEX(#REF!,MATCH(E71,#REF!,0)),IFERROR(INDEX(#REF!,MATCH(E71,#REF!,0)),INDEX(#REF!,MATCH(E71,#REF!,0)) )),".") -> . | R71: =IFERROR(VLOOKUP(E71,#REF!,8,FALSE),IFERROR(VLOOKUP(E71,#REF!,8,FALSE),IFERROR(VLOOKUP(E71,#REF!,8,FALSE),""))) ->  | S71: .-.
A72: 67 | B72: =IFERROR(DAY(CTR[[#This Row],[Date]]),"") -> 6 | C72: =IFERROR(MONTH(CTR[[#This Row],[Date]]),"") -> 1 | D72: =IF(ISNA(INDEX(CTS!C:C,MATCH(E72,CTS!$E:$E,0))),"",(INDEX(CTS!C:C,MATCH(E72,CTS!$E:$E,0)))) -> 44202 | E72: 01-067 | F72: =IF(ISNA(INDEX(CTS!$F:$F,MATCH(E72,CTS!$E:$E,0))),"",(INDEX(CTS!$F:$F,MATCH(E72,CTS!$E:$E,0)))) -> CLIENT | G72: =IF(ISNA(INDEX(CTS!$N:$N,MATCH(E72,CTS!$E:$E,0))),"",(INDEX(CTS!$N:$N,MATCH(E72,CTS!$E:$E,0)))) -> 147.0588235 | H72: =IF(ISNA(INDEX(CTS!$O:$O,MATCH(E72,CTS!$E:$E,0))),"",(INDEX(CTS!$O:$O,MATCH(E72,CTS!$E:$E,0)))) -> 0 | I72: =IF(ISNA(INDEX(CTS!$P:$P,MATCH(E72,CTS!$E:$E,0))),"",(INDEX(CTS!$P:$P,MATCH(E72,CTS!$E:$E,0)))) -> 0 | J72: =IF(ISNA(INDEX(CTS!$Q:$Q,MATCH(E72,CTS!$E:$E,0))),"",(INDEX(CTS!$Q:$Q,MATCH(E72,CTS!$E:$E,0)))) -> 147.0588235 | K72: =IF(ISNA(INDEX(CTS!$S:$S,MATCH(E72,CTS!$E:$E,0))),"",(INDEX(CTS!$S:$S,MATCH(E72,CTS!$E:$E,0)))) -> 27.94117647 | L72: =IF(ISNA(INDEX(CTS!$T:$T,MATCH(E72,CTS!$E:$E,0))),"",(INDEX(CTS!$T:$T,MATCH(E72,CTS!$E:$E,0)))) -> 175 | M72: =IF(ISNA(INDEX(CTS!$U:$U,MATCH(E72,CTS!$E:$E,0))),"",(INDEX(CTS!$U:$U,MATCH(E72,CTS!$E:$E,0)))) -> 0 | N72: =IF(ISNA(INDEX(CTS!$V:$V,MATCH(E72,CTS!$E:$E,0))),"",(INDEX(CTS!$V:$V,MATCH(E72,CTS!$E:$E,0)))) -> 175 | O72: =IFERROR(INDEX(CTS!$A:$A,MATCH(E72,CTS!$E:$E,0)),".") -> p | P72: =IFERROR(IFERROR(INDEX(#REF!,MATCH(E72,#REF!,0)),IFERROR(INDEX(#REF!,MATCH(E72,#REF!,0)),INDEX(#REF!,MATCH(E72,#REF!,0)) )),".") -> . | R72: =IFERROR(VLOOKUP(E72,#REF!,8,FALSE),IFERROR(VLOOKUP(E72,#REF!,8,FALSE),IFERROR(VLOOKUP(E72,#REF!,8,FALSE),""))) ->  | S72: .-.
A73: 68 | B73: =IFERROR(DAY(CTR[[#This Row],[Date]]),"") -> 6 | C73: =IFERROR(MONTH(CTR[[#This Row],[Date]]),"") -> 1 | D73: =IF(ISNA(INDEX(CTS!C:C,MATCH(E73,CTS!$E:$E,0))),"",(INDEX(CTS!C:C,MATCH(E73,CTS!$E:$E,0)))) -> 44202 | E73: 01-068 | F73: =IF(ISNA(INDEX(CTS!$F:$F,MATCH(E73,CTS!$E:$E,0))),"",(INDEX(CTS!$F:$F,MATCH(E73,CTS!$E:$E,0)))) -> M.S.PROJECT | G73: =IF(ISNA(INDEX(CTS!$N:$N,MATCH(E73,CTS!$E:$E,0))),"",(INDEX(CTS!$N:$N,MATCH(E73,CTS!$E:$E,0)))) -> 168.0672269 | H73: =IF(ISNA(INDEX(CTS!$O:$O,MATCH(E73,CTS!$E:$E,0))),"",(INDEX(CTS!$O:$O,MATCH(E73,CTS!$E:$E,0)))) -> 0 | I73: =IF(ISNA(INDEX(CTS!$P:$P,MATCH(E73,CTS!$E:$E,0))),"",(INDEX(CTS!$P:$P,MATCH(E73,CTS!$E:$E,0)))) -> 0 | J73: =IF(ISNA(INDEX(CTS!$Q:$Q,MATCH(E73,CTS!$E:$E,0))),"",(INDEX(CTS!$Q:$Q,MATCH(E73,CTS!$E:$E,0)))) -> 168.0672269 | K73: =IF(ISNA(INDEX(CTS!$S:$S,MATCH(E73,CTS!$E:$E,0))),"",(INDEX(CTS!$S:$S,MATCH(E73,CTS!$E:$E,0)))) -> 31.93277311 | L73: =IF(ISNA(INDEX(CTS!$T:$T,MATCH(E73,CTS!$E:$E,0))),"",(INDEX(CTS!$T:$T,MATCH(E73,CTS!$E:$E,0)))) -> 200 | M73: =IF(ISNA(INDEX(CTS!$U:$U,MATCH(E73,CTS!$E:$E,0))),"",(INDEX(CTS!$U:$U,MATCH(E73,CTS!$E:$E,0)))) -> 0 | N73: =IF(ISNA(INDEX(CTS!$V:$V,MATCH(E73,CTS!$E:$E,0))),"",(INDEX(CTS!$V:$V,MATCH(E73,CTS!$E:$E,0)))) -> 200 | O73: =IFERROR(INDEX(CTS!$A:$A,MATCH(E73,CTS!$E:$E,0)),".") -> P | P73: =IFERROR(IFERROR(INDEX(#REF!,MATCH(E73,#REF!,0)),IFERROR(INDEX(#REF!,MATCH(E73,#REF!,0)),INDEX(#REF!,MATCH(E73,#REF!,0)) )),".") -> . | R73: =IFERROR(VLOOKUP(E73,#REF!,8,FALSE),IFERROR(VLOOKUP(E73,#REF!,8,FALSE),IFERROR(VLOOKUP(E73,#REF!,8,FALSE),""))) ->  | S73: .-.
A74: 69 | B74: =IFERROR(DAY(CTR[[#This Row],[Date]]),"") -> 6 | C74: =IFERROR(MONTH(CTR[[#This Row],[Date]]),"") -> 1 | D74: =IF(ISNA(INDEX(CTS!C:C,MATCH(E74,CTS!$E:$E,0))),"",(INDEX(CTS!C:C,MATCH(E74,CTS!$E:$E,0)))) -> 44202 | E74: 01-069 | F74: =IF(ISNA(INDEX(CTS!$F:$F,MATCH(E74,CTS!$E:$E,0))),"",(INDEX(CTS!$F:$F,MATCH(E74,CTS!$E:$E,0)))) -> CLIENT | G74: =IF(ISNA(INDEX(CTS!$N:$N,MATCH(E74,CTS!$E:$E,0))),"",(INDEX(CTS!$N:$N,MATCH(E74,CTS!$E:$E,0)))) -> 847.0588235 | H74: =IF(ISNA(INDEX(CTS!$O:$O,MATCH(E74,CTS!$E:$E,0))),"",(INDEX(CTS!$O:$O,MATCH(E74,CTS!$E:$E,0)))) -> 0 | I74: =IF(ISNA(INDEX(CTS!$P:$P,MATCH(E74,CTS!$E:$E,0))),"",(INDEX(CTS!$P:$P,MATCH(E74,CTS!$E:$E,0)))) -> 0 | J74: =IF(ISNA(INDEX(CTS!$Q:$Q,MATCH(E74,CTS!$E:$E,0))),"",(INDEX(CTS!$Q:$Q,MATCH(E74,CTS!$E:$E,0)))) -> 847.0588235 | K74: =IF(ISNA(INDEX(CTS!$S:$S,MATCH(E74,CTS!$E:$E,0))),"",(INDEX(CTS!$S:$S,MATCH(E74,CTS!$E:$E,0)))) -> 160.9411765 | L74: =IF(ISNA(INDEX(CTS!$T:$T,MATCH(E74,CTS!$E:$E,0))),"",(INDEX(CTS!$T:$T,MATCH(E74,CTS!$E:$E,0)))) -> 1008 | M74: =IF(ISNA(INDEX(CTS!$U:$U,MATCH(E74,CTS!$E:$E,0))),"",(INDEX(CTS!$U:$U,MATCH(E74,CTS!$E:$E,0)))) -> 8 | N74: =IF(ISNA(INDEX(CTS!$V:$V,MATCH(E74,CTS!$E:$E,0))),"",(INDEX(CTS!$V:$V,MATCH(E74,CTS!$E:$E,0)))) -> 1000 | O74: =IFERROR(INDEX(CTS!$A:$A,MATCH(E74,CTS!$E:$E,0)),".") -> P | P74: =IFERROR(IFERROR(INDEX(#REF!,MATCH(E74,#REF!,0)),IFERROR(INDEX(#REF!,MATCH(E74,#REF!,0)),INDEX(#REF!,MATCH(E74,#REF!,0)) )),".") -> . | R74: =IFERROR(VLOOKUP(E74,#REF!,8,FALSE),IFERROR(VLOOKUP(E74,#REF!,8,FALSE),IFERROR(VLOOKUP(E74,#REF!,8,FALSE),""))) ->  | S74: .-.
A75: 70 | B75: =IFERROR(DAY(CTR[[#This Row],[Date]]),"") -> 6 | C75: =IFERROR(MONTH(CTR[[#This Row],[Date]]),"") -> 1 | D75: =IF(ISNA(INDEX(CTS!C:C,MATCH(E75,CTS!$E:$E,0))),"",(INDEX(CTS!C:C,MATCH(E75,CTS!$E:$E,0)))) -> 44202 | E75: 01-070 | F75: =IF(ISNA(INDEX(CTS!$F:$F,MATCH(E75,CTS!$E:$E,0))),"",(INDEX(CTS!$F:$F,MATCH(E75,CTS!$E:$E,0)))) -> CLIENT | G75: =IF(ISNA(INDEX(CTS!$N:$N,MATCH(E75,CTS!$E:$E,0))),"",(INDEX(CTS!$N:$N,MATCH(E75,CTS!$E:$E,0)))) -> 264.7058824 | H75: =IF(ISNA(INDEX(CTS!$O:$O,MATCH(E75,CTS!$E:$E,0))),"",(INDEX(CTS!$O:$O,MATCH(E75,CTS!$E:$E,0)))) -> 0 | I75: =IF(ISNA(INDEX(CTS!$P:$P,MATCH(E75,CTS!$E:$E,0))),"",(INDEX(CTS!$P:$P,MATCH(E75,CTS!$E:$E,0)))) -> 0 | J75: =IF(ISNA(INDEX(CTS!$Q:$Q,MATCH(E75,CTS!$E:$E,0))),"",(INDEX(CTS!$Q:$Q,MATCH(E75,CTS!$E:$E,0)))) -> 264.7058824 | K75: =IF(ISNA(INDEX(CTS!$S:$S,MATCH(E75,CTS!$E:$E,0))),"",(INDEX(CTS!$S:$S,MATCH(E75,CTS!$E:$E,0)))) -> 50.29411765 | L75: =IF(ISNA(INDEX(CTS!$T:$T,MATCH(E75,CTS!$E:$E,0))),"",(INDEX(CTS!$T:$T,MATCH(E75,CTS!$E:$E,0)))) -> 315 | M75: =IF(ISNA(INDEX(CTS!$U:$U,MATCH(E75,CTS!$E:$E,0))),"",(INDEX(CTS!$U:$U,MATCH(E75,CTS!$E:$E,0)))) -> 15 | N75: =IF(ISNA(INDEX(CTS!$V:$V,MATCH(E75,CTS!$E:$E,0))),"",(INDEX(CTS!$V:$V,MATCH(E75,CTS!$E:$E,0)))) -> 300 | O75: =IFERROR(INDEX(CTS!$A:$A,MATCH(E75,CTS!$E:$E,0)),".") -> P | P75: =IFERROR(IFERROR(INDEX(#REF!,MATCH(E75,#REF!,0)),IFERROR(INDEX(#REF!,MATCH(E75,#REF!,0)),INDEX(#REF!,MATCH(E75,#REF!,0)) )),".") -> . | R75: =IFERROR(VLOOKUP(E75,#REF!,8,FALSE),IFERROR(VLOOKUP(E75,#REF!,8,FALSE),IFERROR(VLOOKUP(E75,#REF!,8,FALSE),""))) ->  | S75: .-.
A76: 71 | B76: =IFERROR(DAY(CTR[[#This Row],[Date]]),"") -> 7 | C76: =IFERROR(MONTH(CTR[[#This Row],[Date]]),"") -> 1 | D76: =IF(ISNA(INDEX(CTS!C:C,MATCH(E76,CTS!$E:$E,0))),"",(INDEX(CTS!C:C,MATCH(E76,CTS!$E:$E,0)))) -> 44203 | E76: 01-071 | F76: =IF(ISNA(INDEX(CTS!$F:$F,MATCH(E76,CTS!$E:$E,0))),"",(INDEX(CTS!$F:$F,MATCH(E76,CTS!$E:$E,0)))) -> CLIENT | G76: =IF(ISNA(INDEX(CTS!$N:$N,MATCH(E76,CTS!$E:$E,0))),"",(INDEX(CTS!$N:$N,MATCH(E76,CTS!$E:$E,0)))) -> 1978.151261 | H76: =IF(ISNA(INDEX(CTS!$O:$O,MATCH(E76,CTS!$E:$E,0))),"",(INDEX(CTS!$O:$O,MATCH(E76,CTS!$E:$E,0)))) -> 0 | I76: =IF(ISNA(INDEX(CTS!$P:$P,MATCH(E76,CTS!$E:$E,0))),"",(INDEX(CTS!$P:$P,MATCH(E76,CTS!$E:$E,0)))) -> 0 | J76: =IF(ISNA(INDEX(CTS!$Q:$Q,MATCH(E76,CTS!$E:$E,0))),"",(INDEX(CTS!$Q:$Q,MATCH(E76,CTS!$E:$E,0)))) -> 1978.151261 | K76: =IF(ISNA(INDEX(CTS!$S:$S,MATCH(E76,CTS!$E:$E,0))),"",(INDEX(CTS!$S:$S,MATCH(E76,CTS!$E:$E,0)))) -> 375.8487395 | L76: =IF(ISNA(INDEX(CTS!$T:$T,MATCH(E76,CTS!$E:$E,0))),"",(INDEX(CTS!$T:$T,MATCH(E76,CTS!$E:$E,0)))) -> 2354 | M76: =IF(ISNA(INDEX(CTS!$U:$U,MATCH(E76,CTS!$E:$E,0))),"",(INDEX(CTS!$U:$U,MATCH(E76,CTS!$E:$E,0)))) -> 9 | N76: =IF(ISNA(INDEX(CTS!$V:$V,MATCH(E76,CTS!$E:$E,0))),"",(INDEX(CTS!$V:$V,MATCH(E76,CTS!$E:$E,0)))) -> 2345 | O76: =IFERROR(INDEX(CTS!$A:$A,MATCH(E76,CTS!$E:$E,0)),".") -> P | P76: =IFERROR(IFERROR(INDEX(#REF!,MATCH(E76,#REF!,0)),IFERROR(INDEX(#REF!,MATCH(E76,#REF!,0)),INDEX(#REF!,MATCH(E76,#REF!,0)) )),".") -> . | R76: =IFERROR(VLOOKUP(E76,#REF!,8,FALSE),IFERROR(VLOOKUP(E76,#REF!,8,FALSE),IFERROR(VLOOKUP(E76,#REF!,8,FALSE),""))) ->  | S76: .-.
A77: 72 | B77: =IFERROR(DAY(CTR[[#This Row],[Date]]),"") -> 7 | C77: =IFERROR(MONTH(CTR[[#This Row],[Date]]),"") -> 1 | D77: =IF(ISNA(INDEX(CTS!C:C,MATCH(E77,CTS!$E:$E,0))),"",(INDEX(CTS!C:C,MATCH(E77,CTS!$E:$E,0)))) -> 44203 | E77: 01-072 | F77: =IF(ISNA(INDEX(CTS!$F:$F,MATCH(E77,CTS!$E:$E,0))),"",(INDEX(CTS!$F:$F,MATCH(E77,CTS!$E:$E,0)))) -> CLIENT | G77: =IF(ISNA(INDEX(CTS!$N:$N,MATCH(E77,CTS!$E:$E,0))),"",(INDEX(CTS!$N:$N,MATCH(E77,CTS!$E:$E,0)))) -> 67.22689076 | H77: =IF(ISNA(INDEX(CTS!$O:$O,MATCH(E77,CTS!$E:$E,0))),"",(INDEX(CTS!$O:$O,MATCH(E77,CTS!$E:$E,0)))) -> 0 | I77: =IF(ISNA(INDEX(CTS!$P:$P,MATCH(E77,CTS!$E:$E,0))),"",(INDEX(CTS!$P:$P,MATCH(E77,CTS!$E:$E,0)))) -> 0 | J77: =IF(ISNA(INDEX(CTS!$Q:$Q,MATCH(E77,CTS!$E:$E,0))),"",(INDEX(CTS!$Q:$Q,MATCH(E77,CTS!$E:$E,0)))) -> 67.22689076 | K77: =IF(ISNA(INDEX(CTS!$S:$S,MATCH(E77,CTS!$E:$E,0))),"",(INDEX(CTS!$S:$S,MATCH(E77,CTS!$E:$E,0)))) -> 12.77310924 | L77: =IF(ISNA(INDEX(CTS!$T:$T,MATCH(E77,CTS!$E:$E,0))),"",(INDEX(CTS!$T:$T,MATCH(E77,CTS!$E:$E,0)))) -> 80 | M77: =IF(ISNA(INDEX(CTS!$U:$U,MATCH(E77,CTS!$E:$E,0))),"",(INDEX(CTS!$U:$U,MATCH(E77,CTS!$E:$E,0)))) -> 0 | N77: =IF(ISNA(INDEX(CTS!$V:$V,MATCH(E77,CTS!$E:$E,0))),"",(INDEX(CTS!$V:$V,MATCH(E77,CTS!$E:$E,0)))) -> 80 | O77: =IFERROR(INDEX(CTS!$A:$A,MATCH(E77,CTS!$E:$E,0)),".") -> P | P77: =IFERROR(IFERROR(INDEX(#REF!,MATCH(E77,#REF!,0)),IFERROR(INDEX(#REF!,MATCH(E77,#REF!,0)),INDEX(#REF!,MATCH(E77,#REF!,0)) )),".") -> . | R77: =IFERROR(VLOOKUP(E77,#REF!,8,FALSE),IFERROR(VLOOKUP(E77,#REF!,8,FALSE),IFERROR(VLOOKUP(E77,#REF!,8,FALSE),""))) ->  | S77: .-.
A78: 73 | B78: =IFERROR(DAY(CTR[[#This Row],[Date]]),"") -> 7 | C78: =IFERROR(MONTH(CTR[[#This Row],[Date]]),"") -> 1 | D78: =IF(ISNA(INDEX(CTS!C:C,MATCH(E78,CTS!$E:$E,0))),"",(INDEX(CTS!C:C,MATCH(E78,CTS!$E:$E,0)))) -> 44203 | E78: 01-073 | F78: =IF(ISNA(INDEX(CTS!$F:$F,MATCH(E78,CTS!$E:$E,0))),"",(INDEX(CTS!$F:$F,MATCH(E78,CTS!$E:$E,0)))) -> CLIENT | G78: =IF(ISNA(INDEX(CTS!$N:$N,MATCH(E78,CTS!$E:$E,0))),"",(INDEX(CTS!$N:$N,MATCH(E78,CTS!$E:$E,0)))) -> 131.092437 | H78: =IF(ISNA(INDEX(CTS!$O:$O,MATCH(E78,CTS!$E:$E,0))),"",(INDEX(CTS!$O:$O,MATCH(E78,CTS!$E:$E,0)))) -> 0 | I78: =IF(ISNA(INDEX(CTS!$P:$P,MATCH(E78,CTS!$E:$E,0))),"",(INDEX(CTS!$P:$P,MATCH(E78,CTS!$E:$E,0)))) -> 0 | J78: =IF(ISNA(INDEX(CTS!$Q:$Q,MATCH(E78,CTS!$E:$E,0))),"",(INDEX(CTS!$Q:$Q,MATCH(E78,CTS!$E:$E,0)))) -> 131.092437 | K78: =IF(ISNA(INDEX(CTS!$S:$S,MATCH(E78,CTS!$E:$E,0))),"",(INDEX(CTS!$S:$S,MATCH(E78,CTS!$E:$E,0)))) -> 24.90756303 | L78: =IF(ISNA(INDEX(CTS!$T:$T,MATCH(E78,CTS!$E:$E,0))),"",(INDEX(CTS!$T:$T,MATCH(E78,CTS!$E:$E,0)))) -> 156 | M78: =IF(ISNA(INDEX(CTS!$U:$U,MATCH(E78,CTS!$E:$E,0))),"",(INDEX(CTS!$U:$U,MATCH(E78,CTS!$E:$E,0)))) -> 0 | N78: =IF(ISNA(INDEX(CTS!$V:$V,MATCH(E78,CTS!$E:$E,0))),"",(INDEX(CTS!$V:$V,MATCH(E78,CTS!$E:$E,0)))) -> 156 | O78: =IFERROR(INDEX(CTS!$A:$A,MATCH(E78,CTS!$E:$E,0)),".") -> P | P78: =IFERROR(IFERROR(INDEX(#REF!,MATCH(E78,#REF!,0)),IFERROR(INDEX(#REF!,MATCH(E78,#REF!,0)),INDEX(#REF!,MATCH(E78,#REF!,0)) )),".") -> . | R78: =IFERROR(VLOOKUP(E78,#REF!,8,FALSE),IFERROR(VLOOKUP(E78,#REF!,8,FALSE),IFERROR(VLOOKUP(E78,#REF!,8,FALSE),""))) ->  | S78: .-.
A79: 74 | B79: =IFERROR(DAY(CTR[[#This Row],[Date]]),"") -> 7 | C79: =IFERROR(MONTH(CTR[[#This Row],[Date]]),"") -> 1 | D79: =IF(ISNA(INDEX(CTS!C:C,MATCH(E79,CTS!$E:$E,0))),"",(INDEX(CTS!C:C,MATCH(E79,CTS!$E:$E,0)))) -> 44203 | E79: 01-074 | F79: =IF(ISNA(INDEX(CTS!$F:$F,MATCH(E79,CTS!$E:$E,0))),"",(INDEX(CTS!$F:$F,MATCH(E79,CTS!$E:$E,0)))) -> CLIENT | G79: =IF(ISNA(INDEX(CTS!$N:$N,MATCH(E79,CTS!$E:$E,0))),"",(INDEX(CTS!$N:$N,MATCH(E79,CTS!$E:$E,0)))) -> 235.2941176 | H79: =IF(ISNA(INDEX(CTS!$O:$O,MATCH(E79,CTS!$E:$E,0))),"",(INDEX(CTS!$O:$O,MATCH(E79,CTS!$E:$E,0)))) -> 0 | I79: =IF(ISNA(INDEX(CTS!$P:$P,MATCH(E79,CTS!$E:$E,0))),"",(INDEX(CTS!$P:$P,MATCH(E79,CTS!$E:$E,0)))) -> 0 | J79: =IF(ISNA(INDEX(CTS!$Q:$Q,MATCH(E79,CTS!$E:$E,0))),"",(INDEX(CTS!$Q:$Q,MATCH(E79,CTS!$E:$E,0)))) -> 235.2941176 | K79: =IF(ISNA(INDEX(CTS!$S:$S,MATCH(E79,CTS!$E:$E,0))),"",(INDEX(CTS!$S:$S,MATCH(E79,CTS!$E:$E,0)))) -> 44.70588235 | L79: =IF(ISNA(INDEX(CTS!$T:$T,MATCH(E79,CTS!$E:$E,0))),"",(INDEX(CTS!$T:$T,MATCH(E79,CTS!$E:$E,0)))) -> 280 | M79: =IF(ISNA(INDEX(CTS!$U:$U,MATCH(E79,CTS!$E:$E,0))),"",(INDEX(CTS!$U:$U,MATCH(E79,CTS!$E:$E,0)))) -> 0 | N79: =IF(ISNA(INDEX(CTS!$V:$V,MATCH(E79,CTS!$E:$E,0))),"",(INDEX(CTS!$V:$V,MATCH(E79,CTS!$E:$E,0)))) -> 280 | O79: =IFERROR(INDEX(CTS!$A:$A,MATCH(E79,CTS!$E:$E,0)),".") -> P | P79: =IFERROR(IFERROR(INDEX(#REF!,MATCH(E79,#REF!,0)),IFERROR(INDEX(#REF!,MATCH(E79,#REF!,0)),INDEX(#REF!,MATCH(E79,#REF!,0)) )),".") -> . | R79: =IFERROR(VLOOKUP(E79,#REF!,8,FALSE),IFERROR(VLOOKUP(E79,#REF!,8,FALSE),IFERROR(VLOOKUP(E79,#REF!,8,FALSE),""))) ->  | S79: .-.
A80: 75 | B80: =IFERROR(DAY(CTR[[#This Row],[Date]]),"") -> 7 | C80: =IFERROR(MONTH(CTR[[#This Row],[Date]]),"") -> 1 | D80: =IF(ISNA(INDEX(CTS!C:C,MATCH(E80,CTS!$E:$E,0))),"",(INDEX(CTS!C:C,MATCH(E80,CTS!$E:$E,0)))) -> 44203 | E80: 01-075 | F80: =IF(ISNA(INDEX(CTS!$F:$F,MATCH(E80,CTS!$E:$E,0))),"",(INDEX(CTS!$F:$F,MATCH(E80,CTS!$E:$E,0)))) -> CLIENT | G80: =IF(ISNA(INDEX(CTS!$N:$N,MATCH(E80,CTS!$E:$E,0))),"",(INDEX(CTS!$N:$N,MATCH(E80,CTS!$E:$E,0)))) -> 317.6470588 | H80: =IF(ISNA(INDEX(CTS!$O:$O,MATCH(E80,CTS!$E:$E,0))),"",(INDEX(CTS!$O:$O,MATCH(E80,CTS!$E:$E,0)))) -> 0 | I80: =IF(ISNA(INDEX(CTS!$P:$P,MATCH(E80,CTS!$E:$E,0))),"",(INDEX(CTS!$P:$P,MATCH(E80,CTS!$E:$E,0)))) -> 0 | J80: =IF(ISNA(INDEX(CTS!$Q:$Q,MATCH(E80,CTS!$E:$E,0))),"",(INDEX(CTS!$Q:$Q,MATCH(E80,CTS!$E:$E,0)))) -> 317.6470588 | K80: =IF(ISNA(INDEX(CTS!$S:$S,MATCH(E80,CTS!$E:$E,0))),"",(INDEX(CTS!$S:$S,MATCH(E80,CTS!$E:$E,0)))) -> 60.35294118 | L80: =IF(ISNA(INDEX(CTS!$T:$T,MATCH(E80,CTS!$E:$E,0))),"",(INDEX(CTS!$T:$T,MATCH(E80,CTS!$E:$E,0)))) -> 378 | M80: =IF(ISNA(INDEX(CTS!$U:$U,MATCH(E80,CTS!$E:$E,0))),"",(INDEX(CTS!$U:$U,MATCH(E80,CTS!$E:$E,0)))) -> 3 | N80: =IF(ISNA(INDEX(CTS!$V:$V,MATCH(E80,CTS!$E:$E,0))),"",(INDEX(CTS!$V:$V,MATCH(E80,CTS!$E:$E,0)))) -> 375 | O80: =IFERROR(INDEX(CTS!$A:$A,MATCH(E80,CTS!$E:$E,0)),".") -> P | P80: =IFERROR(IFERROR(INDEX(#REF!,MATCH(E80,#REF!,0)),IFERROR(INDEX(#REF!,MATCH(E80,#REF!,0)),INDEX(#REF!,MATCH(E80,#REF!,0)) )),".") -> . | R80: =IFERROR(VLOOKUP(E80,#REF!,8,FALSE),IFERROR(VLOOKUP(E80,#REF!,8,FALSE),IFERROR(VLOOKUP(E80,#REF!,8,FALSE),""))) ->  | S80: .-.
A81: 76 | B81: =IFERROR(DAY(CTR[[#This Row],[Date]]),"") -> 7 | C81: =IFERROR(MONTH(CTR[[#This Row],[Date]]),"") -> 1 | D81: =IF(ISNA(INDEX(CTS!C:C,MATCH(E81,CTS!$E:$E,0))),"",(INDEX(CTS!C:C,MATCH(E81,CTS!$E:$E,0)))) -> 44203 | E81: 01-076 | F81: =IF(ISNA(INDEX(CTS!$F:$F,MATCH(E81,CTS!$E:$E,0))),"",(INDEX(CTS!$F:$F,MATCH(E81,CTS!$E:$E,0)))) -> CLIENT | G81: =IF(ISNA(INDEX(CTS!$N:$N,MATCH(E81,CTS!$E:$E,0))),"",(INDEX(CTS!$N:$N,MATCH(E81,CTS!$E:$E,0)))) -> 4436.97479 | H81: =IF(ISNA(INDEX(CTS!$O:$O,MATCH(E81,CTS!$E:$E,0))),"",(INDEX(CTS!$O:$O,MATCH(E81,CTS!$E:$E,0)))) -> 0 | I81: =IF(ISNA(INDEX(CTS!$P:$P,MATCH(E81,CTS!$E:$E,0))),"",(INDEX(CTS!$P:$P,MATCH(E81,CTS!$E:$E,0)))) -> 0 | J81: =IF(ISNA(INDEX(CTS!$Q:$Q,MATCH(E81,CTS!$E:$E,0))),"",(INDEX(CTS!$Q:$Q,MATCH(E81,CTS!$E:$E,0)))) -> 4436.97479 | K81: =IF(ISNA(INDEX(CTS!$S:$S,MATCH(E81,CTS!$E:$E,0))),"",(INDEX(CTS!$S:$S,MATCH(E81,CTS!$E:$E,0)))) -> 843.0252101 | L81: =IF(ISNA(INDEX(CTS!$T:$T,MATCH(E81,CTS!$E:$E,0))),"",(INDEX(CTS!$T:$T,MATCH(E81,CTS!$E:$E,0)))) -> 5280 | M81: =IF(ISNA(INDEX(CTS!$U:$U,MATCH(E81,CTS!$E:$E,0))),"",(INDEX(CTS!$U:$U,MATCH(E81,CTS!$E:$E,0)))) -> 0 | N81: =IF(ISNA(INDEX(CTS!$V:$V,MATCH(E81,CTS!$E:$E,0))),"",(INDEX(CTS!$V:$V,MATCH(E81,CTS!$E:$E,0)))) -> 5280 | O81: =IFERROR(INDEX(CTS!$A:$A,MATCH(E81,CTS!$E:$E,0)),".") -> p | P81: =IFERROR(IFERROR(INDEX(#REF!,MATCH(E81,#REF!,0)),IFERROR(INDEX(#REF!,MATCH(E81,#REF!,0)),INDEX(#REF!,MATCH(E81,#REF!,0)) )),".") -> . | R81: =IFERROR(VLOOKUP(E81,#REF!,8,FALSE),IFERROR(VLOOKUP(E81,#REF!,8,FALSE),IFERROR(VLOOKUP(E81,#REF!,8,FALSE),""))) ->  | S81: .-.
A82: 77 | B82: =IFERROR(DAY(CTR[[#This Row],[Date]]),"") -> 7 | C82: =IFERROR(MONTH(CTR[[#This Row],[Date]]),"") -> 1 | D82: =IF(ISNA(INDEX(CTS!C:C,MATCH(E82,CTS!$E:$E,0))),"",(INDEX(CTS!C:C,MATCH(E82,CTS!$E:$E,0)))) -> 44203 | E82: 01-077 | F82: =IF(ISNA(INDEX(CTS!$F:$F,MATCH(E82,CTS!$E:$E,0))),"",(INDEX(CTS!$F:$F,MATCH(E82,CTS!$E:$E,0)))) -> CLIENT | G82: =IF(ISNA(INDEX(CTS!$N:$N,MATCH(E82,CTS!$E:$E,0))),"",(INDEX(CTS!$N:$N,MATCH(E82,CTS!$E:$E,0)))) -> 484.0336134 | H82: =IF(ISNA(INDEX(CTS!$O:$O,MATCH(E82,CTS!$E:$E,0))),"",(INDEX(CTS!$O:$O,MATCH(E82,CTS!$E:$E,0)))) -> 0 | I82: =IF(ISNA(INDEX(CTS!$P:$P,MATCH(E82,CTS!$E:$E,0))),"",(INDEX(CTS!$P:$P,MATCH(E82,CTS!$E:$E,0)))) -> 0 | J82: =IF(ISNA(INDEX(CTS!$Q:$Q,MATCH(E82,CTS!$E:$E,0))),"",(INDEX(CTS!$Q:$Q,MATCH(E82,CTS!$E:$E,0)))) -> 484.0336134 | K82: =IF(ISNA(INDEX(CTS!$S:$S,MATCH(E82,CTS!$E:$E,0))),"",(INDEX(CTS!$S:$S,MATCH(E82,CTS!$E:$E,0)))) -> 91.96638655 | L82: =IF(ISNA(INDEX(CTS!$T:$T,MATCH(E82,CTS!$E:$E,0))),"",(INDEX(CTS!$T:$T,MATCH(E82,CTS!$E:$E,0)))) -> 576 | M82: =IF(ISNA(INDEX(CTS!$U:$U,MATCH(E82,CTS!$E:$E,0))),"",(INDEX(CTS!$U:$U,MATCH(E82,CTS!$E:$E,0)))) -> 0 | N82: =IF(ISNA(INDEX(CTS!$V:$V,MATCH(E82,CTS!$E:$E,0))),"",(INDEX(CTS!$V:$V,MATCH(E82,CTS!$E:$E,0)))) -> 576 | O82: =IFERROR(INDEX(CTS!$A:$A,MATCH(E82,CTS!$E:$E,0)),".") -> P | P82: =IFERROR(IFERROR(INDEX(#REF!,MATCH(E82,#REF!,0)),IFERROR(INDEX(#REF!,MATCH(E82,#REF!,0)),INDEX(#REF!,MATCH(E82,#REF!,0)) )),".") -> . | R82: =IFERROR(VLOOKUP(E82,#REF!,8,FALSE),IFERROR(VLOOKUP(E82,#REF!,8,FALSE),IFERROR(VLOOKUP(E82,#REF!,8,FALSE),""))) ->  | S82: .-.
